Workbook

Sheet Team Offense
A1: Games Played | B1: 128 | C1: =+B1*2/16 -> 16 | D1: AVERAGE GAMES PLAYED
A2: Offensive Stats: | D2: ARI | E2: ATL | F2: CAR | G2: CHI | H2: DAL | I2: DET | J2: GBP | K2: MIN | L2: NOS | M2: NYG | N2: PHI | O2: SEA | P2: SFO | Q2: STL | R2: TBB | S2: WAS | U2: Replay | V2: Actual
Y4: Replay | Z4: Replay
X5: OFFENSE | Y5: Rushing | Z5: Passing | AA5: Total | AB5: Average
A6: First Downs | D6: ='[1]Cumulative Stats'!D6 -> 305 | E6: ='[2]Cumulative Stats'!D6 -> 296 | F6: ='[3]Cumulative Stats'!D6 -> 346 | G6: ='[4]Cumulative Stats'!D6 -> 234 | H6: ='[5]Cumulative Stats'!D6 -> 304 | I6: ='[6]Cumulative Stats'!D6 -> 252 | J6: ='[7]Cumulative Stats'!D6 -> 274 | K6: ='[8]Cumulative Stats'!D6 -> 324 | L6: ='[9]Cumulative Stats'!D6 -> 363 | M6: ='[10]Cumulative Stats'!D6 -> 358 | N6: ='[11]Cumulative Stats'!D6 -> 328 | O6: ='[12]Cumulative Stats'!D6 -> 234 | P6: ='[13]Cumulative Stats'!D6 -> 263 | Q6: ='[14]Cumulative Stats'!D6 -> 263 | R6: ='[15]Cumulative Stats'!D6 -> 293 | S6: ='[16]Cumulative Stats'!D6 -> 318 | T6: =SUM(D6:S6) -> 4755 | U6: =T6/$B$1 -> 37.1484375 | V6: =4712/128 -> 36.8125 | W6: NOS | X6: New Orleans | Y6: =HLOOKUP(W6,$D$2:$S$68,11) -> 1568 | Z6: =HLOOKUP(W6,$D$2:$S$68,20) -> 4916 | AA6: =+Z6+Y6 -> 6484 | AB6: =+AA6/$C$1 -> 405.25
A7: Rushing | D7: ='[1]Cumulative Stats'!D7 -> 86 | E7: ='[2]Cumulative Stats'!D7 -> 133 | F7: ='[3]Cumulative Stats'!D7 -> 173 | G7: ='[4]Cumulative Stats'!D7 -> 106 | H7: ='[5]Cumulative Stats'!D7 -> 102 | I7: ='[6]Cumulative Stats'!D7 -> 79 | J7: ='[7]Cumulative Stats'!D7 -> 104 | K7: ='[8]Cumulative Stats'!D7 -> 158 | L7: ='[9]Cumulative Stats'!D7 -> 107 | M7: ='[10]Cumulative Stats'!D7 -> 189 | N7: ='[11]Cumulative Stats'!D7 -> 116 | O7: ='[12]Cumulative Stats'!D7 -> 112 | P7: ='[13]Cumulative Stats'!D7 -> 105 | Q7: ='[14]Cumulative Stats'!D7 -> 84 | R7: ='[15]Cumulative Stats'!D7 -> 113 | S7: ='[16]Cumulative Stats'!D7 -> 133 | T7: =SUM(D7:S7) -> 1900 | U7: =T7/$B$1 -> 14.84375 | V7: =1627/128 -> 12.7109375 | W7: CAR | X7: Carolina | Y7: 2763 | Z7: 3551 | AA7: 6314 | AB7: 394.625
A8: Passing | D8: ='[1]Cumulative Stats'!D8 -> 193 | E8: ='[2]Cumulative Stats'!D8 -> 151 | F8: ='[3]Cumulative Stats'!D8 -> 155 | G8: ='[4]Cumulative Stats'!D8 -> 113 | H8: ='[5]Cumulative Stats'!D8 -> 164 | I8: ='[6]Cumulative Stats'!D8 -> 158 | J8: ='[7]Cumulative Stats'!D8 -> 148 | K8: ='[8]Cumulative Stats'!D8 -> 149 | L8: ='[9]Cumulative Stats'!D8 -> 230 | M8: ='[10]Cumulative Stats'!D8 -> 144 | N8: ='[11]Cumulative Stats'!D8 -> 196 | O8: ='[12]Cumulative Stats'!D8 -> 110 | P8: ='[13]Cumulative Stats'!D8 -> 141 | Q8: ='[14]Cumulative Stats'!D8 -> 147 | R8: ='[15]Cumulative Stats'!D8 -> 162 | S8: ='[16]Cumulative Stats'!D8 -> 155 | T8: =SUM(D8:S8) -> 2516 | U8: =T8/$B$1 -> 19.65625 | V8: =2758/128 -> 21.546875 | W8: ATL | X8: Atlanta | Y8: 2267 | Z8: 3563 | AA8: 5830 | AB8: 364.375
A9: Penalty | D9: ='[1]Cumulative Stats'!D9 -> 26 | E9: ='[2]Cumulative Stats'!D9 -> 12 | F9: ='[3]Cumulative Stats'!D9 -> 18 | G9: ='[4]Cumulative Stats'!D9 -> 15 | H9: ='[5]Cumulative Stats'!D9 -> 38 | I9: ='[6]Cumulative Stats'!D9 -> 15 | J9: ='[7]Cumulative Stats'!D9 -> 22 | K9: ='[8]Cumulative Stats'!D9 -> 17 | L9: ='[9]Cumulative Stats'!D9 -> 26 | M9: ='[10]Cumulative Stats'!D9 -> 25 | N9: ='[11]Cumulative Stats'!D9 -> 16 | O9: ='[12]Cumulative Stats'!D9 -> 12 | P9: ='[13]Cumulative Stats'!D9 -> 17 | Q9: ='[14]Cumulative Stats'!D9 -> 32 | R9: ='[15]Cumulative Stats'!D9 -> 18 | S9: ='[16]Cumulative Stats'!D9 -> 30 | T9: =SUM(D9:S9) -> 339 | U9: =T9/$B$1 -> 2.6484375 | V9: =327/128 -> 2.5546875 | W9: MIN | X9: Minnesota | Y9: 2627 | Z9: 3027 | AA9: 5654 | AB9: 353.375
W10: NYG | X10: New York | Y10: 2677 | Z10: 2967 | AA10: 5644 | AB10: 352.75
A11: Rushes | D11: ='[1]Cumulative Stats'!D11 -> 329 | E11: ='[2]Cumulative Stats'!D11 -> 476 | F11: ='[3]Cumulative Stats'!D11 -> 516 | G11: ='[4]Cumulative Stats'!D11 -> 420 | H11: ='[5]Cumulative Stats'!D11 -> 395 | I11: ='[6]Cumulative Stats'!D11 -> 369 | J11: ='[7]Cumulative Stats'!D11 -> 385 | K11: ='[8]Cumulative Stats'!D11 -> 491 | L11: ='[9]Cumulative Stats'!D11 -> 376 | M11: ='[10]Cumulative Stats'!D11 -> 523 | N11: ='[11]Cumulative Stats'!D11 -> 440 | O11: ='[12]Cumulative Stats'!D11 -> 381 | P11: ='[13]Cumulative Stats'!D11 -> 395 | Q11: ='[14]Cumulative Stats'!D11 -> 394 | R11: ='[15]Cumulative Stats'!D11 -> 428 | S11: ='[16]Cumulative Stats'!D11 -> 457 | T11: =SUM(D11:S11) -> 6775 | U11: =T11/$B$1 -> 52.9296875 | V11: =7034/128 -> 54.953125 | W11: PHI | X11: Philadelphia | Y11: 1733 | Z11: 3811 | AA11: 5544 | AB11: 346.5
A12: Yards Gained (Net) | D12: ='[1]Cumulative Stats'!D12 -> 1200 | E12: ='[2]Cumulative Stats'!D12 -> 2267 | F12: ='[3]Cumulative Stats'!D12 -> 2763 | G12: ='[4]Cumulative Stats'!D12 -> 1564 | H12: ='[5]Cumulative Stats'!D12 -> 1838 | I12: ='[6]Cumulative Stats'!D12 -> 1331 | J12: ='[7]Cumulative Stats'!D12 -> 1687 | K12: ='[8]Cumulative Stats'!D12 -> 2627 | L12: ='[9]Cumulative Stats'!D12 -> 1568 | M12: ='[10]Cumulative Stats'!D12 -> 2677 | N12: ='[11]Cumulative Stats'!D12 -> 1733 | O12: ='[12]Cumulative Stats'!D12 -> 1700 | P12: ='[13]Cumulative Stats'!D12 -> 1614 | Q12: ='[14]Cumulative Stats'!D12 -> 1319 | R12: ='[15]Cumulative Stats'!D12 -> 1753 | S12: ='[16]Cumulative Stats'!D12 -> 2044 | T12: =SUM(D12:S12) -> 29685 | U12: =T12/$B$1 -> 231.9140625 | V12: =29686/128 -> 231.921875 | W12: ARI | X12: Arizona | Y12: 1200 | Z12: 4282 | AA12: 5482 | AB12: 342.625
A13: Average Gain | D13: ='[1]Cumulative Stats'!D13 -> 3.647416413 | E13: ='[2]Cumulative Stats'!D13 -> 4.762605042 | F13: ='[3]Cumulative Stats'!D13 -> 5.354651163 | G13: ='[4]Cumulative Stats'!D13 -> 3.723809524 | H13: ='[5]Cumulative Stats'!D13 -> 4.653164557 | I13: ='[6]Cumulative Stats'!D13 -> 3.60704607 | J13: ='[7]Cumulative Stats'!D13 -> 4.381818182 | K13: ='[8]Cumulative Stats'!D13 -> 5.350305499 | L13: ='[9]Cumulative Stats'!D13 -> 4.170212766 | M13: ='[10]Cumulative Stats'!D13 -> 5.118546845 | N13: ='[11]Cumulative Stats'!D13 -> 3.938636364 | O13: ='[12]Cumulative Stats'!D13 -> 4.461942257 | P13: ='[13]Cumulative Stats'!D13 -> 4.086075949 | Q13: ='[14]Cumulative Stats'!D13 -> 3.347715736 | R13: ='[15]Cumulative Stats'!D13 -> 4.095794393 | S13: ='[16]Cumulative Stats'!D13 -> 4.472647702 | U13: =U12/U11 -> 4.381549815 | V13: =V12/V11 -> 4.22035826 | W13: DAL | X13: Dallas | Y13: 1838 | Z13: 3524 | AA13: 5362 | AB13: 335.125
W14: TBB | X14: Tampa By | Y14: 1753 | Z14: 3333 | AA14: 5086 | AB14: 317.875
A15: Passes Attempted | D15: ='[1]Cumulative Stats'!D15 -> 594 | E15: ='[2]Cumulative Stats'!D15 -> 462 | F15: ='[3]Cumulative Stats'!D15 -> 470 | G15: ='[4]Cumulative Stats'!D15 -> 524 | H15: ='[5]Cumulative Stats'!D15 -> 525 | I15: ='[6]Cumulative Stats'!D15 -> 535 | J15: ='[7]Cumulative Stats'!D15 -> 532 | K15: ='[8]Cumulative Stats'!D15 -> 502 | L15: ='[9]Cumulative Stats'!D15 -> 647 | M15: ='[10]Cumulative Stats'!D15 -> 539 | N15: ='[11]Cumulative Stats'!D15 -> 590 | O15: ='[12]Cumulative Stats'!D15 -> 480 | P15: ='[13]Cumulative Stats'!D15 -> 513 | Q15: ='[14]Cumulative Stats'!D15 -> 517 | R15: ='[15]Cumulative Stats'!D15 -> 557 | S15: ='[16]Cumulative Stats'!D15 -> 492 | T15: =SUM(D15:S15) -> 8479 | U15: =T15/$B$1 -> 66.2421875 | V15: =8363/128 -> 65.3359375 | W15: GBP | X15: Green Bay | Y15: 1687 | Z15: 3089 | AA15: 4776 | AB15: 298.5
A16: Completed | D16: ='[1]Cumulative Stats'!D16 -> 390 | E16: ='[2]Cumulative Stats'!D16 -> 277 | F16: ='[3]Cumulative Stats'!D16 -> 278 | G16: ='[4]Cumulative Stats'!D16 -> 280 | H16: ='[5]Cumulative Stats'!D16 -> 314 | I16: ='[6]Cumulative Stats'!D16 -> 306 | J16: ='[7]Cumulative Stats'!D16 -> 301 | K16: ='[8]Cumulative Stats'!D16 -> 273 | L16: ='[9]Cumulative Stats'!D16 -> 413 | M16: ='[10]Cumulative Stats'!D16 -> 306 | N16: ='[11]Cumulative Stats'!D16 -> 360 | O16: ='[12]Cumulative Stats'!D16 -> 245 | P16: ='[13]Cumulative Stats'!D16 -> 291 | Q16: ='[14]Cumulative Stats'!D16 -> 282 | R16: ='[15]Cumulative Stats'!D16 -> 344 | S16: ='[16]Cumulative Stats'!D16 -> 275 | T16: =SUM(D16:S16) -> 4935 | U16: =T16/$B$1 -> 38.5546875 | V16: =5061/128 -> 39.5390625 | W16: SFO | X16: San Francisco | Y16: 1614 | Z16: 3156 | AA16: 4770 | AB16: 298.125
A17: Percent Completed | D17: ='[1]Cumulative Stats'!D17 -> 65.65656566 | E17: ='[2]Cumulative Stats'!D17 -> 59.95670996 | F17: ='[3]Cumulative Stats'!D17 -> 59.14893617 | G17: ='[4]Cumulative Stats'!D17 -> 53.4351145 | H17: ='[5]Cumulative Stats'!D17 -> 59.80952381 | I17: ='[6]Cumulative Stats'!D17 -> 57.19626168 | J17: ='[7]Cumulative Stats'!D17 -> 56.57894737 | K17: ='[8]Cumulative Stats'!D17 -> 54.38247012 | L17: ='[9]Cumulative Stats'!D17 -> 63.83307573 | M17: ='[10]Cumulative Stats'!D17 -> 56.77179963 | N17: ='[11]Cumulative Stats'!D17 -> 61.01694915 | O17: ='[12]Cumulative Stats'!D17 -> 51.04166667 | P17: ='[13]Cumulative Stats'!D17 -> 56.7251462 | Q17: ='[14]Cumulative Stats'!D17 -> 54.54545455 | R17: ='[15]Cumulative Stats'!D17 -> 61.75942549 | S17: ='[16]Cumulative Stats'!D17 -> 55.89430894 | U17: =U16/U15*100 -> 58.20261823 | V17: =V16/V15*100 -> 60.51656104 | W17: WAS | X17: Washington | Y17: 2044 | Z17: 2451 | AA17: 4495 | AB17: 280.9375
A18: Total Yards Gained | D18: ='[1]Cumulative Stats'!D18 -> 4445 | E18: ='[2]Cumulative Stats'!D18 -> 3707 | F18: ='[3]Cumulative Stats'!D18 -> 3680 | G18: ='[4]Cumulative Stats'!D18 -> 2846 | H18: ='[5]Cumulative Stats'!D18 -> 3762 | I18: ='[6]Cumulative Stats'!D18 -> 3443 | J18: ='[7]Cumulative Stats'!D18 -> 3381 | K18: ='[8]Cumulative Stats'!D18 -> 3425 | L18: ='[9]Cumulative Stats'!D18 -> 5058 | M18: ='[10]Cumulative Stats'!D18 -> 3232 | N18: ='[11]Cumulative Stats'!D18 -> 4046 | O18: ='[12]Cumulative Stats'!D18 -> 2466 | P18: ='[13]Cumulative Stats'!D18 -> 3611 | Q18: ='[14]Cumulative Stats'!D18 -> 3049 | R18: ='[15]Cumulative Stats'!D18 -> 3577 | S18: ='[16]Cumulative Stats'!D18 -> 2878 | T18: =SUM(D18:S18) -> 56606 | U18: =T18/$B$1 -> 442.234375 | V18: =58764/128 -> 459.09375 | W18: DET | X18: Detroit | Y18: 1331 | Z18: 3109 | AA18: 4440 | AB18: 277.5
A19: Passer Tackled | D19: ='[1]Cumulative Stats'!D19 -> 40 | E19: ='[2]Cumulative Stats'!D19 -> 24 | F19: ='[3]Cumulative Stats'!D19 -> 24 | G19: ='[4]Cumulative Stats'!D19 -> 37 | H19: ='[5]Cumulative Stats'!D19 -> 36 | I19: ='[6]Cumulative Stats'!D19 -> 46 | J19: ='[7]Cumulative Stats'!D19 -> 38 | K19: ='[8]Cumulative Stats'!D19 -> 56 | L19: ='[9]Cumulative Stats'!D19 -> 19 | M19: ='[10]Cumulative Stats'!D19 -> 38 | N19: ='[11]Cumulative Stats'!D19 -> 30 | O19: ='[12]Cumulative Stats'!D19 -> 38 | P19: ='[13]Cumulative Stats'!D19 -> 59 | Q19: ='[14]Cumulative Stats'!D19 -> 43 | R19: ='[15]Cumulative Stats'!D19 -> 40 | S19: ='[16]Cumulative Stats'!D19 -> 53 | T19: =SUM(D19:S19) -> 621 | U19: =T19/$B$1 -> 4.8515625 | V19: =524/128 -> 4.09375 | W19: STL | X19: St. Louis | Y19: 1319 | Z19: 2762 | AA19: 4081 | AB19: 255.0625
A20: Yards Lost | D20: ='[1]Cumulative Stats'!D20 -> 163 | E20: ='[2]Cumulative Stats'!D20 -> 144 | F20: ='[3]Cumulative Stats'!D20 -> 129 | G20: ='[4]Cumulative Stats'!D20 -> 357 | H20: ='[5]Cumulative Stats'!D20 -> 238 | I20: ='[6]Cumulative Stats'!D20 -> 334 | J20: ='[7]Cumulative Stats'!D20 -> 292 | K20: ='[8]Cumulative Stats'!D20 -> 398 | L20: ='[9]Cumulative Stats'!D20 -> 142 | M20: ='[10]Cumulative Stats'!D20 -> 265 | N20: ='[11]Cumulative Stats'!D20 -> 235 | O20: ='[12]Cumulative Stats'!D20 -> 257 | P20: ='[13]Cumulative Stats'!D20 -> 455 | Q20: ='[14]Cumulative Stats'!D20 -> 287 | R20: ='[15]Cumulative Stats'!D20 -> 244 | S20: ='[16]Cumulative Stats'!D20 -> 427 | T20: =SUM(D20:S20) -> 4367 | U20: =T20/$B$1 -> 34.1171875 | V20: =3365/128 -> 26.2890625 | W20: CHI | X20: Chicago | Y20: 1564 | Z20: 2489 | AA20: 4053 | AB20: 253.3125
A21: Net Yards Gained | D21: ='[1]Cumulative Stats'!D21 -> 4282 | E21: ='[2]Cumulative Stats'!D21 -> 3563 | F21: ='[3]Cumulative Stats'!D21 -> 3551 | G21: ='[4]Cumulative Stats'!D21 -> 2489 | H21: ='[5]Cumulative Stats'!D21 -> 3524 | I21: ='[6]Cumulative Stats'!D21 -> 3109 | J21: ='[7]Cumulative Stats'!D21 -> 3089 | K21: ='[8]Cumulative Stats'!D21 -> 3027 | L21: ='[9]Cumulative Stats'!D21 -> 4916 | M21: ='[10]Cumulative Stats'!D21 -> 2967 | N21: ='[11]Cumulative Stats'!D21 -> 3811 | O21: ='[12]Cumulative Stats'!D21 -> 2209 | P21: ='[13]Cumulative Stats'!D21 -> 3156 | Q21: ='[14]Cumulative Stats'!D21 -> 2762 | R21: ='[15]Cumulative Stats'!D21 -> 3333 | S21: ='[16]Cumulative Stats'!D21 -> 2451 | T21: =SUM(D21:S21) -> 52239 | U21: =T21/$B$1 -> 408.1171875 | V21: =53856/128 -> 420.75 | W21: SEA | X21: Seattle | Y21: 1700 | Z21: 2209 | AA21: 3909 | AB21: 244.3125
A22: Yards Gained (Net) Per Pass Play | D22: ='[1]Cumulative Stats'!D22 -> 6.753943218 | E22: ='[2]Cumulative Stats'!D22 -> 7.33127572 | F22: ='[3]Cumulative Stats'!D22 -> 7.188259109 | G22: ='[4]Cumulative Stats'!D22 -> 4.436720143 | H22: ='[5]Cumulative Stats'!D22 -> 6.281639929 | I22: ='[6]Cumulative Stats'!D22 -> 5.351118761 | J22: ='[7]Cumulative Stats'!D22 -> 5.419298246 | K22: ='[8]Cumulative Stats'!D22 -> 5.424731183 | L22: ='[9]Cumulative Stats'!D22 -> 7.381381381 | M22: ='[10]Cumulative Stats'!D22 -> 5.142114385 | N22: ='[11]Cumulative Stats'!D22 -> 6.146774194 | O22: ='[12]Cumulative Stats'!D22 -> 4.264478764 | P22: ='[13]Cumulative Stats'!D22 -> 5.517482517 | Q22: ='[14]Cumulative Stats'!D22 -> 4.932142857 | R22: ='[15]Cumulative Stats'!D22 -> 5.582914573 | S22: ='[16]Cumulative Stats'!D22 -> 4.497247706 | U22: =U21/(U15+U19) -> 5.740549451 | V22: 6.2
A23: Yards Gained Per Completion | D23: ='[1]Cumulative Stats'!D23 -> 11.3974359 | E23: ='[2]Cumulative Stats'!D23 -> 13.38267148 | F23: ='[3]Cumulative Stats'!D23 -> 13.23741007 | G23: ='[4]Cumulative Stats'!D23 -> 10.16428571 | H23: ='[5]Cumulative Stats'!D23 -> 11.98089172 | I23: ='[6]Cumulative Stats'!D23 -> 11.25163399 | J23: ='[7]Cumulative Stats'!D23 -> 11.23255814 | K23: ='[8]Cumulative Stats'!D23 -> 12.54578755 | L23: ='[9]Cumulative Stats'!D23 -> 12.24697337 | M23: ='[10]Cumulative Stats'!D23 -> 10.5620915 | N23: ='[11]Cumulative Stats'!D23 -> 11.23888889 | O23: ='[12]Cumulative Stats'!D23 -> 10.06530612 | P23: ='[13]Cumulative Stats'!D23 -> 12.40893471 | Q23: ='[14]Cumulative Stats'!D23 -> 10.81205674 | R23: ='[15]Cumulative Stats'!D23 -> 10.39825581 | S23: ='[16]Cumulative Stats'!D23 -> 10.46545455 | U23: =U21/U16 -> 10.58541033 | V23: 11.6
A25: Net Yards Gained
A26: Rushing and Passing | D26: ='[1]Cumulative Stats'!D26 -> 5482 | E26: ='[2]Cumulative Stats'!D26 -> 5830 | F26: ='[3]Cumulative Stats'!D26 -> 6314 | G26: ='[4]Cumulative Stats'!D26 -> 4053 | H26: ='[5]Cumulative Stats'!D26 -> 5362 | I26: ='[6]Cumulative Stats'!D26 -> 4440 | J26: ='[7]Cumulative Stats'!D26 -> 4776 | K26: ='[8]Cumulative Stats'!D26 -> 5654 | L26: ='[9]Cumulative Stats'!D26 -> 6484 | M26: ='[10]Cumulative Stats'!D26 -> 5644 | N26: ='[11]Cumulative Stats'!D26 -> 5544 | O26: ='[12]Cumulative Stats'!D26 -> 3909 | P26: ='[13]Cumulative Stats'!D26 -> 4770 | Q26: ='[14]Cumulative Stats'!D26 -> 4081 | R26: ='[15]Cumulative Stats'!D26 -> 5086 | S26: ='[16]Cumulative Stats'!D26 -> 4495 | T26: =SUM(D26:S26) -> 81924 | U26: =T26/$B$1 -> 640.03125 | V26: =85085/128 -> 664.7265625
A27: Percent Total Yards - Rushing | D27: ='[1]Cumulative Stats'!D27 -> 21.88982123 | E27: ='[2]Cumulative Stats'!D27 -> 38.88507719 | F27: ='[3]Cumulative Stats'!D27 -> 43.75989864 | G27: ='[4]Cumulative Stats'!D27 -> 38.58869973 | H27: ='[5]Cumulative Stats'!D27 -> 34.27825438 | I27: ='[6]Cumulative Stats'!D27 -> 29.97747748 | J27: ='[7]Cumulative Stats'!D27 -> 35.32244556 | K27: ='[8]Cumulative Stats'!D27 -> 46.46268129 | L27: ='[9]Cumulative Stats'!D27 -> 24.18260333 | M27: ='[10]Cumulative Stats'!D27 -> 47.43090007 | N27: ='[11]Cumulative Stats'!D27 -> 31.25901876 | O27: ='[12]Cumulative Stats'!D27 -> 43.48938347 | P27: ='[13]Cumulative Stats'!D27 -> 33.83647799 | Q27: ='[14]Cumulative Stats'!D27 -> 32.32050968 | R27: ='[15]Cumulative Stats'!D27 -> 34.46716477 | S27: ='[16]Cumulative Stats'!D27 -> 45.4727475 | T27: =SUM(D27:S27) -> 581.6231611
A28: Percent Total Yards - Passing | D28: ='[1]Cumulative Stats'!D28 -> 78.11017877 | E28: ='[2]Cumulative Stats'!D28 -> 61.11492281 | F28: ='[3]Cumulative Stats'!D28 -> 56.24010136 | G28: ='[4]Cumulative Stats'!D28 -> 61.41130027 | H28: ='[5]Cumulative Stats'!D28 -> 65.72174562 | I28: ='[6]Cumulative Stats'!D28 -> 70.02252252 | J28: ='[7]Cumulative Stats'!D28 -> 64.67755444 | K28: ='[8]Cumulative Stats'!D28 -> 53.53731871 | L28: ='[9]Cumulative Stats'!D28 -> 75.81739667 | M28: ='[10]Cumulative Stats'!D28 -> 52.56909993 | N28: ='[11]Cumulative Stats'!D28 -> 68.74098124 | O28: ='[12]Cumulative Stats'!D28 -> 56.51061653 | P28: ='[13]Cumulative Stats'!D28 -> 66.16352201 | Q28: ='[14]Cumulative Stats'!D28 -> 67.67949032 | R28: ='[15]Cumulative Stats'!D28 -> 65.53283523 | S28: ='[16]Cumulative Stats'!D28 -> 54.5272525 | T28: =SUM(D28:S28) -> 1018.376839
A30: Ball Control Plays | D30: ='[1]Cumulative Stats'!D30 -> 963 | E30: ='[2]Cumulative Stats'!D30 -> 962 | F30: ='[3]Cumulative Stats'!D30 -> 1010 | G30: ='[4]Cumulative Stats'!D30 -> 981 | H30: ='[5]Cumulative Stats'!D30 -> 956 | I30: ='[6]Cumulative Stats'!D30 -> 950 | J30: ='[7]Cumulative Stats'!D30 -> 955 | K30: ='[8]Cumulative Stats'!D30 -> 1049 | L30: ='[9]Cumulative Stats'!D30 -> 1042 | M30: ='[10]Cumulative Stats'!D30 -> 1100 | N30: ='[11]Cumulative Stats'!D30 -> 1060 | O30: ='[12]Cumulative Stats'!D30 -> 899 | P30: ='[13]Cumulative Stats'!D30 -> 967 | Q30: ='[14]Cumulative Stats'!D30 -> 954 | R30: ='[15]Cumulative Stats'!D30 -> 1025 | S30: ='[16]Cumulative Stats'!D30 -> 1002 | T30: =SUM(D30:S30) -> 15875 | U30: =T30/$B$1 -> 124.0234375 | V30: =15921/128 -> 124.3828125
A31: Average Gain (Net) | D31: ='[1]Cumulative Stats'!D31 -> 5.692627207 | E31: ='[2]Cumulative Stats'!D31 -> 6.06029106 | F31: ='[3]Cumulative Stats'!D31 -> 6.251485149 | G31: ='[4]Cumulative Stats'!D31 -> 4.131498471 | H31: ='[5]Cumulative Stats'!D31 -> 5.608786611 | I31: ='[6]Cumulative Stats'!D31 -> 4.673684211 | J31: ='[7]Cumulative Stats'!D31 -> 5.00104712 | K31: ='[8]Cumulative Stats'!D31 -> 5.389895138 | L31: ='[9]Cumulative Stats'!D31 -> 6.222648752 | M31: ='[10]Cumulative Stats'!D31 -> 5.130909091 | N31: ='[11]Cumulative Stats'!D31 -> 5.230188679 | O31: ='[12]Cumulative Stats'!D31 -> 4.348164627 | P31: ='[13]Cumulative Stats'!D31 -> 4.932781799 | Q31: ='[14]Cumulative Stats'!D31 -> 4.277777778 | R31: ='[15]Cumulative Stats'!D31 -> 4.96195122 | S31: ='[16]Cumulative Stats'!D31 -> 4.486027944 | U31: =U26/U30 -> 5.160566929 | V31: =V26/V30 -> 5.344199485
A33: Interceptions
A34: Had Intercepted | D34: ='[1]Cumulative Stats'!D34 -> 13 | E34: ='[2]Cumulative Stats'!D34 -> 8 | F34: ='[3]Cumulative Stats'!D34 -> 15 | G34: ='[4]Cumulative Stats'!D34 -> 27 | H34: ='[5]Cumulative Stats'!D34 -> 18 | I34: ='[6]Cumulative Stats'!D34 -> 19 | J34: ='[7]Cumulative Stats'!D34 -> 22 | K34: ='[8]Cumulative Stats'!D34 -> 15 | L34: ='[9]Cumulative Stats'!D34 -> 11 | M34: ='[10]Cumulative Stats'!D34 -> 10 | N34: ='[11]Cumulative Stats'!D34 -> 15 | O34: ='[12]Cumulative Stats'!D34 -> 13 | P34: ='[13]Cumulative Stats'!D34 -> 31 | Q34: ='[14]Cumulative Stats'!D34 -> 13 | R34: ='[15]Cumulative Stats'!D34 -> 8 | S34: ='[16]Cumulative Stats'!D34 -> 3 | T34: =SUM(D34:S34) -> 241 | U34: =T34/$B$1 -> 1.8828125 | V34: =237/128 -> 1.8515625
A35: Yards Opponents Returned | D35: ='[1]Cumulative Stats'!D35 -> 112 | E35: ='[2]Cumulative Stats'!D35 -> 76 | F35: ='[3]Cumulative Stats'!D35 -> 245 | G35: ='[4]Cumulative Stats'!D35 -> 413 | H35: ='[5]Cumulative Stats'!D35 -> 281 | I35: ='[6]Cumulative Stats'!D35 -> 241 | J35: ='[7]Cumulative Stats'!D35 -> 367 | K35: ='[8]Cumulative Stats'!D35 -> 151 | L35: ='[9]Cumulative Stats'!D35 -> 215 | M35: ='[10]Cumulative Stats'!D35 -> 103 | N35: ='[11]Cumulative Stats'!D35 -> 172 | O35: ='[12]Cumulative Stats'!D35 -> 124 | P35: ='[13]Cumulative Stats'!D35 -> 415 | Q35: ='[14]Cumulative Stats'!D35 -> 200 | R35: ='[15]Cumulative Stats'!D35 -> 196 | S35: ='[16]Cumulative Stats'!D35 -> 21 | T35: =SUM(D35:S35) -> 3332 | U35: =T35/$B$1 -> 26.03125 | V35: =4068/128 -> 31.78125
A36: Returned by Opponents for TD | D36: ='[1]Cumulative Stats'!D36 -> 0 | E36: ='[2]Cumulative Stats'!D36 -> 0 | F36: ='[3]Cumulative Stats'!D36 -> 3 | G36: ='[4]Cumulative Stats'!D36 -> 4 | H36: ='[5]Cumulative Stats'!D36 -> 3 | I36: ='[6]Cumulative Stats'!D36 -> 1 | J36: ='[7]Cumulative Stats'!D36 -> 3 | K36: ='[8]Cumulative Stats'!D36 -> 1 | L36: ='[9]Cumulative Stats'!D36 -> 1 | M36: ='[10]Cumulative Stats'!D36 -> 0 | N36: ='[11]Cumulative Stats'!D36 -> 0 | O36: ='[12]Cumulative Stats'!D36 -> 0 | P36: ='[13]Cumulative Stats'!D36 -> 3 | Q36: ='[14]Cumulative Stats'!D36 -> 0 | R36: ='[15]Cumulative Stats'!D36 -> 0 | S36: ='[16]Cumulative Stats'!D36 -> 1 | T36: =SUM(D36:S36) -> 20 | U36: =T36/$B$1 -> 0.15625 | V36: =25/128 -> 0.1953125
A38: Punts | D38: ='[1]Cumulative Stats'!D38 -> 83 | E38: ='[2]Cumulative Stats'!D38 -> 79 | F38: ='[3]Cumulative Stats'!D38 -> 67 | G38: ='[4]Cumulative Stats'!D38 -> 111 | H38: ='[5]Cumulative Stats'!D38 -> 78 | I38: ='[6]Cumulative Stats'!D38 -> 88 | J38: ='[7]Cumulative Stats'!D38 -> 93 | K38: ='[8]Cumulative Stats'!D38 -> 81 | L38: ='[9]Cumulative Stats'!D38 -> 77 | M38: ='[10]Cumulative Stats'!D38 -> 74 | N38: ='[11]Cumulative Stats'!D38 -> 88 | O38: ='[12]Cumulative Stats'!D38 -> 93 | P38: ='[13]Cumulative Stats'!D38 -> 87 | Q38: ='[14]Cumulative Stats'!D38 -> 95 | R38: ='[15]Cumulative Stats'!D38 -> 98 | S38: ='[16]Cumulative Stats'!D38 -> 93 | T38: =SUM(D38:S38) -> 1385 | U38: =T38/$B$1 -> 10.8203125 | V38: =1198/128 -> 9.359375
A39: Yards Punted | D39: ='[1]Cumulative Stats'!D39 -> 3392 | E39: ='[2]Cumulative Stats'!D39 -> 2940 | F39: ='[3]Cumulative Stats'!D39 -> 2765 | G39: ='[4]Cumulative Stats'!D39 -> 4441 | H39: ='[5]Cumulative Stats'!D39 -> 3480 | I39: ='[6]Cumulative Stats'!D39 -> 3762 | J39: ='[7]Cumulative Stats'!D39 -> 3716 | K39: ='[8]Cumulative Stats'!D39 -> 3641 | L39: ='[9]Cumulative Stats'!D39 -> 3543 | M39: ='[10]Cumulative Stats'!D39 -> 3118 | N39: ='[11]Cumulative Stats'!D39 -> 3647 | O39: ='[12]Cumulative Stats'!D39 -> 4073 | P39: ='[13]Cumulative Stats'!D39 -> 3844 | Q39: ='[14]Cumulative Stats'!D39 -> 4475 | R39: ='[15]Cumulative Stats'!D39 -> 4207 | S39: ='[16]Cumulative Stats'!D39 -> 3470 | T39: =SUM(D39:S39) -> 58514 | U39: =T39/$B$1 -> 457.140625 | V39: =52291/128 -> 408.5234375
A40: Average Yards Per Punt | D40: ='[1]Cumulative Stats'!D40 -> 40.86746988 | E40: ='[2]Cumulative Stats'!D40 -> 37.21518987 | F40: ='[3]Cumulative Stats'!D40 -> 41.26865672 | G40: ='[4]Cumulative Stats'!D40 -> 40.00900901 | H40: ='[5]Cumulative Stats'!D40 -> 44.61538462 | I40: ='[6]Cumulative Stats'!D40 -> 42.75 | J40: ='[7]Cumulative Stats'!D40 -> 39.95698925 | K40: ='[8]Cumulative Stats'!D40 -> 44.95061728 | L40: ='[9]Cumulative Stats'!D40 -> 46.01298701 | M40: ='[10]Cumulative Stats'!D40 -> 42.13513514 | N40: ='[11]Cumulative Stats'!D40 -> 41.44318182 | O40: ='[12]Cumulative Stats'!D40 -> 43.79569892 | P40: ='[13]Cumulative Stats'!D40 -> 44.18390805 | Q40: ='[14]Cumulative Stats'!D40 -> 47.10526316 | R40: ='[15]Cumulative Stats'!D40 -> 42.92857143 | S40: ='[16]Cumulative Stats'!D40 -> 37.31182796 | U40: =U39/U38 -> 42.24837545 | V40: =V39/V38 -> 43.64858097
A42: Punt Returns | D42: ='[1]Cumulative Stats'!D42 -> 37 | E42: ='[2]Cumulative Stats'!D42 -> 55 | F42: ='[3]Cumulative Stats'!D42 -> 41 | G42: ='[4]Cumulative Stats'!D42 -> 54 | H42: ='[5]Cumulative Stats'!D42 -> 48 | I42: ='[6]Cumulative Stats'!D42 -> 39 | J42: ='[7]Cumulative Stats'!D42 -> 41 | K42: ='[8]Cumulative Stats'!D42 -> 52 | L42: ='[9]Cumulative Stats'!D42 -> 45 | M42: ='[10]Cumulative Stats'!D42 -> 50 | N42: ='[11]Cumulative Stats'!D42 -> 64 | O42: ='[12]Cumulative Stats'!D42 -> 30 | P42: ='[13]Cumulative Stats'!D42 -> 38 | Q42: ='[14]Cumulative Stats'!D42 -> 41 | R42: ='[15]Cumulative Stats'!D42 -> 50 | S42: ='[16]Cumulative Stats'!D42 -> 30 | T42: =SUM(D42:S42) -> 715 | U42: =T42/$B$1 -> 5.5859375 | V42: =588/128 -> 4.59375
A43: Yards Returned | D43: ='[1]Cumulative Stats'!D43 -> 264 | E43: ='[2]Cumulative Stats'!D43 -> 489 | F43: ='[3]Cumulative Stats'!D43 -> 455 | G43: ='[4]Cumulative Stats'!D43 -> 445 | H43: ='[5]Cumulative Stats'!D43 -> 485 | I43: ='[6]Cumulative Stats'!D43 -> 308 | J43: ='[7]Cumulative Stats'!D43 -> 488 | K43: ='[8]Cumulative Stats'!D43 -> 453 | L43: ='[9]Cumulative Stats'!D43 -> 379 | M43: ='[10]Cumulative Stats'!D43 -> 480 | N43: ='[11]Cumulative Stats'!D43 -> 674 | O43: ='[12]Cumulative Stats'!D43 -> 243 | P43: ='[13]Cumulative Stats'!D43 -> 290 | Q43: ='[14]Cumulative Stats'!D43 -> 325 | R43: ='[15]Cumulative Stats'!D43 -> 556 | S43: ='[16]Cumulative Stats'!D43 -> 225 | T43: =SUM(D43:S43) -> 6559 | U43: =T43/$B$1 -> 51.2421875 | V43: =5214/128 -> 40.734375
A44: Average Yards Per Return | D44: ='[1]Cumulative Stats'!D44 -> 7.135135135 | E44: ='[2]Cumulative Stats'!D44 -> 8.890909091 | F44: ='[3]Cumulative Stats'!D44 -> 11.09756098 | G44: ='[4]Cumulative Stats'!D44 -> 8.240740741 | H44: ='[5]Cumulative Stats'!D44 -> 10.10416667 | I44: ='[6]Cumulative Stats'!D44 -> 7.897435897 | J44: ='[7]Cumulative Stats'!D44 -> 11.90243902 | K44: ='[8]Cumulative Stats'!D44 -> 8.711538462 | L44: ='[9]Cumulative Stats'!D44 -> 8.422222222 | M44: ='[10]Cumulative Stats'!D44 -> 9.6 | N44: ='[11]Cumulative Stats'!D44 -> 10.53125 | O44: ='[12]Cumulative Stats'!D44 -> 8.1 | P44: ='[13]Cumulative Stats'!D44 -> 7.631578947 | Q44: ='[14]Cumulative Stats'!D44 -> 7.926829268 | R44: ='[15]Cumulative Stats'!D44 -> 11.12 | S44: ='[16]Cumulative Stats'!D44 -> 7.5 | U44: =U43/U42 -> 9.173426573 | V44: =V43/V42 -> 8.867346939
A45: Returned for TD | D45: ='[1]Cumulative Stats'!D45 -> 0 | E45: ='[2]Cumulative Stats'!D45 -> 0 | F45: ='[3]Cumulative Stats'!D45 -> 0 | G45: ='[4]Cumulative Stats'!D45 -> 0 | H45: ='[5]Cumulative Stats'!D45 -> 0 | I45: ='[6]Cumulative Stats'!D45 -> 0 | J45: ='[7]Cumulative Stats'!D45 -> 2 | K45: ='[8]Cumulative Stats'!D45 -> 0 | L45: ='[9]Cumulative Stats'!D45 -> 2 | M45: ='[10]Cumulative Stats'!D45 -> 0 | N45: ='[11]Cumulative Stats'!D45 -> 4 | O45: ='[12]Cumulative Stats'!D45 -> 0 | P45: ='[13]Cumulative Stats'!D45 -> 0 | Q45: ='[14]Cumulative Stats'!D45 -> 0 | R45: ='[15]Cumulative Stats'!D45 -> 1 | S45: ='[16]Cumulative Stats'!D45 -> 0 | T45: =SUM(D45:S45) -> 9 | U45: =T45/$B$1 -> 0.0703125 | V45: =10/128 -> 0.078125
A47: Kickoff Returns | D47: ='[1]Cumulative Stats'!D47 -> 67 | E47: ='[2]Cumulative Stats'!D47 -> 67 | F47: ='[3]Cumulative Stats'!D47 -> 73 | G47: ='[4]Cumulative Stats'!D47 -> 78 | H47: ='[5]Cumulative Stats'!D47 -> 82 | I47: ='[6]Cumulative Stats'!D47 -> 97 | J47: ='[7]Cumulative Stats'!D47 -> 94 | K47: ='[8]Cumulative Stats'!D47 -> 70 | L47: ='[9]Cumulative Stats'!D47 -> 64 | M47: ='[10]Cumulative Stats'!D47 -> 59 | N47: ='[11]Cumulative Stats'!D47 -> 58 | O47: ='[12]Cumulative Stats'!D47 -> 93 | P47: ='[13]Cumulative Stats'!D47 -> 70 | Q47: ='[14]Cumulative Stats'!D47 -> 76 | R47: ='[15]Cumulative Stats'!D47 -> 79 | S47: ='[16]Cumulative Stats'!D47 -> 70 | T47: =SUM(D47:S47) -> 1197 | U47: =T47/$B$1 -> 9.3515625 | V47: =1079/128 -> 8.4296875
A48: Yards Returned | D48: ='[1]Cumulative Stats'!D48 -> 1464 | E48: ='[2]Cumulative Stats'!D48 -> 1826 | F48: ='[3]Cumulative Stats'!D48 -> 1625 | G48: ='[4]Cumulative Stats'!D48 -> 1915 | H48: ='[5]Cumulative Stats'!D48 -> 1387 | I48: ='[6]Cumulative Stats'!D48 -> 2028 | J48: ='[7]Cumulative Stats'!D48 -> 1847 | K48: ='[8]Cumulative Stats'!D48 -> 1493 | L48: ='[9]Cumulative Stats'!D48 -> 1463 | M48: ='[10]Cumulative Stats'!D48 -> 1304 | N48: ='[11]Cumulative Stats'!D48 -> 1430 | O48: ='[12]Cumulative Stats'!D48 -> 2284 | P48: ='[13]Cumulative Stats'!D48 -> 1455 | Q48: ='[14]Cumulative Stats'!D48 -> 1750 | R48: ='[15]Cumulative Stats'!D48 -> 1882 | S48: ='[16]Cumulative Stats'!D48 -> 1734 | T48: =SUM(D48:S48) -> 26887 | U48: =T48/$B$1 -> 210.0546875 | V48: =24981/128 -> 195.1640625
A49: Average Yards Per Return | D49: ='[1]Cumulative Stats'!D49 -> 21.85074627 | E49: ='[2]Cumulative Stats'!D49 -> 27.25373134 | F49: ='[3]Cumulative Stats'!D49 -> 22.26027397 | G49: ='[4]Cumulative Stats'!D49 -> 24.55128205 | H49: ='[5]Cumulative Stats'!D49 -> 16.91463415 | I49: ='[6]Cumulative Stats'!D49 -> 20.90721649 | J49: ='[7]Cumulative Stats'!D49 -> 19.64893617 | K49: ='[8]Cumulative Stats'!D49 -> 21.32857143 | L49: ='[9]Cumulative Stats'!D49 -> 22.859375 | M49: ='[10]Cumulative Stats'!D49 -> 22.10169492 | N49: ='[11]Cumulative Stats'!D49 -> 24.65517241 | O49: ='[12]Cumulative Stats'!D49 -> 24.55913978 | P49: ='[13]Cumulative Stats'!D49 -> 20.78571429 | Q49: ='[14]Cumulative Stats'!D49 -> 23.02631579 | R49: ='[15]Cumulative Stats'!D49 -> 23.82278481 | S49: ='[16]Cumulative Stats'!D49 -> 24.77142857 | U49: =U48/U47 -> 22.4619883 | V49: =V48/V47 -> 23.15199259
A50: Returned for TD | D50: ='[1]Cumulative Stats'!D50 -> 2 | E50: ='[2]Cumulative Stats'!D50 -> 0 | F50: ='[3]Cumulative Stats'!D50 -> 0 | G50: ='[4]Cumulative Stats'!D50 -> 1 | H50: ='[5]Cumulative Stats'!D50 -> 0 | I50: ='[6]Cumulative Stats'!D50 -> 0 | J50: ='[7]Cumulative Stats'!D50 -> 0 | K50: ='[8]Cumulative Stats'!D50 -> 0 | L50: ='[9]Cumulative Stats'!D50 -> 0 | M50: ='[10]Cumulative Stats'!D50 -> 0 | N50: ='[11]Cumulative Stats'!D50 -> 4 | O50: ='[12]Cumulative Stats'!D50 -> 0 | P50: ='[13]Cumulative Stats'!D50 -> 0 | Q50: ='[14]Cumulative Stats'!D50 -> 0 | R50: ='[15]Cumulative Stats'!D50 -> 2 | S50: ='[16]Cumulative Stats'!D50 -> 0 | T50: =SUM(D50:S50) -> 9 | U50: =T50/$B$1 -> 0.0703125 | V50: =6/128 -> 0.046875
A52: Penalties | D52: ='[1]Cumulative Stats'!D52 -> 82 | E52: ='[2]Cumulative Stats'!D52 -> 60 | F52: ='[3]Cumulative Stats'!D52 -> 77 | G52: ='[4]Cumulative Stats'!D52 -> 55 | H52: ='[5]Cumulative Stats'!D52 -> 94 | I52: ='[6]Cumulative Stats'!D52 -> 65 | J52: ='[7]Cumulative Stats'!D52 -> 101 | K52: ='[8]Cumulative Stats'!D52 -> 88 | L52: ='[9]Cumulative Stats'!D52 -> 65 | M52: ='[10]Cumulative Stats'!D52 -> 80 | N52: ='[11]Cumulative Stats'!D52 -> 56 | O52: ='[12]Cumulative Stats'!D52 -> 82 | P52: ='[13]Cumulative Stats'!D52 -> 74 | Q52: ='[14]Cumulative Stats'!D52 -> 85 | R52: ='[15]Cumulative Stats'!D52 -> 83 | S52: ='[16]Cumulative Stats'!D52 -> 80 | T52: =SUM(D52:S52) -> 1227 | U52: =T52/$B$1 -> 9.5859375 | V52: =1471/128 -> 11.4921875
A53: Yards Penalized | D53: ='[1]Cumulative Stats'!D53 -> 646 | E53: ='[2]Cumulative Stats'!D53 -> 482 | F53: ='[3]Cumulative Stats'!D53 -> 651 | G53: ='[4]Cumulative Stats'!D53 -> 471 | H53: ='[5]Cumulative Stats'!D53 -> 756 | I53: ='[6]Cumulative Stats'!D53 -> 537 | J53: ='[7]Cumulative Stats'!D53 -> 846 | K53: ='[8]Cumulative Stats'!D53 -> 790 | L53: ='[9]Cumulative Stats'!D53 -> 532 | M53: ='[10]Cumulative Stats'!D53 -> 739 | N53: ='[11]Cumulative Stats'!D53 -> 434 | O53: ='[12]Cumulative Stats'!D53 -> 705 | P53: ='[13]Cumulative Stats'!D53 -> 668 | Q53: ='[14]Cumulative Stats'!D53 -> 749 | R53: ='[15]Cumulative Stats'!D53 -> 609 | S53: ='[16]Cumulative Stats'!D53 -> 662 | T53: =SUM(D53:S53) -> 10277 | U53: =T53/$B$1 -> 80.2890625 | V53: =11758/128 -> 91.859375
A55: Fumbles | D55: ='[1]Cumulative Stats'!D55 -> 20 | E55: ='[2]Cumulative Stats'!D55 -> 20 | F55: ='[3]Cumulative Stats'!D55 -> 11 | G55: ='[4]Cumulative Stats'!D55 -> 9 | H55: ='[5]Cumulative Stats'!D55 -> 30 | I55: ='[6]Cumulative Stats'!D55 -> 26 | J55: ='[7]Cumulative Stats'!D55 -> 20 | K55: ='[8]Cumulative Stats'!D55 -> 29 | L55: ='[9]Cumulative Stats'!D55 -> 9 | M55: ='[10]Cumulative Stats'!D55 -> 27 | N55: ='[11]Cumulative Stats'!D55 -> 11 | O55: ='[12]Cumulative Stats'!D55 -> 21 | P55: ='[13]Cumulative Stats'!D55 -> 43 | Q55: ='[14]Cumulative Stats'!D55 -> 19 | R55: ='[15]Cumulative Stats'!D55 -> 15 | S55: ='[16]Cumulative Stats'!D55 -> 20 | T55: =SUM(D55:S55) -> 330 | U55: =T55/$B$1 -> 2.578125 | V55: =359/128 -> 2.8046875
A56: Lost | D56: ='[1]Cumulative Stats'!D56 -> 7 | E56: ='[2]Cumulative Stats'!D56 -> 15 | F56: ='[3]Cumulative Stats'!D56 -> 6 | G56: ='[4]Cumulative Stats'!D56 -> 6 | H56: ='[5]Cumulative Stats'!D56 -> 13 | I56: ='[6]Cumulative Stats'!D56 -> 4 | J56: ='[7]Cumulative Stats'!D56 -> 4 | K56: ='[8]Cumulative Stats'!D56 -> 10 | L56: ='[9]Cumulative Stats'!D56 -> 3 | M56: ='[10]Cumulative Stats'!D56 -> 3 | N56: ='[11]Cumulative Stats'!D56 -> 6 | O56: ='[12]Cumulative Stats'!D56 -> 13 | P56: ='[13]Cumulative Stats'!D56 -> 19 | Q56: ='[14]Cumulative Stats'!D56 -> 11 | R56: ='[15]Cumulative Stats'!D56 -> 7 | S56: ='[16]Cumulative Stats'!D56 -> 9 | T56: =SUM(D56:S56) -> 136 | U56: =T56/$B$1 -> 1.0625 | V56: =176/128 -> 1.375
A58: Total Points Scored | D58: ='[1]Cumulative Stats'!D58 -> 360 | E58: ='[2]Cumulative Stats'!D58 -> 445 | F58: ='[3]Cumulative Stats'!D58 -> 467 | G58: ='[4]Cumulative Stats'!D58 -> 204 | H58: ='[5]Cumulative Stats'!D58 -> 361 | I58: ='[6]Cumulative Stats'!D58 -> 266 | J58: ='[7]Cumulative Stats'!D58 -> 326 | K58: ='[8]Cumulative Stats'!D58 -> 390 | L58: ='[9]Cumulative Stats'!D58 -> 508 | M58: ='[10]Cumulative Stats'!D58 -> 421 | N58: ='[11]Cumulative Stats'!D58 -> 482 | O58: ='[12]Cumulative Stats'!D58 -> 202 | P58: ='[13]Cumulative Stats'!D58 -> 261 | Q58: ='[14]Cumulative Stats'!D58 -> 212 | R58: ='[15]Cumulative Stats'!D58 -> 344 | S58: ='[16]Cumulative Stats'!D58 -> 290 | T58: =SUM(D58:S58) -> 5539 | U58: =T58/$B$1 -> 43.2734375 | V58: =5832/128 -> 45.5625
A59: Touchdowns (Total) | D59: ='[1]Cumulative Stats'!D59 -> 36 | E59: ='[2]Cumulative Stats'!D59 -> 47 | F59: ='[3]Cumulative Stats'!D59 -> 50 | G59: ='[4]Cumulative Stats'!D59 -> 20 | H59: ='[5]Cumulative Stats'!D59 -> 39 | I59: ='[6]Cumulative Stats'!D59 -> 23 | J59: ='[7]Cumulative Stats'!D59 -> 36 | K59: ='[8]Cumulative Stats'!D59 -> 40 | L59: ='[9]Cumulative Stats'!D59 -> 58 | M59: ='[10]Cumulative Stats'!D59 -> 43 | N59: ='[11]Cumulative Stats'!D59 -> 55 | O59: ='[12]Cumulative Stats'!D59 -> 14 | P59: ='[13]Cumulative Stats'!D59 -> 27 | Q59: ='[14]Cumulative Stats'!D59 -> 18 | R59: ='[15]Cumulative Stats'!D59 -> 35 | S59: ='[16]Cumulative Stats'!D59 -> 27 | T59: 568 | U59: 4.4375 | V59: =644/128 -> 5.03125
A60: Touchdowns Rushing | D60: ='[1]Cumulative Stats'!D60 -> 7 | E60: ='[2]Cumulative Stats'!D60 -> 19 | F60: ='[3]Cumulative Stats'!D60 -> 26 | G60: ='[4]Cumulative Stats'!D60 -> 4 | H60: ='[5]Cumulative Stats'!D60 -> 12 | I60: ='[6]Cumulative Stats'!D60 -> 5 | J60: ='[7]Cumulative Stats'!D60 -> 11 | K60: ='[8]Cumulative Stats'!D60 -> 17 | L60: ='[9]Cumulative Stats'!D60 -> 9 | M60: ='[10]Cumulative Stats'!D60 -> 22 | N60: ='[11]Cumulative Stats'!D60 -> 18 | O60: ='[12]Cumulative Stats'!D60 -> 4 | P60: ='[13]Cumulative Stats'!D60 -> 10 | Q60: ='[14]Cumulative Stats'!D60 -> 6 | R60: ='[15]Cumulative Stats'!D60 -> 12 | S60: ='[16]Cumulative Stats'!D60 -> 12 | T60: 194 | U60: 1.515625 | V60: =237/128 -> 1.8515625
A61: Touchdowns Passing | D61: ='[1]Cumulative Stats'!D61 -> 25 | E61: ='[2]Cumulative Stats'!D61 -> 26 | F61: ='[3]Cumulative Stats'!D61 -> 23 | G61: ='[4]Cumulative Stats'!D61 -> 15 | H61: ='[5]Cumulative Stats'!D61 -> 27 | I61: ='[6]Cumulative Stats'!D61 -> 17 | J61: ='[7]Cumulative Stats'!D61 -> 21 | K61: ='[8]Cumulative Stats'!D61 -> 23 | L61: ='[9]Cumulative Stats'!D61 -> 46 | M61: ='[10]Cumulative Stats'!D61 -> 21 | N61: ='[11]Cumulative Stats'!D61 -> 27 | O61: ='[12]Cumulative Stats'!D61 -> 10 | P61: ='[13]Cumulative Stats'!D61 -> 16 | Q61: ='[14]Cumulative Stats'!D61 -> 11 | R61: ='[15]Cumulative Stats'!D61 -> 17 | S61: ='[16]Cumulative Stats'!D61 -> 15 | T61: 340 | U61: 2.65625 | V61: =341/128 -> 2.6640625
A62: TD's on Returns and Recoveries | D62: ='[1]Cumulative Stats'!D62 -> 4 | E62: ='[2]Cumulative Stats'!D62 -> 2 | F62: ='[3]Cumulative Stats'!D62 -> 1 | G62: ='[4]Cumulative Stats'!D62 -> 1 | H62: ='[5]Cumulative Stats'!D62 -> 0 | I62: ='[6]Cumulative Stats'!D62 -> 1 | J62: ='[7]Cumulative Stats'!D62 -> 4 | K62: ='[8]Cumulative Stats'!D62 -> 0 | L62: ='[9]Cumulative Stats'!D62 -> 3 | M62: ='[10]Cumulative Stats'!D62 -> 0 | N62: ='[11]Cumulative Stats'!D62 -> 10 | O62: ='[12]Cumulative Stats'!D62 -> 0 | P62: ='[13]Cumulative Stats'!D62 -> 1 | Q62: ='[14]Cumulative Stats'!D62 -> 1 | R62: ='[15]Cumulative Stats'!D62 -> 6 | S62: ='[16]Cumulative Stats'!D62 -> 0 | T62: 34 | U62: 0.265625 | V62: =66/128 -> 0.515625
A63: *Extra Points | D63: ='[1]Cumulative Stats'!D63 -> 36 | E63: ='[2]Cumulative Stats'!D63 -> 47 | F63: ='[3]Cumulative Stats'!D63 -> 50 | G63: ='[4]Cumulative Stats'!D63 -> 18 | H63: ='[5]Cumulative Stats'!D63 -> 40 | I63: ='[6]Cumulative Stats'!D63 -> 23 | J63: ='[7]Cumulative Stats'!D63 -> 36 | K63: ='[8]Cumulative Stats'!D63 -> 40 | L63: ='[9]Cumulative Stats'!D63 -> 59 | M63: ='[10]Cumulative Stats'!D63 -> 43 | N63: ='[11]Cumulative Stats'!D63 -> 55 | O63: ='[12]Cumulative Stats'!D63 -> 14 | P63: ='[13]Cumulative Stats'!D63 -> 27 | Q63: ='[14]Cumulative Stats'!D63 -> 19 | R63: ='[15]Cumulative Stats'!D63 -> 35 | S63: ='[16]Cumulative Stats'!D63 -> 27 | T63: 569 | U63: 4.4453125 | V63: =608/128 -> 4.75
A64: Safeties | D64: ='[1]Cumulative Stats'!D64 -> 0 | E64: ='[2]Cumulative Stats'!D64 -> 1 | F64: ='[3]Cumulative Stats'!D64 -> 0 | G64: ='[4]Cumulative Stats'!D64 -> 0 | H64: ='[5]Cumulative Stats'!D64 -> 0 | I64: ='[6]Cumulative Stats'!D64 -> 0 | J64: ='[7]Cumulative Stats'!D64 -> 1 | K64: ='[8]Cumulative Stats'!D64 -> 1 | L64: ='[9]Cumulative Stats'!D64 -> 1 | M64: ='[10]Cumulative Stats'!D64 -> 0 | N64: ='[11]Cumulative Stats'!D64 -> 2 | O64: ='[12]Cumulative Stats'!D64 -> 1 | P64: ='[13]Cumulative Stats'!D64 -> 0 | Q64: ='[14]Cumulative Stats'!D64 -> 2 | R64: ='[15]Cumulative Stats'!D64 -> 3 | S64: ='[16]Cumulative Stats'!D64 -> 1 | T64: 13 | U64: 0.1015625 | V64: =12/128 -> 0.09375
A65: Field Goals | D65: ='[1]Cumulative Stats'!D65 -> 36 | E65: ='[2]Cumulative Stats'!D65 -> 38 | F65: ='[3]Cumulative Stats'!D65 -> 39 | G65: ='[4]Cumulative Stats'!D65 -> 22 | H65: ='[5]Cumulative Stats'!D65 -> 29 | I65: ='[6]Cumulative Stats'!D65 -> 35 | J65: ='[7]Cumulative Stats'!D65 -> 24 | K65: ='[8]Cumulative Stats'!D65 -> 36 | L65: ='[9]Cumulative Stats'!D65 -> 33 | M65: ='[10]Cumulative Stats'!D65 -> 40 | N65: ='[11]Cumulative Stats'!D65 -> 31 | O65: ='[12]Cumulative Stats'!D65 -> 34 | P65: ='[13]Cumulative Stats'!D65 -> 24 | Q65: ='[14]Cumulative Stats'!D65 -> 27 | R65: ='[15]Cumulative Stats'!D65 -> 31 | S65: ='[16]Cumulative Stats'!D65 -> 33 | T65: 512 | U65: 4 | V65: =438/128 -> 3.421875
A66: Field Goal Attempts | D66: ='[1]Cumulative Stats'!D66 -> 37 | E66: ='[2]Cumulative Stats'!D66 -> 39 | F66: ='[3]Cumulative Stats'!D66 -> 41 | G66: ='[4]Cumulative Stats'!D66 -> 25 | H66: ='[5]Cumulative Stats'!D66 -> 31 | I66: ='[6]Cumulative Stats'!D66 -> 37 | J66: ='[7]Cumulative Stats'!D66 -> 29 | K66: ='[8]Cumulative Stats'!D66 -> 42 | L66: ='[9]Cumulative Stats'!D66 -> 39 | M66: ='[10]Cumulative Stats'!D66 -> 43 | N66: ='[11]Cumulative Stats'!D66 -> 37 | O66: ='[12]Cumulative Stats'!D66 -> 37 | P66: ='[13]Cumulative Stats'!D66 -> 26 | Q66: ='[14]Cumulative Stats'!D66 -> 33 | R66: ='[15]Cumulative Stats'!D66 -> 34 | S66: ='[16]Cumulative Stats'!D66 -> 42 | T66: 572 | U66: 4.46875 | V66: =507/128 -> 3.9609375
A67: Percent Successful | D67: ='[1]Cumulative Stats'!D67 -> 97.2972973 | E67: ='[2]Cumulative Stats'!D67 -> 97.43589744 | F67: ='[3]Cumulative Stats'!D67 -> 95.12195122 | G67: ='[4]Cumulative Stats'!D67 -> 88 | H67: ='[5]Cumulative Stats'!D67 -> 93.5483871 | I67: ='[6]Cumulative Stats'!D67 -> 94.59459459 | J67: ='[7]Cumulative Stats'!D67 -> 82.75862069 | K67: ='[8]Cumulative Stats'!D67 -> 85.71428571 | L67: ='[9]Cumulative Stats'!D67 -> 84.61538462 | M67: ='[10]Cumulative Stats'!D67 -> 93.02325581 | N67: ='[11]Cumulative Stats'!D67 -> 83.78378378 | O67: ='[12]Cumulative Stats'!D67 -> 91.89189189 | P67: ='[13]Cumulative Stats'!D67 -> 92.30769231 | Q67: ='[14]Cumulative Stats'!D67 -> 81.81818182 | R67: ='[15]Cumulative Stats'!D67 -> 91.17647059 | S67: ='[16]Cumulative Stats'!D67 -> 78.57142857 | U67: =U65/U66*100 -> 89.51048951 | V67: =V65/V66*100 -> 86.39053254
A68: Average Possesion: | D68: ='[1]Cumulative Stats'!D68 -> 29:21 | E68: ='[2]Cumulative Stats'!D68 -> 29:39 | F68: ='[3]Cumulative Stats'!D68 -> 31:20 | G68: ='[4]Cumulative Stats'!D68 -> 29:48 | H68: ='[5]Cumulative Stats'!D68 -> 29:15 | I68: ='[6]Cumulative Stats'!D68 -> 29:13 | J68: ='[7]Cumulative Stats'!D68 -> 28:59 | K68: ='[8]Cumulative Stats'!D68 -> 31:00 | L68: ='[9]Cumulative Stats'!D68 -> 30:50 | M68: ='[10]Cumulative Stats'!D68 -> 32:45 | N68: ='[11]Cumulative Stats'!D68 -> 31:22 | O68: ='[12]Cumulative Stats'!D68 -> 27:32 | P68: ='[13]Cumulative Stats'!D68 -> 29:03 | Q68: ='[14]Cumulative Stats'!D68 -> 29:15 | R68: ='[15]Cumulative Stats'!D68 -> 31:00 | S68: ='[16]Cumulative Stats'!D68 -> 29:33
A69: Third Down Efficiency

Sheet Team Defense
A1: Games Played | B1: ='Team Offense'!B1 -> 128
A2: Defensive Stats: | D2: ARI | E2: ATL | F2: CAR | G2: CHI | H2: DAL | I2: DET | J2: GBP | K2: MIN | L2: NOS | M2: NYG | N2: PHI | O2: SEA | P2: SFO | Q2: STL | R2: TBB | S2: WAS
Y4: Replay | Z4: Replay
X5: DEFENSE | Y5: Rushing | Z5: Passing | AA5: Total | AB5: Average
A6: First Downs | D6: ='[1]Cumulative Stats'!M6 -> 306 | E6: ='[2]Cumulative Stats'!M6 -> 274 | F6: ='[3]Cumulative Stats'!M6 -> 246 | G6: ='[4]Cumulative Stats'!M6 -> 285 | H6: ='[5]Cumulative Stats'!M6 -> 294 | I6: ='[6]Cumulative Stats'!M6 -> 365 | J6: ='[7]Cumulative Stats'!M6 -> 336 | K6: ='[8]Cumulative Stats'!M6 -> 267 | L6: ='[9]Cumulative Stats'!M6 -> 269 | M6: ='[10]Cumulative Stats'!M6 -> 221 | N6: ='[11]Cumulative Stats'!M6 -> 231 | O6: ='[12]Cumulative Stats'!M6 -> 371 | P6: ='[13]Cumulative Stats'!M6 -> 287 | Q6: ='[14]Cumulative Stats'!M6 -> 351 | R6: ='[15]Cumulative Stats'!M6 -> 266 | S6: ='[16]Cumulative Stats'!M6 -> 289 | W6: NYG | X6: New York | Y6: =HLOOKUP(W6,$D$2:$S$68,11) -> 1178 | Z6: =HLOOKUP(W6,$D$2:$S$68,20) -> 2549 | AA6: =+Z6+Y6 -> 3727 | AB6: =+AA6/'Team Offense'!$C$1 -> 232.9375
A7: Rushing | D7: ='[1]Cumulative Stats'!M7 -> 137 | E7: ='[2]Cumulative Stats'!M7 -> 107 | F7: ='[3]Cumulative Stats'!M7 -> 102 | G7: ='[4]Cumulative Stats'!M7 -> 102 | H7: ='[5]Cumulative Stats'!M7 -> 114 | I7: ='[6]Cumulative Stats'!M7 -> 158 | J7: ='[7]Cumulative Stats'!M7 -> 140 | K7: ='[8]Cumulative Stats'!M7 -> 96 | L7: ='[9]Cumulative Stats'!M7 -> 114 | M7: ='[10]Cumulative Stats'!M7 -> 71 | N7: ='[11]Cumulative Stats'!M7 -> 90 | O7: ='[12]Cumulative Stats'!M7 -> 164 | P7: ='[13]Cumulative Stats'!M7 -> 123 | Q7: ='[14]Cumulative Stats'!M7 -> 157 | R7: ='[15]Cumulative Stats'!M7 -> 106 | S7: ='[16]Cumulative Stats'!M7 -> 119 | W7: PHI | X7: Philadelphia | Y7: 1672 | Z7: 2290 | AA7: 3962 | AB7: =+AA7/'Team Offense'!$C$1 -> 247.625
A8: Passing | D8: ='[1]Cumulative Stats'!M8 -> 150 | E8: ='[2]Cumulative Stats'!M8 -> 143 | F8: ='[3]Cumulative Stats'!M8 -> 127 | G8: ='[4]Cumulative Stats'!M8 -> 166 | H8: ='[5]Cumulative Stats'!M8 -> 155 | I8: ='[6]Cumulative Stats'!M8 -> 192 | J8: ='[7]Cumulative Stats'!M8 -> 170 | K8: ='[8]Cumulative Stats'!M8 -> 153 | L8: ='[9]Cumulative Stats'!M8 -> 140 | M8: ='[10]Cumulative Stats'!M8 -> 133 | N8: ='[11]Cumulative Stats'!M8 -> 122 | O8: ='[12]Cumulative Stats'!M8 -> 185 | P8: ='[13]Cumulative Stats'!M8 -> 147 | Q8: ='[14]Cumulative Stats'!M8 -> 181 | R8: ='[15]Cumulative Stats'!M8 -> 144 | S8: ='[16]Cumulative Stats'!M8 -> 148 | W8: CAR | X8: Carolina | Y8: 1615 | Z8: 2663 | AA8: 4278 | AB8: =+AA8/'Team Offense'!$C$1 -> 267.375
A9: Penalty | D9: ='[1]Cumulative Stats'!M9 -> 19 | E9: ='[2]Cumulative Stats'!M9 -> 24 | F9: ='[3]Cumulative Stats'!M9 -> 17 | G9: ='[4]Cumulative Stats'!M9 -> 17 | H9: ='[5]Cumulative Stats'!M9 -> 25 | I9: ='[6]Cumulative Stats'!M9 -> 15 | J9: ='[7]Cumulative Stats'!M9 -> 26 | K9: ='[8]Cumulative Stats'!M9 -> 18 | L9: ='[9]Cumulative Stats'!M9 -> 15 | M9: ='[10]Cumulative Stats'!M9 -> 17 | N9: ='[11]Cumulative Stats'!M9 -> 19 | O9: ='[12]Cumulative Stats'!M9 -> 22 | P9: ='[13]Cumulative Stats'!M9 -> 17 | Q9: ='[14]Cumulative Stats'!M9 -> 13 | R9: ='[15]Cumulative Stats'!M9 -> 16 | S9: ='[16]Cumulative Stats'!M9 -> 22 | W9: MIN | X9: Minnesota | Y9: 1566 | Z9: 2934 | AA9: 4500 | AB9: =+AA9/'Team Offense'!$C$1 -> 281.25
D10: ='[1]Cumulative Stats'!M10 -> 0 | E10: ='[2]Cumulative Stats'!M10 -> 0 | F10: ='[3]Cumulative Stats'!M10 -> 0 | G10: ='[4]Cumulative Stats'!M10 -> 0 | H10: ='[5]Cumulative Stats'!M10 -> 0 | I10: ='[6]Cumulative Stats'!M10 -> 0 | J10: ='[7]Cumulative Stats'!M10 -> 0 | K10: ='[8]Cumulative Stats'!M10 -> 0 | L10: ='[9]Cumulative Stats'!M10 -> 0 | M10: ='[10]Cumulative Stats'!M10 -> 0 | N10: ='[11]Cumulative Stats'!M10 -> 0 | O10: ='[12]Cumulative Stats'!M10 -> 0 | P10: ='[13]Cumulative Stats'!M10 -> 0 | Q10: ='[14]Cumulative Stats'!M10 -> 0 | R10: ='[15]Cumulative Stats'!M10 -> 0 | S10: ='[16]Cumulative Stats'!M10 -> 0 | W10: WAS | X10: Washington | Y10: 1801 | Z10: 3009 | AA10: 4810 | AB10: =+AA10/'Team Offense'!$C$1 -> 300.625
A11: Rushes | D11: ='[1]Cumulative Stats'!M11 -> 439 | E11: ='[2]Cumulative Stats'!M11 -> 427 | F11: ='[3]Cumulative Stats'!M11 -> 394 | G11: ='[4]Cumulative Stats'!M11 -> 418 | H11: ='[5]Cumulative Stats'!M11 -> 439 | I11: ='[6]Cumulative Stats'!M11 -> 434 | J11: ='[7]Cumulative Stats'!M11 -> 435 | K11: ='[8]Cumulative Stats'!M11 -> 395 | L11: ='[9]Cumulative Stats'!M11 -> 415 | M11: ='[10]Cumulative Stats'!M11 -> 374 | N11: ='[11]Cumulative Stats'!M11 -> 423 | O11: ='[12]Cumulative Stats'!M11 -> 458 | P11: ='[13]Cumulative Stats'!M11 -> 422 | Q11: ='[14]Cumulative Stats'!M11 -> 424 | R11: ='[15]Cumulative Stats'!M11 -> 432 | S11: ='[16]Cumulative Stats'!M11 -> 433 | W11: DAL | X11: Dallas | Y11: 1883 | Z11: 2995 | AA11: 4878 | AB11: =+AA11/'Team Offense'!$C$1 -> 304.875
A12: Yards Gained (Net) | D12: ='[1]Cumulative Stats'!M12 -> 2244 | E12: ='[2]Cumulative Stats'!M12 -> 1885 | F12: ='[3]Cumulative Stats'!M12 -> 1615 | G12: ='[4]Cumulative Stats'!M12 -> 1651 | H12: ='[5]Cumulative Stats'!M12 -> 1883 | I12: ='[6]Cumulative Stats'!M12 -> 2585 | J12: ='[7]Cumulative Stats'!M12 -> 2008 | K12: ='[8]Cumulative Stats'!M12 -> 1566 | L12: ='[9]Cumulative Stats'!M12 -> 1909 | M12: ='[10]Cumulative Stats'!M12 -> 1178 | N12: ='[11]Cumulative Stats'!M12 -> 1672 | O12: ='[12]Cumulative Stats'!M12 -> 2089 | P12: ='[13]Cumulative Stats'!M12 -> 1910 | Q12: ='[14]Cumulative Stats'!M12 -> 2290 | R12: ='[15]Cumulative Stats'!M12 -> 1739 | S12: ='[16]Cumulative Stats'!M12 -> 1801 | W12: SFO | X12: San Francisco | Y12: 1910 | Z12: 2985 | AA12: 4895 | AB12: =+AA12/'Team Offense'!$C$1 -> 305.9375
A13: Average Gain | D13: ='[1]Cumulative Stats'!M13 -> 5.111617312 | E13: ='[2]Cumulative Stats'!M13 -> 4.414519906 | F13: ='[3]Cumulative Stats'!M13 -> 4.098984772 | G13: ='[4]Cumulative Stats'!M13 -> 3.949760766 | H13: ='[5]Cumulative Stats'!M13 -> 4.28929385 | I13: ='[6]Cumulative Stats'!M13 -> 5.956221198 | J13: ='[7]Cumulative Stats'!M13 -> 4.616091954 | K13: ='[8]Cumulative Stats'!M13 -> 3.964556962 | L13: ='[9]Cumulative Stats'!M13 -> 4.6 | M13: ='[10]Cumulative Stats'!M13 -> 3.14973262 | N13: ='[11]Cumulative Stats'!M13 -> 3.952718676 | O13: ='[12]Cumulative Stats'!M13 -> 4.561135371 | P13: ='[13]Cumulative Stats'!M13 -> 4.526066351 | Q13: ='[14]Cumulative Stats'!M13 -> 5.400943396 | R13: ='[15]Cumulative Stats'!M13 -> 4.025462963 | S13: ='[16]Cumulative Stats'!M13 -> 4.159353349 | W13: ATL | X13: Atlanta | Y13: 1885 | Z13: 3053 | AA13: 4938 | AB13: =+AA13/'Team Offense'!$C$1 -> 308.625
D14: ='[1]Cumulative Stats'!M14 -> 0 | E14: ='[2]Cumulative Stats'!M14 -> 0 | F14: ='[3]Cumulative Stats'!M14 -> 0 | G14: ='[4]Cumulative Stats'!M14 -> 0 | H14: ='[5]Cumulative Stats'!M14 -> 0 | I14: ='[6]Cumulative Stats'!M14 -> 0 | J14: ='[7]Cumulative Stats'!M14 -> 0 | K14: ='[8]Cumulative Stats'!M14 -> 0 | L14: ='[9]Cumulative Stats'!M14 -> 0 | M14: ='[10]Cumulative Stats'!M14 -> 0 | N14: ='[11]Cumulative Stats'!M14 -> 0 | O14: ='[12]Cumulative Stats'!M14 -> 0 | P14: ='[13]Cumulative Stats'!M14 -> 0 | Q14: ='[14]Cumulative Stats'!M14 -> 0 | R14: ='[15]Cumulative Stats'!M14 -> 0 | S14: ='[16]Cumulative Stats'!M14 -> 0 | W14: TBB | X14: Tampa By | Y14: 1739 | Z14: 3269 | AA14: 5008 | AB14: =+AA14/'Team Offense'!$C$1 -> 313
A15: Passes Attempted | D15: ='[1]Cumulative Stats'!M15 -> 521 | E15: ='[2]Cumulative Stats'!M15 -> 562 | F15: ='[3]Cumulative Stats'!M15 -> 503 | G15: ='[4]Cumulative Stats'!M15 -> 541 | H15: ='[5]Cumulative Stats'!M15 -> 532 | I15: ='[6]Cumulative Stats'!M15 -> 510 | J15: ='[7]Cumulative Stats'!M15 -> 559 | K15: ='[8]Cumulative Stats'!M15 -> 520 | L15: ='[9]Cumulative Stats'!M15 -> 530 | M15: ='[10]Cumulative Stats'!M15 -> 490 | N15: ='[11]Cumulative Stats'!M15 -> 513 | O15: ='[12]Cumulative Stats'!M15 -> 559 | P15: ='[13]Cumulative Stats'!M15 -> 561 | Q15: ='[14]Cumulative Stats'!M15 -> 537 | R15: ='[15]Cumulative Stats'!M15 -> 480 | S15: ='[16]Cumulative Stats'!M15 -> 543 | W15: NOS | X15: New Orleans | Y15: 1909 | Z15: 3182 | AA15: 5091 | AB15: =+AA15/'Team Offense'!$C$1 -> 318.1875
A16: Completed | D16: ='[1]Cumulative Stats'!M16 -> 302 | E16: ='[2]Cumulative Stats'!M16 -> 305 | F16: ='[3]Cumulative Stats'!M16 -> 289 | G16: ='[4]Cumulative Stats'!M16 -> 317 | H16: ='[5]Cumulative Stats'!M16 -> 315 | I16: ='[6]Cumulative Stats'!M16 -> 343 | J16: ='[7]Cumulative Stats'!M16 -> 347 | K16: ='[8]Cumulative Stats'!M16 -> 289 | L16: ='[9]Cumulative Stats'!M16 -> 288 | M16: ='[10]Cumulative Stats'!M16 -> 261 | N16: ='[11]Cumulative Stats'!M16 -> 246 | O16: ='[12]Cumulative Stats'!M16 -> 371 | P16: ='[13]Cumulative Stats'!M16 -> 310 | Q16: ='[14]Cumulative Stats'!M16 -> 337 | R16: ='[15]Cumulative Stats'!M16 -> 285 | S16: ='[16]Cumulative Stats'!M16 -> 317 | W16: CHI | X16: Chicago | Y16: 1651 | Z16: 3508 | AA16: 5159 | AB16: =+AA16/'Team Offense'!$C$1 -> 322.4375
A17: Percent Completed | D17: ='[1]Cumulative Stats'!M17 -> 57.96545106 | E17: ='[2]Cumulative Stats'!M17 -> 54.27046263 | F17: ='[3]Cumulative Stats'!M17 -> 57.45526839 | G17: ='[4]Cumulative Stats'!M17 -> 58.59519409 | H17: ='[5]Cumulative Stats'!M17 -> 59.21052632 | I17: ='[6]Cumulative Stats'!M17 -> 67.25490196 | J17: ='[7]Cumulative Stats'!M17 -> 62.07513417 | K17: ='[8]Cumulative Stats'!M17 -> 55.57692308 | L17: ='[9]Cumulative Stats'!M17 -> 54.33962264 | M17: ='[10]Cumulative Stats'!M17 -> 53.26530612 | N17: ='[11]Cumulative Stats'!M17 -> 47.95321637 | O17: ='[12]Cumulative Stats'!M17 -> 66.36851521 | P17: ='[13]Cumulative Stats'!M17 -> 55.25846702 | Q17: ='[14]Cumulative Stats'!M17 -> 62.75605214 | R17: ='[15]Cumulative Stats'!M17 -> 59.375 | S17: ='[16]Cumulative Stats'!M17 -> 58.37937385 | W17: ARI | X17: Arizona | Y17: 2244 | Z17: 2954 | AA17: 5198 | AB17: =+AA17/'Team Offense'!$C$1 -> 324.875
A18: Total Yards Gained | D18: ='[1]Cumulative Stats'!M18 -> 3280 | E18: ='[2]Cumulative Stats'!M18 -> 3333 | F18: ='[3]Cumulative Stats'!M18 -> 2875 | G18: ='[4]Cumulative Stats'!M18 -> 3666 | H18: ='[5]Cumulative Stats'!M18 -> 3442 | I18: ='[6]Cumulative Stats'!M18 -> 4039 | J18: ='[7]Cumulative Stats'!M18 -> 3835 | K18: ='[8]Cumulative Stats'!M18 -> 3280 | L18: ='[9]Cumulative Stats'!M18 -> 3405 | M18: ='[10]Cumulative Stats'!M18 -> 2935 | N18: ='[11]Cumulative Stats'!M18 -> 2750 | O18: ='[12]Cumulative Stats'!M18 -> 4116 | P18: ='[13]Cumulative Stats'!M18 -> 3145 | Q18: ='[14]Cumulative Stats'!M18 -> 4010 | R18: ='[15]Cumulative Stats'!M18 -> 3582 | S18: ='[16]Cumulative Stats'!M18 -> 3168 | W18: GBP | X18: Green Bay | Y18: 2008 | Z18: 3682 | AA18: 5690 | AB18: =+AA18/'Team Offense'!$C$1 -> 355.625
A19: Passer Tackled | D19: ='[1]Cumulative Stats'!M19 -> 45 | E19: ='[2]Cumulative Stats'!M19 -> 34 | F19: ='[3]Cumulative Stats'!M19 -> 33 | G19: ='[4]Cumulative Stats'!M19 -> 22 | H19: ='[5]Cumulative Stats'!M19 -> 57 | I19: ='[6]Cumulative Stats'!M19 -> 46 | J19: ='[7]Cumulative Stats'!M19 -> 25 | K19: ='[8]Cumulative Stats'!M19 -> 52 | L19: ='[9]Cumulative Stats'!M19 -> 34 | M19: ='[10]Cumulative Stats'!M19 -> 50 | N19: ='[11]Cumulative Stats'!M19 -> 63 | O19: ='[12]Cumulative Stats'!M19 -> 34 | P19: ='[13]Cumulative Stats'!M19 -> 34 | Q19: ='[14]Cumulative Stats'!M19 -> 40 | R19: ='[15]Cumulative Stats'!M19 -> 42 | S19: ='[16]Cumulative Stats'!M19 -> 23 | W19: STL | X19: St. Louis | Y19: 2290 | Z19: 3643 | AA19: 5933 | AB19: =+AA19/'Team Offense'!$C$1 -> 370.8125
A20: Yards Lost | D20: ='[1]Cumulative Stats'!M20 -> 326 | E20: ='[2]Cumulative Stats'!M20 -> 280 | F20: ='[3]Cumulative Stats'!M20 -> 212 | G20: ='[4]Cumulative Stats'!M20 -> 158 | H20: ='[5]Cumulative Stats'!M20 -> 447 | I20: ='[6]Cumulative Stats'!M20 -> 311 | J20: ='[7]Cumulative Stats'!M20 -> 153 | K20: ='[8]Cumulative Stats'!M20 -> 346 | L20: ='[9]Cumulative Stats'!M20 -> 223 | M20: ='[10]Cumulative Stats'!M20 -> 386 | N20: ='[11]Cumulative Stats'!M20 -> 460 | O20: ='[12]Cumulative Stats'!M20 -> 226 | P20: ='[13]Cumulative Stats'!M20 -> 160 | Q20: ='[14]Cumulative Stats'!M20 -> 367 | R20: ='[15]Cumulative Stats'!M20 -> 313 | S20: ='[16]Cumulative Stats'!M20 -> 159 | W20: SEA | X20: Seattle | Y20: 2089 | Z20: 3890 | AA20: 5979 | AB20: =+AA20/'Team Offense'!$C$1 -> 373.6875
A21: Net Yards Gained | D21: ='[1]Cumulative Stats'!M21 -> 2954 | E21: ='[2]Cumulative Stats'!M21 -> 3053 | F21: ='[3]Cumulative Stats'!M21 -> 2663 | G21: ='[4]Cumulative Stats'!M21 -> 3508 | H21: ='[5]Cumulative Stats'!M21 -> 2995 | I21: ='[6]Cumulative Stats'!M21 -> 3728 | J21: ='[7]Cumulative Stats'!M21 -> 3682 | K21: ='[8]Cumulative Stats'!M21 -> 2934 | L21: ='[9]Cumulative Stats'!M21 -> 3182 | M21: ='[10]Cumulative Stats'!M21 -> 2549 | N21: ='[11]Cumulative Stats'!M21 -> 2290 | O21: ='[12]Cumulative Stats'!M21 -> 3890 | P21: ='[13]Cumulative Stats'!M21 -> 2985 | Q21: ='[14]Cumulative Stats'!M21 -> 3643 | R21: ='[15]Cumulative Stats'!M21 -> 3269 | S21: ='[16]Cumulative Stats'!M21 -> 3009 | W21: DET | X21: Detroit | Y21: 2585 | Z21: 3728 | AA21: 6313 | AB21: =+AA21/'Team Offense'!$C$1 -> 394.5625
A22: Yards Gained (Net) Per Pass Play | D22: ='[1]Cumulative Stats'!M22 -> 5.219081272 | E22: ='[2]Cumulative Stats'!M22 -> 5.122483221 | F22: ='[3]Cumulative Stats'!M22 -> 4.968283582 | G22: ='[4]Cumulative Stats'!M22 -> 6.230905861 | H22: ='[5]Cumulative Stats'!M22 -> 5.084889643 | I22: ='[6]Cumulative Stats'!M22 -> 6.705035971 | J22: ='[7]Cumulative Stats'!M22 -> 6.304794521 | K22: ='[8]Cumulative Stats'!M22 -> 5.129370629 | L22: ='[9]Cumulative Stats'!M22 -> 5.641843972 | M22: ='[10]Cumulative Stats'!M22 -> 4.72037037 | N22: ='[11]Cumulative Stats'!M22 -> 3.975694444 | O22: ='[12]Cumulative Stats'!M22 -> 6.559865093 | P22: ='[13]Cumulative Stats'!M22 -> 5.016806723 | Q22: ='[14]Cumulative Stats'!M22 -> 6.313691508 | R22: ='[15]Cumulative Stats'!M22 -> 6.262452107 | S22: ='[16]Cumulative Stats'!M22 -> 5.316254417
A23: Yards Gained Per Completion | D23: ='[1]Cumulative Stats'!M23 -> 10.86092715 | E23: ='[2]Cumulative Stats'!M23 -> 10.92786885 | F23: ='[3]Cumulative Stats'!M23 -> 9.948096886 | G23: ='[4]Cumulative Stats'!M23 -> 11.56466877 | H23: ='[5]Cumulative Stats'!M23 -> 10.92698413 | I23: ='[6]Cumulative Stats'!M23 -> 11.7755102 | J23: ='[7]Cumulative Stats'!M23 -> 11.0518732 | K23: ='[8]Cumulative Stats'!M23 -> 11.34948097 | L23: ='[9]Cumulative Stats'!M23 -> 11.82291667 | M23: ='[10]Cumulative Stats'!M23 -> 11.24521073 | N23: ='[11]Cumulative Stats'!M23 -> 11.17886179 | O23: ='[12]Cumulative Stats'!M23 -> 11.09433962 | P23: ='[13]Cumulative Stats'!M23 -> 10.14516129 | Q23: ='[14]Cumulative Stats'!M23 -> 11.89910979 | R23: ='[15]Cumulative Stats'!M23 -> 12.56842105 | S23: ='[16]Cumulative Stats'!M23 -> 9.993690852
D24: ='[1]Cumulative Stats'!M24 -> 0 | E24: ='[2]Cumulative Stats'!M24 -> 0 | F24: ='[3]Cumulative Stats'!M24 -> 0 | G24: ='[4]Cumulative Stats'!M24 -> 0 | H24: ='[5]Cumulative Stats'!M24 -> 0 | I24: ='[6]Cumulative Stats'!M24 -> 0 | J24: ='[7]Cumulative Stats'!M24 -> 0 | K24: ='[8]Cumulative Stats'!M24 -> 0 | L24: ='[9]Cumulative Stats'!M24 -> 0 | M24: ='[10]Cumulative Stats'!M24 -> 0 | N24: ='[11]Cumulative Stats'!M24 -> 0 | O24: ='[12]Cumulative Stats'!M24 -> 0 | P24: ='[13]Cumulative Stats'!M24 -> 0 | Q24: ='[14]Cumulative Stats'!M24 -> 0 | R24: ='[15]Cumulative Stats'!M24 -> 0 | S24: ='[16]Cumulative Stats'!M24 -> 0
A25: Net Yards Gained | D25: ='[1]Cumulative Stats'!M25 -> 0 | E25: ='[2]Cumulative Stats'!M25 -> 0 | F25: ='[3]Cumulative Stats'!M25 -> 0 | G25: ='[4]Cumulative Stats'!M25 -> 0 | H25: ='[5]Cumulative Stats'!M25 -> 0 | I25: ='[6]Cumulative Stats'!M25 -> 0 | J25: ='[7]Cumulative Stats'!M25 -> 0 | K25: ='[8]Cumulative Stats'!M25 -> 0 | L25: ='[9]Cumulative Stats'!M25 -> 0 | M25: ='[10]Cumulative Stats'!M25 -> 0 | N25: ='[11]Cumulative Stats'!M25 -> 0 | O25: ='[12]Cumulative Stats'!M25 -> 0 | P25: ='[13]Cumulative Stats'!M25 -> 0 | Q25: ='[14]Cumulative Stats'!M25 -> 0 | R25: ='[15]Cumulative Stats'!M25 -> 0 | S25: ='[16]Cumulative Stats'!M25 -> 0
A26: Rushing and Passing | D26: ='[1]Cumulative Stats'!M26 -> 5198 | E26: ='[2]Cumulative Stats'!M26 -> 4938 | F26: ='[3]Cumulative Stats'!M26 -> 4278 | G26: ='[4]Cumulative Stats'!M26 -> 5159 | H26: ='[5]Cumulative Stats'!M26 -> 4878 | I26: ='[6]Cumulative Stats'!M26 -> 6313 | J26: ='[7]Cumulative Stats'!M26 -> 5690 | K26: ='[8]Cumulative Stats'!M26 -> 4500 | L26: ='[9]Cumulative Stats'!M26 -> 5091 | M26: ='[10]Cumulative Stats'!M26 -> 3727 | N26: ='[11]Cumulative Stats'!M26 -> 3962 | O26: ='[12]Cumulative Stats'!M26 -> 5979 | P26: ='[13]Cumulative Stats'!M26 -> 4895 | Q26: ='[14]Cumulative Stats'!M26 -> 5933 | R26: ='[15]Cumulative Stats'!M26 -> 5008 | S26: ='[16]Cumulative Stats'!M26 -> 4810
A27: Percent Total Yards - Rushing | D27: ='[1]Cumulative Stats'!M27 -> 43.17045017 | E27: ='[2]Cumulative Stats'!M27 -> 38.17334953 | F27: ='[3]Cumulative Stats'!M27 -> 37.75128565 | G27: ='[4]Cumulative Stats'!M27 -> 32.00232603 | H27: ='[5]Cumulative Stats'!M27 -> 38.60188602 | I27: ='[6]Cumulative Stats'!M27 -> 40.9472517 | J27: ='[7]Cumulative Stats'!M27 -> 35.28998243 | K27: ='[8]Cumulative Stats'!M27 -> 34.8 | L27: ='[9]Cumulative Stats'!M27 -> 37.49754469 | M27: ='[10]Cumulative Stats'!M27 -> 31.60719077 | N27: ='[11]Cumulative Stats'!M27 -> 42.20090863 | O27: ='[12]Cumulative Stats'!M27 -> 34.938953 | P27: ='[13]Cumulative Stats'!M27 -> 39.01940756 | Q27: ='[14]Cumulative Stats'!M27 -> 38.59767403 | R27: ='[15]Cumulative Stats'!M27 -> 34.72444089 | S27: ='[16]Cumulative Stats'!M27 -> 37.44282744
A28: Percent Total Yards - Passing | D28: ='[1]Cumulative Stats'!M28 -> 56.82954983 | E28: ='[2]Cumulative Stats'!M28 -> 61.82665047 | F28: ='[3]Cumulative Stats'!M28 -> 62.24871435 | G28: ='[4]Cumulative Stats'!M28 -> 67.99767397 | H28: ='[5]Cumulative Stats'!M28 -> 61.39811398 | I28: ='[6]Cumulative Stats'!M28 -> 59.0527483 | J28: ='[7]Cumulative Stats'!M28 -> 64.71001757 | K28: ='[8]Cumulative Stats'!M28 -> 65.2 | L28: ='[9]Cumulative Stats'!M28 -> 62.50245531 | M28: ='[10]Cumulative Stats'!M28 -> 68.39280923 | N28: ='[11]Cumulative Stats'!M28 -> 57.79909137 | O28: ='[12]Cumulative Stats'!M28 -> 65.061047 | P28: ='[13]Cumulative Stats'!M28 -> 60.98059244 | Q28: ='[14]Cumulative Stats'!M28 -> 61.40232597 | R28: ='[15]Cumulative Stats'!M28 -> 65.27555911 | S28: ='[16]Cumulative Stats'!M28 -> 62.55717256
D29: ='[1]Cumulative Stats'!M29 -> 0 | E29: ='[2]Cumulative Stats'!M29 -> 0 | F29: ='[3]Cumulative Stats'!M29 -> 0 | G29: ='[4]Cumulative Stats'!M29 -> 0 | H29: ='[5]Cumulative Stats'!M29 -> 0 | I29: ='[6]Cumulative Stats'!M29 -> 0 | J29: ='[7]Cumulative Stats'!M29 -> 0 | K29: ='[8]Cumulative Stats'!M29 -> 0 | L29: ='[9]Cumulative Stats'!M29 -> 0 | M29: ='[10]Cumulative Stats'!M29 -> 0 | N29: ='[11]Cumulative Stats'!M29 -> 0 | O29: ='[12]Cumulative Stats'!M29 -> 0 | P29: ='[13]Cumulative Stats'!M29 -> 0 | Q29: ='[14]Cumulative Stats'!M29 -> 0 | R29: ='[15]Cumulative Stats'!M29 -> 0 | S29: ='[16]Cumulative Stats'!M29 -> 0
A30: Ball Control Plays | D30: ='[1]Cumulative Stats'!M30 -> 1005 | E30: ='[2]Cumulative Stats'!M30 -> 1023 | F30: ='[3]Cumulative Stats'!M30 -> 930 | G30: ='[4]Cumulative Stats'!M30 -> 981 | H30: ='[5]Cumulative Stats'!M30 -> 1028 | I30: ='[6]Cumulative Stats'!M30 -> 990 | J30: ='[7]Cumulative Stats'!M30 -> 1019 | K30: ='[8]Cumulative Stats'!M30 -> 967 | L30: ='[9]Cumulative Stats'!M30 -> 979 | M30: ='[10]Cumulative Stats'!M30 -> 914 | N30: ='[11]Cumulative Stats'!M30 -> 999 | O30: ='[12]Cumulative Stats'!M30 -> 1051 | P30: ='[13]Cumulative Stats'!M30 -> 1017 | Q30: ='[14]Cumulative Stats'!M30 -> 1001 | R30: ='[15]Cumulative Stats'!M30 -> 954 | S30: ='[16]Cumulative Stats'!M30 -> 999
A31: Average Gain (Net) | D31: ='[1]Cumulative Stats'!M31 -> 5.172139303 | E31: ='[2]Cumulative Stats'!M31 -> 4.826979472 | F31: ='[3]Cumulative Stats'!M31 -> 4.6 | G31: ='[4]Cumulative Stats'!M31 -> 5.25891947 | H31: ='[5]Cumulative Stats'!M31 -> 4.745136187 | I31: ='[6]Cumulative Stats'!M31 -> 6.376767677 | J31: ='[7]Cumulative Stats'!M31 -> 5.58390579 | K31: ='[8]Cumulative Stats'!M31 -> 4.653567735 | L31: ='[9]Cumulative Stats'!M31 -> 5.20020429 | M31: ='[10]Cumulative Stats'!M31 -> 4.077680525 | N31: ='[11]Cumulative Stats'!M31 -> 3.965965966 | O31: ='[12]Cumulative Stats'!M31 -> 5.688867745 | P31: ='[13]Cumulative Stats'!M31 -> 4.813176008 | Q31: ='[14]Cumulative Stats'!M31 -> 5.927072927 | R31: ='[15]Cumulative Stats'!M31 -> 5.249475891 | S31: ='[16]Cumulative Stats'!M31 -> 4.814814815
D32: ='[1]Cumulative Stats'!M32 -> 0 | E32: ='[2]Cumulative Stats'!M32 -> 0 | F32: ='[3]Cumulative Stats'!M32 -> 0 | G32: ='[4]Cumulative Stats'!M32 -> 0 | H32: ='[5]Cumulative Stats'!M32 -> 0 | I32: ='[6]Cumulative Stats'!M32 -> 0 | J32: ='[7]Cumulative Stats'!M32 -> 0 | K32: ='[8]Cumulative Stats'!M32 -> 0 | L32: ='[9]Cumulative Stats'!M32 -> 0 | M32: ='[10]Cumulative Stats'!M32 -> 0 | N32: ='[11]Cumulative Stats'!M32 -> 0 | O32: ='[12]Cumulative Stats'!M32 -> 0 | P32: ='[13]Cumulative Stats'!M32 -> 0 | Q32: ='[14]Cumulative Stats'!M32 -> 0 | R32: ='[15]Cumulative Stats'!M32 -> 0 | S32: ='[16]Cumulative Stats'!M32 -> 0
A33: Interceptions | D33: ='[1]Cumulative Stats'!M33 -> 0 | E33: ='[2]Cumulative Stats'!M33 -> 0 | F33: ='[3]Cumulative Stats'!M33 -> 0 | G33: ='[4]Cumulative Stats'!M33 -> 0 | H33: ='[5]Cumulative Stats'!M33 -> 0 | I33: ='[6]Cumulative Stats'!M33 -> 0 | J33: ='[7]Cumulative Stats'!M33 -> 0 | K33: ='[8]Cumulative Stats'!M33 -> 0 | L33: ='[9]Cumulative Stats'!M33 -> 0 | M33: ='[10]Cumulative Stats'!M33 -> 0 | N33: ='[11]Cumulative Stats'!M33 -> 0 | O33: ='[12]Cumulative Stats'!M33 -> 0 | P33: ='[13]Cumulative Stats'!M33 -> 0 | Q33: ='[14]Cumulative Stats'!M33 -> 0 | R33: ='[15]Cumulative Stats'!M33 -> 0 | S33: ='[16]Cumulative Stats'!M33 -> 0
A34: Had Intercepted | D34: ='[1]Cumulative Stats'!M34 -> 8 | E34: ='[2]Cumulative Stats'!M34 -> 14 | F34: ='[3]Cumulative Stats'!M34 -> 16 | G34: ='[4]Cumulative Stats'!M34 -> 15 | H34: ='[5]Cumulative Stats'!M34 -> 6 | I34: ='[6]Cumulative Stats'!M34 -> 8 | J34: ='[7]Cumulative Stats'!M34 -> 17 | K34: ='[8]Cumulative Stats'!M34 -> 19 | L34: ='[9]Cumulative Stats'!M34 -> 19 | M34: ='[10]Cumulative Stats'!M34 -> 16 | N34: ='[11]Cumulative Stats'!M34 -> 16 | O34: ='[12]Cumulative Stats'!M34 -> 12 | P34: ='[13]Cumulative Stats'!M34 -> 12 | Q34: ='[14]Cumulative Stats'!M34 -> 13 | R34: ='[15]Cumulative Stats'!M34 -> 16 | S34: ='[16]Cumulative Stats'!M34 -> 22
A35: Yards Opponents Returned | D35: ='[1]Cumulative Stats'!M35 -> 145 | E35: ='[2]Cumulative Stats'!M35 -> 232 | F35: ='[3]Cumulative Stats'!M35 -> 272 | G35: ='[4]Cumulative Stats'!M35 -> 94 | H35: ='[5]Cumulative Stats'!M35 -> 43 | I35: ='[6]Cumulative Stats'!M35 -> 114 | J35: ='[7]Cumulative Stats'!M35 -> 288 | K35: ='[8]Cumulative Stats'!M35 -> 172 | L35: ='[9]Cumulative Stats'!M35 -> 230 | M35: ='[10]Cumulative Stats'!M35 -> 189 | N35: ='[11]Cumulative Stats'!M35 -> 265 | O35: ='[12]Cumulative Stats'!M35 -> 163 | P35: ='[13]Cumulative Stats'!M35 -> 18 | Q35: ='[14]Cumulative Stats'!M35 -> 159 | R35: ='[15]Cumulative Stats'!M35 -> 269 | S35: ='[16]Cumulative Stats'!M35 -> 187
A36: Returned by Opponents for TD | D36: ='[1]Cumulative Stats'!M36 -> 1 | E36: ='[2]Cumulative Stats'!M36 -> 2 | F36: ='[3]Cumulative Stats'!M36 -> 1 | G36: ='[4]Cumulative Stats'!M36 -> 0 | H36: ='[5]Cumulative Stats'!M36 -> 0 | I36: ='[6]Cumulative Stats'!M36 -> 1 | J36: ='[7]Cumulative Stats'!M36 -> 2 | K36: ='[8]Cumulative Stats'!M36 -> 0 | L36: ='[9]Cumulative Stats'!M36 -> 1 | M36: ='[10]Cumulative Stats'!M36 -> 0 | N36: ='[11]Cumulative Stats'!M36 -> 2 | O36: ='[12]Cumulative Stats'!M36 -> 0 | P36: ='[13]Cumulative Stats'!M36 -> 0 | Q36: ='[14]Cumulative Stats'!M36 -> 1 | R36: ='[15]Cumulative Stats'!M36 -> 3 | S36: ='[16]Cumulative Stats'!M36 -> 0
D37: ='[1]Cumulative Stats'!M37 -> 0 | E37: ='[2]Cumulative Stats'!M37 -> 0 | F37: ='[3]Cumulative Stats'!M37 -> 0 | G37: ='[4]Cumulative Stats'!M37 -> 0 | H37: ='[5]Cumulative Stats'!M37 -> 0 | I37: ='[6]Cumulative Stats'!M37 -> 0 | J37: ='[7]Cumulative Stats'!M37 -> 0 | K37: ='[8]Cumulative Stats'!M37 -> 0 | L37: ='[9]Cumulative Stats'!M37 -> 0 | M37: ='[10]Cumulative Stats'!M37 -> 0 | N37: ='[11]Cumulative Stats'!M37 -> 0 | O37: ='[12]Cumulative Stats'!M37 -> 0 | P37: ='[13]Cumulative Stats'!M37 -> 0 | Q37: ='[14]Cumulative Stats'!M37 -> 0 | R37: ='[15]Cumulative Stats'!M37 -> 0 | S37: ='[16]Cumulative Stats'!M37 -> 0
A38: Punts | D38: ='[1]Cumulative Stats'!M38 -> 83 | E38: ='[2]Cumulative Stats'!M38 -> 99 | F38: ='[3]Cumulative Stats'!M38 -> 86 | G38: ='[4]Cumulative Stats'!M38 -> 102 | H38: ='[5]Cumulative Stats'!M38 -> 90 | I38: ='[6]Cumulative Stats'!M38 -> 61 | J38: ='[7]Cumulative Stats'!M38 -> 73 | K38: ='[8]Cumulative Stats'!M38 -> 98 | L38: ='[9]Cumulative Stats'!M38 -> 99 | M38: ='[10]Cumulative Stats'!M38 -> 99 | N38: ='[11]Cumulative Stats'!M38 -> 120 | O38: ='[12]Cumulative Stats'!M38 -> 68 | P38: ='[13]Cumulative Stats'!M38 -> 91 | Q38: ='[14]Cumulative Stats'!M38 -> 73 | R38: ='[15]Cumulative Stats'!M38 -> 91 | S38: ='[16]Cumulative Stats'!M38 -> 83
A39: Yards Punted | D39: ='[1]Cumulative Stats'!M39 -> 3561 | E39: ='[2]Cumulative Stats'!M39 -> 4354 | F39: ='[3]Cumulative Stats'!M39 -> 3706 | G39: ='[4]Cumulative Stats'!M39 -> 4440 | H39: ='[5]Cumulative Stats'!M39 -> 3711 | I39: ='[6]Cumulative Stats'!M39 -> 2445 | J39: ='[7]Cumulative Stats'!M39 -> 3074 | K39: ='[8]Cumulative Stats'!M39 -> 4102 | L39: ='[9]Cumulative Stats'!M39 -> 4320 | M39: ='[10]Cumulative Stats'!M39 -> 4141 | N39: ='[11]Cumulative Stats'!M39 -> 5103 | O39: ='[12]Cumulative Stats'!M39 -> 2820 | P39: ='[13]Cumulative Stats'!M39 -> 3673 | Q39: ='[14]Cumulative Stats'!M39 -> 3035 | R39: ='[15]Cumulative Stats'!M39 -> 3915 | S39: ='[16]Cumulative Stats'!M39 -> 3479
A40: Average Yards Per Punt | D40: ='[1]Cumulative Stats'!M40 -> 42.90361446 | E40: ='[2]Cumulative Stats'!M40 -> 43.97979798 | F40: ='[3]Cumulative Stats'!M40 -> 43.09302326 | G40: ='[4]Cumulative Stats'!M40 -> 43.52941176 | H40: ='[5]Cumulative Stats'!M40 -> 41.23333333 | I40: ='[6]Cumulative Stats'!M40 -> 40.08196721 | J40: ='[7]Cumulative Stats'!M40 -> 42.10958904 | K40: ='[8]Cumulative Stats'!M40 -> 41.85714286 | L40: ='[9]Cumulative Stats'!M40 -> 43.63636364 | M40: ='[10]Cumulative Stats'!M40 -> 41.82828283 | N40: ='[11]Cumulative Stats'!M40 -> 42.525 | O40: ='[12]Cumulative Stats'!M40 -> 41.47058824 | P40: ='[13]Cumulative Stats'!M40 -> 40.36263736 | Q40: ='[14]Cumulative Stats'!M40 -> 41.57534247 | R40: ='[15]Cumulative Stats'!M40 -> 43.02197802 | S40: ='[16]Cumulative Stats'!M40 -> 41.91566265
D41: ='[1]Cumulative Stats'!M41 -> 0 | E41: ='[2]Cumulative Stats'!M41 -> 0 | F41: ='[3]Cumulative Stats'!M41 -> 0 | G41: ='[4]Cumulative Stats'!M41 -> 0 | H41: ='[5]Cumulative Stats'!M41 -> 0 | I41: ='[6]Cumulative Stats'!M41 -> 0 | J41: ='[7]Cumulative Stats'!M41 -> 0 | K41: ='[8]Cumulative Stats'!M41 -> 0 | L41: ='[9]Cumulative Stats'!M41 -> 0 | M41: ='[10]Cumulative Stats'!M41 -> 0 | N41: ='[11]Cumulative Stats'!M41 -> 0 | O41: ='[12]Cumulative Stats'!M41 -> 0 | P41: ='[13]Cumulative Stats'!M41 -> 0 | Q41: ='[14]Cumulative Stats'!M41 -> 0 | R41: ='[15]Cumulative Stats'!M41 -> 0 | S41: ='[16]Cumulative Stats'!M41 -> 0
A42: Punt Returns | D42: ='[1]Cumulative Stats'!M42 -> 50 | E42: ='[2]Cumulative Stats'!M42 -> 37 | F42: ='[3]Cumulative Stats'!M42 -> 35 | G42: ='[4]Cumulative Stats'!M42 -> 63 | H42: ='[5]Cumulative Stats'!M42 -> 35 | I42: ='[6]Cumulative Stats'!M42 -> 50 | J42: ='[7]Cumulative Stats'!M42 -> 46 | K42: ='[8]Cumulative Stats'!M42 -> 45 | L42: ='[9]Cumulative Stats'!M42 -> 45 | M42: ='[10]Cumulative Stats'!M42 -> 30 | N42: ='[11]Cumulative Stats'!M42 -> 47 | O42: ='[12]Cumulative Stats'!M42 -> 45 | P42: ='[13]Cumulative Stats'!M42 -> 40 | Q42: ='[14]Cumulative Stats'!M42 -> 41 | R42: ='[15]Cumulative Stats'!M42 -> 55 | S42: ='[16]Cumulative Stats'!M42 -> 50
A43: Yards Returned | D43: ='[1]Cumulative Stats'!M43 -> 582 | E43: ='[2]Cumulative Stats'!M43 -> 257 | F43: ='[3]Cumulative Stats'!M43 -> 358 | G43: ='[4]Cumulative Stats'!M43 -> 529 | H43: ='[5]Cumulative Stats'!M43 -> 326 | I43: ='[6]Cumulative Stats'!M43 -> 450 | J43: ='[7]Cumulative Stats'!M43 -> 404 | K43: ='[8]Cumulative Stats'!M43 -> 483 | L43: ='[9]Cumulative Stats'!M43 -> 412 | M43: ='[10]Cumulative Stats'!M43 -> 288 | N43: ='[11]Cumulative Stats'!M43 -> 413 | O43: ='[12]Cumulative Stats'!M43 -> 533 | P43: ='[13]Cumulative Stats'!M43 -> 378 | Q43: ='[14]Cumulative Stats'!M43 -> 352 | R43: ='[15]Cumulative Stats'!M43 -> 567 | S43: ='[16]Cumulative Stats'!M43 -> 435
A44: Average Yards Per Return | D44: ='[1]Cumulative Stats'!M44 -> 11.64 | E44: ='[2]Cumulative Stats'!M44 -> 6.945945946 | F44: ='[3]Cumulative Stats'!M44 -> 10.22857143 | G44: ='[4]Cumulative Stats'!M44 -> 8.396825397 | H44: ='[5]Cumulative Stats'!M44 -> 9.314285714 | I44: ='[6]Cumulative Stats'!M44 -> 9 | J44: ='[7]Cumulative Stats'!M44 -> 8.782608696 | K44: ='[8]Cumulative Stats'!M44 -> 10.73333333 | L44: ='[9]Cumulative Stats'!M44 -> 9.155555556 | M44: ='[10]Cumulative Stats'!M44 -> 9.6 | N44: ='[11]Cumulative Stats'!M44 -> 8.787234043 | O44: ='[12]Cumulative Stats'!M44 -> 11.84444444 | P44: ='[13]Cumulative Stats'!M44 -> 9.45 | Q44: ='[14]Cumulative Stats'!M44 -> 8.585365854 | R44: ='[15]Cumulative Stats'!M44 -> 10.30909091 | S44: ='[16]Cumulative Stats'!M44 -> 8.7
A45: Returned for TD | D45: ='[1]Cumulative Stats'!M45 -> 1 | E45: ='[2]Cumulative Stats'!M45 -> 1 | F45: ='[3]Cumulative Stats'!M45 -> 2 | G45: ='[4]Cumulative Stats'!M45 -> 1 | H45: ='[5]Cumulative Stats'!M45 -> 0 | I45: ='[6]Cumulative Stats'!M45 -> 1 | J45: ='[7]Cumulative Stats'!M45 -> 0 | K45: ='[8]Cumulative Stats'!M45 -> 1 | L45: ='[9]Cumulative Stats'!M45 -> 0 | M45: ='[10]Cumulative Stats'!M45 -> 0 | N45: ='[11]Cumulative Stats'!M45 -> 0 | O45: ='[12]Cumulative Stats'!M45 -> 1 | P45: ='[13]Cumulative Stats'!M45 -> 0 | Q45: ='[14]Cumulative Stats'!M45 -> 0 | R45: ='[15]Cumulative Stats'!M45 -> 1 | S45: ='[16]Cumulative Stats'!M45 -> 1
D46: ='[1]Cumulative Stats'!M46 -> 0 | E46: ='[2]Cumulative Stats'!M46 -> 0 | F46: ='[3]Cumulative Stats'!M46 -> 0 | G46: ='[4]Cumulative Stats'!M46 -> 0 | H46: ='[5]Cumulative Stats'!M46 -> 0 | I46: ='[6]Cumulative Stats'!M46 -> 0 | J46: ='[7]Cumulative Stats'!M46 -> 0 | K46: ='[8]Cumulative Stats'!M46 -> 0 | L46: ='[9]Cumulative Stats'!M46 -> 0 | M46: ='[10]Cumulative Stats'!M46 -> 0 | N46: ='[11]Cumulative Stats'!M46 -> 0 | O46: ='[12]Cumulative Stats'!M46 -> 0 | P46: ='[13]Cumulative Stats'!M46 -> 0 | Q46: ='[14]Cumulative Stats'!M46 -> 0 | R46: ='[15]Cumulative Stats'!M46 -> 0 | S46: ='[16]Cumulative Stats'!M46 -> 0
A47: Kickoff Returns | D47: ='[1]Cumulative Stats'!M47 -> 75 | E47: ='[2]Cumulative Stats'!M47 -> 79 | F47: ='[3]Cumulative Stats'!M47 -> 94 | G47: ='[4]Cumulative Stats'!M47 -> 54 | H47: ='[5]Cumulative Stats'!M47 -> 81 | I47: ='[6]Cumulative Stats'!M47 -> 68 | J47: ='[7]Cumulative Stats'!M47 -> 64 | K47: ='[8]Cumulative Stats'!M47 -> 91 | L47: ='[9]Cumulative Stats'!M47 -> 98 | M47: ='[10]Cumulative Stats'!M47 -> 98 | N47: ='[11]Cumulative Stats'!M47 -> 90 | O47: ='[12]Cumulative Stats'!M47 -> 50 | P47: ='[13]Cumulative Stats'!M47 -> 61 | Q47: ='[14]Cumulative Stats'!M47 -> 56 | R47: ='[15]Cumulative Stats'!M47 -> 80 | S47: ='[16]Cumulative Stats'!M47 -> 72
A48: Yards Returned | D48: ='[1]Cumulative Stats'!M48 -> 1610 | E48: ='[2]Cumulative Stats'!M48 -> 1621 | F48: ='[3]Cumulative Stats'!M48 -> 1792 | G48: ='[4]Cumulative Stats'!M48 -> 1049 | H48: ='[5]Cumulative Stats'!M48 -> 1714 | I48: ='[6]Cumulative Stats'!M48 -> 1633 | J48: ='[7]Cumulative Stats'!M48 -> 1401 | K48: ='[8]Cumulative Stats'!M48 -> 2149 | L48: ='[9]Cumulative Stats'!M48 -> 2321 | M48: ='[10]Cumulative Stats'!M48 -> 2515 | N48: ='[11]Cumulative Stats'!M48 -> 1889 | O48: ='[12]Cumulative Stats'!M48 -> 1310 | P48: ='[13]Cumulative Stats'!M48 -> 1512 | Q48: ='[14]Cumulative Stats'!M48 -> 1333 | R48: ='[15]Cumulative Stats'!M48 -> 1796 | S48: ='[16]Cumulative Stats'!M48 -> 1561
A49: Average Yards Per Return | D49: ='[1]Cumulative Stats'!M49 -> 21.46666667 | E49: ='[2]Cumulative Stats'!M49 -> 20.51898734 | F49: ='[3]Cumulative Stats'!M49 -> 19.06382979 | G49: ='[4]Cumulative Stats'!M49 -> 19.42592593 | H49: ='[5]Cumulative Stats'!M49 -> 21.16049383 | I49: ='[6]Cumulative Stats'!M49 -> 24.01470588 | J49: ='[7]Cumulative Stats'!M49 -> 21.890625 | K49: ='[8]Cumulative Stats'!M49 -> 23.61538462 | L49: ='[9]Cumulative Stats'!M49 -> 23.68367347 | M49: ='[10]Cumulative Stats'!M49 -> 25.66326531 | N49: ='[11]Cumulative Stats'!M49 -> 20.98888889 | O49: ='[12]Cumulative Stats'!M49 -> 26.2 | P49: ='[13]Cumulative Stats'!M49 -> 24.78688525 | Q49: ='[14]Cumulative Stats'!M49 -> 23.80357143 | R49: ='[15]Cumulative Stats'!M49 -> 22.45 | S49: ='[16]Cumulative Stats'!M49 -> 21.68055556
A50: Returned for TD | D50: ='[1]Cumulative Stats'!M50 -> 0 | E50: ='[2]Cumulative Stats'!M50 -> 2 | F50: ='[3]Cumulative Stats'!M50 -> 0 | G50: ='[4]Cumulative Stats'!M50 -> 0 | H50: ='[5]Cumulative Stats'!M50 -> 1 | I50: ='[6]Cumulative Stats'!M50 -> 0 | J50: ='[7]Cumulative Stats'!M50 -> 0 | K50: ='[8]Cumulative Stats'!M50 -> 0 | L50: ='[9]Cumulative Stats'!M50 -> 0 | M50: ='[10]Cumulative Stats'!M50 -> 3 | N50: ='[11]Cumulative Stats'!M50 -> 1 | O50: ='[12]Cumulative Stats'!M50 -> 2 | P50: ='[13]Cumulative Stats'!M50 -> 2 | Q50: ='[14]Cumulative Stats'!M50 -> 0 | R50: ='[15]Cumulative Stats'!M50 -> 0 | S50: ='[16]Cumulative Stats'!M50 -> 0
D51: ='[1]Cumulative Stats'!M51 -> 0 | E51: ='[2]Cumulative Stats'!M51 -> 0 | F51: ='[3]Cumulative Stats'!M51 -> 0 | G51: ='[4]Cumulative Stats'!M51 -> 0 | H51: ='[5]Cumulative Stats'!M51 -> 0 | I51: ='[6]Cumulative Stats'!M51 -> 0 | J51: ='[7]Cumulative Stats'!M51 -> 0 | K51: ='[8]Cumulative Stats'!M51 -> 0 | L51: ='[9]Cumulative Stats'!M51 -> 0 | M51: ='[10]Cumulative Stats'!M51 -> 0 | N51: ='[11]Cumulative Stats'!M51 -> 0 | O51: ='[12]Cumulative Stats'!M51 -> 0 | P51: ='[13]Cumulative Stats'!M51 -> 0 | Q51: ='[14]Cumulative Stats'!M51 -> 0 | R51: ='[15]Cumulative Stats'!M51 -> 0 | S51: ='[16]Cumulative Stats'!M51 -> 0
A52: Penalties | D52: ='[1]Cumulative Stats'!M52 -> 89 | E52: ='[2]Cumulative Stats'!M52 -> 63 | F52: ='[3]Cumulative Stats'!M52 -> 59 | G52: ='[4]Cumulative Stats'!M52 -> 80 | H52: ='[5]Cumulative Stats'!M52 -> 111 | I52: ='[6]Cumulative Stats'!M52 -> 59 | J52: ='[7]Cumulative Stats'!M52 -> 80 | K52: ='[8]Cumulative Stats'!M52 -> 66 | L52: ='[9]Cumulative Stats'!M52 -> 88 | M52: ='[10]Cumulative Stats'!M52 -> 87 | N52: ='[11]Cumulative Stats'!M52 -> 76 | O52: ='[12]Cumulative Stats'!M52 -> 72 | P52: ='[13]Cumulative Stats'!M52 -> 76 | Q52: ='[14]Cumulative Stats'!M52 -> 85 | R52: ='[15]Cumulative Stats'!M52 -> 59 | S52: ='[16]Cumulative Stats'!M52 -> 89
A53: Yards Penalized | D53: ='[1]Cumulative Stats'!M53 -> 717 | E53: ='[2]Cumulative Stats'!M53 -> 520 | F53: ='[3]Cumulative Stats'!M53 -> 495 | G53: ='[4]Cumulative Stats'!M53 -> 661 | H53: ='[5]Cumulative Stats'!M53 -> 905 | I53: ='[6]Cumulative Stats'!M53 -> 492 | J53: ='[7]Cumulative Stats'!M53 -> 639 | K53: ='[8]Cumulative Stats'!M53 -> 540 | L53: ='[9]Cumulative Stats'!M53 -> 746 | M53: ='[10]Cumulative Stats'!M53 -> 692 | N53: ='[11]Cumulative Stats'!M53 -> 639 | O53: ='[12]Cumulative Stats'!M53 -> 553 | P53: ='[13]Cumulative Stats'!M53 -> 624 | Q53: ='[14]Cumulative Stats'!M53 -> 808 | R53: ='[15]Cumulative Stats'!M53 -> 538 | S53: ='[16]Cumulative Stats'!M53 -> 764
D54: ='[1]Cumulative Stats'!M54 -> 0 | E54: ='[2]Cumulative Stats'!M54 -> 0 | F54: ='[3]Cumulative Stats'!M54 -> 0 | G54: ='[4]Cumulative Stats'!M54 -> 0 | H54: ='[5]Cumulative Stats'!M54 -> 0 | I54: ='[6]Cumulative Stats'!M54 -> 0 | J54: ='[7]Cumulative Stats'!M54 -> 0 | K54: ='[8]Cumulative Stats'!M54 -> 0 | L54: ='[9]Cumulative Stats'!M54 -> 0 | M54: ='[10]Cumulative Stats'!M54 -> 0 | N54: ='[11]Cumulative Stats'!M54 -> 0 | O54: ='[12]Cumulative Stats'!M54 -> 0 | P54: ='[13]Cumulative Stats'!M54 -> 0 | Q54: ='[14]Cumulative Stats'!M54 -> 0 | R54: ='[15]Cumulative Stats'!M54 -> 0 | S54: ='[16]Cumulative Stats'!M54 -> 0
A55: Fumbles | D55: ='[1]Cumulative Stats'!M55 -> 34 | E55: ='[2]Cumulative Stats'!M55 -> 11 | F55: ='[3]Cumulative Stats'!M55 -> 25 | G55: ='[4]Cumulative Stats'!M55 -> 11 | H55: ='[5]Cumulative Stats'!M55 -> 36 | I55: ='[6]Cumulative Stats'!M55 -> 28 | J55: ='[7]Cumulative Stats'!M55 -> 14 | K55: ='[8]Cumulative Stats'!M55 -> 27 | L55: ='[9]Cumulative Stats'!M55 -> 14 | M55: ='[10]Cumulative Stats'!M55 -> 19 | N55: ='[11]Cumulative Stats'!M55 -> 42 | O55: ='[12]Cumulative Stats'!M55 -> 19 | P55: ='[13]Cumulative Stats'!M55 -> 12 | Q55: ='[14]Cumulative Stats'!M55 -> 17 | R55: ='[15]Cumulative Stats'!M55 -> 18 | S55: ='[16]Cumulative Stats'!M55 -> 12
A56: Lost | D56: ='[1]Cumulative Stats'!M56 -> 22 | E56: ='[2]Cumulative Stats'!M56 -> 7 | F56: ='[3]Cumulative Stats'!M56 -> 7 | G56: ='[4]Cumulative Stats'!M56 -> 7 | H56: ='[5]Cumulative Stats'!M56 -> 10 | I56: ='[6]Cumulative Stats'!M56 -> 16 | J56: ='[7]Cumulative Stats'!M56 -> 4 | K56: ='[8]Cumulative Stats'!M56 -> 4 | L56: ='[9]Cumulative Stats'!M56 -> 5 | M56: ='[10]Cumulative Stats'!M56 -> 8 | N56: ='[11]Cumulative Stats'!M56 -> 79 | O56: ='[12]Cumulative Stats'!M56 -> 5 | P56: ='[13]Cumulative Stats'!M56 -> 3 | Q56: ='[14]Cumulative Stats'!M56 -> 8 | R56: ='[15]Cumulative Stats'!M56 -> 7 | S56: ='[16]Cumulative Stats'!M56 -> 5
D57: ='[1]Cumulative Stats'!M57 -> 0 | E57: ='[2]Cumulative Stats'!M57 -> 0 | F57: ='[3]Cumulative Stats'!M57 -> 0 | G57: ='[4]Cumulative Stats'!M57 -> 0 | H57: ='[5]Cumulative Stats'!M57 -> 0 | I57: ='[6]Cumulative Stats'!M57 -> 0 | J57: ='[7]Cumulative Stats'!M57 -> 0 | K57: ='[8]Cumulative Stats'!M57 -> 0 | L57: ='[9]Cumulative Stats'!M57 -> 0 | M57: ='[10]Cumulative Stats'!M57 -> 0 | N57: ='[11]Cumulative Stats'!M57 -> 0 | O57: ='[12]Cumulative Stats'!M57 -> 0 | P57: ='[13]Cumulative Stats'!M57 -> 0 | Q57: ='[14]Cumulative Stats'!M57 -> 0 | R57: ='[15]Cumulative Stats'!M57 -> 0 | S57: ='[16]Cumulative Stats'!M57 -> 0
A58: Total Points Scored | D58: ='[1]Cumulative Stats'!M58 -> 299 | E58: ='[2]Cumulative Stats'!M58 -> 287 | F58: ='[3]Cumulative Stats'!M58 -> 317 | G58: ='[4]Cumulative Stats'!M58 -> 392 | H58: ='[5]Cumulative Stats'!M58 -> 334 | I58: ='[6]Cumulative Stats'!M58 -> 508 | J58: ='[7]Cumulative Stats'!M58 -> 465 | K58: ='[8]Cumulative Stats'!M58 -> 314 | L58: ='[9]Cumulative Stats'!M58 -> 286 | M58: ='[10]Cumulative Stats'!M58 -> 232 | N58: ='[11]Cumulative Stats'!M58 -> 208 | O58: ='[12]Cumulative Stats'!M58 -> 447 | P58: ='[13]Cumulative Stats'!M58 -> 352 | Q58: ='[14]Cumulative Stats'!M58 -> 397 | R58: ='[15]Cumulative Stats'!M58 -> 356 | S58: ='[16]Cumulative Stats'!M58 -> 324
A59: Touchdowns (Total) | D59: ='[1]Cumulative Stats'!M59 -> 30 | E59: ='[2]Cumulative Stats'!M59 -> 29 | F59: ='[3]Cumulative Stats'!M59 -> 31 | G59: ='[4]Cumulative Stats'!M59 -> 43 | H59: ='[5]Cumulative Stats'!M59 -> 30 | I59: ='[6]Cumulative Stats'!M59 -> 60 | J59: ='[7]Cumulative Stats'!M59 -> 52 | K59: ='[8]Cumulative Stats'!M59 -> 33 | L59: ='[9]Cumulative Stats'!M59 -> 28 | M59: ='[10]Cumulative Stats'!M59 -> 20 | N59: ='[11]Cumulative Stats'!M59 -> 19 | O59: ='[12]Cumulative Stats'!M59 -> 48 | P59: ='[13]Cumulative Stats'!M59 -> 34 | Q59: ='[14]Cumulative Stats'!M59 -> 44 | R59: ='[15]Cumulative Stats'!M59 -> 38 | S59: ='[16]Cumulative Stats'!M59 -> 34
A60: Touchdowns Rushing | D60: ='[1]Cumulative Stats'!M60 -> 6 | E60: ='[2]Cumulative Stats'!M60 -> 8 | F60: ='[3]Cumulative Stats'!M60 -> 9 | G60: ='[4]Cumulative Stats'!M60 -> 17 | H60: ='[5]Cumulative Stats'!M60 -> 11 | I60: ='[6]Cumulative Stats'!M60 -> 21 | J60: ='[7]Cumulative Stats'!M60 -> 24 | K60: ='[8]Cumulative Stats'!M60 -> 6 | L60: ='[9]Cumulative Stats'!M60 -> 8 | M60: ='[10]Cumulative Stats'!M60 -> 3 | N60: ='[11]Cumulative Stats'!M60 -> 1 | O60: ='[12]Cumulative Stats'!M60 -> 21 | P60: ='[13]Cumulative Stats'!M60 -> 13 | Q60: ='[14]Cumulative Stats'!M60 -> 17 | R60: ='[15]Cumulative Stats'!M60 -> 12 | S60: ='[16]Cumulative Stats'!M60 -> 13
A61: Touchdowns Passing | D61: ='[1]Cumulative Stats'!M61 -> 20 | E61: ='[2]Cumulative Stats'!M61 -> 17 | F61: ='[3]Cumulative Stats'!M61 -> 16 | G61: ='[4]Cumulative Stats'!M61 -> 21 | H61: ='[5]Cumulative Stats'!M61 -> 14 | I61: ='[6]Cumulative Stats'!M61 -> 38 | J61: ='[7]Cumulative Stats'!M61 -> 27 | K61: ='[8]Cumulative Stats'!M61 -> 21 | L61: ='[9]Cumulative Stats'!M61 -> 19 | M61: ='[10]Cumulative Stats'!M61 -> 12 | N61: ='[11]Cumulative Stats'!M61 -> 14 | O61: ='[12]Cumulative Stats'!M61 -> 24 | P61: ='[13]Cumulative Stats'!M61 -> 17 | Q61: ='[14]Cumulative Stats'!M61 -> 23 | R61: ='[15]Cumulative Stats'!M61 -> 24 | S61: ='[16]Cumulative Stats'!M61 -> 18
A62: TD's on Returns and Recoveries | D62: ='[1]Cumulative Stats'!M62 -> 1 | E62: ='[2]Cumulative Stats'!M62 -> 3 | F62: ='[3]Cumulative Stats'!M62 -> 5 | G62: ='[4]Cumulative Stats'!M62 -> 5 | H62: ='[5]Cumulative Stats'!M62 -> 4 | I62: ='[6]Cumulative Stats'!M62 -> 2 | J62: ='[7]Cumulative Stats'!M62 -> 3 | K62: ='[8]Cumulative Stats'!M62 -> 2 | L62: ='[9]Cumulative Stats'!M62 -> 1 | M62: ='[10]Cumulative Stats'!M62 -> 3 | N62: ='[11]Cumulative Stats'!M62 -> 3 | O62: ='[12]Cumulative Stats'!M62 -> 3 | P62: ='[13]Cumulative Stats'!M62 -> 5 | Q62: ='[14]Cumulative Stats'!M62 -> 1 | R62: ='[15]Cumulative Stats'!M62 -> 2 | S62: ='[16]Cumulative Stats'!M62 -> 3
A63: *Extra Points | D63: ='[1]Cumulative Stats'!M63 -> 30 | E63: ='[2]Cumulative Stats'!M63 -> 30 | F63: ='[3]Cumulative Stats'!M63 -> 32 | G63: ='[4]Cumulative Stats'!M63 -> 44 | H63: ='[5]Cumulative Stats'!M63 -> 30 | I63: ='[6]Cumulative Stats'!M63 -> 59 | J63: ='[7]Cumulative Stats'!M63 -> 51 | K63: ='[8]Cumulative Stats'!M63 -> 33 | L63: ='[9]Cumulative Stats'!M63 -> 28 | M63: ='[10]Cumulative Stats'!M63 -> 21 | N63: ='[11]Cumulative Stats'!M63 -> 19 | O63: ='[12]Cumulative Stats'!M63 -> 49 | P63: ='[13]Cumulative Stats'!M63 -> 34 | Q63: ='[14]Cumulative Stats'!M63 -> 44 | R63: ='[15]Cumulative Stats'!M63 -> 38 | S63: ='[16]Cumulative Stats'!M63 -> 34
A64: Safeties | D64: ='[1]Cumulative Stats'!M64 -> 1 | E64: ='[2]Cumulative Stats'!M64 -> 1 | F64: ='[3]Cumulative Stats'!M64 -> 0 | G64: ='[4]Cumulative Stats'!M64 -> 0 | H64: ='[5]Cumulative Stats'!M64 -> 2 | I64: ='[6]Cumulative Stats'!M64 -> 1 | J64: ='[7]Cumulative Stats'!M64 -> 0 | K64: ='[8]Cumulative Stats'!M64 -> 1 | L64: ='[9]Cumulative Stats'!M64 -> 0 | M64: ='[10]Cumulative Stats'!M64 -> 2 | N64: ='[11]Cumulative Stats'!M64 -> 0 | O64: ='[12]Cumulative Stats'!M64 -> 1 | P64: ='[13]Cumulative Stats'!M64 -> 0 | Q64: ='[14]Cumulative Stats'!M64 -> 1 | R64: ='[15]Cumulative Stats'!M64 -> 0 | S64: ='[16]Cumulative Stats'!M64 -> 1
A65: Field Goals | D65: ='[1]Cumulative Stats'!M65 -> 29 | E65: ='[2]Cumulative Stats'!M65 -> 27 | F65: ='[3]Cumulative Stats'!M65 -> 33 | G65: ='[4]Cumulative Stats'!M65 -> 30 | H65: ='[5]Cumulative Stats'!M65 -> 40 | I65: ='[6]Cumulative Stats'!M65 -> 29 | J65: ='[7]Cumulative Stats'!M65 -> 34 | K65: ='[8]Cumulative Stats'!M65 -> 27 | L65: ='[9]Cumulative Stats'!M65 -> 30 | M65: ='[10]Cumulative Stats'!M65 -> 29 | N65: ='[11]Cumulative Stats'!M65 -> 25 | O65: ='[12]Cumulative Stats'!M65 -> 36 | P65: ='[13]Cumulative Stats'!M65 -> 38 | Q65: ='[14]Cumulative Stats'!M65 -> 29 | R65: ='[15]Cumulative Stats'!M65 -> 30 | S65: ='[16]Cumulative Stats'!M65 -> 28
A66: Field Goal Attempts | D66: ='[1]Cumulative Stats'!M66 -> 33 | E66: ='[2]Cumulative Stats'!M66 -> 33 | F66: ='[3]Cumulative Stats'!M66 -> 35 | G66: ='[4]Cumulative Stats'!M66 -> 32 | H66: ='[5]Cumulative Stats'!M66 -> 44 | I66: ='[6]Cumulative Stats'!M66 -> 31 | J66: ='[7]Cumulative Stats'!M66 -> 36 | K66: ='[8]Cumulative Stats'!M66 -> 33 | L66: ='[9]Cumulative Stats'!M66 -> 32 | M66: ='[10]Cumulative Stats'!M66 -> 31 | N66: ='[11]Cumulative Stats'!M66 -> 28 | O66: ='[12]Cumulative Stats'!M66 -> 40 | P66: ='[13]Cumulative Stats'!M66 -> 49 | Q66: ='[14]Cumulative Stats'!M66 -> 34 | R66: ='[15]Cumulative Stats'!M66 -> 35 | S66: ='[16]Cumulative Stats'!M66 -> 33
A67: Percent Successful | D67: ='[1]Cumulative Stats'!M67 -> 87.87878788 | E67: ='[2]Cumulative Stats'!M67 -> 81.81818182 | F67: ='[3]Cumulative Stats'!M67 -> 94.28571429 | G67: ='[4]Cumulative Stats'!M67 -> 93.75 | H67: ='[5]Cumulative Stats'!M67 -> 90.90909091 | I67: ='[6]Cumulative Stats'!M67 -> 93.5483871 | J67: ='[7]Cumulative Stats'!M67 -> 94.44444444 | K67: ='[8]Cumulative Stats'!M67 -> 81.81818182 | L67: ='[9]Cumulative Stats'!M67 -> 93.75 | M67: ='[10]Cumulative Stats'!M67 -> 93.5483871 | N67: ='[11]Cumulative Stats'!M67 -> 89.28571429 | O67: ='[12]Cumulative Stats'!M67 -> 90 | P67: ='[13]Cumulative Stats'!M67 -> 77.55102041 | Q67: ='[14]Cumulative Stats'!M67 -> 85.29411765 | R67: ='[15]Cumulative Stats'!M67 -> 85.71428571 | S67: ='[16]Cumulative Stats'!M67 -> 84.84848485
A68: Average Possesion: | D68: ='[1]Cumulative Stats'!M68 -> 30:39 | E68: ='[2]Cumulative Stats'!M68 -> 30:21 | F68: ='[3]Cumulative Stats'!M68 -> 28:40 | G68: ='[4]Cumulative Stats'!M68 -> 30:12 | H68: ='[5]Cumulative Stats'!M68 -> 30:45 | I68: ='[6]Cumulative Stats'!M68 -> 30:47 | J68: ='[7]Cumulative Stats'!M68 -> 31:01 | K68: ='[8]Cumulative Stats'!M68 -> 28:60 | L68: ='[9]Cumulative Stats'!M68 -> 29:10 | M68: ='[10]Cumulative Stats'!M68 -> 27:15 | N68: ='[11]Cumulative Stats'!M68 -> 28:38 | O68: ='[12]Cumulative Stats'!M68 -> 32:28 | P68: ='[13]Cumulative Stats'!M68 -> 30:57 | Q68: ='[14]Cumulative Stats'!M68 -> 30:45 | R68: ='[15]Cumulative Stats'!M68 -> 28:60 | S68: ='[16]Cumulative Stats'!M68 -> 30:27
A69: Third Down Efficiency | D69: ='[1]Cumulative Stats'!M69 -> 34.65346535 | E69: ='[2]Cumulative Stats'!M69 -> 32.14285714 | F69: ='[3]Cumulative Stats'!M69 -> 32.5 | G69: ='[4]Cumulative Stats'!M69 -> 33.96226415 | H69: ='[5]Cumulative Stats'!M69 -> 31.01851852 | I69: ='[6]Cumulative Stats'!M69 -> 39.75903614 | J69: ='[7]Cumulative Stats'!M69 -> 35.82089552 | K69: ='[8]Cumulative Stats'!M69 -> 30 | L69: ='[9]Cumulative Stats'!M69 -> 29.03225806 | M69: ='[10]Cumulative Stats'!M69 -> 27.75119617 | N69: ='[11]Cumulative Stats'!M69 -> 26.5560166 | O69: ='[12]Cumulative Stats'!M69 -> 37.94871795 | P69: ='[13]Cumulative Stats'!M69 -> 32.73542601 | Q69: ='[14]Cumulative Stats'!M69 -> 35.56701031 | R69: ='[15]Cumulative Stats'!M69 -> 29.5 | S69: ='[16]Cumulative Stats'!M69 -> 36.69724771

Sheet Rush - Rec
A1: Rushing: | B1: Team | C1: Att | D1: Yards | E1: Avg. | F1: Long | G1: TD | J1: Receiving: | K1: Team | L1: Rec | M1: Yards | N1: Avg. | O1: Long | P1: TD
A2: ='[8]Cumulative Stats'!A75 -> Peterson | B2: MIN | C2: ='[8]Cumulative Stats'!C75 -> 356 | D2: ='[8]Cumulative Stats'!D75 -> 1931 | E2: ='[8]Cumulative Stats'!E75 -> 5.424157303 | F2: ='[8]Cumulative Stats'!F75 -> 67 | G2: ='[8]Cumulative Stats'!G75 -> 13 | J2: ='[2]Cumulative Stats'!A94 -> White | K2: ATL | L2: ='[2]Cumulative Stats'!C94 -> 102 | M2: ='[2]Cumulative Stats'!D94 -> 1571 | N2: ='[2]Cumulative Stats'!E94 -> 15.40196078 | O2: ='[2]Cumulative Stats'!F94 -> 57 | P2: ='[2]Cumulative Stats'!G94 -> 14 | T2: Rushing leader based on most yards gained
A3: ='[2]Cumulative Stats'!A75 -> Turner | B3: ATL | C3: ='[2]Cumulative Stats'!C75 -> 365 | D3: ='[2]Cumulative Stats'!D75 -> 1760 | E3: ='[2]Cumulative Stats'!E75 -> 4.821917808 | F3: ='[2]Cumulative Stats'!F75 -> 69 | G3: ='[2]Cumulative Stats'!G75 -> 16 | J3: ='[15]Cumulative Stats'!A94 -> Bryant, A | K3: TBB | L3: ='[15]Cumulative Stats'!C94 -> 99 | M3: ='[15]Cumulative Stats'!D94 -> 1318 | N3: ='[15]Cumulative Stats'!E94 -> 13.31313131 | O3: ='[15]Cumulative Stats'!F94 -> 35 | P3: ='[15]Cumulative Stats'!G94 -> 6
A4: ='[3]Cumulative Stats'!A75 -> Williams, D | B4: CAR | C4: ='[3]Cumulative Stats'!C75 -> 281 | D4: ='[3]Cumulative Stats'!D75 -> 1754 | E4: ='[3]Cumulative Stats'!E75 -> 6.241992883 | F4: ='[3]Cumulative Stats'!F75 -> 69 | G4: ='[3]Cumulative Stats'!G75 -> 18 | J4: ='[1]Cumulative Stats'!A94 -> Fitzgerald | K4: ARI | L4: ='[1]Cumulative Stats'!C94 -> 96 | M4: ='[1]Cumulative Stats'!D94 -> 1366 | N4: ='[1]Cumulative Stats'!E94 -> 14.22916667 | O4: ='[1]Cumulative Stats'!F94 -> 76 | P4: ='[1]Cumulative Stats'!G94 -> 9 | T4: Leader based on receptions
A5: ='[16]Cumulative Stats'!A75 -> Portis | B5: WAS | C5: ='[16]Cumulative Stats'!C75 -> 342 | D5: ='[16]Cumulative Stats'!D75 -> 1444 | E5: ='[16]Cumulative Stats'!E75 -> 4.222222222 | F5: ='[16]Cumulative Stats'!F75 -> 38 | G5: ='[16]Cumulative Stats'!G75 -> 10 | J5: ='[3]Cumulative Stats'!A94 -> Smith, St | K5: CAR | L5: ='[3]Cumulative Stats'!C94 -> 94 | M5: ='[3]Cumulative Stats'!D94 -> 1523 | N5: ='[3]Cumulative Stats'!E94 -> 16.20212766 | O5: ='[3]Cumulative Stats'!F94 -> 36 | P5: ='[3]Cumulative Stats'!G94 -> 10
A6: ='[10]Cumulative Stats'!A75 -> Ward | B6: NYG | C6: ='[10]Cumulative Stats'!C75 -> 217 | D6: ='[10]Cumulative Stats'!D75 -> 1212 | E6: ='[10]Cumulative Stats'!E75 -> 5.585253456 | F6: ='[10]Cumulative Stats'!F75 -> 32 | G6: ='[10]Cumulative Stats'!G75 -> 9 | J6: ='[6]Cumulative Stats'!A94 -> Johnson, C | K6: DET | L6: ='[6]Cumulative Stats'!C94 -> 92 | M6: ='[6]Cumulative Stats'!D94 -> 1427 | N6: ='[6]Cumulative Stats'!E94 -> 15.51086957 | O6: ='[6]Cumulative Stats'!F94 -> 75 | P6: ='[6]Cumulative Stats'!G94 -> 13
A7: ='[10]Cumulative Stats'!A76 -> Jacobs | B7: NYG | C7: ='[10]Cumulative Stats'!C76 -> 218 | D7: ='[10]Cumulative Stats'!D76 -> 1128 | E7: ='[10]Cumulative Stats'!E76 -> 5.174311927 | F7: ='[10]Cumulative Stats'!F76 -> 44 | G7: ='[10]Cumulative Stats'!G76 -> 9 | J7: ='[9]Cumulative Stats'!A94 -> Moore | K7: NOS | L7: ='[9]Cumulative Stats'!C94 -> 88 | M7: ='[9]Cumulative Stats'!D94 -> 862 | N7: ='[9]Cumulative Stats'!E94 -> 9.795454545 | O7: ='[9]Cumulative Stats'!F94 -> 65 | P7: ='[9]Cumulative Stats'!G94 -> 6
A8: ='[4]Cumulative Stats'!A75 -> Forte | B8: CHI | C8: ='[4]Cumulative Stats'!C75 -> 310 | D8: ='[4]Cumulative Stats'!D75 -> 1122 | E8: ='[4]Cumulative Stats'!E75 -> 3.619354839 | F8: ='[4]Cumulative Stats'!F75 -> 23 | G8: ='[4]Cumulative Stats'!G75 -> 4 | J8: ='[1]Cumulative Stats'!A95 -> Breaston | K8: ARI | L8: ='[1]Cumulative Stats'!C95 -> 86 | M8: ='[1]Cumulative Stats'!D95 -> 1236 | N8: ='[1]Cumulative Stats'!E95 -> 14.37209302 | O8: ='[1]Cumulative Stats'!F95 -> 83 | P8: ='[1]Cumulative Stats'!G95 -> 11
A9: ='[7]Cumulative Stats'!A75 -> Grant | B9: GBP | C9: ='[7]Cumulative Stats'!C75 -> 288 | D9: ='[7]Cumulative Stats'!D75 -> 1110 | E9: ='[7]Cumulative Stats'!E75 -> 3.854166667 | F9: ='[7]Cumulative Stats'!F75 -> 47 | G9: ='[7]Cumulative Stats'!G75 -> 10 | J9: ='[5]Cumulative Stats'!A94 -> Witten | K9: DAL | L9: ='[5]Cumulative Stats'!C94 -> 83 | M9: ='[5]Cumulative Stats'!D94 -> 882 | N9: ='[5]Cumulative Stats'!E94 -> 10.62650602 | O9: ='[5]Cumulative Stats'!F94 -> 42 | P9: ='[5]Cumulative Stats'!G94 -> 4
A10: ='[6]Cumulative Stats'!A75 -> Smith, Kev | B10: DET | C10: ='[6]Cumulative Stats'!C75 -> 273 | D10: ='[6]Cumulative Stats'!D75 -> 1089 | E10: ='[6]Cumulative Stats'!E75 -> 3.989010989 | F10: ='[6]Cumulative Stats'!F75 -> 50 | G10: ='[6]Cumulative Stats'!G75 -> 5 | J10: ='[16]Cumulative Stats'!A94 -> Moss | K10: WAS | L10: ='[16]Cumulative Stats'!C94 -> 83 | M10: ='[16]Cumulative Stats'!D94 -> 1064 | N10: ='[16]Cumulative Stats'!E94 -> 12.81927711 | O10: ='[16]Cumulative Stats'!F94 -> 34 | P10: ='[16]Cumulative Stats'!G94 -> 6
A11: ='[11]Cumulative Stats'!A75 -> Westbrook | B11: PHI | C11: ='[11]Cumulative Stats'!C75 -> 245 | D11: ='[11]Cumulative Stats'!D75 -> 1041 | E11: ='[11]Cumulative Stats'!E75 -> 4.248979592 | F11: ='[11]Cumulative Stats'!F75 -> 39 | G11: ='[11]Cumulative Stats'!G75 -> 8 | J11: ='[7]Cumulative Stats'!A94 -> Jennings | K11: GBP | L11: ='[7]Cumulative Stats'!C94 -> 80 | M11: ='[7]Cumulative Stats'!D94 -> 1036 | N11: ='[7]Cumulative Stats'!E94 -> 12.95 | O11: ='[7]Cumulative Stats'!F94 -> 83 | P11: ='[7]Cumulative Stats'!G94 -> 4
A12: ='[13]Cumulative Stats'!A75 -> Gore | B12: SFO | C12: ='[13]Cumulative Stats'!C75 -> 234 | D12: ='[13]Cumulative Stats'!D75 -> 1018 | E12: ='[13]Cumulative Stats'!E75 -> 4.35042735 | F12: ='[13]Cumulative Stats'!F75 -> 41 | G12: ='[13]Cumulative Stats'!G75 -> 6 | J12: ='[3]Cumulative Stats'!A95 -> Muhammad | K12: CAR | L12: ='[3]Cumulative Stats'!C95 -> 79 | M12: ='[3]Cumulative Stats'!D95 -> 1233 | N12: ='[3]Cumulative Stats'!E95 -> 15.60759494 | O12: ='[3]Cumulative Stats'!F95 -> 60 | P12: ='[3]Cumulative Stats'!G95 -> 6
A13: ='[5]Cumulative Stats'!A75 -> Barber | B13: DAL | C13: ='[5]Cumulative Stats'!C75 -> 236 | D13: ='[5]Cumulative Stats'!D75 -> 882 | E13: ='[5]Cumulative Stats'!E75 -> 3.737288136 | F13: ='[5]Cumulative Stats'!F75 -> 35 | G13: ='[5]Cumulative Stats'!G75 -> 9 | J13: ='[5]Cumulative Stats'!A95 -> Owens | K13: DAL | L13: ='[5]Cumulative Stats'!C95 -> 77 | M13: ='[5]Cumulative Stats'!D95 -> 1000 | N13: ='[5]Cumulative Stats'!E95 -> 12.98701299 | O13: ='[5]Cumulative Stats'!F95 -> 80 | P13: ='[5]Cumulative Stats'!G95 -> 7
A14: ='[3]Cumulative Stats'!A76 -> Stewart | B14: CAR | C14: ='[3]Cumulative Stats'!C76 -> 180 | D14: ='[3]Cumulative Stats'!D76 -> 847 | E14: ='[3]Cumulative Stats'!E76 -> 4.705555556 | F14: ='[3]Cumulative Stats'!F76 -> 45 | G14: ='[3]Cumulative Stats'!G76 -> 7 | J14: ='[7]Cumulative Stats'!A95 -> Driver | K14: GBP | L14: ='[7]Cumulative Stats'!C95 -> 72 | M14: ='[7]Cumulative Stats'!D95 -> 1049 | N14: ='[7]Cumulative Stats'!E95 -> 14.56944444 | O14: ='[7]Cumulative Stats'!F95 -> 92 | P14: ='[7]Cumulative Stats'!G95 -> 7
A15: ='[9]Cumulative Stats'!A75 -> Thomas, P | B15: NOS | C15: ='[9]Cumulative Stats'!C75 -> 129 | D15: ='[9]Cumulative Stats'!D75 -> 712 | E15: ='[9]Cumulative Stats'!E75 -> 5.519379845 | F15: ='[9]Cumulative Stats'!F75 -> 43 | G15: ='[9]Cumulative Stats'!G75 -> 1 | J15: ='[1]Cumulative Stats'!A96 -> Boldin | K15: ARI | L15: ='[1]Cumulative Stats'!C96 -> 69 | M15: ='[1]Cumulative Stats'!D96 -> 675 | N15: ='[1]Cumulative Stats'!E96 -> 9.782608696 | O15: ='[1]Cumulative Stats'!F96 -> 58 | P15: ='[1]Cumulative Stats'!G96 -> 1
A16: ='[14]Cumulative Stats'!A75 -> Jackson | B16: STL | C16: ='[14]Cumulative Stats'!C75 -> 224 | D16: ='[14]Cumulative Stats'!D75 -> 709 | E16: ='[14]Cumulative Stats'!E75 -> 3.165178571 | F16: ='[14]Cumulative Stats'!F75 -> 38 | G16: ='[14]Cumulative Stats'!G75 -> 5 | J16: ='[10]Cumulative Stats'!A94 -> Smith | K16: NYG | L16: ='[10]Cumulative Stats'!C94 -> 68 | M16: ='[10]Cumulative Stats'!D94 -> 653 | N16: ='[10]Cumulative Stats'!E94 -> 9.602941176 | O16: ='[10]Cumulative Stats'!F94 -> 38 | P16: ='[10]Cumulative Stats'!G94 -> 2
A17: ='[15]Cumulative Stats'!A75 -> Dunn | B17: TBB | C17: ='[15]Cumulative Stats'!C75 -> 186 | D17: ='[15]Cumulative Stats'!D75 -> 694 | E17: ='[15]Cumulative Stats'!E75 -> 3.731182796 | F17: ='[15]Cumulative Stats'!F75 -> 46 | G17: ='[15]Cumulative Stats'!G75 -> 3 | J17: ='[13]Cumulative Stats'!A94 -> Bruce | K17: SFO | L17: ='[13]Cumulative Stats'!C94 -> 68 | M17: ='[13]Cumulative Stats'!D94 -> 940 | N17: ='[13]Cumulative Stats'!E94 -> 13.82352941 | O17: ='[13]Cumulative Stats'!F94 -> 79 | P17: ='[13]Cumulative Stats'!G94 -> 2
A18: ='[12]Cumulative Stats'!A75 -> Morris | B18: SEA | C18: ='[12]Cumulative Stats'!C75 -> 122 | D18: ='[12]Cumulative Stats'!D75 -> 615 | E18: ='[12]Cumulative Stats'!E75 -> 5.040983607 | F18: ='[12]Cumulative Stats'!F75 -> 44 | G18: ='[12]Cumulative Stats'!G75 -> 1 | J18: ='[11]Cumulative Stats'!A94 -> Westbrook | K18: PHI | L18: ='[11]Cumulative Stats'!C94 -> 68 | M18: ='[11]Cumulative Stats'!D94 -> 542 | N18: ='[11]Cumulative Stats'!E94 -> 7.970588235 | O18: ='[11]Cumulative Stats'!F94 -> 47 | P18: ='[11]Cumulative Stats'!G94 -> 4
A19: ='[15]Cumulative Stats'!A76 -> Graham | B19: TBB | C19: ='[15]Cumulative Stats'!C76 -> 130 | D19: ='[15]Cumulative Stats'!D76 -> 571 | E19: ='[15]Cumulative Stats'!E76 -> 4.392307692 | F19: ='[15]Cumulative Stats'!F76 -> 64 | G19: ='[15]Cumulative Stats'!G76 -> 5 | J19: ='[12]Cumulative Stats'!A94 -> Carlson | K19: SEA | L19: ='[12]Cumulative Stats'!C94 -> 67 | M19: ='[12]Cumulative Stats'!D94 -> 690 | N19: ='[12]Cumulative Stats'!E94 -> 10.29850746 | O19: ='[12]Cumulative Stats'!F94 -> 34 | P19: ='[12]Cumulative Stats'!G94 -> 3
A20: ='[12]Cumulative Stats'!A76 -> Jones, J | B20: SEA | C20: ='[12]Cumulative Stats'!C76 -> 146 | D20: ='[12]Cumulative Stats'!D76 -> 566 | E20: ='[12]Cumulative Stats'!E76 -> 3.876712329 | F20: ='[12]Cumulative Stats'!F76 -> 33 | G20: ='[12]Cumulative Stats'!G76 -> 3 | J20: ='[11]Cumulative Stats'!A95 -> Jackson, D | K20: PHI | L20: ='[11]Cumulative Stats'!C95 -> 65 | M20: ='[11]Cumulative Stats'!D95 -> 856 | N20: ='[11]Cumulative Stats'!E95 -> 13.16923077 | O20: ='[11]Cumulative Stats'!F95 -> 58 | P20: ='[11]Cumulative Stats'!G95 -> 7
A21: ='[1]Cumulative Stats'!A75 -> James | B21: ARI | C21: ='[1]Cumulative Stats'!C75 -> 125 | D21: ='[1]Cumulative Stats'!D75 -> 493 | E21: ='[1]Cumulative Stats'!E75 -> 3.944 | F21: ='[1]Cumulative Stats'!F75 -> 35 | G21: ='[1]Cumulative Stats'!G75 -> 5 | J21: ='[16]Cumulative Stats'!A95 -> Cooley | K21: WAS | L21: ='[16]Cumulative Stats'!C95 -> 64 | M21: ='[16]Cumulative Stats'!D95 -> 621 | N21: ='[16]Cumulative Stats'!E95 -> 9.703125 | O21: ='[16]Cumulative Stats'!F95 -> 47 | P21: ='[16]Cumulative Stats'!G95 -> 4
A22: ='[5]Cumulative Stats'!A76 -> Choice | B22: DAL | C22: ='[5]Cumulative Stats'!C76 -> 97 | D22: ='[5]Cumulative Stats'!D76 -> 473 | E22: ='[5]Cumulative Stats'!E76 -> 4.87628866 | F22: ='[5]Cumulative Stats'!F76 -> 38 | G22: ='[5]Cumulative Stats'!G76 -> 3 | J22: ='[14]Cumulative Stats'!A94 -> Avery | K22: STL | L22: ='[14]Cumulative Stats'!C94 -> 64 | M22: ='[14]Cumulative Stats'!D94 -> 756 | N22: ='[14]Cumulative Stats'!E94 -> 11.8125 | O22: ='[14]Cumulative Stats'!F94 -> 31 | P22: ='[14]Cumulative Stats'!G94 -> 2
A23: ='[9]Cumulative Stats'!A76 -> McAllister | B23: NOS | C23: ='[9]Cumulative Stats'!C76 -> 122 | D23: ='[9]Cumulative Stats'!D76 -> 450 | E23: ='[9]Cumulative Stats'!E76 -> 3.68852459 | F23: ='[9]Cumulative Stats'!F76 -> 25 | G23: ='[9]Cumulative Stats'!G76 -> 3 | J23: ='[4]Cumulative Stats'!A94 -> Forte | K23: CHI | L23: ='[4]Cumulative Stats'!C94 -> 63 | M23: ='[4]Cumulative Stats'!D94 -> 369 | N23: ='[4]Cumulative Stats'!E94 -> 5.857142857 | O23: ='[4]Cumulative Stats'!F94 -> 32 | P23: ='[4]Cumulative Stats'!G94 -> 2
A24: ='[8]Cumulative Stats'!A76 -> Taylor | B24: MIN | C24: ='[8]Cumulative Stats'!C76 -> 103 | D24: ='[8]Cumulative Stats'!D76 -> 439 | E24: ='[8]Cumulative Stats'!E76 -> 4.262135922 | F24: ='[8]Cumulative Stats'!F76 -> 24 | G24: ='[8]Cumulative Stats'!G76 -> 3 | J24: ='[14]Cumulative Stats'!A95 -> Holt | K24: STL | L24: ='[14]Cumulative Stats'!C95 -> 58 | M24: ='[14]Cumulative Stats'!D95 -> 755 | N24: ='[14]Cumulative Stats'!E95 -> 13.01724138 | O24: ='[14]Cumulative Stats'!F95 -> 62 | P24: ='[14]Cumulative Stats'!G95 -> 4
A25: ='[1]Cumulative Stats'!A76 -> Hightower | B25: ARI | C25: ='[1]Cumulative Stats'!C76 -> 147 | D25: ='[1]Cumulative Stats'!D76 -> 390 | E25: ='[1]Cumulative Stats'!E76 -> 2.653061224 | F25: ='[1]Cumulative Stats'!F76 -> 23 | G25: ='[1]Cumulative Stats'!G76 -> 1 | J25: ='[8]Cumulative Stats'!A94 -> Berrian | K25: MIN | L25: ='[8]Cumulative Stats'!C94 -> 57 | M25: ='[8]Cumulative Stats'!D94 -> 1073 | N25: ='[8]Cumulative Stats'!E94 -> 18.8245614 | O25: ='[8]Cumulative Stats'!F94 -> 91 | P25: ='[8]Cumulative Stats'!G94 -> 10
A26: ='[11]Cumulative Stats'!A76 -> Buckhalter | B26: PHI | C26: ='[11]Cumulative Stats'!C76 -> 82 | D26: ='[11]Cumulative Stats'!D76 -> 358 | E26: ='[11]Cumulative Stats'!E76 -> 4.365853659 | F26: ='[11]Cumulative Stats'!F76 -> 29 | G26: ='[11]Cumulative Stats'!G76 -> 6 | J26: ='[9]Cumulative Stats'!A95 -> Bush | K26: NOS | L26: ='[9]Cumulative Stats'!C95 -> 55 | M26: ='[9]Cumulative Stats'!D95 -> 460 | N26: ='[9]Cumulative Stats'!E95 -> 8.363636364 | O26: ='[9]Cumulative Stats'!F95 -> 42 | P26: ='[9]Cumulative Stats'!G95 -> 3
A27: ='[13]Cumulative Stats'!A76 -> Foster | B27: SFO | C27: ='[13]Cumulative Stats'!C76 -> 94 | D27: ='[13]Cumulative Stats'!D76 -> 343 | E27: ='[13]Cumulative Stats'!E76 -> 3.64893617 | F27: ='[13]Cumulative Stats'!F76 -> 26 | G27: ='[13]Cumulative Stats'!G76 -> 4 | J27: ='[15]Cumulative Stats'!A95 -> Hilliard | K27: TBB | L27: ='[15]Cumulative Stats'!C95 -> 53 | M27: ='[15]Cumulative Stats'!D95 -> 470 | N27: ='[15]Cumulative Stats'!E95 -> 8.867924528 | O27: ='[15]Cumulative Stats'!F95 -> 47 | P27: ='[15]Cumulative Stats'!G95 -> 4
A28: ='[5]Cumulative Stats'!A77 -> Jones, F | B28: DAL | C28: ='[5]Cumulative Stats'!C77 -> 24 | D28: ='[5]Cumulative Stats'!D77 -> 338 | E28: ='[5]Cumulative Stats'!E77 -> 14.08333333 | F28: ='[5]Cumulative Stats'!F77 -> 60 | G28: ='[5]Cumulative Stats'!G77 -> 0 | J28: ='[6]Cumulative Stats'!A95 -> Smith, Kev | K28: DET | L28: ='[6]Cumulative Stats'!C95 -> 53 | M28: ='[6]Cumulative Stats'!D95 -> 349 | N28: ='[6]Cumulative Stats'!E95 -> 6.58490566 | O28: ='[6]Cumulative Stats'!F95 -> 25 | P28: ='[6]Cumulative Stats'!G95 -> 1
A29: ='[16]Cumulative Stats'!A76 -> Campbell, J | B29: WAS | C29: ='[16]Cumulative Stats'!C76 -> 44 | D29: ='[16]Cumulative Stats'!D76 -> 334 | E29: ='[16]Cumulative Stats'!E76 -> 7.590909091 | F29: ='[16]Cumulative Stats'!F76 -> 24 | G29: ='[16]Cumulative Stats'!G76 -> 2 | J29: ='[8]Cumulative Stats'!A95 -> Wade | K29: MIN | L29: ='[8]Cumulative Stats'!C95 -> 52 | M29: ='[8]Cumulative Stats'!D95 -> 647 | N29: ='[8]Cumulative Stats'!E95 -> 12.44230769 | O29: ='[8]Cumulative Stats'!F95 -> 52 | P29: ='[8]Cumulative Stats'!G95 -> 4
A30: ='[2]Cumulative Stats'!A76 -> Norwood | B30: ATL | C30: ='[2]Cumulative Stats'!C76 -> 61 | D30: ='[2]Cumulative Stats'!D76 -> 309 | E30: ='[2]Cumulative Stats'!E76 -> 5.06557377 | F30: ='[2]Cumulative Stats'!F76 -> 43 | G30: ='[2]Cumulative Stats'!G76 -> 3 | J30: ='[2]Cumulative Stats'!A95 -> Jenkins | K30: ATL | L30: ='[2]Cumulative Stats'!C95 -> 52 | M30: ='[2]Cumulative Stats'!D95 -> 727 | N30: ='[2]Cumulative Stats'!E95 -> 13.98076923 | O30: ='[2]Cumulative Stats'!F95 -> 37 | P30: ='[2]Cumulative Stats'!G95 -> 4
A31: ='[9]Cumulative Stats'!A77 -> Bush | B31: NOS | C31: ='[9]Cumulative Stats'!C77 -> 90 | D31: ='[9]Cumulative Stats'!D77 -> 306 | E31: ='[9]Cumulative Stats'!E77 -> 3.4 | F31: ='[9]Cumulative Stats'!F77 -> 21 | G31: ='[9]Cumulative Stats'!G77 -> 4 | J31: ='[10]Cumulative Stats'!A95 -> Toomer | K31: NYG | L31: ='[10]Cumulative Stats'!C95 -> 52 | M31: ='[10]Cumulative Stats'!D95 -> 499 | N31: ='[10]Cumulative Stats'!E95 -> 9.596153846 | O31: ='[10]Cumulative Stats'!F95 -> 40 | P31: ='[10]Cumulative Stats'!G95 -> 0
A32: ='[10]Cumulative Stats'!A77 -> Bradshaw | B32: NYG | C32: ='[10]Cumulative Stats'!C77 -> 70 | D32: ='[10]Cumulative Stats'!D77 -> 297 | E32: ='[10]Cumulative Stats'!E77 -> 4.242857143 | F32: ='[10]Cumulative Stats'!F77 -> 21 | G32: ='[10]Cumulative Stats'!G77 -> 3 | J32: ='[9]Cumulative Stats'!A96 -> Colston | K32: NOS | L32: ='[9]Cumulative Stats'!C96 -> 49 | M32: ='[9]Cumulative Stats'!D96 -> 753 | N32: ='[9]Cumulative Stats'!E96 -> 15.36734694 | O32: ='[9]Cumulative Stats'!F96 -> 79 | P32: ='[9]Cumulative Stats'!G96 -> 7
A33: ='[7]Cumulative Stats'!A76 -> Rodgers | B33: GBP | C33: ='[7]Cumulative Stats'!C76 -> 40 | D33: ='[7]Cumulative Stats'!D76 -> 297 | E33: ='[7]Cumulative Stats'!E76 -> 7.425 | F33: ='[7]Cumulative Stats'!F76 -> 31 | G33: ='[7]Cumulative Stats'!G76 -> 1 | J33: ='[12]Cumulative Stats'!A95 -> Engram | K33: SEA | L33: ='[12]Cumulative Stats'!C95 -> 49 | M33: ='[12]Cumulative Stats'!D95 -> 532 | N33: ='[12]Cumulative Stats'!E95 -> 10.85714286 | O33: ='[12]Cumulative Stats'!F95 -> 38 | P33: ='[12]Cumulative Stats'!G95 -> 1
A34: ='[14]Cumulative Stats'!A76 -> Pittman | B34: STL | C34: ='[14]Cumulative Stats'!C76 -> 90 | D34: ='[14]Cumulative Stats'!D76 -> 295 | E34: ='[14]Cumulative Stats'!E76 -> 3.277777778 | F34: ='[14]Cumulative Stats'!F76 -> 23 | G34: ='[14]Cumulative Stats'!G76 -> 1 | J34: ='[4]Cumulative Stats'!A95 -> Hester | K34: CHI | L34: ='[4]Cumulative Stats'!C95 -> 45 | M34: ='[4]Cumulative Stats'!D95 -> 591 | N34: ='[4]Cumulative Stats'!E95 -> 13.13333333 | O34: ='[4]Cumulative Stats'!F95 -> 78 | P34: ='[4]Cumulative Stats'!G95 -> 4
A35: ='[15]Cumulative Stats'!A77 -> Williams | B35: TBB | C35: ='[15]Cumulative Stats'!C77 -> 66 | D35: ='[15]Cumulative Stats'!D77 -> 271 | E35: ='[15]Cumulative Stats'!E77 -> 4.106060606 | F35: ='[15]Cumulative Stats'!F77 -> 22 | G35: ='[15]Cumulative Stats'!G77 -> 3 | J35: ='[9]Cumulative Stats'!A97 -> Shockey | K35: NOS | L35: ='[9]Cumulative Stats'!C97 -> 45 | M35: ='[9]Cumulative Stats'!D97 -> 459 | N35: ='[9]Cumulative Stats'!E97 -> 10.2 | O35: ='[9]Cumulative Stats'!F97 -> 36 | P35: ='[9]Cumulative Stats'!G97 -> 4
A36: ='[14]Cumulative Stats'!A77 -> Darby | B36: STL | C36: ='[14]Cumulative Stats'!C77 -> 46 | D36: ='[14]Cumulative Stats'!D77 -> 225 | E36: ='[14]Cumulative Stats'!E77 -> 4.891304348 | F36: ='[14]Cumulative Stats'!F77 -> 19 | G36: ='[14]Cumulative Stats'!G77 -> 0 | J36: ='[4]Cumulative Stats'!A96 -> Clark | K36: CHI | L36: ='[4]Cumulative Stats'!C96 -> 45 | M36: ='[4]Cumulative Stats'!D96 -> 386 | N36: ='[4]Cumulative Stats'!E96 -> 8.577777778 | O36: ='[4]Cumulative Stats'!F96 -> 46 | P36: ='[4]Cumulative Stats'!G96 -> 0
A37: ='[8]Cumulative Stats'!A77 -> Jackson | B37: MIN | C37: ='[8]Cumulative Stats'!C77 -> 19 | D37: ='[8]Cumulative Stats'!D77 -> 217 | E37: ='[8]Cumulative Stats'!E77 -> 11.42105263 | F37: ='[8]Cumulative Stats'!F77 -> 24 | G37: ='[8]Cumulative Stats'!G77 -> 1 | J37: ='[14]Cumulative Stats'!A96 -> Jackson | K37: STL | L37: ='[14]Cumulative Stats'!C96 -> 45 | M37: ='[14]Cumulative Stats'!D96 -> 482 | N37: ='[14]Cumulative Stats'!E96 -> 10.71111111 | O37: ='[14]Cumulative Stats'!F96 -> 46 | P37: ='[14]Cumulative Stats'!G96 -> 0
A38: ='[1]Cumulative Stats'!A77 -> Arrington | B38: ARI | C38: ='[1]Cumulative Stats'!C77 -> 29 | D38: ='[1]Cumulative Stats'!D77 -> 209 | E38: ='[1]Cumulative Stats'!E77 -> 7.206896552 | F38: ='[1]Cumulative Stats'!F77 -> 25 | G38: ='[1]Cumulative Stats'!G77 -> 1 | J38: ='[9]Cumulative Stats'!A98 -> Miller | K38: NOS | L38: ='[9]Cumulative Stats'!C98 -> 45 | M38: ='[9]Cumulative Stats'!D98 -> 563 | N38: ='[9]Cumulative Stats'!E98 -> 12.51111111 | O38: ='[9]Cumulative Stats'!F98 -> 38 | P38: ='[9]Cumulative Stats'!G98 -> 3
A39: ='[12]Cumulative Stats'!A77 -> Duckett | B39: SEA | C39: ='[12]Cumulative Stats'!C77 -> 54 | D39: ='[12]Cumulative Stats'!D77 -> 172 | E39: ='[12]Cumulative Stats'!E77 -> 3.185185185 | F39: ='[12]Cumulative Stats'!F77 -> 19 | G39: ='[12]Cumulative Stats'!G77 -> 0 | J39: ='[5]Cumulative Stats'!A96 -> Barber | K39: DAL | L39: ='[5]Cumulative Stats'!C96 -> 44 | M39: ='[5]Cumulative Stats'!D96 -> 509 | N39: ='[5]Cumulative Stats'!E96 -> 11.56818182 | O39: ='[5]Cumulative Stats'!F96 -> 66 | P39: ='[5]Cumulative Stats'!G96 -> 7
A40: ='[7]Cumulative Stats'!A77 -> Jackson | B40: GBP | C40: ='[7]Cumulative Stats'!C77 -> 39 | D40: ='[7]Cumulative Stats'!D77 -> 169 | E40: ='[7]Cumulative Stats'!E77 -> 4.333333333 | F40: ='[7]Cumulative Stats'!F77 -> 32 | G40: ='[7]Cumulative Stats'!G77 -> 0 | J40: ='[13]Cumulative Stats'!A95 -> Johnson | K40: SFO | L40: ='[13]Cumulative Stats'!C95 -> 44 | M40: ='[13]Cumulative Stats'!D95 -> 550 | N40: ='[13]Cumulative Stats'!E95 -> 12.5 | O40: ='[13]Cumulative Stats'!F95 -> 58 | P40: ='[13]Cumulative Stats'!G95 -> 2
A41: ='[6]Cumulative Stats'!A76 -> Johnson, R | B41: DET | C41: ='[6]Cumulative Stats'!C76 -> 61 | D41: ='[6]Cumulative Stats'!D76 -> 151 | E41: ='[6]Cumulative Stats'!E76 -> 2.475409836 | F41: ='[6]Cumulative Stats'!F76 -> 20 | G41: ='[6]Cumulative Stats'!G76 -> 0 | J41: ='[10]Cumulative Stats'!A96 -> Hixon | K41: NYG | L41: ='[10]Cumulative Stats'!C96 -> 44 | M41: ='[10]Cumulative Stats'!D96 -> 569 | N41: ='[10]Cumulative Stats'!E96 -> 12.93181818 | O41: ='[10]Cumulative Stats'!F96 -> 71 | P41: ='[10]Cumulative Stats'!G96 -> 7
A42: ='[12]Cumulative Stats'!A78 -> Weaver | B42: SEA | C42: ='[12]Cumulative Stats'!C78 -> 32 | D42: ='[12]Cumulative Stats'!D78 -> 148 | E42: ='[12]Cumulative Stats'!E78 -> 4.625 | F42: ='[12]Cumulative Stats'!F78 -> 18 | G42: ='[12]Cumulative Stats'!G78 -> 0 | J42: ='[4]Cumulative Stats'!A97 -> Olsen | K42: CHI | L42: ='[4]Cumulative Stats'!C97 -> 43 | M42: ='[4]Cumulative Stats'!D97 -> 431 | N42: ='[4]Cumulative Stats'!E97 -> 10.02325581 | O42: ='[4]Cumulative Stats'!F97 -> 80 | P42: ='[4]Cumulative Stats'!G97 -> 3
A43: ='[16]Cumulative Stats'!A77 -> Betts | B43: WAS | C43: ='[16]Cumulative Stats'!C77 -> 52 | D43: ='[16]Cumulative Stats'!D77 -> 141 | E43: ='[16]Cumulative Stats'!E77 -> 2.711538462 | F43: ='[16]Cumulative Stats'!F77 -> 18 | G43: ='[16]Cumulative Stats'!G77 -> 0 | J43: ='[8]Cumulative Stats'!A96 -> Shiancoe | K43: MIN | L43: ='[8]Cumulative Stats'!C96 -> 43 | M43: ='[8]Cumulative Stats'!D96 -> 624 | N43: ='[8]Cumulative Stats'!E96 -> 14.51162791 | O43: ='[8]Cumulative Stats'!F96 -> 38 | P43: ='[8]Cumulative Stats'!G96 -> 4
A44: ='[15]Cumulative Stats'!A78 -> Garcia | B44: TBB | C44: ='[15]Cumulative Stats'!C78 -> 26 | D44: ='[15]Cumulative Stats'!D78 -> 136 | E44: ='[15]Cumulative Stats'!E78 -> 5.230769231 | F44: ='[15]Cumulative Stats'!F78 -> 20 | G44: ='[15]Cumulative Stats'!G78 -> 1 | J44: ='[10]Cumulative Stats'!A97 -> Ward | K44: NYG | L44: ='[10]Cumulative Stats'!C97 -> 42 | M44: ='[10]Cumulative Stats'!D97 -> 426 | N44: ='[10]Cumulative Stats'!E97 -> 10.14285714 | O44: ='[10]Cumulative Stats'!F97 -> 48 | P44: ='[10]Cumulative Stats'!G97 -> 6
A45: ='[4]Cumulative Stats'!A76 -> Jones | B45: CHI | C45: ='[4]Cumulative Stats'!C76 -> 39 | D45: ='[4]Cumulative Stats'!D76 -> 133 | E45: ='[4]Cumulative Stats'!E76 -> 3.41025641 | F45: ='[4]Cumulative Stats'!F76 -> 12 | G45: ='[4]Cumulative Stats'!G76 -> 0 | J45: ='[16]Cumulative Stats'!A96 -> Randle El | K45: WAS | L45: ='[16]Cumulative Stats'!C96 -> 42 | M45: ='[16]Cumulative Stats'!D96 -> 496 | N45: ='[16]Cumulative Stats'!E96 -> 11.80952381 | O45: ='[16]Cumulative Stats'!F96 -> 37 | P45: ='[16]Cumulative Stats'!G96 -> 2
A46: ='[13]Cumulative Stats'!A77 -> O'Sullivan | B46: SFO | C46: ='[13]Cumulative Stats'!C77 -> 15 | D46: ='[13]Cumulative Stats'!D77 -> 101 | E46: ='[13]Cumulative Stats'!E77 -> 6.733333333 | F46: ='[13]Cumulative Stats'!F77 -> 28 | G46: ='[13]Cumulative Stats'!G77 -> 0 | J46: ='[5]Cumulative Stats'!A97 -> Crayton | K46: DAL | L46: ='[5]Cumulative Stats'!C97 -> 42 | M46: ='[5]Cumulative Stats'!D97 -> 584 | N46: ='[5]Cumulative Stats'!E97 -> 13.9047619 | O46: ='[5]Cumulative Stats'!F97 -> 48 | P46: ='[5]Cumulative Stats'!G97 -> 3
A47: ='[11]Cumulative Stats'!A77 -> Eckel | B47: PHI | C47: ='[11]Cumulative Stats'!C77 -> 29 | D47: ='[11]Cumulative Stats'!D77 -> 99 | E47: ='[11]Cumulative Stats'!E77 -> 3.413793103 | F47: ='[11]Cumulative Stats'!F77 -> 12 | G47: ='[11]Cumulative Stats'!G77 -> 0 | J47: ='[15]Cumulative Stats'!A96 -> Dunn | K47: TBB | L47: ='[15]Cumulative Stats'!C96 -> 41 | M47: ='[15]Cumulative Stats'!D96 -> 304 | N47: ='[15]Cumulative Stats'!E96 -> 7.414634146 | O47: ='[15]Cumulative Stats'!F96 -> 23 | P47: ='[15]Cumulative Stats'!G96 -> 0
A48: ='[4]Cumulative Stats'!A77 -> Orton | B48: CHI | C48: ='[4]Cumulative Stats'!C77 -> 23 | D48: ='[4]Cumulative Stats'!D77 -> 95 | E48: ='[4]Cumulative Stats'!E77 -> 4.130434783 | F48: ='[4]Cumulative Stats'!F77 -> 8 | G48: ='[4]Cumulative Stats'!G77 -> 0 | J48: ='[13]Cumulative Stats'!A96 -> Hill, J | K48: SFO | L48: ='[13]Cumulative Stats'!C96 -> 40 | M48: ='[13]Cumulative Stats'!D96 -> 398 | N48: ='[13]Cumulative Stats'!E96 -> 9.95 | O48: ='[13]Cumulative Stats'!F96 -> 58 | P48: ='[13]Cumulative Stats'!G96 -> 4
A49: ='[5]Cumulative Stats'!A78 -> Romo | B49: DAL | C49: ='[5]Cumulative Stats'!C78 -> 24 | D49: ='[5]Cumulative Stats'!D78 -> 91 | E49: ='[5]Cumulative Stats'!E78 -> 3.791666667 | F49: ='[5]Cumulative Stats'!F78 -> 17 | G49: ='[5]Cumulative Stats'!G78 -> 0 | J49: ='[8]Cumulative Stats'!A97 -> Taylor | K49: MIN | L49: ='[8]Cumulative Stats'!C97 -> 39 | M49: ='[8]Cumulative Stats'!D97 -> 367 | N49: ='[8]Cumulative Stats'!E97 -> 9.41025641 | O49: ='[8]Cumulative Stats'!F97 -> 47 | P49: ='[8]Cumulative Stats'!G97 -> 1
A50: ='[7]Cumulative Stats'!A78 -> Wynn | B50: GBP | C50: ='[7]Cumulative Stats'!C78 -> 8 | D50: ='[7]Cumulative Stats'!D78 -> 90 | E50: ='[7]Cumulative Stats'!E78 -> 11.25 | F50: ='[7]Cumulative Stats'!F78 -> 43 | G50: ='[7]Cumulative Stats'!G78 -> 0 | J50: ='[9]Cumulative Stats'!A99 -> Henderson | K50: NOS | L50: ='[9]Cumulative Stats'!C99 -> 39 | M50: ='[9]Cumulative Stats'!D99 -> 881 | N50: ='[9]Cumulative Stats'!E99 -> 22.58974359 | O50: ='[9]Cumulative Stats'!F99 -> 45 | P50: ='[9]Cumulative Stats'!G99 -> 15
A51: ='[4]Cumulative Stats'!A78 -> Hester | B51: CHI | C51: ='[4]Cumulative Stats'!C78 -> 6 | D51: ='[4]Cumulative Stats'!D78 -> 86 | E51: ='[4]Cumulative Stats'!E78 -> 14.33333333 | F51: ='[4]Cumulative Stats'!F78 -> 31 | G51: ='[4]Cumulative Stats'!G78 -> 0 | J51: ='[12]Cumulative Stats'!A96 -> Robinson, K | K51: SEA | L51: ='[12]Cumulative Stats'!C96 -> 39 | M51: ='[12]Cumulative Stats'!D96 -> 423 | N51: ='[12]Cumulative Stats'!E96 -> 10.84615385 | O51: ='[12]Cumulative Stats'!F96 -> 32 | P51: ='[12]Cumulative Stats'!G96 -> 2
A52: ='[2]Cumulative Stats'!A77 -> Douglas | B52: ATL | C52: ='[2]Cumulative Stats'!C77 -> 13 | D52: ='[2]Cumulative Stats'!D77 -> 77 | E52: ='[2]Cumulative Stats'!E77 -> 5.923076923 | F52: ='[2]Cumulative Stats'!F77 -> 16 | G52: ='[2]Cumulative Stats'!G77 -> 0 | J52: ='[6]Cumulative Stats'!A96 -> McDonald | K52: DET | L52: ='[6]Cumulative Stats'!C96 -> 37 | M52: ='[6]Cumulative Stats'!D96 -> 371 | N52: ='[6]Cumulative Stats'!E96 -> 10.02702703 | O52: ='[6]Cumulative Stats'!F96 -> 26 | P52: ='[6]Cumulative Stats'!G96 -> 0
A53: ='[11]Cumulative Stats'!A78 -> McNabb | B53: PHI | C53: ='[11]Cumulative Stats'!C78 -> 26 | D53: ='[11]Cumulative Stats'!D78 -> 73 | E53: ='[11]Cumulative Stats'!E78 -> 2.807692308 | F53: ='[11]Cumulative Stats'!F78 -> 15 | G53: ='[11]Cumulative Stats'!G78 -> 0 | J53: ='[11]Cumulative Stats'!A96 -> Smith, L | K53: PHI | L53: ='[11]Cumulative Stats'!C96 -> 37 | M53: ='[11]Cumulative Stats'!D96 -> 309 | N53: ='[11]Cumulative Stats'!E96 -> 8.351351351 | O53: ='[11]Cumulative Stats'!F96 -> 20 | P53: ='[11]Cumulative Stats'!G96 -> 3
A54: ='[2]Cumulative Stats'!A78 -> Snelling | B54: ATL | C54: ='[2]Cumulative Stats'!C78 -> 15 | D54: ='[2]Cumulative Stats'!D78 -> 69 | E54: ='[2]Cumulative Stats'!E78 -> 4.6 | F54: ='[2]Cumulative Stats'!F78 -> 12 | G54: ='[2]Cumulative Stats'!G78 -> 0 | J54: ='[2]Cumulative Stats'!A96 -> Norwood | K54: ATL | L54: ='[2]Cumulative Stats'!C96 -> 37 | M54: ='[2]Cumulative Stats'!D96 -> 375 | N54: ='[2]Cumulative Stats'!E96 -> 10.13513514 | O54: ='[2]Cumulative Stats'!F96 -> 22 | P54: ='[2]Cumulative Stats'!G96 -> 1
A55: ='[12]Cumulative Stats'!A79 -> Wallace, S | B55: SEA | C55: ='[12]Cumulative Stats'!C79 -> 9 | D55: ='[12]Cumulative Stats'!D79 -> 68 | E55: ='[12]Cumulative Stats'!E79 -> 7.555555556 | F55: ='[12]Cumulative Stats'!F79 -> 13 | G55: ='[12]Cumulative Stats'!G79 -> 0 | J55: ='[15]Cumulative Stats'!A97 -> Stevens | K55: TBB | L55: ='[15]Cumulative Stats'!C97 -> 37 | M55: ='[15]Cumulative Stats'!D97 -> 363 | N55: ='[15]Cumulative Stats'!E97 -> 9.810810811 | O55: ='[15]Cumulative Stats'!F97 -> 25 | P55: ='[15]Cumulative Stats'!G97 -> 2
A56: ='[11]Cumulative Stats'!A79 -> Booker | B56: PHI | C56: ='[11]Cumulative Stats'!C79 -> 29 | D56: ='[11]Cumulative Stats'!D79 -> 66 | E56: ='[11]Cumulative Stats'!E79 -> 2.275862069 | F56: ='[11]Cumulative Stats'!F79 -> 9 | G56: ='[11]Cumulative Stats'!G79 -> 3 | J56: ='[1]Cumulative Stats'!A97 -> Urban | K56: ARI | L56: ='[1]Cumulative Stats'!C97 -> 37 | M56: ='[1]Cumulative Stats'!D97 -> 331 | N56: ='[1]Cumulative Stats'!E97 -> 8.945945946 | O56: ='[1]Cumulative Stats'!F97 -> 31 | P56: ='[1]Cumulative Stats'!G97 -> 2
A57: ='[12]Cumulative Stats'!A80 -> Hasselbeck | B57: SEA | C57: ='[12]Cumulative Stats'!C80 -> 8 | D57: ='[12]Cumulative Stats'!D80 -> 66 | E57: ='[12]Cumulative Stats'!E80 -> 8.25 | F57: ='[12]Cumulative Stats'!F80 -> 19 | G57: ='[12]Cumulative Stats'!G80 -> 0 | J57: ='[9]Cumulative Stats'!A100 -> Thomas, P | K57: NOS | L57: ='[9]Cumulative Stats'!C100 -> 36 | M57: ='[9]Cumulative Stats'!D100 -> 338 | N57: ='[9]Cumulative Stats'!E100 -> 9.388888889 | O57: ='[9]Cumulative Stats'!F100 -> 36 | P57: ='[9]Cumulative Stats'!G100 -> 2
A58: ='[14]Cumulative Stats'!A78 -> Bulger | B58: STL | C58: ='[14]Cumulative Stats'!C78 -> 9 | D58: ='[14]Cumulative Stats'!D78 -> 66 | E58: ='[14]Cumulative Stats'!E78 -> 7.333333333 | F58: ='[14]Cumulative Stats'!F78 -> 19 | G58: ='[14]Cumulative Stats'!G78 -> 0 | J58: ='[7]Cumulative Stats'!A96 -> Nelson | K58: GBP | L58: ='[7]Cumulative Stats'!C96 -> 36 | M58: ='[7]Cumulative Stats'!D96 -> 326 | N58: ='[7]Cumulative Stats'!E96 -> 9.055555556 | O58: ='[7]Cumulative Stats'!F96 -> 37 | P58: ='[7]Cumulative Stats'!G96 -> 2
A59: ='[11]Cumulative Stats'!A80 -> Jackson, D | B59: PHI | C59: ='[11]Cumulative Stats'!C80 -> 15 | D59: ='[11]Cumulative Stats'!D80 -> 62 | E59: ='[11]Cumulative Stats'!E80 -> 4.133333333 | F59: ='[11]Cumulative Stats'!F80 -> 20 | G59: ='[11]Cumulative Stats'!G80 -> 1 | J59: ='[15]Cumulative Stats'!A98 -> Clayton | K59: TBB | L59: ='[15]Cumulative Stats'!C98 -> 35 | M59: ='[15]Cumulative Stats'!D98 -> 432 | N59: ='[15]Cumulative Stats'!E98 -> 12.34285714 | O59: ='[15]Cumulative Stats'!F98 -> 34 | P59: ='[15]Cumulative Stats'!G98 -> 3
A60: ='[13]Cumulative Stats'!A78 -> Robinson | B60: SFO | C60: ='[13]Cumulative Stats'!C78 -> 29 | D60: ='[13]Cumulative Stats'!D78 -> 58 | E60: ='[13]Cumulative Stats'!E78 -> 2 | F60: ='[13]Cumulative Stats'!F78 -> 7 | G60: ='[13]Cumulative Stats'!G78 -> 0 | J60: ='[10]Cumulative Stats'!A98 -> Boss | K60: NYG | L60: ='[10]Cumulative Stats'!C98 -> 35 | M60: ='[10]Cumulative Stats'!D98 -> 419 | N60: ='[10]Cumulative Stats'!E98 -> 11.97142857 | O60: ='[10]Cumulative Stats'!F98 -> 75 | P60: ='[10]Cumulative Stats'!G98 -> 2
A61: ='[4]Cumulative Stats'!A79 -> Peterson | B61: CHI | C61: ='[4]Cumulative Stats'!C79 -> 17 | D61: ='[4]Cumulative Stats'!D79 -> 57 | E61: ='[4]Cumulative Stats'!E79 -> 3.352941176 | F61: ='[4]Cumulative Stats'!F79 -> 15 | G61: ='[4]Cumulative Stats'!G79 -> 0 | J61: ='[11]Cumulative Stats'!A97 -> Curtis | K61: PHI | L61: ='[11]Cumulative Stats'!C97 -> 32 | M61: ='[11]Cumulative Stats'!D97 -> 432 | N61: ='[11]Cumulative Stats'!E97 -> 13.5 | O61: ='[11]Cumulative Stats'!F97 -> 48 | P61: ='[11]Cumulative Stats'!G97 -> 0
A62: ='[13]Cumulative Stats'!A79 -> Hill, S | B62: SFO | C62: ='[13]Cumulative Stats'!C79 -> 12 | D62: ='[13]Cumulative Stats'!D79 -> 57 | E62: ='[13]Cumulative Stats'!E79 -> 4.75 | F62: ='[13]Cumulative Stats'!F79 -> 13 | G62: ='[13]Cumulative Stats'!G79 -> 0 | J62: ='[1]Cumulative Stats'!A98 -> Arrington | K62: ARI | L62: ='[1]Cumulative Stats'!C98 -> 32 | M62: ='[1]Cumulative Stats'!D98 -> 276 | N62: ='[1]Cumulative Stats'!E98 -> 8.625 | O62: ='[1]Cumulative Stats'!F98 -> 36 | P62: ='[1]Cumulative Stats'!G98 -> 1
A63: ='[9]Cumulative Stats'!A78 -> Stecker | B63: NOS | C63: ='[9]Cumulative Stats'!C78 -> 9 | D63: ='[9]Cumulative Stats'!D78 -> 49 | E63: ='[9]Cumulative Stats'!E78 -> 5.444444444 | F63: ='[9]Cumulative Stats'!F78 -> 25 | G63: ='[9]Cumulative Stats'!G78 -> 1 | J63: ='[11]Cumulative Stats'!A99 -> Avant | K63: PHI | L63: ='[11]Cumulative Stats'!C99 -> 31 | M63: ='[11]Cumulative Stats'!D99 -> 369 | N63: ='[11]Cumulative Stats'!E99 -> 11.90322581 | O63: ='[11]Cumulative Stats'!F99 -> 26 | P63: ='[11]Cumulative Stats'!G99 -> 1
A64: ='[3]Cumulative Stats'!A77 -> Hoover | B64: CAR | C64: ='[3]Cumulative Stats'!C77 -> 16 | D64: ='[3]Cumulative Stats'!D77 -> 49 | E64: ='[3]Cumulative Stats'!E77 -> 3.0625 | F64: ='[3]Cumulative Stats'!F77 -> 10 | G64: ='[3]Cumulative Stats'!G77 -> 1 | J64: ='[11]Cumulative Stats'!A98 -> Baskett | K64: PHI | L64: ='[11]Cumulative Stats'!C98 -> 31 | M64: ='[11]Cumulative Stats'!D98 -> 471 | N64: ='[11]Cumulative Stats'!E98 -> 15.19354839 | O64: ='[11]Cumulative Stats'!F98 -> 67 | P64: ='[11]Cumulative Stats'!G98 -> 5
A65: ='[12]Cumulative Stats'!A81 -> Frye | B65: SEA | C65: ='[12]Cumulative Stats'!C81 -> 4 | D65: ='[12]Cumulative Stats'!D81 -> 48 | E65: ='[12]Cumulative Stats'!E81 -> 12 | F65: ='[12]Cumulative Stats'!F81 -> 20 | G65: ='[12]Cumulative Stats'!G81 -> 0 | J65: ='[16]Cumulative Stats'!A97 -> Portis | K65: WAS | L65: ='[16]Cumulative Stats'!C97 -> 30 | M65: ='[16]Cumulative Stats'!D97 -> 288 | N65: ='[16]Cumulative Stats'!E97 -> 9.6 | O65: ='[16]Cumulative Stats'!F97 -> 48 | P65: ='[16]Cumulative Stats'!G97 -> 1
A66: ='[3]Cumulative Stats'!A78 -> Delhomme | B66: CAR | C66: ='[3]Cumulative Stats'!C78 -> 20 | D66: ='[3]Cumulative Stats'!D78 -> 47 | E66: ='[3]Cumulative Stats'!E78 -> 2.35 | F66: ='[3]Cumulative Stats'!F78 -> 8 | G66: ='[3]Cumulative Stats'!G78 -> 0 | J66: ='[14]Cumulative Stats'!A97 -> Darby | K66: STL | L66: ='[14]Cumulative Stats'!C97 -> 30 | M66: ='[14]Cumulative Stats'!D97 -> 287 | N66: ='[14]Cumulative Stats'!E97 -> 9.566666667 | O66: ='[14]Cumulative Stats'!F97 -> 27 | P66: ='[14]Cumulative Stats'!G97 -> 2
A67: ='[1]Cumulative Stats'!A78 -> Boldin | B67: ARI | C67: ='[1]Cumulative Stats'!C78 -> 9 | D67: ='[1]Cumulative Stats'!D78 -> 45 | E67: ='[1]Cumulative Stats'!E78 -> 5 | F67: ='[1]Cumulative Stats'!F78 -> 15 | G67: ='[1]Cumulative Stats'!G78 -> 0 | J67: ='[2]Cumulative Stats'!A97 -> Douglas | K67: ATL | L67: ='[2]Cumulative Stats'!C97 -> 29 | M67: ='[2]Cumulative Stats'!D97 -> 537 | N67: ='[2]Cumulative Stats'!E97 -> 18.51724138 | O67: ='[2]Cumulative Stats'!F97 -> 61 | P67: ='[2]Cumulative Stats'!G97 -> 6
A68: ='[6]Cumulative Stats'!A77 -> Culpepper | B68: DET | C68: ='[6]Cumulative Stats'!C77 -> 14 | D68: ='[6]Cumulative Stats'!D77 -> 45 | E68: ='[6]Cumulative Stats'!E77 -> 3.214285714 | F68: ='[6]Cumulative Stats'!F77 -> 6 | G68: ='[6]Cumulative Stats'!G77 -> 0 | J68: ='[6]Cumulative Stats'!A97 -> Gaines | K68: DET | L68: ='[6]Cumulative Stats'!C97 -> 29 | M68: ='[6]Cumulative Stats'!D97 -> 384 | N68: ='[6]Cumulative Stats'!E97 -> 13.24137931 | O68: ='[6]Cumulative Stats'!F97 -> 33 | P68: ='[6]Cumulative Stats'!G97 -> 1
A69: ='[4]Cumulative Stats'!A80 -> Wolfe | B69: CHI | C69: ='[4]Cumulative Stats'!C80 -> 12 | D69: ='[4]Cumulative Stats'!D80 -> 42 | E69: ='[4]Cumulative Stats'!E80 -> 3.5 | F69: ='[4]Cumulative Stats'!F80 -> 28 | G69: ='[4]Cumulative Stats'!G80 -> 0 | J69: ='[4]Cumulative Stats'!A98 -> Davis, R | K69: CHI | L69: ='[4]Cumulative Stats'!C98 -> 28 | M69: ='[4]Cumulative Stats'!D98 -> 337 | N69: ='[4]Cumulative Stats'!E98 -> 12.03571429 | O69: ='[4]Cumulative Stats'!F98 -> 80 | P69: ='[4]Cumulative Stats'!G98 -> 2
A70: ='[16]Cumulative Stats'!A78 -> Thomas, D | B70: WAS | C70: ='[16]Cumulative Stats'!C78 -> 3 | D70: ='[16]Cumulative Stats'!D78 -> 41 | E70: ='[16]Cumulative Stats'!E78 -> 13.66666667 | F70: ='[16]Cumulative Stats'!F78 -> 24 | G70: ='[16]Cumulative Stats'!G78 -> 0 | J70: ='[13]Cumulative Stats'!A98 -> Davis | K70: SFO | L70: ='[13]Cumulative Stats'!C98 -> 27 | M70: ='[13]Cumulative Stats'!D98 -> 410 | N70: ='[13]Cumulative Stats'!E98 -> 15.18518519 | O70: ='[13]Cumulative Stats'!F98 -> 57 | P70: ='[13]Cumulative Stats'!G98 -> 1
A71: ='[13]Cumulative Stats'!A80 -> Hill, J | B71: SFO | C71: ='[13]Cumulative Stats'!C80 -> 4 | D71: ='[13]Cumulative Stats'!D80 -> 41 | E71: ='[13]Cumulative Stats'!E80 -> 10.25 | F71: ='[13]Cumulative Stats'!F80 -> 17 | G71: ='[13]Cumulative Stats'!G80 -> 0 | J71: ='[1]Cumulative Stats'!A99 -> Hightower | K71: ARI | L71: ='[1]Cumulative Stats'!C99 -> 27 | M71: ='[1]Cumulative Stats'!D99 -> 271 | N71: ='[1]Cumulative Stats'!E99 -> 10.03703704 | O71: ='[1]Cumulative Stats'!F99 -> 34 | P71: ='[1]Cumulative Stats'!G99 -> 1
A72: ='[9]Cumulative Stats'!A79 -> Brees | B72: NOS | C72: ='[9]Cumulative Stats'!C79 -> 15 | D72: ='[9]Cumulative Stats'!D79 -> 40 | E72: ='[9]Cumulative Stats'!E79 -> 2.666666667 | F72: ='[9]Cumulative Stats'!F79 -> 7 | G72: ='[9]Cumulative Stats'!G79 -> 0 | J72: ='[13]Cumulative Stats'!A97 -> Gore | K72: SFO | L72: ='[13]Cumulative Stats'!C97 -> 27 | M72: ='[13]Cumulative Stats'!D97 -> 290 | N72: ='[13]Cumulative Stats'!E97 -> 10.74074074 | O72: ='[13]Cumulative Stats'!F97 -> 46 | P72: ='[13]Cumulative Stats'!G97 -> 1
A73: ='[3]Cumulative Stats'!A79 -> Smith, St | B73: CAR | C73: ='[3]Cumulative Stats'!C79 -> 4 | D73: ='[3]Cumulative Stats'!D79 -> 39 | E73: ='[3]Cumulative Stats'!E79 -> 9.75 | F73: ='[3]Cumulative Stats'!F79 -> 28 | G73: ='[3]Cumulative Stats'!G79 -> 0 | J73: ='[7]Cumulative Stats'!A97 -> Lee, D | K73: GBP | L73: ='[7]Cumulative Stats'!C97 -> 26 | M73: ='[7]Cumulative Stats'!D97 -> 222 | N73: ='[7]Cumulative Stats'!E97 -> 8.538461538 | O73: ='[7]Cumulative Stats'!F97 -> 34 | P73: ='[7]Cumulative Stats'!G97 -> 1
A74: ='[1]Cumulative Stats'!A79 -> Warner | B74: ARI | C74: ='[1]Cumulative Stats'!C79 -> 13 | D74: ='[1]Cumulative Stats'!D79 -> 36 | E74: ='[1]Cumulative Stats'!E79 -> 2.769230769 | F74: ='[1]Cumulative Stats'!F79 -> 15 | G74: ='[1]Cumulative Stats'!G79 -> 0 | J74: ='[13]Cumulative Stats'!A99 -> Battle | K74: SFO | L74: ='[13]Cumulative Stats'!C99 -> 26 | M74: ='[13]Cumulative Stats'!D99 -> 394 | N74: ='[13]Cumulative Stats'!E99 -> 15.15384615 | O74: ='[13]Cumulative Stats'!F99 -> 61 | P74: ='[13]Cumulative Stats'!G99 -> 1
A75: ='[11]Cumulative Stats'!A81 -> Hunt | B75: PHI | C75: ='[11]Cumulative Stats'!C81 -> 14 | D75: ='[11]Cumulative Stats'!D81 -> 34 | E75: ='[11]Cumulative Stats'!E81 -> 2.428571429 | F75: ='[11]Cumulative Stats'!F81 -> 8 | G75: ='[11]Cumulative Stats'!G81 -> 0 | J75: ='[12]Cumulative Stats'!A97 -> Branch | K75: SEA | L75: ='[12]Cumulative Stats'!C97 -> 25 | M75: ='[12]Cumulative Stats'!D97 -> 215 | N75: ='[12]Cumulative Stats'!E97 -> 8.6 | O75: ='[12]Cumulative Stats'!F97 -> 25 | P75: ='[12]Cumulative Stats'!G97 -> 3
A76: ='[8]Cumulative Stats'!A78 -> Berrian | B76: MIN | C76: ='[8]Cumulative Stats'!C78 -> 5 | D76: ='[8]Cumulative Stats'!D78 -> 33 | E76: ='[8]Cumulative Stats'!E78 -> 6.6 | F76: ='[8]Cumulative Stats'!F78 -> 11 | G76: ='[8]Cumulative Stats'!G78 -> 0 | J76: ='[11]Cumulative Stats'!A100 -> Lewis | K76: PHI | L76: ='[11]Cumulative Stats'!C100 -> 25 | M76: ='[11]Cumulative Stats'!D100 -> 356 | N76: ='[11]Cumulative Stats'!E100 -> 14.24 | O76: ='[11]Cumulative Stats'!F100 -> 61 | P76: ='[11]Cumulative Stats'!G100 -> 0
A77: ='[2]Cumulative Stats'!A79 -> Ryan | B77: ATL | C77: ='[2]Cumulative Stats'!C79 -> 17 | D77: ='[2]Cumulative Stats'!D79 -> 32 | E77: ='[2]Cumulative Stats'!E79 -> 1.882352941 | F77: ='[2]Cumulative Stats'!F79 -> 7 | G77: ='[2]Cumulative Stats'!G79 -> 0 | J77: ='[6]Cumulative Stats'!A98 -> Furrey | K77: DET | L77: ='[6]Cumulative Stats'!C98 -> 24 | M77: ='[6]Cumulative Stats'!D98 -> 226 | N77: ='[6]Cumulative Stats'!E98 -> 9.416666667 | O77: ='[6]Cumulative Stats'!F98 -> 15 | P77: ='[6]Cumulative Stats'!G98 -> 1
A78: ='[15]Cumulative Stats'!A79 -> Askew | B78: TBB | C78: ='[15]Cumulative Stats'!C79 -> 8 | D78: ='[15]Cumulative Stats'!D79 -> 30 | E78: ='[15]Cumulative Stats'!E79 -> 3.75 | F78: ='[15]Cumulative Stats'!F79 -> 7 | G78: ='[15]Cumulative Stats'!G79 -> 0 | J78: ='[2]Cumulative Stats'!A98 -> Finneran | K78: ATL | L78: ='[2]Cumulative Stats'!C98 -> 24 | M78: ='[2]Cumulative Stats'!D98 -> 181 | N78: ='[2]Cumulative Stats'!E98 -> 7.541666667 | O78: ='[2]Cumulative Stats'!F98 -> 46 | P78: ='[2]Cumulative Stats'!G98 -> 0
A79: ='[16]Cumulative Stats'!A79 -> Randle El | B79: WAS | C79: ='[16]Cumulative Stats'!C79 -> 2 | D79: ='[16]Cumulative Stats'!D79 -> 30 | E79: ='[16]Cumulative Stats'!E79 -> 15 | F79: ='[16]Cumulative Stats'!F79 -> 24 | G79: ='[16]Cumulative Stats'!G79 -> 0 | J79: ='[11]Cumulative Stats'!A101 -> Buckhalter | K79: PHI | L79: ='[11]Cumulative Stats'!C101 -> 24 | M79: ='[11]Cumulative Stats'!D101 -> 324 | N79: ='[11]Cumulative Stats'!E101 -> 13.5 | O79: ='[11]Cumulative Stats'!F101 -> 54 | P79: ='[11]Cumulative Stats'!G101 -> 3
A80: ='[14]Cumulative Stats'!A79 -> Avery | B80: STL | C80: ='[14]Cumulative Stats'!C79 -> 12 | D80: ='[14]Cumulative Stats'!D79 -> 29 | E80: ='[14]Cumulative Stats'!E79 -> 2.416666667 | F80: ='[14]Cumulative Stats'!F79 -> 8 | G80: ='[14]Cumulative Stats'!G79 -> 0 | J80: ='[4]Cumulative Stats'!A99 -> Lloyd | K80: CHI | L80: ='[4]Cumulative Stats'!C99 -> 24 | M80: ='[4]Cumulative Stats'!D99 -> 447 | N80: ='[4]Cumulative Stats'!E99 -> 18.625 | O80: ='[4]Cumulative Stats'!F99 -> 68 | P80: ='[4]Cumulative Stats'!G99 -> 3
A81: ='[6]Cumulative Stats'!A78 -> Orlovsky | B81: DET | C81: ='[6]Cumulative Stats'!C78 -> 7 | D81: ='[6]Cumulative Stats'!D78 -> 29 | E81: ='[6]Cumulative Stats'!E78 -> 4.142857143 | F81: ='[6]Cumulative Stats'!F78 -> 11 | G81: ='[6]Cumulative Stats'!G78 -> 0 | J81: ='[13]Cumulative Stats'!A100 -> Robinson | K81: SFO | L81: ='[13]Cumulative Stats'!C100 -> 24 | M81: ='[13]Cumulative Stats'!D100 -> 252 | N81: ='[13]Cumulative Stats'!E100 -> 10.5 | O81: ='[13]Cumulative Stats'!F100 -> 29 | P81: ='[13]Cumulative Stats'!G100 -> 0
A82: ='[4]Cumulative Stats'!A81 -> McKie | B82: CHI | C82: ='[4]Cumulative Stats'!C81 -> 8 | D82: ='[4]Cumulative Stats'!D81 -> 28 | E82: ='[4]Cumulative Stats'!E81 -> 3.5 | F82: ='[4]Cumulative Stats'!F81 -> 8 | G82: ='[4]Cumulative Stats'!G81 -> 0 | J82: ='[10]Cumulative Stats'!A99 -> Burress | K82: NYG | L82: ='[10]Cumulative Stats'!C99 -> 23 | M82: ='[10]Cumulative Stats'!D99 -> 237 | N82: ='[10]Cumulative Stats'!E99 -> 10.30434783 | O82: ='[10]Cumulative Stats'!F99 -> 30 | P82: ='[10]Cumulative Stats'!G99 -> 1
A83: ='[3]Cumulative Stats'!A80 -> Goings | B83: CAR | C83: ='[3]Cumulative Stats'!C80 -> 13 | D83: ='[3]Cumulative Stats'!D80 -> 27 | E83: ='[3]Cumulative Stats'!E80 -> 2.076923077 | F83: ='[3]Cumulative Stats'!F80 -> 7 | G83: ='[3]Cumulative Stats'!G80 -> 0 | J83: ='[11]Cumulative Stats'!A102 -> Celek | K83: PHI | L83: ='[11]Cumulative Stats'!C102 -> 23 | M83: ='[11]Cumulative Stats'!D102 -> 239 | N83: ='[11]Cumulative Stats'!E102 -> 10.39130435 | O83: ='[11]Cumulative Stats'!F102 -> 23 | P83: ='[11]Cumulative Stats'!G102 -> 4
A84: ='[15]Cumulative Stats'!A80 -> Smith, C | B84: TBB | C84: ='[15]Cumulative Stats'!C80 -> 5 | D84: ='[15]Cumulative Stats'!D80 -> 27 | E84: ='[15]Cumulative Stats'!E80 -> 5.4 | F84: ='[15]Cumulative Stats'!F80 -> 16 | G84: ='[15]Cumulative Stats'!G80 -> 0 | J84: ='[7]Cumulative Stats'!A98 -> Jackson | K84: GBP | L84: ='[7]Cumulative Stats'!C98 -> 23 | M84: ='[7]Cumulative Stats'!D98 -> 202 | N84: ='[7]Cumulative Stats'!E98 -> 8.782608696 | O84: ='[7]Cumulative Stats'!F98 -> 45 | P84: ='[7]Cumulative Stats'!G98 -> 1
A85: ='[15]Cumulative Stats'!A81 -> Bryant, A | B85: TBB | C85: ='[15]Cumulative Stats'!C81 -> 2 | D85: ='[15]Cumulative Stats'!D81 -> 26 | E85: ='[15]Cumulative Stats'!E81 -> 13 | F85: ='[15]Cumulative Stats'!F81 -> 15 | G85: ='[15]Cumulative Stats'!G81 -> 0 | J85: ='[14]Cumulative Stats'!A98 -> Looker | K85: STL | L85: ='[14]Cumulative Stats'!C98 -> 22 | M85: ='[14]Cumulative Stats'!D98 -> 171 | N85: ='[14]Cumulative Stats'!E98 -> 7.772727273 | O85: ='[14]Cumulative Stats'!F98 -> 19 | P85: ='[14]Cumulative Stats'!G98 -> 0
A86: ='[6]Cumulative Stats'!A79 -> Kitna | B86: DET | C86: ='[6]Cumulative Stats'!C79 -> 3 | D86: ='[6]Cumulative Stats'!D79 -> 23 | E86: ='[6]Cumulative Stats'!E79 -> 7.666666667 | F86: ='[6]Cumulative Stats'!F79 -> 19 | G86: ='[6]Cumulative Stats'!G79 -> 0 | J86: ='[15]Cumulative Stats'!A99 -> Graham | K86: TBB | L86: ='[15]Cumulative Stats'!C99 -> 22 | M86: ='[15]Cumulative Stats'!D99 -> 166 | N86: ='[15]Cumulative Stats'!E99 -> 7.545454545 | O86: ='[15]Cumulative Stats'!F99 -> 15 | P86: ='[15]Cumulative Stats'!G99 -> 1
A87: ='[12]Cumulative Stats'!A82 -> Schmitt, O | B87: SEA | C87: ='[12]Cumulative Stats'!C82 -> 5 | D87: ='[12]Cumulative Stats'!D82 -> 23 | E87: ='[12]Cumulative Stats'!E82 -> 4.6 | F87: ='[12]Cumulative Stats'!F82 -> 8 | G87: ='[12]Cumulative Stats'!G82 -> 0 | J87: ='[3]Cumulative Stats'!A96 -> King | K87: CAR | L87: ='[3]Cumulative Stats'!C96 -> 22 | M87: ='[3]Cumulative Stats'!D96 -> 135 | N87: ='[3]Cumulative Stats'!E96 -> 6.136363636 | O87: ='[3]Cumulative Stats'!F96 -> 15 | P87: ='[3]Cumulative Stats'!G96 -> 0
A88: ='[10]Cumulative Stats'!A78 -> Manning | B88: NYG | C88: ='[10]Cumulative Stats'!C78 -> 12 | D88: ='[10]Cumulative Stats'!D78 -> 23 | E88: ='[10]Cumulative Stats'!E78 -> 1.916666667 | F88: ='[10]Cumulative Stats'!F78 -> 6 | G88: ='[10]Cumulative Stats'!G78 -> 1 | J88: ='[8]Cumulative Stats'!A98 -> Tahi | K88: MIN | L88: ='[8]Cumulative Stats'!C98 -> 22 | M88: ='[8]Cumulative Stats'!D98 -> 85 | N88: ='[8]Cumulative Stats'!E98 -> 3.863636364 | O88: ='[8]Cumulative Stats'!F98 -> 31 | P88: ='[8]Cumulative Stats'!G98 -> 1
A89: ='[16]Cumulative Stats'!A80 -> Moss | B89: WAS | C89: ='[16]Cumulative Stats'!C80 -> 2 | D89: ='[16]Cumulative Stats'!D80 -> 22 | E89: ='[16]Cumulative Stats'!E80 -> 11 | F89: ='[16]Cumulative Stats'!F80 -> 13 | G89: ='[16]Cumulative Stats'!G80 -> 0 | J89: ='[3]Cumulative Stats'!A97 -> Williams, D | K89: CAR | L89: ='[3]Cumulative Stats'!C97 -> 21 | M89: ='[3]Cumulative Stats'!D97 -> 115 | N89: ='[3]Cumulative Stats'!E97 -> 5.476190476 | O89: ='[3]Cumulative Stats'!F97 -> 14 | P89: ='[3]Cumulative Stats'!G97 -> 2
A90: ='[16]Cumulative Stats'!A81 -> Cartwright | B90: WAS | C90: ='[16]Cumulative Stats'!C81 -> 4 | D90: ='[16]Cumulative Stats'!D81 -> 21 | E90: ='[16]Cumulative Stats'!E81 -> 5.25 | F90: ='[16]Cumulative Stats'!F81 -> 10 | G90: ='[16]Cumulative Stats'!G81 -> 0 | J90: ='[12]Cumulative Stats'!A98 -> Weaver | K90: SEA | L90: ='[12]Cumulative Stats'!C98 -> 19 | M90: ='[12]Cumulative Stats'!D98 -> 241 | N90: ='[12]Cumulative Stats'!E98 -> 12.68421053 | O90: ='[12]Cumulative Stats'!F98 -> 62 | P90: ='[12]Cumulative Stats'!G98 -> 0
A91: ='[5]Cumulative Stats'!A79 -> Owens | B91: DAL | C91: ='[5]Cumulative Stats'!C79 -> 7 | D91: ='[5]Cumulative Stats'!D79 -> 20 | E91: ='[5]Cumulative Stats'!E79 -> 2.857142857 | F91: ='[5]Cumulative Stats'!F79 -> 16 | G91: ='[5]Cumulative Stats'!G79 -> 0 | J91: ='[15]Cumulative Stats'!A100 -> Smith, A | K91: TBB | L91: ='[15]Cumulative Stats'!C100 -> 19 | M91: ='[15]Cumulative Stats'!D100 -> 269 | N91: ='[15]Cumulative Stats'!E100 -> 14.15789474 | O91: ='[15]Cumulative Stats'!F100 -> 29 | P91: ='[15]Cumulative Stats'!G100 -> 0
A92: ='[10]Cumulative Stats'!A79 -> Ware | B92: NYG | C92: ='[10]Cumulative Stats'!C79 -> 2 | D92: ='[10]Cumulative Stats'!D79 -> 17 | E92: ='[10]Cumulative Stats'!E79 -> 8.5 | F92: ='[10]Cumulative Stats'!F79 -> 9 | G92: ='[10]Cumulative Stats'!G79 -> 0 | J92: ='[3]Cumulative Stats'!A98 -> Hackett | K92: CAR | L92: ='[3]Cumulative Stats'!C98 -> 19 | M92: ='[3]Cumulative Stats'!D98 -> 277 | N92: ='[3]Cumulative Stats'!E98 -> 14.57894737 | O92: ='[3]Cumulative Stats'!F98 -> 30 | P92: ='[3]Cumulative Stats'!G98 -> 1
A93: ='[1]Cumulative Stats'!A80 -> Leinart | B93: ARI | C93: ='[1]Cumulative Stats'!C80 -> 4 | D93: ='[1]Cumulative Stats'!D80 -> 16 | E93: ='[1]Cumulative Stats'!E80 -> 4 | F93: ='[1]Cumulative Stats'!F80 -> 8 | G93: ='[1]Cumulative Stats'!G80 -> 0 | J93: ='[5]Cumulative Stats'!A99 -> Williams, Roy E | K93: DAL | L93: ='[5]Cumulative Stats'!C99 -> 18 | M93: ='[5]Cumulative Stats'!D99 -> 216 | N93: ='[5]Cumulative Stats'!E99 -> 12 | O93: ='[5]Cumulative Stats'!F99 -> 35 | P93: ='[5]Cumulative Stats'!G99 -> 3
A94: ='[5]Cumulative Stats'!A80 -> Williams, Roy E. | B94: DAL | C94: ='[5]Cumulative Stats'!C80 -> 1 | D94: ='[5]Cumulative Stats'!D80 -> 15 | E94: ='[5]Cumulative Stats'!E80 -> 15 | F94: ='[5]Cumulative Stats'!F80 -> 15 | G94: ='[5]Cumulative Stats'!G80 -> 0 | J94: ='[5]Cumulative Stats'!A98 -> Choice | K94: DAL | L94: ='[5]Cumulative Stats'!C98 -> 18 | M94: ='[5]Cumulative Stats'!D98 -> 181 | N94: ='[5]Cumulative Stats'!E98 -> 10.05555556 | O94: ='[5]Cumulative Stats'!F98 -> 46 | P94: ='[5]Cumulative Stats'!G98 -> 0
A95: ='[9]Cumulative Stats'!A80 -> Karney | B95: NOS | C95: ='[9]Cumulative Stats'!C80 -> 9 | D95: ='[9]Cumulative Stats'!D80 -> 15 | E95: ='[9]Cumulative Stats'!E80 -> 1.666666667 | F95: ='[9]Cumulative Stats'!F80 -> 4 | G95: ='[9]Cumulative Stats'!G80 -> 0 | J95: ='[12]Cumulative Stats'!A99 -> Jones, J | K95: SEA | L95: ='[12]Cumulative Stats'!C99 -> 18 | M95: ='[12]Cumulative Stats'!D99 -> 151 | N95: ='[12]Cumulative Stats'!E99 -> 8.388888889 | O95: ='[12]Cumulative Stats'!F99 -> 33 | P95: ='[12]Cumulative Stats'!G99 -> 0
A96: ='[2]Cumulative Stats'!A80 -> Mughelli | B96: ATL | C96: ='[2]Cumulative Stats'!C80 -> 3 | D96: ='[2]Cumulative Stats'!D80 -> 12 | E96: ='[2]Cumulative Stats'!E80 -> 4 | F96: ='[2]Cumulative Stats'!F80 -> 9 | G96: ='[2]Cumulative Stats'!G80 -> 0 | J96: ='[3]Cumulative Stats'!A99 -> Rosario | K96: CAR | L96: ='[3]Cumulative Stats'!C99 -> 17 | M96: ='[3]Cumulative Stats'!D99 -> 159 | N96: ='[3]Cumulative Stats'!E99 -> 9.352941176 | O96: ='[3]Cumulative Stats'!F99 -> 18 | P96: ='[3]Cumulative Stats'!G99 -> 1
A97: ='[16]Cumulative Stats'!A82 -> Sellers | B97: WAS | C97: ='[16]Cumulative Stats'!C82 -> 1 | D97: ='[16]Cumulative Stats'!D82 -> 11 | E97: ='[16]Cumulative Stats'!E82 -> 11 | F97: ='[16]Cumulative Stats'!F82 -> 11 | G97: ='[16]Cumulative Stats'!G82 -> 0 | J97: ='[5]Cumulative Stats'!A100 -> Bennett | K97: DAL | L97: ='[5]Cumulative Stats'!C100 -> 17 | M97: ='[5]Cumulative Stats'!D100 -> 183 | N97: ='[5]Cumulative Stats'!E100 -> 10.76470588 | O97: ='[5]Cumulative Stats'!F100 -> 33 | P97: ='[5]Cumulative Stats'!G100 -> 2
A98: ='[1]Cumulative Stats'!A81 -> Breaston | B98: ARI | C98: ='[1]Cumulative Stats'!C81 -> 2 | D98: ='[1]Cumulative Stats'!D81 -> 11 | E98: ='[1]Cumulative Stats'!E81 -> 5.5 | F98: ='[1]Cumulative Stats'!F81 -> 8 | G98: ='[1]Cumulative Stats'!G81 -> 0 | J98: ='[14]Cumulative Stats'!A99 -> Pittman | K98: STL | L98: ='[14]Cumulative Stats'!C99 -> 16 | M98: ='[14]Cumulative Stats'!D99 -> 131 | N98: ='[14]Cumulative Stats'!E99 -> 8.1875 | O98: ='[14]Cumulative Stats'!F99 -> 25 | P98: ='[14]Cumulative Stats'!G99 -> 0
A99: ='[13]Cumulative Stats'!A81 -> Davis | B99: SFO | C99: ='[13]Cumulative Stats'!C81 -> 1 | D99: ='[13]Cumulative Stats'!D81 -> 11 | E99: ='[13]Cumulative Stats'!E81 -> 11 | F99: ='[13]Cumulative Stats'!F81 -> 11 | G99: ='[13]Cumulative Stats'!G81 -> 0 | J99: ='[10]Cumulative Stats'!A100 -> Moss | K99: NYG | L99: ='[10]Cumulative Stats'!C100 -> 16 | M99: ='[10]Cumulative Stats'!D100 -> 218 | N99: ='[10]Cumulative Stats'!E100 -> 13.625 | O99: ='[10]Cumulative Stats'!F100 -> 50 | P99: ='[10]Cumulative Stats'!G100 -> 3
A100: ='[5]Cumulative Stats'!A81 -> Anderson | B100: DAL | C100: ='[5]Cumulative Stats'!C81 -> 3 | D100: ='[5]Cumulative Stats'!D81 -> 11 | E100: ='[5]Cumulative Stats'!E81 -> 3.666666667 | F100: ='[5]Cumulative Stats'!F81 -> 7 | G100: ='[5]Cumulative Stats'!G81 -> 0 | J100: ='[8]Cumulative Stats'!A99 -> Rice | K100: MIN | L100: ='[8]Cumulative Stats'!C99 -> 15 | M100: ='[8]Cumulative Stats'!D99 -> 142 | N100: ='[8]Cumulative Stats'!E99 -> 9.466666667 | O100: ='[8]Cumulative Stats'!F99 -> 18 | P100: ='[8]Cumulative Stats'!G99 -> 0
A101: ='[7]Cumulative Stats'!A79 -> Flynn | B101: GBP | C101: ='[7]Cumulative Stats'!C79 -> 1 | D101: ='[7]Cumulative Stats'!D79 -> 9 | E101: ='[7]Cumulative Stats'!E79 -> 9 | F101: ='[7]Cumulative Stats'!F79 -> 9 | G101: ='[7]Cumulative Stats'!G79 -> 0 | J101: ='[7]Cumulative Stats'!A99 -> Martin | K101: GBP | L101: ='[7]Cumulative Stats'!C99 -> 15 | M101: ='[7]Cumulative Stats'!D99 -> 117 | N101: ='[7]Cumulative Stats'!E99 -> 7.8 | O101: ='[7]Cumulative Stats'!F99 -> 16 | P101: ='[7]Cumulative Stats'!G99 -> 1
A102: ='[5]Cumulative Stats'!A82 -> Crayton | B102: DAL | C102: ='[5]Cumulative Stats'!C82 -> 2 | D102: ='[5]Cumulative Stats'!D82 -> 8 | E102: ='[5]Cumulative Stats'!E82 -> 4 | F102: ='[5]Cumulative Stats'!F82 -> 4 | G102: ='[5]Cumulative Stats'!G82 -> 0 | J102: ='[9]Cumulative Stats'!A101 -> Meachem | K102: NOS | L102: ='[9]Cumulative Stats'!C101 -> 15 | M102: ='[9]Cumulative Stats'!D101 -> 399 | N102: ='[9]Cumulative Stats'!E101 -> 26.6 | O102: ='[9]Cumulative Stats'!F101 -> 43 | P102: ='[9]Cumulative Stats'!G101 -> 2
A103: ='[2]Cumulative Stats'!A81 -> White | B103: ATL | C103: ='[2]Cumulative Stats'!C81 -> 2 | D103: ='[2]Cumulative Stats'!D81 -> 8 | E103: ='[2]Cumulative Stats'!E81 -> 4 | F103: ='[2]Cumulative Stats'!F81 -> 5 | G103: ='[2]Cumulative Stats'!G81 -> 0 | J103: ='[6]Cumulative Stats'!A99 -> Standeford | K103: DET | L103: ='[6]Cumulative Stats'!C99 -> 15 | M103: ='[6]Cumulative Stats'!D99 -> 268 | N103: ='[6]Cumulative Stats'!E99 -> 17.86666667 | O103: ='[6]Cumulative Stats'!F99 -> 32 | P103: ='[6]Cumulative Stats'!G99 -> 0
A104: ='[7]Cumulative Stats'!A80 -> Driver | B104: GBP | C104: ='[7]Cumulative Stats'!C80 -> 2 | D104: ='[7]Cumulative Stats'!D80 -> 7 | E104: ='[7]Cumulative Stats'!E80 -> 3.5 | F104: ='[7]Cumulative Stats'!F80 -> 6 | G104: ='[7]Cumulative Stats'!G80 -> 0 | J104: ='[4]Cumulative Stats'!A100 -> Booker | K104: CHI | L104: ='[4]Cumulative Stats'!C100 -> 14 | M104: ='[4]Cumulative Stats'!D100 -> 234 | N104: ='[4]Cumulative Stats'!E100 -> 16.71428571 | O104: ='[4]Cumulative Stats'!F100 -> 90 | P104: ='[4]Cumulative Stats'!G100 -> 1
A105: ='[14]Cumulative Stats'!A80 -> Minor | B105: STL | C105: ='[14]Cumulative Stats'!C80 -> 4 | D105: ='[14]Cumulative Stats'!D80 -> 6 | E105: ='[14]Cumulative Stats'!E80 -> 1.5 | F105: ='[14]Cumulative Stats'!F80 -> 9 | G105: ='[14]Cumulative Stats'!G80 -> 0 | J105: ='[7]Cumulative Stats'!A101 -> Grant | K105: GBP | L105: ='[7]Cumulative Stats'!C101 -> 14 | M105: ='[7]Cumulative Stats'!D101 -> 44 | N105: ='[7]Cumulative Stats'!E101 -> 3.142857143 | O105: ='[7]Cumulative Stats'!F101 -> 11 | P105: ='[7]Cumulative Stats'!G101 -> 0
A106: ='[8]Cumulative Stats'!A79 -> Dugan | B106: MIN | C106: ='[8]Cumulative Stats'!C79 -> 2 | D106: ='[8]Cumulative Stats'!D79 -> 6 | E106: ='[8]Cumulative Stats'!E79 -> 3 | F106: ='[8]Cumulative Stats'!F79 -> 6 | G106: ='[8]Cumulative Stats'!G79 -> 0 | J106: ='[7]Cumulative Stats'!A100 -> Jones | K106: GBP | L106: ='[7]Cumulative Stats'!C100 -> 14 | M106: ='[7]Cumulative Stats'!D100 -> 256 | N106: ='[7]Cumulative Stats'!E100 -> 18.28571429 | O106: ='[7]Cumulative Stats'!F100 -> 39 | P106: ='[7]Cumulative Stats'!G100 -> 2
A107: ='[13]Cumulative Stats'!A82 -> Rossum | B107: SFO | C107: ='[13]Cumulative Stats'!C82 -> 2 | D107: ='[13]Cumulative Stats'!D82 -> 5 | E107: ='[13]Cumulative Stats'!E82 -> 2.5 | F107: ='[13]Cumulative Stats'!F82 -> 4 | G107: ='[13]Cumulative Stats'!G82 -> 0 | J107: ='[16]Cumulative Stats'!A98 -> Betts | K107: WAS | L107: ='[16]Cumulative Stats'!C98 -> 14 | M107: ='[16]Cumulative Stats'!D98 -> 117 | N107: ='[16]Cumulative Stats'!E98 -> 8.357142857 | O107: ='[16]Cumulative Stats'!F98 -> 28 | P107: ='[16]Cumulative Stats'!G98 -> 1
A108: ='[7]Cumulative Stats'!A81 -> Kuhn | B108: GBP | C108: ='[7]Cumulative Stats'!C81 -> 7 | D108: ='[7]Cumulative Stats'!D81 -> 5 | E108: ='[7]Cumulative Stats'!E81 -> 0.7142857143 | F108: ='[7]Cumulative Stats'!F81 -> 3 | G108: ='[7]Cumulative Stats'!G81 -> 0 | J108: ='[9]Cumulative Stats'!A102 -> Patten | K108: NOS | L108: ='[9]Cumulative Stats'!C102 -> 13 | M108: ='[9]Cumulative Stats'!D102 -> 218 | N108: ='[9]Cumulative Stats'!E102 -> 16.76923077 | O108: ='[9]Cumulative Stats'!F102 -> 50 | P108: ='[9]Cumulative Stats'!G102 -> 2
A109: ='[4]Cumulative Stats'!A82 -> Grossman | B109: CHI | C109: ='[4]Cumulative Stats'!C82 -> 2 | D109: ='[4]Cumulative Stats'!D82 -> 5 | E109: ='[4]Cumulative Stats'!E82 -> 2.5 | F109: ='[4]Cumulative Stats'!F82 -> 4 | G109: ='[4]Cumulative Stats'!G82 -> 0 | J109: ='[8]Cumulative Stats'!A100 -> Peterson | K109: MIN | L109: ='[8]Cumulative Stats'!C100 -> 12 | M109: ='[8]Cumulative Stats'!D100 -> 95 | N109: ='[8]Cumulative Stats'!E100 -> 7.916666667 | O109: ='[8]Cumulative Stats'!F100 -> 25 | P109: ='[8]Cumulative Stats'!G100 -> 0
A110: ='[6]Cumulative Stats'!A80 -> Norris | B110: DET | C110: ='[6]Cumulative Stats'!C80 -> 1 | D110: ='[6]Cumulative Stats'!D80 -> 4 | E110: ='[6]Cumulative Stats'!E80 -> 4 | F110: ='[6]Cumulative Stats'!F80 -> 4 | G110: ='[6]Cumulative Stats'!G80 -> 0 | J110: ='[6]Cumulative Stats'!A100 -> Felton | K110: DET | L110: ='[6]Cumulative Stats'!C100 -> 12 | M110: ='[6]Cumulative Stats'!D100 -> 25 | N110: ='[6]Cumulative Stats'!E100 -> 2.083333333 | O110: ='[6]Cumulative Stats'!F100 -> 11 | P110: ='[6]Cumulative Stats'!G100 -> 0
A111: ='[8]Cumulative Stats'!A80 -> Frerotte | B111: MIN | C111: ='[8]Cumulative Stats'!C80 -> 5 | D111: ='[8]Cumulative Stats'!D80 -> 3 | E111: ='[8]Cumulative Stats'!E80 -> 0.6 | F111: ='[8]Cumulative Stats'!F80 -> 2 | G111: ='[8]Cumulative Stats'!G80 -> 0 | J111: ='[4]Cumulative Stats'!A101 -> McKie | K111: CHI | L111: ='[4]Cumulative Stats'!C101 -> 12 | M111: ='[4]Cumulative Stats'!D101 -> 27 | N111: ='[4]Cumulative Stats'!E101 -> 2.25 | O111: ='[4]Cumulative Stats'!F101 -> 12 | P111: ='[4]Cumulative Stats'!G101 -> 0
A112: ='[16]Cumulative Stats'!A83 -> Alexander, S | B112: WAS | C112: ='[16]Cumulative Stats'!C83 -> 6 | D112: ='[16]Cumulative Stats'!D83 -> 2 | E112: ='[16]Cumulative Stats'!E83 -> 0.3333333333 | F112: ='[16]Cumulative Stats'!F83 -> 4 | G112: ='[16]Cumulative Stats'!G83 -> 0 | J112: ='[8]Cumulative Stats'!A101 -> Allison | K112: MIN | L112: ='[8]Cumulative Stats'!C101 -> 12 | M112: ='[8]Cumulative Stats'!D101 -> 136 | N112: ='[8]Cumulative Stats'!E101 -> 11.33333333 | O112: ='[8]Cumulative Stats'!F101 -> 35 | P112: ='[8]Cumulative Stats'!G101 -> 0
A113: ='[6]Cumulative Stats'!A81 -> Felton | B113: DET | C113: ='[6]Cumulative Stats'!C81 -> 3 | D113: ='[6]Cumulative Stats'!D81 -> 2 | E113: ='[6]Cumulative Stats'!E81 -> 0.6666666667 | F113: ='[6]Cumulative Stats'!F81 -> 1 | G113: ='[6]Cumulative Stats'!G81 -> 0 | J113: ='[13]Cumulative Stats'!A101 -> Morgan | K113: SFO | L113: ='[13]Cumulative Stats'!C101 -> 11 | M113: ='[13]Cumulative Stats'!D101 -> 65 | N113: ='[13]Cumulative Stats'!E101 -> 5.909090909 | O113: ='[13]Cumulative Stats'!F101 -> 15 | P113: ='[13]Cumulative Stats'!G101 -> 1
A114: ='[6]Cumulative Stats'!A82 -> Stanton | B114: DET | C114: ='[6]Cumulative Stats'!C82 -> 2 | D114: ='[6]Cumulative Stats'!D82 -> 1 | E114: ='[6]Cumulative Stats'!E82 -> 0.5 | F114: ='[6]Cumulative Stats'!F82 -> 1 | G114: ='[6]Cumulative Stats'!G82 -> 0 | J114: ='[12]Cumulative Stats'!A100 -> Morris | K114: SEA | L114: ='[12]Cumulative Stats'!C100 -> 11 | M114: ='[12]Cumulative Stats'!D100 -> 54 | N114: ='[12]Cumulative Stats'!E100 -> 4.909090909 | O114: ='[12]Cumulative Stats'!F100 -> 25 | P114: ='[12]Cumulative Stats'!G100 -> 0
A115: ='[10]Cumulative Stats'!A80 -> Carr | B115: NYG | C115: ='[10]Cumulative Stats'!C80 -> 4 | D115: ='[10]Cumulative Stats'!D80 -> 0 | E115: ='[10]Cumulative Stats'!E80 -> 0 | F115: ='[10]Cumulative Stats'!F80 -> 6 | G115: ='[10]Cumulative Stats'!G80 -> 0 | J115: ='[14]Cumulative Stats'!A100 -> Burton, K | K115: STL | L115: ='[14]Cumulative Stats'!C100 -> 11 | M115: ='[14]Cumulative Stats'!D100 -> 90 | N115: ='[14]Cumulative Stats'!E100 -> 8.181818182 | O115: ='[14]Cumulative Stats'!F100 -> 28 | P115: ='[14]Cumulative Stats'!G100 -> 1
A116: ='[14]Cumulative Stats'!A81 -> Burton, K | B116: STL | C116: ='[14]Cumulative Stats'!C81 -> 3 | D116: ='[14]Cumulative Stats'!D81 -> 0 | E116: ='[14]Cumulative Stats'!E81 -> 0 | F116: ='[14]Cumulative Stats'!F81 -> 1 | G116: ='[14]Cumulative Stats'!G81 -> 0 | J116: ='[12]Cumulative Stats'!A101 -> Taylor | K116: SEA | L116: ='[12]Cumulative Stats'!C101 -> 11 | M116: ='[12]Cumulative Stats'!D101 -> 95 | N116: ='[12]Cumulative Stats'!E101 -> 8.636363636 | O116: ='[12]Cumulative Stats'!F101 -> 19 | P116: ='[12]Cumulative Stats'!G101 -> 1
A117: ='[14]Cumulative Stats'!A84 -> Green | B117: STL | C117: ='[14]Cumulative Stats'!C84 -> 2 | D117: ='[14]Cumulative Stats'!D84 -> 0 | E117: ='[14]Cumulative Stats'!E84 -> 0 | F117: ='[14]Cumulative Stats'!F84 -> 2 | G117: ='[14]Cumulative Stats'!G84 -> 0 | J117: ='[16]Cumulative Stats'!A99 -> Sellers | K117: WAS | L117: ='[16]Cumulative Stats'!C99 -> 11 | M117: ='[16]Cumulative Stats'!D99 -> 59 | N117: ='[16]Cumulative Stats'!E99 -> 5.363636364 | O117: ='[16]Cumulative Stats'!F99 -> 11 | P117: ='[16]Cumulative Stats'!G99 -> 0
A118: ='[15]Cumulative Stats'!A84 -> Clayton | B118: TBB | C118: ='[15]Cumulative Stats'!C84 -> 2 | D118: ='[15]Cumulative Stats'!D84 -> 0 | E118: ='[15]Cumulative Stats'!E84 -> 0 | F118: ='[15]Cumulative Stats'!F84 -> 1 | G118: ='[15]Cumulative Stats'!G84 -> 0 | J118: ='[8]Cumulative Stats'!A102 -> Kleinsasser | K118: MIN | L118: ='[8]Cumulative Stats'!C102 -> 11 | M118: ='[8]Cumulative Stats'!D102 -> 145 | N118: ='[8]Cumulative Stats'!E102 -> 13.18181818 | O118: ='[8]Cumulative Stats'!F102 -> 20 | P118: ='[8]Cumulative Stats'!G102 -> 3
A119: ='[4]Cumulative Stats'!A84 -> Davis, J | B119: CHI | C119: ='[4]Cumulative Stats'!C84 -> 1 | D119: ='[4]Cumulative Stats'!D84 -> 0 | E119: ='[4]Cumulative Stats'!E84 -> 0 | F119: ='[4]Cumulative Stats'!F84 -> 0 | G119: ='[4]Cumulative Stats'!G84 -> 0 | J119: ='[1]Cumulative Stats'!A100 -> Doucet | K119: ARI | L119: ='[1]Cumulative Stats'!C100 -> 11 | M119: ='[1]Cumulative Stats'!D100 -> 77 | N119: ='[1]Cumulative Stats'!E100 -> 7 | O119: ='[1]Cumulative Stats'!F100 -> 28 | P119: ='[1]Cumulative Stats'!G100 -> 0
A120: ='[5]Cumulative Stats'!A83 -> Johnson, B | B120: DAL | C120: ='[5]Cumulative Stats'!C83 -> 1 | D120: ='[5]Cumulative Stats'!D83 -> 0 | E120: ='[5]Cumulative Stats'!E83 -> 0 | F120: ='[5]Cumulative Stats'!F83 -> 0 | G120: ='[5]Cumulative Stats'!G83 -> 0 | J120: ='[15]Cumulative Stats'!A101 -> Galloway | K120: TBB | L120: ='[15]Cumulative Stats'!C101 -> 11 | M120: ='[15]Cumulative Stats'!D101 -> 91 | N120: ='[15]Cumulative Stats'!E101 -> 8.272727273 | O120: ='[15]Cumulative Stats'!F101 -> 25 | P120: ='[15]Cumulative Stats'!G101 -> 1
A121: ='[15]Cumulative Stats'!A86 -> Griese | B121: TBB | C121: ='[15]Cumulative Stats'!C86 -> 2 | D121: ='[15]Cumulative Stats'!D86 -> -1 | E121: ='[15]Cumulative Stats'!E86 -> -0.5 | F121: ='[15]Cumulative Stats'!F86 -> 1 | G121: ='[15]Cumulative Stats'!G86 -> 0 | J121: ='[16]Cumulative Stats'!A100 -> Thomas, D | K121: WAS | L121: ='[16]Cumulative Stats'!C100 -> 10 | M121: ='[16]Cumulative Stats'!D100 -> 71 | N121: ='[16]Cumulative Stats'!E100 -> 7.1 | O121: ='[16]Cumulative Stats'!F100 -> 14 | P121: ='[16]Cumulative Stats'!G100 -> 0
A122: ='[15]Cumulative Stats'!A85 -> Hilliard | B122: TBB | C122: ='[15]Cumulative Stats'!C85 -> 1 | D122: ='[15]Cumulative Stats'!D85 -> -1 | E122: ='[15]Cumulative Stats'!E85 -> -1 | F122: ='[15]Cumulative Stats'!F85 -> 0 | G122: ='[15]Cumulative Stats'!G85 -> 0 | J122: ='[16]Cumulative Stats'!A101 -> Thrash | K122: WAS | L122: ='[16]Cumulative Stats'!C101 -> 10 | M122: ='[16]Cumulative Stats'!D101 -> 101 | N122: ='[16]Cumulative Stats'!E101 -> 10.1 | O122: ='[16]Cumulative Stats'!F101 -> 21 | P122: ='[16]Cumulative Stats'!G101 -> 0
A123: ='[16]Cumulative Stats'!A84 -> Davis | B123: WAS | C123: ='[16]Cumulative Stats'!C84 -> 1 | D123: ='[16]Cumulative Stats'!D84 -> -2 | E123: ='[16]Cumulative Stats'!E84 -> -2 | F123: ='[16]Cumulative Stats'!F84 -> 0 | G123: ='[16]Cumulative Stats'!G84 -> 0 | J123: ='[11]Cumulative Stats'!A103 -> Brown, R | K123: PHI | L123: ='[11]Cumulative Stats'!C103 -> 10 | M123: ='[11]Cumulative Stats'!D103 -> 110 | N123: ='[11]Cumulative Stats'!E103 -> 11 | O123: ='[11]Cumulative Stats'!F103 -> 17 | P123: ='[11]Cumulative Stats'!G103 -> 0
A124: ='[9]Cumulative Stats'!A83 -> Henderson | B124: NOS | C124: ='[9]Cumulative Stats'!C83 -> 2 | D124: ='[9]Cumulative Stats'!D83 -> -4 | E124: ='[9]Cumulative Stats'!E83 -> -2 | F124: ='[9]Cumulative Stats'!F83 -> 0 | G124: ='[9]Cumulative Stats'!G83 -> 0 | J124: ='[9]Cumulative Stats'!A103 -> Stecker | K124: NOS | L124: ='[9]Cumulative Stats'!C103 -> 10 | M124: ='[9]Cumulative Stats'!D103 -> 22 | N124: ='[9]Cumulative Stats'!E103 -> 2.2 | O124: ='[9]Cumulative Stats'!F103 -> 9 | P124: ='[9]Cumulative Stats'!G103 -> 0
A125: ='[4]Cumulative Stats'!A85 -> Davis, R | B125: CHI | C125: ='[4]Cumulative Stats'!C85 -> 2 | D125: ='[4]Cumulative Stats'!D85 -> -4 | E125: ='[4]Cumulative Stats'!E85 -> -2 | F125: ='[4]Cumulative Stats'!F85 -> 2 | G125: ='[4]Cumulative Stats'!G85 -> 0 | J125: ='[15]Cumulative Stats'!A102 -> Gilmore | K125: TBB | L125: ='[15]Cumulative Stats'!C102 -> 9 | M125: ='[15]Cumulative Stats'!D102 -> 92 | N125: ='[15]Cumulative Stats'!E102 -> 10.22222222 | O125: ='[15]Cumulative Stats'!F102 -> 36 | P125: ='[15]Cumulative Stats'!G102 -> 0
A126: ='[6]Cumulative Stats'!A83 -> Johnson, C | B126: DET | C126: ='[6]Cumulative Stats'!C83 -> 3 | D126: ='[6]Cumulative Stats'!D83 -> -5 | E126: ='[6]Cumulative Stats'!E83 -> -1.666666667 | F126: ='[6]Cumulative Stats'!F83 -> 2 | G126: ='[6]Cumulative Stats'!G83 -> 0 | J126: ='[14]Cumulative Stats'!A101 -> Hall, D | K126: STL | L126: ='[14]Cumulative Stats'!C101 -> 9 | M126: ='[14]Cumulative Stats'!D101 -> 137 | N126: ='[14]Cumulative Stats'!E101 -> 15.22222222 | O126: ='[14]Cumulative Stats'!F101 -> 30 | P126: ='[14]Cumulative Stats'!G101 -> 0
A127: ='[13]Cumulative Stats'!A84 -> Bruce | B127: SFO | C127: ='[13]Cumulative Stats'!C84 -> 2 | D127: ='[13]Cumulative Stats'!D84 -> -5 | E127: ='[13]Cumulative Stats'!E84 -> -2.5 | F127: ='[13]Cumulative Stats'!F84 -> 0 | G127: ='[13]Cumulative Stats'!G84 -> 0 | J127: ='[3]Cumulative Stats'!A100 -> Jarrett | K127: CAR | L127: ='[3]Cumulative Stats'!C100 -> 9 | M127: ='[3]Cumulative Stats'!D100 -> 146 | N127: ='[3]Cumulative Stats'!E100 -> 16.22222222 | O127: ='[3]Cumulative Stats'!F100 -> 29 | P127: ='[3]Cumulative Stats'!G100 -> 3
A128: ='[12]Cumulative Stats'!A83 -> Robinson, K | B128: SEA | C128: ='[12]Cumulative Stats'!C83 -> 1 | D128: ='[12]Cumulative Stats'!D83 -> -6 | E128: ='[12]Cumulative Stats'!E83 -> -6 | F128: ='[12]Cumulative Stats'!F83 -> 0 | G128: ='[12]Cumulative Stats'!G83 -> 0 | J128: ='[13]Cumulative Stats'!A102 -> Foster | K128: SFO | L128: ='[13]Cumulative Stats'!C102 -> 9 | M128: ='[13]Cumulative Stats'!D102 -> 51 | N128: ='[13]Cumulative Stats'!E102 -> 5.666666667 | O128: ='[13]Cumulative Stats'!F102 -> 10 | P128: ='[13]Cumulative Stats'!G102 -> 1
A129: ='[6]Cumulative Stats'!A84 -> Cason | B129: DET | C129: ='[6]Cumulative Stats'!C84 -> 2 | D129: ='[6]Cumulative Stats'!D84 -> -8 | E129: ='[6]Cumulative Stats'!E84 -> -4 | F129: ='[6]Cumulative Stats'!F84 -> 0 | G129: ='[6]Cumulative Stats'!G84 -> 0 | J129: ='[2]Cumulative Stats'!A99 -> Peelle | K129: ATL | L129: ='[2]Cumulative Stats'!C99 -> 9 | M129: ='[2]Cumulative Stats'!D99 -> 83 | N129: ='[2]Cumulative Stats'!E99 -> 9.222222222 | O129: ='[2]Cumulative Stats'!F99 -> 17 | P129: ='[2]Cumulative Stats'!G99 -> 0
A130: ='[14]Cumulative Stats'!A85 -> Hall, D | B130: STL | C130: ='[14]Cumulative Stats'!C85 -> 4 | D130: ='[14]Cumulative Stats'!D85 -> -11 | E130: ='[14]Cumulative Stats'!E85 -> -2.75 | F130: ='[14]Cumulative Stats'!F85 -> 2 | G130: ='[14]Cumulative Stats'!G85 -> 0 | J130: ='[6]Cumulative Stats'!A102 -> Colbert | K130: DET | L130: ='[6]Cumulative Stats'!C102 -> 9 | M130: ='[6]Cumulative Stats'!D102 -> 78 | N130: ='[6]Cumulative Stats'!E102 -> 8.666666667 | O130: ='[6]Cumulative Stats'!F102 -> 13 | P130: ='[6]Cumulative Stats'!G102 -> 0
A131: ='[13]Cumulative Stats'!A85 -> Walker | B131: SFO | C131: ='[13]Cumulative Stats'!C85 -> 2 | D131: ='[13]Cumulative Stats'!D85 -> -15 | E131: ='[13]Cumulative Stats'!E85 -> -7.5 | F131: ='[13]Cumulative Stats'!F85 -> 0 | G131: ='[13]Cumulative Stats'!G85 -> 0 | J131: ='[6]Cumulative Stats'!A101 -> Fitzsimmons | K131: DET | L131: ='[6]Cumulative Stats'!C101 -> 9 | M131: ='[6]Cumulative Stats'!D101 -> 47 | N131: ='[6]Cumulative Stats'!E101 -> 5.222222222 | O131: ='[6]Cumulative Stats'!F101 -> 13 | P131: ='[6]Cumulative Stats'!G101 -> 0
J132: ='[6]Cumulative Stats'!A103 -> Owens | K132: DET | L132: ='[6]Cumulative Stats'!C103 -> 8 | M132: ='[6]Cumulative Stats'!D103 -> 69 | N132: ='[6]Cumulative Stats'!E103 -> 8.625 | O132: ='[6]Cumulative Stats'!F103 -> 19 | P132: ='[6]Cumulative Stats'!G103 -> 0
J133: ='[13]Cumulative Stats'!A103 -> Walker | K133: SFO | L133: ='[13]Cumulative Stats'!C103 -> 8 | M133: ='[13]Cumulative Stats'!D103 -> 183 | N133: ='[13]Cumulative Stats'!E103 -> 22.875 | O133: ='[13]Cumulative Stats'!F103 -> 69 | P133: ='[13]Cumulative Stats'!G103 -> 2
J134: ='[1]Cumulative Stats'!A101 -> Patrick | K134: ARI | L134: ='[1]Cumulative Stats'!C101 -> 8 | M134: ='[1]Cumulative Stats'!D101 -> 70 | N134: ='[1]Cumulative Stats'!E101 -> 8.75 | O134: ='[1]Cumulative Stats'!F101 -> 18 | P134: ='[1]Cumulative Stats'!G101 -> 0
J135: ='[9]Cumulative Stats'!A104 -> McAlister | K135: NOS | L135: ='[9]Cumulative Stats'!C104 -> 7 | M135: ='[9]Cumulative Stats'!D104 -> 31 | N135: ='[9]Cumulative Stats'!E104 -> 4.428571429 | O135: ='[9]Cumulative Stats'!F104 -> 12 | P135: ='[9]Cumulative Stats'!G104 -> 2
J136: ='[14]Cumulative Stats'!A102 -> McMichael | K136: STL | L136: ='[14]Cumulative Stats'!C102 -> 7 | M136: ='[14]Cumulative Stats'!D102 -> 59 | N136: ='[14]Cumulative Stats'!E102 -> 8.428571429 | O136: ='[14]Cumulative Stats'!F102 -> 20 | P136: ='[14]Cumulative Stats'!G102 -> 0
J137: ='[5]Cumulative Stats'!A101 -> Austin | K137: DAL | L137: ='[5]Cumulative Stats'!C101 -> 7 | M137: ='[5]Cumulative Stats'!D101 -> 168 | N137: ='[5]Cumulative Stats'!E101 -> 24 | O137: ='[5]Cumulative Stats'!F101 -> 40 | P137: ='[5]Cumulative Stats'!G101 -> 1
J138: ='[15]Cumulative Stats'!A103 -> Askew | K138: TBB | L138: ='[15]Cumulative Stats'!C103 -> 7 | M138: ='[15]Cumulative Stats'!D103 -> 11 | N138: ='[15]Cumulative Stats'!E103 -> 1.571428571 | O138: ='[15]Cumulative Stats'!F103 -> 7 | P138: ='[15]Cumulative Stats'!G103 -> 0
J139: ='[10]Cumulative Stats'!A101 -> Manningham | K139: NYG | L139: ='[10]Cumulative Stats'!C101 -> 7 | M139: ='[10]Cumulative Stats'!D101 -> 23 | N139: ='[10]Cumulative Stats'!E101 -> 3.285714286 | O139: ='[10]Cumulative Stats'!F101 -> 11 | P139: ='[10]Cumulative Stats'!G101 -> 0
J140: ='[9]Cumulative Stats'!A105 -> Campbell | K140: NOS | L140: ='[9]Cumulative Stats'!C105 -> 6 | M140: ='[9]Cumulative Stats'!D105 -> 52 | N140: ='[9]Cumulative Stats'!E105 -> 8.666666667 | O140: ='[9]Cumulative Stats'!F105 -> 18 | P140: ='[9]Cumulative Stats'!G105 -> 0
J141: ='[6]Cumulative Stats'!A104 -> Norris | K141: DET | L141: ='[6]Cumulative Stats'!C104 -> 6 | M141: ='[6]Cumulative Stats'!D104 -> 45 | N141: ='[6]Cumulative Stats'!E104 -> 7.5 | O141: ='[6]Cumulative Stats'!F104 -> 13 | P141: ='[6]Cumulative Stats'!G104 -> 0
J142: ='[1]Cumulative Stats'!A102 -> Castille | K142: ARI | L142: ='[1]Cumulative Stats'!C102 -> 6 | M142: ='[1]Cumulative Stats'!D102 -> 19 | N142: ='[1]Cumulative Stats'!E102 -> 3.166666667 | O142: ='[1]Cumulative Stats'!F102 -> 30 | P142: ='[1]Cumulative Stats'!G102 -> 0
J143: ='[8]Cumulative Stats'!A103 -> Mills | K143: MIN | L143: ='[8]Cumulative Stats'!C103 -> 6 | M143: ='[8]Cumulative Stats'!D103 -> 89 | N143: ='[8]Cumulative Stats'!E103 -> 14.83333333 | O143: ='[8]Cumulative Stats'!F103 -> 30 | P143: ='[8]Cumulative Stats'!G103 -> 0
J144: ='[14]Cumulative Stats'!A103 -> Klopfenstein | K144: STL | L144: ='[14]Cumulative Stats'!C103 -> 6 | M144: ='[14]Cumulative Stats'!D103 -> 59 | N144: ='[14]Cumulative Stats'!E103 -> 9.833333333 | O144: ='[14]Cumulative Stats'!F103 -> 20 | P144: ='[14]Cumulative Stats'!G103 -> 1
J145: ='[3]Cumulative Stats'!A101 -> Stewart | K145: CAR | L145: ='[3]Cumulative Stats'!C101 -> 6 | M145: ='[3]Cumulative Stats'!D101 -> 57 | N145: ='[3]Cumulative Stats'!E101 -> 9.5 | O145: ='[3]Cumulative Stats'!F101 -> 14 | P145: ='[3]Cumulative Stats'!G101 -> 0
J146: ='[2]Cumulative Stats'!A101 -> Robinson | K146: ATL | L146: ='[2]Cumulative Stats'!C101 -> 6 | M146: ='[2]Cumulative Stats'!D101 -> 64 | N146: ='[2]Cumulative Stats'!E101 -> 10.66666667 | O146: ='[2]Cumulative Stats'!F101 -> 23 | P146: ='[2]Cumulative Stats'!G101 -> 1
J147: ='[2]Cumulative Stats'!A100 -> Mughelli | K147: ATL | L147: ='[2]Cumulative Stats'!C100 -> 6 | M147: ='[2]Cumulative Stats'!D100 -> 56 | N147: ='[2]Cumulative Stats'!E100 -> 9.333333333 | O147: ='[2]Cumulative Stats'!F100 -> 25 | P147: ='[2]Cumulative Stats'!G100 -> 0
J148: ='[7]Cumulative Stats'!A102 -> Finley | K148: GBP | L148: ='[7]Cumulative Stats'!C102 -> 6 | M148: ='[7]Cumulative Stats'!D102 -> 65 | N148: ='[7]Cumulative Stats'!E102 -> 10.83333333 | O148: ='[7]Cumulative Stats'!F102 -> 29 | P148: ='[7]Cumulative Stats'!G102 -> 2
J149: ='[1]Cumulative Stats'!A104 -> Pope | K149: ARI | L149: ='[1]Cumulative Stats'!C104 -> 5 | M149: ='[1]Cumulative Stats'!D104 -> 20 | N149: ='[1]Cumulative Stats'!E104 -> 4 | O149: ='[1]Cumulative Stats'!F104 -> 10 | P149: ='[1]Cumulative Stats'!G104 -> 0
J150: ='[6]Cumulative Stats'!A105 -> Johnson, R | K150: DET | L150: ='[6]Cumulative Stats'!C105 -> 5 | M150: ='[6]Cumulative Stats'!D105 -> 69 | N150: ='[6]Cumulative Stats'!E105 -> 13.8 | O150: ='[6]Cumulative Stats'!F105 -> 31 | P150: ='[6]Cumulative Stats'!G105 -> 1
J151: ='[4]Cumulative Stats'!A102 -> Peterson | K151: CHI | L151: ='[4]Cumulative Stats'!C102 -> 5 | M151: ='[4]Cumulative Stats'!D102 -> 29 | N151: ='[4]Cumulative Stats'!E102 -> 5.8 | O151: ='[4]Cumulative Stats'!F102 -> 10 | P151: ='[4]Cumulative Stats'!G102 -> 0
J152: ='[1]Cumulative Stats'!A103 -> James | K152: ARI | L152: ='[1]Cumulative Stats'!C103 -> 5 | M152: ='[1]Cumulative Stats'!D103 -> 22 | N152: ='[1]Cumulative Stats'!E103 -> 4.4 | O152: ='[1]Cumulative Stats'!F103 -> 11 | P152: ='[1]Cumulative Stats'!G103 -> 0
J153: ='[9]Cumulative Stats'!A106 -> Karney | K153: NOS | L153: ='[9]Cumulative Stats'!C106 -> 5 | M153: ='[9]Cumulative Stats'!D106 -> 20 | N153: ='[9]Cumulative Stats'!E106 -> 4 | O153: ='[9]Cumulative Stats'!F106 -> 25 | P153: ='[9]Cumulative Stats'!G106 -> 0
J154: ='[5]Cumulative Stats'!A102 -> Curtis | K154: DAL | L154: ='[5]Cumulative Stats'!C102 -> 5 | M154: ='[5]Cumulative Stats'!D102 -> 32 | N154: ='[5]Cumulative Stats'!E102 -> 6.4 | O154: ='[5]Cumulative Stats'!F102 -> 19 | P154: ='[5]Cumulative Stats'!G102 -> 0
J155: ='[10]Cumulative Stats'!A103 -> Jacobs | K155: NYG | L155: ='[10]Cumulative Stats'!C103 -> 5 | M155: ='[10]Cumulative Stats'!D103 -> 57 | N155: ='[10]Cumulative Stats'!E103 -> 11.4 | O155: ='[10]Cumulative Stats'!F103 -> 35 | P155: ='[10]Cumulative Stats'!G103 -> 0
J156: ='[10]Cumulative Stats'!A102 -> Hedgecock | K156: NYG | L156: ='[10]Cumulative Stats'!C102 -> 5 | M156: ='[10]Cumulative Stats'!D102 -> 21 | N156: ='[10]Cumulative Stats'!E102 -> 4.2 | O156: ='[10]Cumulative Stats'!F102 -> 12 | P156: ='[10]Cumulative Stats'!G102 -> 0
J157: ='[6]Cumulative Stats'!A106 -> Cason | K157: DET | L157: ='[6]Cumulative Stats'!C106 -> 5 | M157: ='[6]Cumulative Stats'!D106 -> 52 | N157: ='[6]Cumulative Stats'!E106 -> 10.4 | O157: ='[6]Cumulative Stats'!F106 -> 15 | P157: ='[6]Cumulative Stats'!G106 -> 0
J158: ='[3]Cumulative Stats'!A102 -> Goings | K158: CAR | L158: ='[3]Cumulative Stats'!C102 -> 5 | M158: ='[3]Cumulative Stats'!D102 -> -12 | N158: ='[3]Cumulative Stats'!E102 -> -2.4 | O158: ='[3]Cumulative Stats'!F102 -> 4 | P158: ='[3]Cumulative Stats'!G102 -> 0
J159: ='[11]Cumulative Stats'!A104 -> Booker | K159: PHI | L159: ='[11]Cumulative Stats'!C104 -> 5 | M159: ='[11]Cumulative Stats'!D104 -> -6 | N159: ='[11]Cumulative Stats'!E104 -> -1.2 | O159: ='[11]Cumulative Stats'!F104 -> 6 | P159: ='[11]Cumulative Stats'!G104 -> 0
J160: ='[16]Cumulative Stats'!A102 -> Yoder | K160: WAS | L160: ='[16]Cumulative Stats'!C102 -> 5 | M160: ='[16]Cumulative Stats'!D102 -> 30 | N160: ='[16]Cumulative Stats'!E102 -> 6 | O160: ='[16]Cumulative Stats'!F102 -> 14 | P160: ='[16]Cumulative Stats'!G102 -> 0
J161: ='[2]Cumulative Stats'!A102 -> Snelling | K161: ATL | L161: ='[2]Cumulative Stats'!C102 -> 5 | M161: ='[2]Cumulative Stats'!D102 -> 49 | N161: ='[2]Cumulative Stats'!E102 -> 9.8 | O161: ='[2]Cumulative Stats'!F102 -> 15 | P161: ='[2]Cumulative Stats'!G102 -> 0
J162: ='[7]Cumulative Stats'!A103 -> Humphrey | K162: GBP | L162: ='[7]Cumulative Stats'!C103 -> 5 | M162: ='[7]Cumulative Stats'!D103 -> 38 | N162: ='[7]Cumulative Stats'!E103 -> 7.6 | O162: ='[7]Cumulative Stats'!F103 -> 12 | P162: ='[7]Cumulative Stats'!G103 -> 1
J163: ='[10]Cumulative Stats'!A104 -> Bradshaw | K163: NYG | L163: ='[10]Cumulative Stats'!C104 -> 5 | M163: ='[10]Cumulative Stats'!D104 -> 57 | N163: ='[10]Cumulative Stats'!E104 -> 11.4 | O163: ='[10]Cumulative Stats'!F104 -> 36 | P163: ='[10]Cumulative Stats'!G104 -> 0
J164: ='[14]Cumulative Stats'!A104 -> Minor | K164: STL | L164: ='[14]Cumulative Stats'!C104 -> 5 | M164: ='[14]Cumulative Stats'!D104 -> 34 | N164: ='[14]Cumulative Stats'!E104 -> 6.8 | O164: ='[14]Cumulative Stats'!F104 -> 12 | P164: ='[14]Cumulative Stats'!G104 -> 0
J165: ='[2]Cumulative Stats'!A103 -> Turner | K165: ATL | L165: ='[2]Cumulative Stats'!C103 -> 4 | M165: ='[2]Cumulative Stats'!D103 -> 13 | N165: ='[2]Cumulative Stats'!E103 -> 3.25 | O165: ='[2]Cumulative Stats'!F103 -> 8 | P165: ='[2]Cumulative Stats'!G103 -> 0
J166: ='[3]Cumulative Stats'!A103 -> Hoover | K166: CAR | L166: ='[3]Cumulative Stats'!C103 -> 4 | M166: ='[3]Cumulative Stats'!D103 -> 17 | N166: ='[3]Cumulative Stats'!E103 -> 4.25 | O166: ='[3]Cumulative Stats'!F103 -> 14 | P166: ='[3]Cumulative Stats'!G103 -> 0
J167: ='[7]Cumulative Stats'!A104 -> Hall | K167: GBP | L167: ='[7]Cumulative Stats'!C104 -> 4 | M167: ='[7]Cumulative Stats'!D104 -> 11 | N167: ='[7]Cumulative Stats'!E104 -> 2.75 | O167: ='[7]Cumulative Stats'!F104 -> 9 | P167: ='[7]Cumulative Stats'!G104 -> 0
J168: ='[7]Cumulative Stats'!A105 -> Kuhn | K168: GBP | L168: ='[7]Cumulative Stats'!C105 -> 4 | M168: ='[7]Cumulative Stats'!D105 -> 7 | N168: ='[7]Cumulative Stats'!E105 -> 1.75 | O168: ='[7]Cumulative Stats'!F105 -> 6 | P168: ='[7]Cumulative Stats'!G105 -> 0
J169: ='[14]Cumulative Stats'!A105 -> Becht | K169: STL | L169: ='[14]Cumulative Stats'!C105 -> 4 | M169: ='[14]Cumulative Stats'!D105 -> 35 | N169: ='[14]Cumulative Stats'!E105 -> 8.75 | O169: ='[14]Cumulative Stats'!F105 -> 22 | P169: ='[14]Cumulative Stats'!G105 -> 1
J170: ='[15]Cumulative Stats'!A104 -> Smith, C | K170: TBB | L170: ='[15]Cumulative Stats'!C104 -> 4 | M170: ='[15]Cumulative Stats'!D104 -> 34 | N170: ='[15]Cumulative Stats'!E104 -> 8.5 | O170: ='[15]Cumulative Stats'!F104 -> 22 | P170: ='[15]Cumulative Stats'!G104 -> 0
J171: ='[11]Cumulative Stats'!A105 -> Hunt | K171: PHI | L171: ='[11]Cumulative Stats'!C105 -> 4 | M171: ='[11]Cumulative Stats'!D105 -> 38 | N171: ='[11]Cumulative Stats'!E105 -> 9.5 | O171: ='[11]Cumulative Stats'!F105 -> 15 | P171: ='[11]Cumulative Stats'!G105 -> 0
J172: ='[11]Cumulative Stats'!A106 -> Schobel | K172: PHI | L172: ='[11]Cumulative Stats'!C106 -> 3 | M172: ='[11]Cumulative Stats'!D106 -> 5 | N172: ='[11]Cumulative Stats'!E106 -> 1.666666667 | O172: ='[11]Cumulative Stats'!F106 -> 11 | P172: ='[11]Cumulative Stats'!G106 -> 0
J173: ='[14]Cumulative Stats'!A106 -> Stanley | K173: STL | L173: ='[14]Cumulative Stats'!C106 -> 3 | M173: ='[14]Cumulative Stats'!D106 -> 28 | N173: ='[14]Cumulative Stats'!E106 -> 9.333333333 | O173: ='[14]Cumulative Stats'!F106 -> 12 | P173: ='[14]Cumulative Stats'!G106 -> 0
J174: ='[12]Cumulative Stats'!A102 -> McMullen | K174: SEA | L174: ='[12]Cumulative Stats'!C102 -> 3 | M174: ='[12]Cumulative Stats'!D102 -> 58 | N174: ='[12]Cumulative Stats'!E102 -> 19.33333333 | O174: ='[12]Cumulative Stats'!F102 -> 28 | P174: ='[12]Cumulative Stats'!G102 -> 0
J175: ='[1]Cumulative Stats'!A105 -> Tuman | K175: ARI | L175: ='[1]Cumulative Stats'!C105 -> 3 | M175: ='[1]Cumulative Stats'!D105 -> 33 | N175: ='[1]Cumulative Stats'!E105 -> 11 | O175: ='[1]Cumulative Stats'!F105 -> 24 | P175: ='[1]Cumulative Stats'!G105 -> 0
J176: ='[1]Cumulative Stats'!A106 -> Smith, T | K176: ARI | L176: ='[1]Cumulative Stats'!C106 -> 3 | M176: ='[1]Cumulative Stats'!D106 -> 30 | N176: ='[1]Cumulative Stats'!E106 -> 10 | O176: ='[1]Cumulative Stats'!F106 -> 16 | P176: ='[1]Cumulative Stats'!G106 -> 0
J177: ='[13]Cumulative Stats'!A104 -> Bajema | K177: SFO | L177: ='[13]Cumulative Stats'!C104 -> 3 | M177: ='[13]Cumulative Stats'!D104 -> 33 | N177: ='[13]Cumulative Stats'!E104 -> 11 | O177: ='[13]Cumulative Stats'!F104 -> 19 | P177: ='[13]Cumulative Stats'!G104 -> 1
J178: ='[5]Cumulative Stats'!A103 -> Jones, F | K178: DAL | L178: ='[5]Cumulative Stats'!C103 -> 3 | M178: ='[5]Cumulative Stats'!D103 -> 7 | N178: ='[5]Cumulative Stats'!E103 -> 2.333333333 | O178: ='[5]Cumulative Stats'!F103 -> 9 | P178: ='[5]Cumulative Stats'!G103 -> 0
J179: ='[10]Cumulative Stats'!A105 -> Johnson, D | K179: NYG | L179: ='[10]Cumulative Stats'!C105 -> 2 | M179: ='[10]Cumulative Stats'!D105 -> 31 | N179: ='[10]Cumulative Stats'!E105 -> 15.5 | O179: ='[10]Cumulative Stats'!F105 -> 16 | P179: ='[10]Cumulative Stats'!G105 -> 0
J180: ='[6]Cumulative Stats'!A107 -> Middleton | K180: DET | L180: ='[6]Cumulative Stats'!C107 -> 2 | M180: ='[6]Cumulative Stats'!D107 -> 33 | N180: ='[6]Cumulative Stats'!E107 -> 16.5 | O180: ='[6]Cumulative Stats'!F107 -> 17 | P180: ='[6]Cumulative Stats'!G107 -> 0
J181: ='[14]Cumulative Stats'!A107 -> Fells | K181: STL | L181: ='[14]Cumulative Stats'!C107 -> 2 | M181: ='[14]Cumulative Stats'!D107 -> 25 | N181: ='[14]Cumulative Stats'!E107 -> 12.5 | O181: ='[14]Cumulative Stats'!F107 -> 14 | P181: ='[14]Cumulative Stats'!G107 -> 0
J182: ='[8]Cumulative Stats'!A105 -> Dugan | K182: MIN | L182: ='[8]Cumulative Stats'!C105 -> 2 | M182: ='[8]Cumulative Stats'!D105 -> 15 | N182: ='[8]Cumulative Stats'!E105 -> 7.5 | O182: ='[8]Cumulative Stats'!F105 -> 14 | P182: ='[8]Cumulative Stats'!G105 -> 0
J183: ='[16]Cumulative Stats'!A103 -> Davis | K183: WAS | L183: ='[16]Cumulative Stats'!C103 -> 2 | M183: ='[16]Cumulative Stats'!D103 -> 18 | N183: ='[16]Cumulative Stats'!E103 -> 9 | O183: ='[16]Cumulative Stats'!F103 -> 15 | P183: ='[16]Cumulative Stats'!G103 -> 0
J184: ='[10]Cumulative Stats'!A106 -> Matthews | K184: NYG | L184: ='[10]Cumulative Stats'!C106 -> 2 | M184: ='[10]Cumulative Stats'!D106 -> 22 | N184: ='[10]Cumulative Stats'!E106 -> 11 | O184: ='[10]Cumulative Stats'!F106 -> 12 | P184: ='[10]Cumulative Stats'!G106 -> 0
J185: ='[15]Cumulative Stats'!A106 -> Stovall | K185: TBB | L185: ='[15]Cumulative Stats'!C106 -> 2 | M185: ='[15]Cumulative Stats'!D106 -> 8 | N185: ='[15]Cumulative Stats'!E106 -> 4 | O185: ='[15]Cumulative Stats'!F106 -> 5 | P185: ='[15]Cumulative Stats'!G106 -> 0
J186: ='[8]Cumulative Stats'!A104 -> Ferguson | K186: MIN | L186: ='[8]Cumulative Stats'!C104 -> 2 | M186: ='[8]Cumulative Stats'!D104 -> 7 | N186: ='[8]Cumulative Stats'!E104 -> 3.5 | O186: ='[8]Cumulative Stats'!F104 -> 4 | P186: ='[8]Cumulative Stats'!G104 -> 0
J187: ='[2]Cumulative Stats'!A104 -> Hartsock | K187: ATL | L187: ='[2]Cumulative Stats'!C104 -> 2 | M187: ='[2]Cumulative Stats'!D104 -> 19 | N187: ='[2]Cumulative Stats'!E104 -> 9.5 | O187: ='[2]Cumulative Stats'!F104 -> 12 | P187: ='[2]Cumulative Stats'!G104 -> 0
J188: ='[15]Cumulative Stats'!A105 -> Williams | K188: TBB | L188: ='[15]Cumulative Stats'!C105 -> 2 | M188: ='[15]Cumulative Stats'!D105 -> 4 | N188: ='[15]Cumulative Stats'!E105 -> 2 | O188: ='[15]Cumulative Stats'!F105 -> 3 | P188: ='[15]Cumulative Stats'!G105 -> 0
J189: ='[1]Cumulative Stats'!A107 -> Spach | K189: ARI | L189: ='[1]Cumulative Stats'!C107 -> 2 | M189: ='[1]Cumulative Stats'!D107 -> 19 | N189: ='[1]Cumulative Stats'!E107 -> 9.5 | O189: ='[1]Cumulative Stats'!F107 -> 19 | P189: ='[1]Cumulative Stats'!G107 -> 0
J190: ='[15]Cumulative Stats'!A107 -> Cook | K190: TBB | L190: ='[15]Cumulative Stats'!C107 -> 2 | M190: ='[15]Cumulative Stats'!D107 -> 8 | N190: ='[15]Cumulative Stats'!E107 -> 4 | O190: ='[15]Cumulative Stats'!F107 -> 7 | P190: ='[15]Cumulative Stats'!G107 -> 0
J191: ='[13]Cumulative Stats'!A105 -> Zeigler | K191: SFO | L191: ='[13]Cumulative Stats'!C105 -> 2 | M191: ='[13]Cumulative Stats'!D105 -> 47 | N191: ='[13]Cumulative Stats'!E105 -> 23.5 | O191: ='[13]Cumulative Stats'!F105 -> 26 | P191: ='[13]Cumulative Stats'!G105 -> 0
J192: ='[3]Cumulative Stats'!A104 -> Jones | K192: CAR | L192: ='[3]Cumulative Stats'!C104 -> 2 | M192: ='[3]Cumulative Stats'!D104 -> 30 | N192: ='[3]Cumulative Stats'!E104 -> 15 | O192: ='[3]Cumulative Stats'!F104 -> 22 | P192: ='[3]Cumulative Stats'!G104 -> 0
J193: ='[7]Cumulative Stats'!A106 -> Wynn | K193: GBP | L193: ='[7]Cumulative Stats'!C106 -> 2 | M193: ='[7]Cumulative Stats'!D106 -> 8 | N193: ='[7]Cumulative Stats'!E106 -> 4 | O193: ='[7]Cumulative Stats'!F106 -> 4 | P193: ='[7]Cumulative Stats'!G106 -> 0
J194: ='[12]Cumulative Stats'!A103 -> Bumpus | K194: SEA | L194: ='[12]Cumulative Stats'!C103 -> 2 | M194: ='[12]Cumulative Stats'!D103 -> 9 | N194: ='[12]Cumulative Stats'!E103 -> 4.5 | O194: ='[12]Cumulative Stats'!F103 -> 6 | P194: ='[12]Cumulative Stats'!G103 -> 0
J195: ='[16]Cumulative Stats'!A104 -> Kendall | K195: WAS | L195: ='[16]Cumulative Stats'!C104 -> 2 | M195: ='[16]Cumulative Stats'!D104 -> -5 | N195: ='[16]Cumulative Stats'!E104 -> -2.5 | O195: ='[16]Cumulative Stats'!F104 -> 3 | P195: ='[16]Cumulative Stats'!G104 -> 1
J196: ='[13]Cumulative Stats'!A106 -> Keasey | K196: SFO | L196: ='[13]Cumulative Stats'!C106 -> 1 | M196: ='[13]Cumulative Stats'!D106 -> -1 | N196: ='[13]Cumulative Stats'!E106 -> -1 | O196: ='[13]Cumulative Stats'!F106 -> 0 | P196: ='[13]Cumulative Stats'!G106 -> 0
J197: ='[11]Cumulative Stats'!A107 -> Klecko | K197: PHI | L197: ='[11]Cumulative Stats'!C107 -> 1 | M197: ='[11]Cumulative Stats'!D107 -> -3 | N197: ='[11]Cumulative Stats'!E107 -> -3 | O197: ='[11]Cumulative Stats'!F107 -> 0 | P197: ='[11]Cumulative Stats'!G107 -> 0
J198: ='[4]Cumulative Stats'!A103 -> Jones | K198: CHI | L198: ='[4]Cumulative Stats'!C103 -> 1 | M198: ='[4]Cumulative Stats'!D103 -> -5 | N198: ='[4]Cumulative Stats'!E103 -> -5 | O198: ='[4]Cumulative Stats'!F103 -> 0 | P198: ='[4]Cumulative Stats'!G103 -> 0
J199: ='[16]Cumulative Stats'!A106 -> Cartwright | K199: WAS | L199: ='[16]Cumulative Stats'!C106 -> 1 | M199: ='[16]Cumulative Stats'!D106 -> 3 | N199: ='[16]Cumulative Stats'!E106 -> 3 | O199: ='[16]Cumulative Stats'!F106 -> 3 | P199: ='[16]Cumulative Stats'!G106 -> 0
J200: ='[2]Cumulative Stats'!A105 -> Rader | K200: ATL | L200: ='[2]Cumulative Stats'!C105 -> 1 | M200: ='[2]Cumulative Stats'!D105 -> 32 | N200: ='[2]Cumulative Stats'!E105 -> 32 | O200: ='[2]Cumulative Stats'!F105 -> 32 | P200: ='[2]Cumulative Stats'!G105 -> 0
... 5 more rows

Sheet Passing
A1: Games Played: | B1: 256 | C1: =+B1/16 -> 16 | D1: 0.625
A2: Passing: | B2: Team | C2: Att | D2: Com | E2: Com% | F2: Gained | G2: TD | H2: Long | I2: Int | J2: TD% | K2: Int% | L2: Gain | M2: Rating | N2: Sacks | O2: =IF(C2>=$C$1*14,1,IF(C2+N2=0,-1,0)) -> 1 | P2: =IF(C2>=$D$1*$C$1,1,0) -> 1
A3: ='[9]Cumulative Stats'!A116 -> Brees | B3: NOS | C3: ='[9]Cumulative Stats'!C116 -> 647 | D3: ='[9]Cumulative Stats'!D116 -> 413 | E3: ='[9]Cumulative Stats'!E116 -> 63.83307573 | F3: ='[9]Cumulative Stats'!F116 -> 5058 | G3: ='[9]Cumulative Stats'!G116 -> 46 | H3: ='[9]Cumulative Stats'!H116 -> 79 | I3: ='[9]Cumulative Stats'!I116 -> 11 | J3: ='[9]Cumulative Stats'!J116 -> 7.109737249 | K3: ='[9]Cumulative Stats'!K116 -> 1.70015456 | L3: ='[9]Cumulative Stats'!L116 -> 7.817619784 | M3: ='[9]Cumulative Stats'!M116 -> 104.4661257 | N3: ='[9]Cumulative Stats'!N116 -> 19 | O3: =IF(C3>=$C$1*14,1,IF(C3+N3=0,-1,0)) -> 1 | P3: =IF(C3>=$D$1*$C$1,1,0) -> 1
A4: ='[2]Cumulative Stats'!$A$116 -> Ryan | B4: ATL | C4: ='[2]Cumulative Stats'!C116 -> 462 | D4: ='[2]Cumulative Stats'!D116 -> 277 | E4: ='[2]Cumulative Stats'!E116 -> 59.95670996 | F4: ='[2]Cumulative Stats'!F116 -> 3707 | G4: ='[2]Cumulative Stats'!G116 -> 26 | H4: ='[2]Cumulative Stats'!H116 -> 61 | I4: ='[2]Cumulative Stats'!I116 -> 8 | J4: ='[2]Cumulative Stats'!J116 -> 5.627705628 | K4: ='[2]Cumulative Stats'!K116 -> 1.731601732 | L4: ='[2]Cumulative Stats'!L116 -> 8.023809524 | M4: ='[2]Cumulative Stats'!M116 -> 97.02380952 | N4: ='[2]Cumulative Stats'!N116 -> 24 | O4: 1 | P4: 1 | Q4: Leader based on rating points, minimum of 224 attempts
A5: ='[1]Cumulative Stats'!A116 -> Warner | B5: ARI | C5: ='[1]Cumulative Stats'!C116 -> 567 | D5: ='[1]Cumulative Stats'!D116 -> 376 | E5: ='[1]Cumulative Stats'!E116 -> 66.31393298 | F5: ='[1]Cumulative Stats'!F116 -> 4245 | G5: ='[1]Cumulative Stats'!G116 -> 25 | H5: ='[1]Cumulative Stats'!H116 -> 83 | I5: ='[1]Cumulative Stats'!I116 -> 12 | J5: ='[1]Cumulative Stats'!J116 -> 4.409171076 | K5: ='[1]Cumulative Stats'!K116 -> 2.116402116 | L5: ='[1]Cumulative Stats'!L116 -> 7.486772487 | M5: ='[1]Cumulative Stats'!M116 -> 94.41872428 | N5: ='[1]Cumulative Stats'!N116 -> 39 | O5: 1 | P5: 1
A6: ='[11]Cumulative Stats'!A116 -> McNabb | B6: PHI | C6: ='[11]Cumulative Stats'!C116 -> 569 | D6: ='[11]Cumulative Stats'!D116 -> 352 | E6: ='[11]Cumulative Stats'!E116 -> 61.8629174 | F6: ='[11]Cumulative Stats'!F116 -> 3950 | G6: ='[11]Cumulative Stats'!G116 -> 27 | H6: ='[11]Cumulative Stats'!H116 -> 67 | I6: ='[11]Cumulative Stats'!I116 -> 12 | J6: ='[11]Cumulative Stats'!J116 -> 4.74516696 | K6: ='[11]Cumulative Stats'!K116 -> 2.108963093 | L6: ='[11]Cumulative Stats'!L116 -> 6.942003515 | M6: ='[11]Cumulative Stats'!M116 -> 89.59065612 | N6: ='[11]Cumulative Stats'!N116 -> 30 | O6: 1 | P6: 1
A7: ='[5]Cumulative Stats'!A116 -> Romo | B7: DAL | C7: ='[5]Cumulative Stats'!C116 -> 442 | D7: ='[5]Cumulative Stats'!D116 -> 256 | E7: ='[5]Cumulative Stats'!E116 -> 57.91855204 | F7: ='[5]Cumulative Stats'!F116 -> 3280 | G7: ='[5]Cumulative Stats'!G116 -> 27 | H7: ='[5]Cumulative Stats'!H116 -> 80 | I7: ='[5]Cumulative Stats'!I116 -> 14 | J7: ='[5]Cumulative Stats'!J116 -> 6.108597285 | K7: ='[5]Cumulative Stats'!K116 -> 3.167420814 | L7: ='[5]Cumulative Stats'!L116 -> 7.42081448 | M7: ='[5]Cumulative Stats'!M116 -> 88.43325792 | N7: ='[5]Cumulative Stats'!N116 -> 19 | O7: 1 | P7: 1 | S7: =224/16 -> 14
A8: ='[3]Cumulative Stats'!$A$116 -> Delhomme | B8: CAR | C8: ='[3]Cumulative Stats'!C116 -> 470 | D8: ='[3]Cumulative Stats'!D116 -> 278 | E8: ='[3]Cumulative Stats'!E116 -> 59.14893617 | F8: ='[3]Cumulative Stats'!F116 -> 3680 | G8: ='[3]Cumulative Stats'!G116 -> 23 | H8: ='[3]Cumulative Stats'!H116 -> 60 | I8: ='[3]Cumulative Stats'!I116 -> 15 | J8: ='[3]Cumulative Stats'!J116 -> 4.893617021 | K8: ='[3]Cumulative Stats'!K116 -> 3.191489362 | L8: ='[3]Cumulative Stats'!L116 -> 7.829787234 | M8: ='[3]Cumulative Stats'!M116 -> 87.01241135 | N8: ='[3]Cumulative Stats'!N116 -> 24 | O8: 1 | P8: 1
A9: ='[15]Cumulative Stats'!A116 -> Garcia | B9: TBB | C9: ='[15]Cumulative Stats'!C116 -> 442 | D9: ='[15]Cumulative Stats'!D116 -> 281 | E9: ='[15]Cumulative Stats'!E116 -> 63.57466063 | F9: ='[15]Cumulative Stats'!F116 -> 2868 | G9: ='[15]Cumulative Stats'!G116 -> 14 | H9: ='[15]Cumulative Stats'!H116 -> 47 | I9: ='[15]Cumulative Stats'!I116 -> 7 | J9: ='[15]Cumulative Stats'!J116 -> 3.167420814 | K9: ='[15]Cumulative Stats'!K116 -> 1.583710407 | L9: ='[15]Cumulative Stats'!L116 -> 6.488687783 | M9: ='[15]Cumulative Stats'!M116 -> 86.05769231 | N9: ='[15]Cumulative Stats'!N116 -> 36 | O9: 1 | P9: 1
A10: ='[12]Cumulative Stats'!A116 -> Wallace, S | B10: SEA | C10: ='[12]Cumulative Stats'!C116 -> 264 | D10: ='[12]Cumulative Stats'!D116 -> 143 | E10: ='[12]Cumulative Stats'!E116 -> 54.16666667 | F10: ='[12]Cumulative Stats'!F116 -> 1529 | G10: ='[12]Cumulative Stats'!G116 -> 7 | H10: ='[12]Cumulative Stats'!H116 -> 62 | I10: ='[12]Cumulative Stats'!I116 -> 0 | J10: ='[12]Cumulative Stats'!J116 -> 2.651515152 | K10: ='[12]Cumulative Stats'!K116 -> 0 | L10: ='[12]Cumulative Stats'!L116 -> 5.791666667 | M10: ='[12]Cumulative Stats'!M116 -> 80.19255051 | N10: ='[12]Cumulative Stats'!N116 -> 15 | O10: 1 | P10: 1
A11: ='[13]Cumulative Stats'!A116 -> Hill, S | B11: SFO | C11: ='[13]Cumulative Stats'!C116 -> 285 | D11: ='[13]Cumulative Stats'!D116 -> 164 | E11: ='[13]Cumulative Stats'!E116 -> 57.54385965 | F11: ='[13]Cumulative Stats'!F116 -> 2121 | G11: ='[13]Cumulative Stats'!G116 -> 13 | H11: ='[13]Cumulative Stats'!H116 -> 79 | I11: ='[13]Cumulative Stats'!I116 -> 11 | J11: ='[13]Cumulative Stats'!J116 -> 4.561403509 | K11: ='[13]Cumulative Stats'!K116 -> 3.859649123 | L11: ='[13]Cumulative Stats'!L116 -> 7.442105263 | M11: ='[13]Cumulative Stats'!M116 -> 80.16812865 | N11: ='[13]Cumulative Stats'!N116 -> 20 | O11: 1 | P11: 1
A12: ='[6]Cumulative Stats'!A116 -> Orlovsky | B12: DET | C12: ='[6]Cumulative Stats'!C116 -> 278 | D12: ='[6]Cumulative Stats'!D116 -> 166 | E12: ='[6]Cumulative Stats'!E116 -> 59.71223022 | F12: ='[6]Cumulative Stats'!F116 -> 1784 | G12: ='[6]Cumulative Stats'!G116 -> 11 | H12: ='[6]Cumulative Stats'!H116 -> 52 | I12: ='[6]Cumulative Stats'!I116 -> 8 | J12: ='[6]Cumulative Stats'!J116 -> 3.956834532 | K12: ='[6]Cumulative Stats'!K116 -> 2.877697842 | L12: ='[6]Cumulative Stats'!L116 -> 6.417266187 | M12: ='[6]Cumulative Stats'!M116 -> 79.78117506 | N12: ='[6]Cumulative Stats'!N116 -> 15 | O12: 1 | P12: 1
A13: ='[16]Cumulative Stats'!A116 -> Campbell, J | B13: WAS | C13: ='[16]Cumulative Stats'!C116 -> 490 | D13: ='[16]Cumulative Stats'!D116 -> 273 | E13: ='[16]Cumulative Stats'!E116 -> 55.71428571 | F13: ='[16]Cumulative Stats'!F116 -> 2803 | G13: ='[16]Cumulative Stats'!G116 -> 14 | H13: ='[16]Cumulative Stats'!H116 -> 48 | I13: ='[16]Cumulative Stats'!I116 -> 3 | J13: ='[16]Cumulative Stats'!J116 -> 2.857142857 | K13: ='[16]Cumulative Stats'!K116 -> 0.612244898 | L13: ='[16]Cumulative Stats'!L116 -> 5.720408163 | M13: ='[16]Cumulative Stats'!M116 -> 79.31972789 | N13: ='[16]Cumulative Stats'!N116 -> 53 | O13: 1 | P13: 1
A14: ='[10]Cumulative Stats'!A116 -> Manning | B14: NYG | C14: ='[10]Cumulative Stats'!C116 -> 518 | D14: ='[10]Cumulative Stats'!D116 -> 292 | E14: ='[10]Cumulative Stats'!E116 -> 56.37065637 | F14: ='[10]Cumulative Stats'!F116 -> 3107 | G14: ='[10]Cumulative Stats'!G116 -> 20 | H14: ='[10]Cumulative Stats'!H116 -> 75 | I14: ='[10]Cumulative Stats'!I116 -> 10 | J14: ='[10]Cumulative Stats'!J116 -> 3.861003861 | K14: ='[10]Cumulative Stats'!K116 -> 1.930501931 | L14: ='[10]Cumulative Stats'!L116 -> 5.998069498 | M14: ='[10]Cumulative Stats'!M116 -> 78.87709138 | N14: ='[10]Cumulative Stats'!N116 -> 36 | O14: 1 | P14: 1
A15: ='[8]Cumulative Stats'!A116 -> Frerotte | B15: MIN | C15: ='[8]Cumulative Stats'!C116 -> 303 | D15: ='[8]Cumulative Stats'!D116 -> 166 | E15: ='[8]Cumulative Stats'!E116 -> 54.78547855 | F15: ='[8]Cumulative Stats'!F116 -> 2134 | G15: ='[8]Cumulative Stats'!G116 -> 12 | H15: ='[8]Cumulative Stats'!H116 -> 52 | I15: ='[8]Cumulative Stats'!I116 -> 13 | J15: ='[8]Cumulative Stats'!J116 -> 3.96039604 | K15: ='[8]Cumulative Stats'!K116 -> 4.290429043 | L15: ='[8]Cumulative Stats'!L116 -> 7.04290429 | M15: ='[8]Cumulative Stats'!M116 -> 72.40786579 | N15: ='[8]Cumulative Stats'!N116 -> 41 | O15: 1 | P15: 1
A16: ='[7]Cumulative Stats'!A116 -> Rodgers | B16: GBP | C16: ='[7]Cumulative Stats'!C116 -> 529 | D16: ='[7]Cumulative Stats'!D116 -> 300 | E16: ='[7]Cumulative Stats'!E116 -> 56.71077505 | F16: ='[7]Cumulative Stats'!F116 -> 3371 | G16: ='[7]Cumulative Stats'!G116 -> 21 | H16: ='[7]Cumulative Stats'!H116 -> 92 | I16: ='[7]Cumulative Stats'!I116 -> 22 | J16: ='[7]Cumulative Stats'!J116 -> 3.969754253 | K16: ='[7]Cumulative Stats'!K116 -> 4.15879017 | L16: ='[7]Cumulative Stats'!L116 -> 6.372400756 | M16: ='[7]Cumulative Stats'!M116 -> 71.79820416 | N16: ='[7]Cumulative Stats'!N116 -> 38 | O16: 1 | P16: 1
A17: ='[14]Cumulative Stats'!A116 -> Bulger | B17: STL | C17: ='[14]Cumulative Stats'!C116 -> 449 | D17: ='[14]Cumulative Stats'!D116 -> 238 | E17: ='[14]Cumulative Stats'!E116 -> 53.00668151 | F17: ='[14]Cumulative Stats'!F116 -> 2554 | G17: ='[14]Cumulative Stats'!G116 -> 8 | H17: ='[14]Cumulative Stats'!H116 -> 62 | I17: ='[14]Cumulative Stats'!I116 -> 9 | J17: ='[14]Cumulative Stats'!J116 -> 1.781737194 | K17: ='[14]Cumulative Stats'!K116 -> 2.004454343 | L17: ='[14]Cumulative Stats'!L116 -> 5.688195991 | M17: ='[14]Cumulative Stats'!M116 -> 67.54361544 | N17: ='[14]Cumulative Stats'!N116 -> 41 | O17: 1 | P17: 1
A18: ='[4]Cumulative Stats'!A116 -> Orton | B18: CHI | C18: ='[4]Cumulative Stats'!C116 -> 463 | D18: ='[4]Cumulative Stats'!D116 -> 254 | E18: ='[4]Cumulative Stats'!E116 -> 54.85961123 | F18: ='[4]Cumulative Stats'!F116 -> 2627 | G18: ='[4]Cumulative Stats'!G116 -> 15 | H18: ='[4]Cumulative Stats'!H116 -> 90 | I18: ='[4]Cumulative Stats'!I116 -> 22 | J18: ='[4]Cumulative Stats'!J116 -> 3.239740821 | K18: ='[4]Cumulative Stats'!K116 -> 4.75161987 | L18: ='[4]Cumulative Stats'!L116 -> 5.673866091 | M18: ='[4]Cumulative Stats'!M116 -> 62.44150468 | N18: ='[4]Cumulative Stats'!N116 -> 33 | O18: 1 | P18: 1
A19: ='[13]Cumulative Stats'!A117 -> O'Sullivan | B19: SFO | C19: ='[13]Cumulative Stats'!C117 -> 228 | D19: ='[13]Cumulative Stats'!D117 -> 127 | E19: ='[13]Cumulative Stats'!E117 -> 55.70175439 | F19: ='[13]Cumulative Stats'!F117 -> 1490 | G19: ='[13]Cumulative Stats'!G117 -> 3 | H19: ='[13]Cumulative Stats'!H117 -> 46 | I19: ='[13]Cumulative Stats'!I117 -> 20 | J19: ='[13]Cumulative Stats'!J117 -> 1.315789474 | K19: ='[13]Cumulative Stats'!K117 -> 8.771929825 | L19: ='[13]Cumulative Stats'!L117 -> 6.535087719 | M19: ='[13]Cumulative Stats'!M117 -> 43.56725146 | N19: ='[13]Cumulative Stats'!N117 -> 39 | O19: 1 | P19: 1
A20: ='[6]Cumulative Stats'!A119 -> Stanton | B20: DET | C20: ='[6]Cumulative Stats'!C119 -> 18 | D20: ='[6]Cumulative Stats'!D119 -> 11 | E20: ='[6]Cumulative Stats'!E119 -> 61.11111111 | F20: ='[6]Cumulative Stats'!F119 -> 189 | G20: ='[6]Cumulative Stats'!G119 -> 1 | H20: ='[6]Cumulative Stats'!H119 -> 60 | I20: ='[6]Cumulative Stats'!I119 -> 0 | J20: ='[6]Cumulative Stats'!J119 -> 5.555555556 | K20: ='[6]Cumulative Stats'!K119 -> 0 | L20: ='[6]Cumulative Stats'!L119 -> 10.5 | M20: ='[6]Cumulative Stats'!M119 -> 115.2777778 | N20: ='[6]Cumulative Stats'!N119 -> 6 | O20: 0 | P20: 1 | Q20: Non-Qualifiers
A21: ='[10]Cumulative Stats'!A117 -> Carr | B21: NYG | C21: ='[10]Cumulative Stats'!C117 -> 21 | D21: ='[10]Cumulative Stats'!D117 -> 14 | E21: ='[10]Cumulative Stats'!E117 -> 66.66666667 | F21: ='[10]Cumulative Stats'!F117 -> 125 | G21: ='[10]Cumulative Stats'!G117 -> 1 | H21: ='[10]Cumulative Stats'!H117 -> 14 | I21: ='[10]Cumulative Stats'!I117 -> 0 | J21: ='[10]Cumulative Stats'!J117 -> 4.761904762 | K21: ='[10]Cumulative Stats'!K117 -> 0 | L21: ='[10]Cumulative Stats'!L117 -> 5.952380952 | M21: ='[10]Cumulative Stats'!M117 -> 98.31349206 | N21: ='[10]Cumulative Stats'!N117 -> 2 | O21: 0 | P21: 1
A22: ='[5]Cumulative Stats'!A118 -> Bollinger | B22: DAL | C22: ='[5]Cumulative Stats'!C118 -> 13 | D22: ='[5]Cumulative Stats'!D118 -> 11 | E22: ='[5]Cumulative Stats'!E118 -> 84.61538462 | F22: ='[5]Cumulative Stats'!F118 -> 67 | G22: ='[5]Cumulative Stats'!G118 -> 0 | H22: ='[5]Cumulative Stats'!H118 -> 19 | I22: ='[5]Cumulative Stats'!I118 -> 0 | J22: ='[5]Cumulative Stats'!J118 -> 0 | K22: ='[5]Cumulative Stats'!K118 -> 0 | L22: ='[5]Cumulative Stats'!L118 -> 5.153846154 | M22: ='[5]Cumulative Stats'!M118 -> 88.14102564 | N22: ='[5]Cumulative Stats'!N118 -> 5 | O22: 0 | P22: 1
A23: ='[8]Cumulative Stats'!A117 -> Jackson | B23: MIN | C23: ='[8]Cumulative Stats'!C117 -> 197 | D23: ='[8]Cumulative Stats'!D117 -> 105 | E23: ='[8]Cumulative Stats'!E117 -> 53.29949239 | F23: ='[8]Cumulative Stats'!F117 -> 1263 | G23: ='[8]Cumulative Stats'!G117 -> 11 | H23: ='[8]Cumulative Stats'!H117 -> 91 | I23: ='[8]Cumulative Stats'!I117 -> 2 | J23: ='[8]Cumulative Stats'!J117 -> 5.583756345 | K23: ='[8]Cumulative Stats'!K117 -> 1.015228426 | L23: ='[8]Cumulative Stats'!L117 -> 6.411167513 | M23: ='[8]Cumulative Stats'!M117 -> 87.59517766 | N23: ='[8]Cumulative Stats'!N117 -> 15 | O23: 0 | P23: 1
A24: ='[14]Cumulative Stats'!A117 -> Green | B24: STL | C24: ='[14]Cumulative Stats'!C117 -> 64 | D24: ='[14]Cumulative Stats'!D117 -> 43 | E24: ='[14]Cumulative Stats'!E117 -> 67.1875 | F24: ='[14]Cumulative Stats'!F117 -> 470 | G24: ='[14]Cumulative Stats'!G117 -> 3 | H24: ='[14]Cumulative Stats'!H117 -> 28 | I24: ='[14]Cumulative Stats'!I117 -> 3 | J24: ='[14]Cumulative Stats'!J117 -> 4.6875 | K24: ='[14]Cumulative Stats'!K117 -> 4.6875 | L24: ='[14]Cumulative Stats'!L117 -> 7.34375 | M24: ='[14]Cumulative Stats'!M117 -> 84.765625 | N24: ='[14]Cumulative Stats'!N117 -> 2 | O24: 0 | P24: 1
A25: ='[15]Cumulative Stats'!A117 -> Griese | B25: TBB | C25: ='[15]Cumulative Stats'!C117 -> 115 | D25: ='[15]Cumulative Stats'!D117 -> 63 | E25: ='[15]Cumulative Stats'!E117 -> 54.7826087 | F25: ='[15]Cumulative Stats'!F117 -> 709 | G25: ='[15]Cumulative Stats'!G117 -> 3 | H25: ='[15]Cumulative Stats'!H117 -> 35 | I25: ='[15]Cumulative Stats'!I117 -> 1 | J25: ='[15]Cumulative Stats'!J117 -> 2.608695652 | K25: ='[15]Cumulative Stats'!K117 -> 0.8695652174 | L25: ='[15]Cumulative Stats'!L117 -> 6.165217391 | M25: ='[15]Cumulative Stats'!M117 -> 78.49637681 | N25: ='[15]Cumulative Stats'!N117 -> 4 | O25: 0 | P25: 1
A26: ='[12]Cumulative Stats'!A118 -> Frye | B26: SEA | C26: ='[12]Cumulative Stats'!C118 -> 23 | D26: ='[12]Cumulative Stats'!D118 -> 14 | E26: ='[12]Cumulative Stats'!E118 -> 60.86956522 | F26: ='[12]Cumulative Stats'!F118 -> 90 | G26: ='[12]Cumulative Stats'!G118 -> 0 | H26: ='[12]Cumulative Stats'!H118 -> 25 | I26: ='[12]Cumulative Stats'!I118 -> 0 | J26: ='[12]Cumulative Stats'!J118 -> 0 | K26: ='[12]Cumulative Stats'!K118 -> 0 | L26: ='[12]Cumulative Stats'!L118 -> 3.913043478 | M26: ='[12]Cumulative Stats'!M118 -> 69.11231884 | N26: ='[12]Cumulative Stats'!N118 -> 1 | O26: 0 | P26: 1
A27: ='[6]Cumulative Stats'!A117 -> Kitna | B27: DET | C27: ='[6]Cumulative Stats'!C117 -> 123 | D27: ='[6]Cumulative Stats'!D117 -> 65 | E27: ='[6]Cumulative Stats'!E117 -> 52.84552846 | F27: ='[6]Cumulative Stats'!F117 -> 702 | G27: ='[6]Cumulative Stats'!G117 -> 3 | H27: ='[6]Cumulative Stats'!H117 -> 75 | I27: ='[6]Cumulative Stats'!I117 -> 3 | J27: ='[6]Cumulative Stats'!J117 -> 2.43902439 | K27: ='[6]Cumulative Stats'!K117 -> 2.43902439 | L27: ='[6]Cumulative Stats'!L117 -> 5.707317073 | M27: ='[6]Cumulative Stats'!M117 -> 67.86924119 | N27: ='[6]Cumulative Stats'!N117 -> 14 | O27: 0 | P27: 1
A28: ='[5]Cumulative Stats'!A117 -> Johnson, B | B28: DAL | C28: ='[5]Cumulative Stats'!C117 -> 70 | D28: ='[5]Cumulative Stats'!D117 -> 47 | E28: ='[5]Cumulative Stats'!E117 -> 67.14285714 | F28: ='[5]Cumulative Stats'!F117 -> 415 | G28: ='[5]Cumulative Stats'!G117 -> 0 | H28: ='[5]Cumulative Stats'!H117 -> 23 | I28: ='[5]Cumulative Stats'!I117 -> 4 | J28: ='[5]Cumulative Stats'!J117 -> 0 | K28: ='[5]Cumulative Stats'!K117 -> 5.714285714 | L28: ='[5]Cumulative Stats'!L117 -> 5.928571429 | M28: ='[5]Cumulative Stats'!M117 -> 58.92857143 | N28: ='[5]Cumulative Stats'!N117 -> 12 | O28: 0 | P28: 1
A29: ='[6]Cumulative Stats'!A118 -> Culpepper | B29: DET | C29: ='[6]Cumulative Stats'!C118 -> 116 | D29: ='[6]Cumulative Stats'!D118 -> 64 | E29: ='[6]Cumulative Stats'!E118 -> 55.17241379 | F29: ='[6]Cumulative Stats'!F118 -> 768 | G29: ='[6]Cumulative Stats'!G118 -> 2 | H29: ='[6]Cumulative Stats'!H118 -> 34 | I29: ='[6]Cumulative Stats'!I118 -> 8 | J29: ='[6]Cumulative Stats'!J118 -> 1.724137931 | K29: ='[6]Cumulative Stats'!K118 -> 6.896551724 | L29: ='[6]Cumulative Stats'!L118 -> 6.620689655 | M29: ='[6]Cumulative Stats'!M118 -> 52.65804598 | N29: ='[6]Cumulative Stats'!N118 -> 11 | O29: 0 | P29: 1
A30: ='[1]Cumulative Stats'!A117 -> Leinart | B30: ARI | C30: ='[1]Cumulative Stats'!C117 -> 24 | D30: ='[1]Cumulative Stats'!D117 -> 11 | E30: ='[1]Cumulative Stats'!E117 -> 45.83333333 | F30: ='[1]Cumulative Stats'!F117 -> 141 | G30: ='[1]Cumulative Stats'!G117 -> 0 | H30: ='[1]Cumulative Stats'!H117 -> 25 | I30: ='[1]Cumulative Stats'!I117 -> 1 | J30: ='[1]Cumulative Stats'!J117 -> 0 | K30: ='[1]Cumulative Stats'!K117 -> 4.166666667 | L30: ='[1]Cumulative Stats'!L117 -> 5.875 | M30: ='[1]Cumulative Stats'!M117 -> 47.39583333 | N30: ='[1]Cumulative Stats'!N117 -> 1 | O30: 0 | P30: 1
A31: ='[12]Cumulative Stats'!A117 -> Hasselbeck | B31: SEA | C31: ='[12]Cumulative Stats'!C117 -> 193 | D31: ='[12]Cumulative Stats'!D117 -> 88 | E31: ='[12]Cumulative Stats'!E117 -> 45.59585492 | F31: ='[12]Cumulative Stats'!F117 -> 847 | G31: ='[12]Cumulative Stats'!G117 -> 3 | H31: ='[12]Cumulative Stats'!H117 -> 28 | I31: ='[12]Cumulative Stats'!I117 -> 13 | J31: ='[12]Cumulative Stats'!J117 -> 1.554404145 | K31: ='[12]Cumulative Stats'!K117 -> 6.735751295 | L31: ='[12]Cumulative Stats'!L117 -> 4.388601036 | M31: ='[12]Cumulative Stats'!M117 -> 35.48143351 | N31: ='[12]Cumulative Stats'!N117 -> 22 | O31: 0 | P31: 1
A32: ='[4]Cumulative Stats'!A117 -> Grossman | B32: CHI | C32: ='[4]Cumulative Stats'!C117 -> 61 | D32: ='[4]Cumulative Stats'!D117 -> 26 | E32: ='[4]Cumulative Stats'!E117 -> 42.62295082 | F32: ='[4]Cumulative Stats'!F117 -> 219 | G32: ='[4]Cumulative Stats'!G117 -> 0 | H32: ='[4]Cumulative Stats'!H117 -> 28 | I32: ='[4]Cumulative Stats'!I117 -> 5 | J32: ='[4]Cumulative Stats'!J117 -> 0 | K32: ='[4]Cumulative Stats'!K117 -> 8.196721311 | L32: ='[4]Cumulative Stats'!L117 -> 3.590163934 | M32: ='[4]Cumulative Stats'!M117 -> 18.40846995 | N32: ='[4]Cumulative Stats'!N117 -> 4 | O32: 0 | P32: 1
A33: ='[11]Cumulative Stats'!A117 -> Kolb | B33: PHI | C33: ='[11]Cumulative Stats'!C117 -> 20 | D33: ='[11]Cumulative Stats'!D117 -> 8 | E33: ='[11]Cumulative Stats'!E117 -> 40 | F33: ='[11]Cumulative Stats'!F117 -> 96 | G33: ='[11]Cumulative Stats'!G117 -> 0 | H33: ='[11]Cumulative Stats'!H117 -> 20 | I33: ='[11]Cumulative Stats'!I117 -> 2 | J33: ='[11]Cumulative Stats'!J117 -> 0 | K33: ='[11]Cumulative Stats'!K117 -> 10 | L33: ='[11]Cumulative Stats'!L117 -> 4.8 | M33: ='[11]Cumulative Stats'!M117 -> 15.83333333 | N33: ='[11]Cumulative Stats'!N117 -> 0 | O33: 0 | P33: 1
A34: ='[14]Cumulative Stats'!A118 -> Looker | B34: STL | C34: ='[14]Cumulative Stats'!C118 -> 3 | D34: ='[14]Cumulative Stats'!D118 -> 1 | E34: ='[14]Cumulative Stats'!E118 -> 33.33333333 | F34: ='[14]Cumulative Stats'!F118 -> 25 | G34: ='[14]Cumulative Stats'!G118 -> 0 | H34: ='[14]Cumulative Stats'!H118 -> 25 | I34: ='[14]Cumulative Stats'!I118 -> 0 | J34: ='[14]Cumulative Stats'!J118 -> 0 | K34: ='[14]Cumulative Stats'!K118 -> 0 | L34: ='[14]Cumulative Stats'!L118 -> 8.333333333 | M34: ='[14]Cumulative Stats'!M118 -> 64.58333333 | N34: ='[14]Cumulative Stats'!N118 -> 0 | O34: 0 | P34: 0 | Q34: Less than 10 attempts
A35: ='[7]Cumulative Stats'!A117 -> Flynn | B35: GBP | C35: ='[7]Cumulative Stats'!C117 -> 3 | D35: ='[7]Cumulative Stats'!D117 -> 1 | E35: ='[7]Cumulative Stats'!E117 -> 33.33333333 | F35: ='[7]Cumulative Stats'!F117 -> 10 | G35: ='[7]Cumulative Stats'!G117 -> 0 | H35: ='[7]Cumulative Stats'!H117 -> 10 | I35: ='[7]Cumulative Stats'!I117 -> 0 | J35: ='[7]Cumulative Stats'!J117 -> 0 | K35: ='[7]Cumulative Stats'!K117 -> 0 | L35: ='[7]Cumulative Stats'!L117 -> 3.333333333 | M35: ='[7]Cumulative Stats'!M117 -> 43.75 | N35: ='[7]Cumulative Stats'!N117 -> 0 | O35: =IF(C35>=$C$1*14,1,IF(C35+N35=0,-1,0)) -> 0 | P35: =IF(C35>=$D$1*$C$1,1,0) -> 0
A36: ='[16]Cumulative Stats'!A117 -> Randle El | B36: WAS | C36: ='[16]Cumulative Stats'!C117 -> 2 | D36: ='[16]Cumulative Stats'!D117 -> 2 | E36: ='[16]Cumulative Stats'!E117 -> 100 | F36: ='[16]Cumulative Stats'!F117 -> 75 | G36: ='[16]Cumulative Stats'!G117 -> 1 | H36: ='[16]Cumulative Stats'!H117 -> 47 | I36: ='[16]Cumulative Stats'!I117 -> 0 | J36: ='[16]Cumulative Stats'!J117 -> 50 | K36: ='[16]Cumulative Stats'!K117 -> 0 | L36: ='[16]Cumulative Stats'!L117 -> 37.5 | M36: ='[16]Cumulative Stats'!M117 -> 158.3333333 | N36: ='[16]Cumulative Stats'!N117 -> 0 | O36: 0 | P36: 0
A37: ='[1]Cumulative Stats'!A118 -> Arrington | B37: ARI | C37: ='[1]Cumulative Stats'!C118 -> 1 | D37: ='[1]Cumulative Stats'!D118 -> 1 | E37: ='[1]Cumulative Stats'!E118 -> 100 | F37: ='[1]Cumulative Stats'!F118 -> 25 | G37: ='[1]Cumulative Stats'!G118 -> 0 | H37: ='[1]Cumulative Stats'!H118 -> 25 | I37: ='[1]Cumulative Stats'!I118 -> 0 | J37: ='[1]Cumulative Stats'!J118 -> 0 | K37: ='[1]Cumulative Stats'!K118 -> 0 | L37: ='[1]Cumulative Stats'!L118 -> 25 | M37: ='[1]Cumulative Stats'!M118 -> 118.75 | N37: ='[1]Cumulative Stats'!N118 -> 0 | O37: 0 | P37: 0
A38: ='[1]Cumulative Stats'!A119 -> Johnson, D | B38: ARI | C38: ='[1]Cumulative Stats'!C119 -> 1 | D38: ='[1]Cumulative Stats'!D119 -> 1 | E38: ='[1]Cumulative Stats'!E119 -> 100 | F38: ='[1]Cumulative Stats'!F119 -> 28 | G38: ='[1]Cumulative Stats'!G119 -> 0 | H38: ='[1]Cumulative Stats'!H119 -> 28 | I38: ='[1]Cumulative Stats'!I119 -> 0 | J38: ='[1]Cumulative Stats'!J119 -> 0 | K38: ='[1]Cumulative Stats'!K119 -> 0 | L38: ='[1]Cumulative Stats'!L119 -> 28 | M38: ='[1]Cumulative Stats'!M119 -> 118.75 | N38: ='[1]Cumulative Stats'!N119 -> 0 | O38: 0 | P38: 0
A39: ='[8]Cumulative Stats'!A118 -> Taylor | B39: MIN | C39: ='[8]Cumulative Stats'!C118 -> 1 | D39: ='[8]Cumulative Stats'!D118 -> 1 | E39: ='[8]Cumulative Stats'!E118 -> 100 | F39: ='[8]Cumulative Stats'!F118 -> 25 | G39: ='[8]Cumulative Stats'!G118 -> 0 | H39: ='[8]Cumulative Stats'!H118 -> 25 | I39: ='[8]Cumulative Stats'!I118 -> 0 | J39: ='[8]Cumulative Stats'!J118 -> 0 | K39: ='[8]Cumulative Stats'!K118 -> 0 | L39: ='[8]Cumulative Stats'!L118 -> 25 | M39: ='[8]Cumulative Stats'!M118 -> 118.75 | N39: ='[8]Cumulative Stats'!N118 -> 0 | O39: 0 | P39: 0
A40: ='[1]Cumulative Stats'!A120 -> Urban | B40: ARI | C40: ='[1]Cumulative Stats'!C120 -> 1 | D40: ='[1]Cumulative Stats'!D120 -> 1 | E40: ='[1]Cumulative Stats'!E120 -> 100 | F40: ='[1]Cumulative Stats'!F120 -> 6 | G40: ='[1]Cumulative Stats'!G120 -> 0 | H40: ='[1]Cumulative Stats'!H120 -> 6 | I40: ='[1]Cumulative Stats'!I120 -> 0 | J40: ='[1]Cumulative Stats'!J120 -> 0 | K40: ='[1]Cumulative Stats'!K120 -> 0 | L40: ='[1]Cumulative Stats'!L120 -> 6 | M40: ='[1]Cumulative Stats'!M120 -> 91.66666667 | N40: ='[1]Cumulative Stats'!N120 -> 0 | O40: 0 | P40: 0
A41: ='[8]Cumulative Stats'!A119 -> Rice | B41: MIN | C41: ='[8]Cumulative Stats'!C119 -> 1 | D41: ='[8]Cumulative Stats'!D119 -> 1 | E41: ='[8]Cumulative Stats'!E119 -> 100 | F41: ='[8]Cumulative Stats'!F119 -> 3 | G41: ='[8]Cumulative Stats'!G119 -> 0 | H41: ='[8]Cumulative Stats'!H119 -> 3 | I41: ='[8]Cumulative Stats'!I119 -> 0 | J41: ='[8]Cumulative Stats'!J119 -> 0 | K41: ='[8]Cumulative Stats'!K119 -> 0 | L41: ='[8]Cumulative Stats'!L119 -> 3 | M41: ='[8]Cumulative Stats'!M119 -> 79.16666667 | N41: ='[8]Cumulative Stats'!N119 -> 0 | O41: 0 | P41: 0
A42: ='[14]Cumulative Stats'!A119 -> Hall, D | B42: STL | C42: ='[14]Cumulative Stats'!C119 -> 1 | D42: ='[14]Cumulative Stats'!D119 -> 0 | E42: ='[14]Cumulative Stats'!E119 -> 0 | F42: ='[14]Cumulative Stats'!F119 -> 0 | G42: ='[14]Cumulative Stats'!G119 -> 0 | H42: ='[14]Cumulative Stats'!H119 -> 0 | I42: ='[14]Cumulative Stats'!I119 -> 1 | J42: ='[14]Cumulative Stats'!J119 -> 0 | K42: ='[14]Cumulative Stats'!K119 -> 100 | L42: ='[14]Cumulative Stats'!L119 -> 0 | M42: ='[14]Cumulative Stats'!M119 -> 0 | N42: ='[14]Cumulative Stats'!N119 -> 0 | O42: 0 | P42: 0
A43: ='[11]Cumulative Stats'!A118 -> Jackson, D | B43: PHI | C43: ='[11]Cumulative Stats'!C118 -> 1 | D43: ='[11]Cumulative Stats'!D118 -> 0 | E43: ='[11]Cumulative Stats'!E118 -> 0 | F43: ='[11]Cumulative Stats'!F118 -> 0 | G43: ='[11]Cumulative Stats'!G118 -> 0 | H43: ='[11]Cumulative Stats'!H118 -> 0 | I43: ='[11]Cumulative Stats'!I118 -> 1 | J43: ='[11]Cumulative Stats'!J118 -> 0 | K43: ='[11]Cumulative Stats'!K118 -> 100 | L43: ='[11]Cumulative Stats'!L118 -> 0 | M43: ='[11]Cumulative Stats'!M118 -> 0 | N43: ='[11]Cumulative Stats'!N118 -> 0 | O43: 0 | P43: 0
O44: -1 | P44: 0
O45: -1 | P45: 0
O46: -1 | P46: 0
O47: -1 | P47: 0
O48: -1 | P48: 0
O49: -1 | P49: 0
O50: -1 | P50: 0
O51: -1 | P51: 0
O52: -1 | P52: 0
O53: -1 | P53: 0
O54: -1 | P54: 0
O55: -1 | P55: 0
O56: -1 | P56: 0
O57: -1 | P57: 0
O58: -1 | P58: 0
O59: -1 | P59: 0
O60: -1 | P60: 0
O61: -1 | P61: 0

Sheet Punt Returns
A1: Punt Returns: | B1: Team | C1: No. | D1: FC | E1: Yrds | F1: Avg. | G1: Long | H1: TD
A2: ='[15]Cumulative Stats'!A125 -> Smith, C | B2: TBB | C2: ='[15]Cumulative Stats'!C125 -> 23 | D2: ='[15]Cumulative Stats'!D125 -> 2 | E2: ='[15]Cumulative Stats'!E125 -> 420 | F2: ='[15]Cumulative Stats'!F125 -> 18.26086957 | G2: ='[15]Cumulative Stats'!G125 -> 79 | H2: ='[15]Cumulative Stats'!H125 -> 1 | I2: =IF(C2>=Passing!$C$1*1.25,1,IF(C2+D2=0,-1,0)) -> 1 | J2: =IF(C2>0,1,0) -> 1
A3: ='[5]Cumulative Stats'!A125 -> Crayton | B3: DAL | C3: ='[5]Cumulative Stats'!C125 -> 26 | D3: ='[5]Cumulative Stats'!D125 -> 16 | E3: ='[5]Cumulative Stats'!E125 -> 357 | F3: ='[5]Cumulative Stats'!F125 -> 13.73076923 | G3: ='[5]Cumulative Stats'!G125 -> 35 | H3: ='[5]Cumulative Stats'!H125 -> 0 | I3: =IF(C3>=Passing!$C$1*1.25,1,IF(C3+D3=0,-1,0)) -> 1 | J3: =IF(C3>0,1,0) -> 1
A4: ='[7]Cumulative Stats'!A125 -> Blackmon | B4: GBP | C4: ='[7]Cumulative Stats'!C125 -> 39 | D4: ='[7]Cumulative Stats'!D125 -> 9 | E4: ='[7]Cumulative Stats'!E125 -> 490 | F4: ='[7]Cumulative Stats'!F125 -> 12.56410256 | G4: ='[7]Cumulative Stats'!G125 -> 54 | H4: ='[7]Cumulative Stats'!H125 -> 2 | I4: =IF(C4>=Passing!$C$1*1.25,1,IF(C4+D4=0,-1,0)) -> 1 | J4: =IF(C4>0,1,0) -> 1 | M4: Leader based on average return, minimum 20 returns
A5: ='[3]Cumulative Stats'!A125 -> Jones | B5: CAR | C5: ='[3]Cumulative Stats'!C125 -> 37 | D5: ='[3]Cumulative Stats'!D125 -> 18 | E5: ='[3]Cumulative Stats'!E125 -> 437 | F5: ='[3]Cumulative Stats'!F125 -> 11.81081081 | G5: ='[3]Cumulative Stats'!G125 -> 54 | H5: ='[3]Cumulative Stats'!H125 -> 0 | I5: =IF(C5>=Passing!$C$1*1.25,1,IF(C5+D5=0,-1,0)) -> 1 | J5: =IF(C5>0,1,0) -> 1
A6: ='[2]Cumulative Stats'!A125 -> Douglas | B6: ATL | C6: ='[2]Cumulative Stats'!C125 -> 30 | D6: ='[2]Cumulative Stats'!D125 -> 2 | E6: ='[2]Cumulative Stats'!E125 -> 333 | F6: ='[2]Cumulative Stats'!F125 -> 11.1 | G6: ='[2]Cumulative Stats'!G125 -> 30 | H6: ='[2]Cumulative Stats'!H125 -> 0 | I6: =IF(C6>=Passing!$C$1*1.25,1,IF(C6+D6=0,-1,0)) -> 1 | J6: =IF(C6>0,1,0) -> 1 | L6: =20/16 -> 1.25
A7: ='[11]Cumulative Stats'!A125 -> Jackson, D | B7: PHI | C7: ='[11]Cumulative Stats'!C125 -> 63 | D7: ='[11]Cumulative Stats'!D125 -> 16 | E7: ='[11]Cumulative Stats'!E125 -> 674 | F7: ='[11]Cumulative Stats'!F125 -> 10.6984127 | G7: ='[11]Cumulative Stats'!G125 -> 74 | H7: ='[11]Cumulative Stats'!H125 -> 4 | I7: =IF(C7>=Passing!$C$1*1.25,1,IF(C7+D7=0,-1,0)) -> 1 | J7: =IF(C7>0,1,0) -> 1
A8: ='[10]Cumulative Stats'!A125 -> Hixon | B8: NYG | C8: ='[10]Cumulative Stats'!C125 -> 36 | D8: ='[10]Cumulative Stats'!D125 -> 14 | E8: ='[10]Cumulative Stats'!E125 -> 376 | F8: ='[10]Cumulative Stats'!F125 -> 10.44444444 | G8: ='[10]Cumulative Stats'!G125 -> 54 | H8: ='[10]Cumulative Stats'!H125 -> 0 | I8: =IF(C8>=Passing!$C$1*1.25,1,IF(C8+D8=0,-1,0)) -> 1 | J8: =IF(C8>0,1,0) -> 1
A9: ='[9]Cumulative Stats'!A125 -> Bush | B9: NOS | C9: ='[9]Cumulative Stats'!C125 -> 27 | D9: ='[9]Cumulative Stats'!D125 -> 4 | E9: ='[9]Cumulative Stats'!E125 -> 269 | F9: ='[9]Cumulative Stats'!F125 -> 9.962962963 | G9: ='[9]Cumulative Stats'!G125 -> 83 | H9: ='[9]Cumulative Stats'!H125 -> 2 | I9: =IF(C9>=Passing!$C$1*1.25,1,IF(C9+D9=0,-1,0)) -> 1 | J9: =IF(C9>0,1,0) -> 1
A10: ='[12]Cumulative Stats'!A125 -> Forsett | B10: SEA | C10: ='[12]Cumulative Stats'!C125 -> 22 | D10: ='[12]Cumulative Stats'!D125 -> 6 | E10: ='[12]Cumulative Stats'!E125 -> 190 | F10: ='[12]Cumulative Stats'!F125 -> 8.636363636 | G10: ='[12]Cumulative Stats'!G125 -> 30 | H10: ='[12]Cumulative Stats'!H125 -> 0 | I10: =IF(C10>=Passing!$C$1*1.25,1,IF(C10+D10=0,-1,0)) -> 1 | J10: =IF(C10>0,1,0) -> 1
A11: ='[4]Cumulative Stats'!A125 -> Hester | B11: CHI | C11: ='[4]Cumulative Stats'!C125 -> 43 | D11: ='[4]Cumulative Stats'!D125 -> 6 | E11: ='[4]Cumulative Stats'!E125 -> 350 | F11: ='[4]Cumulative Stats'!F125 -> 8.139534884 | G11: ='[4]Cumulative Stats'!G125 -> 26 | H11: ='[4]Cumulative Stats'!H125 -> 0 | I11: =IF(C11>=Passing!$C$1*1.25,1,IF(C11+D11=0,-1,0)) -> 1 | J11: =IF(C11>0,1,0) -> 1
A12: ='[6]Cumulative Stats'!A125 -> McDonald | B12: DET | C12: ='[6]Cumulative Stats'!C125 -> 21 | D12: ='[6]Cumulative Stats'!D125 -> 7 | E12: ='[6]Cumulative Stats'!E125 -> 170 | F12: ='[6]Cumulative Stats'!F125 -> 8.095238095 | G12: ='[6]Cumulative Stats'!G125 -> 22 | H12: ='[6]Cumulative Stats'!H125 -> 0 | I12: =IF(C12>=Passing!$C$1*1.25,1,IF(C12+D12=0,-1,0)) -> 1 | J12: =IF(C12>0,1,0) -> 1
A13: ='[1]Cumulative Stats'!$A$125 -> Breaston | B13: ARI | C13: ='[1]Cumulative Stats'!C125 -> 37 | D13: ='[1]Cumulative Stats'!D125 -> 10 | E13: ='[1]Cumulative Stats'!E125 -> 264 | F13: ='[1]Cumulative Stats'!F125 -> 7.135135135 | G13: ='[1]Cumulative Stats'!G125 -> 26 | H13: ='[1]Cumulative Stats'!H125 -> 0 | I13: =IF(C13>=Passing!$C$1*1.25,1,IF(C13+D13=0,-1,0)) -> 1 | J13: =IF(C13>0,1,0) -> 1
A14: ='[16]Cumulative Stats'!A125 -> Randle El | B14: WAS | C14: ='[16]Cumulative Stats'!C125 -> 22 | D14: ='[16]Cumulative Stats'!D125 -> 14 | E14: ='[16]Cumulative Stats'!E125 -> 143 | F14: ='[16]Cumulative Stats'!F125 -> 6.5 | G14: ='[16]Cumulative Stats'!G125 -> 35 | H14: ='[16]Cumulative Stats'!H125 -> 0 | I14: =IF(C14>=Passing!$C$1*1.25,1,IF(C14+D14=0,-1,0)) -> 1 | J14: =IF(C14>0,1,0) -> 1
A15: ='[2]Cumulative Stats'!A126 -> Jennings | B15: ATL | C15: ='[2]Cumulative Stats'!C126 -> 25 | D15: ='[2]Cumulative Stats'!D126 -> 5 | E15: ='[2]Cumulative Stats'!E126 -> 156 | F15: ='[2]Cumulative Stats'!F126 -> 6.24 | G15: ='[2]Cumulative Stats'!G126 -> 22 | H15: ='[2]Cumulative Stats'!H126 -> 0 | I15: =IF(C15>=Passing!$C$1*1.25,1,IF(C15+D15=0,-1,0)) -> 1 | J15: =IF(C15>0,1,0) -> 1
A16: ='[5]Cumulative Stats'!A126 -> Jones, A | B16: DAL | C16: ='[5]Cumulative Stats'!C126 -> 22 | D16: ='[5]Cumulative Stats'!D126 -> 0 | E16: ='[5]Cumulative Stats'!E126 -> 128 | F16: ='[5]Cumulative Stats'!F126 -> 5.818181818 | G16: ='[5]Cumulative Stats'!G126 -> 18 | H16: ='[5]Cumulative Stats'!H126 -> 0 | I16: =IF(C16>=Passing!$C$1*1.25,1,IF(C16+D16=0,-1,0)) -> 1 | J16: =IF(C16>0,1,0) -> 1
A17: ='[15]Cumulative Stats'!A126 -> Jackson, D | B17: TBB | C17: ='[15]Cumulative Stats'!C126 -> 22 | D17: ='[15]Cumulative Stats'!D126 -> 0 | E17: ='[15]Cumulative Stats'!E126 -> 109 | F17: ='[15]Cumulative Stats'!F126 -> 4.954545455 | G17: ='[15]Cumulative Stats'!G126 -> 14 | H17: ='[15]Cumulative Stats'!H126 -> 0 | I17: =IF(C17>=Passing!$C$1*1.25,1,IF(C17+D17=0,-1,0)) -> 1 | J17: =IF(C17>0,1,0) -> 1
A18: ='[14]Cumulative Stats'!A125 -> Stanley | B18: STL | C18: ='[14]Cumulative Stats'!C125 -> 19 | D18: ='[14]Cumulative Stats'!D125 -> 3 | E18: ='[14]Cumulative Stats'!E125 -> 122 | F18: ='[14]Cumulative Stats'!F125 -> 6.421052632 | G18: ='[14]Cumulative Stats'!G125 -> 22 | H18: ='[14]Cumulative Stats'!H125 -> 0 | I18: =IF(C18>=Passing!$C$1*1.25,1,IF(C18+D18=0,-1,0)) -> 0 | J18: =IF(C18>0,1,0) -> 1 | K18: Non-Qualifiers
A19: ='[9]Cumulative Stats'!A126 -> Moore | B19: NOS | C19: ='[9]Cumulative Stats'!C126 -> 18 | D19: ='[9]Cumulative Stats'!D126 -> 14 | E19: ='[9]Cumulative Stats'!E126 -> 110 | F19: ='[9]Cumulative Stats'!F126 -> 6.111111111 | G19: ='[9]Cumulative Stats'!G126 -> 23 | H19: ='[9]Cumulative Stats'!H126 -> 0 | I19: =IF(C19>=Passing!$C$1*1.25,1,IF(C19+D19=0,-1,0)) -> 0 | J19: =IF(C19>0,1,0) -> 1
A20: ='[8]Cumulative Stats'!A127 -> Allison | B20: MIN | C20: ='[8]Cumulative Stats'!C127 -> 16 | D20: ='[8]Cumulative Stats'!D127 -> 4 | E20: ='[8]Cumulative Stats'!E127 -> 161 | F20: ='[8]Cumulative Stats'!F127 -> 10.0625 | G20: ='[8]Cumulative Stats'!G127 -> 27 | H20: ='[8]Cumulative Stats'!H127 -> 0 | I20: =IF(C20>=Passing!$C$1*1.25,1,IF(C20+D20=0,-1,0)) -> 0 | J20: =IF(C20>0,1,0) -> 1
A21: ='[8]Cumulative Stats'!A128 -> Berrian | B21: MIN | C21: ='[8]Cumulative Stats'!C128 -> 16 | D21: ='[8]Cumulative Stats'!D128 -> 6 | E21: ='[8]Cumulative Stats'!E128 -> 129 | F21: ='[8]Cumulative Stats'!F128 -> 8.0625 | G21: ='[8]Cumulative Stats'!G128 -> 77 | H21: ='[8]Cumulative Stats'!H128 -> 0 | I21: =IF(C21>=Passing!$C$1*1.25,1,IF(C21+D21=0,-1,0)) -> 0 | J21: =IF(C21>0,1,0) -> 1
A22: ='[13]Cumulative Stats'!A125 -> Clements | B22: SFO | C22: ='[13]Cumulative Stats'!C125 -> 16 | D22: ='[13]Cumulative Stats'!D125 -> 0 | E22: ='[13]Cumulative Stats'!E125 -> 93 | F22: ='[13]Cumulative Stats'!F125 -> 5.8125 | G22: ='[13]Cumulative Stats'!G125 -> 16 | H22: ='[13]Cumulative Stats'!H125 -> 0 | I22: =IF(C22>=Passing!$C$1*1.25,1,IF(C22+D22=0,-1,0)) -> 0 | J22: =IF(C22>0,1,0) -> 1
A23: ='[13]Cumulative Stats'!A126 -> Rossum | B23: SFO | C23: ='[13]Cumulative Stats'!C126 -> 15 | D23: ='[13]Cumulative Stats'!D126 -> 6 | E23: ='[13]Cumulative Stats'!E126 -> 174 | F23: ='[13]Cumulative Stats'!F126 -> 11.6 | G23: ='[13]Cumulative Stats'!G126 -> 35 | H23: ='[13]Cumulative Stats'!H126 -> 0 | I23: =IF(C23>=Passing!$C$1*1.25,1,IF(C23+D23=0,-1,0)) -> 0 | J23: =IF(C23>0,1,0) -> 1
A24: ='[8]Cumulative Stats'!A126 -> Gordon | B24: MIN | C24: ='[8]Cumulative Stats'!C126 -> 14 | D24: ='[8]Cumulative Stats'!D126 -> 7 | E24: ='[8]Cumulative Stats'!E126 -> 91 | F24: ='[8]Cumulative Stats'!F126 -> 6.5 | G24: ='[8]Cumulative Stats'!G126 -> 22 | H24: ='[8]Cumulative Stats'!H126 -> 0 | I24: =IF(C24>=Passing!$C$1*1.25,1,IF(C24+D24=0,-1,0)) -> 0 | J24: =IF(C24>0,1,0) -> 1
A25: ='[14]Cumulative Stats'!A126 -> Hall, D | B25: STL | C25: ='[14]Cumulative Stats'!C126 -> 13 | D25: ='[14]Cumulative Stats'!D126 -> 1 | E25: ='[14]Cumulative Stats'!E126 -> 151 | F25: ='[14]Cumulative Stats'!F126 -> 11.61538462 | G25: ='[14]Cumulative Stats'!G126 -> 35 | H25: ='[14]Cumulative Stats'!H126 -> 0 | I25: =IF(C25>=Passing!$C$1*1.25,1,IF(C25+D25=0,-1,0)) -> 0 | J25: =IF(C25>0,1,0) -> 1
A26: ='[6]Cumulative Stats'!A126 -> Cason | B26: DET | C26: ='[6]Cumulative Stats'!C126 -> 11 | D26: ='[6]Cumulative Stats'!D126 -> 0 | E26: ='[6]Cumulative Stats'!E126 -> 108 | F26: ='[6]Cumulative Stats'!F126 -> 9.818181818 | G26: ='[6]Cumulative Stats'!G126 -> 14 | H26: ='[6]Cumulative Stats'!H126 -> 0 | I26: =IF(C26>=Passing!$C$1*1.25,1,IF(C26+D26=0,-1,0)) -> 0 | J26: =IF(C26>0,1,0) -> 1
A27: ='[4]Cumulative Stats'!A126 -> Vasher | B27: CHI | C27: ='[4]Cumulative Stats'!C126 -> 11 | D27: ='[4]Cumulative Stats'!D126 -> 2 | E27: ='[4]Cumulative Stats'!E126 -> 95 | F27: ='[4]Cumulative Stats'!F126 -> 8.636363636 | G27: ='[4]Cumulative Stats'!G126 -> 22 | H27: ='[4]Cumulative Stats'!H126 -> 0 | I27: =IF(C27>=Passing!$C$1*1.25,1,IF(C27+D27=0,-1,0)) -> 0 | J27: =IF(C27>0,1,0) -> 1
A28: ='[10]Cumulative Stats'!A126 -> McQuarters | B28: NYG | C28: ='[10]Cumulative Stats'!C126 -> 11 | D28: ='[10]Cumulative Stats'!D126 -> 2 | E28: ='[10]Cumulative Stats'!E126 -> 88 | F28: ='[10]Cumulative Stats'!F126 -> 8 | G28: ='[10]Cumulative Stats'!G126 -> 14 | H28: ='[10]Cumulative Stats'!H126 -> 0 | I28: =IF(C28>=Passing!$C$1*1.25,1,IF(C28+D28=0,-1,0)) -> 0 | J28: =IF(C28>0,1,0) -> 1
A29: ='[14]Cumulative Stats'!A127 -> Looker | B29: STL | C29: ='[14]Cumulative Stats'!C127 -> 9 | D29: ='[14]Cumulative Stats'!D127 -> 5 | E29: ='[14]Cumulative Stats'!E127 -> 52 | F29: ='[14]Cumulative Stats'!F127 -> 5.777777778 | G29: ='[14]Cumulative Stats'!G127 -> 9 | H29: ='[14]Cumulative Stats'!H127 -> 0 | I29: =IF(C29>=Passing!$C$1*1.25,1,IF(C29+D29=0,-1,0)) -> 0 | J29: =IF(C29>0,1,0) -> 1
A30: ='[16]Cumulative Stats'!A126 -> Moss | B30: WAS | C30: ='[16]Cumulative Stats'!C126 -> 8 | D30: ='[16]Cumulative Stats'!D126 -> 0 | E30: ='[16]Cumulative Stats'!E126 -> 82 | F30: ='[16]Cumulative Stats'!F126 -> 10.25 | G30: ='[16]Cumulative Stats'!G126 -> 26 | H30: ='[16]Cumulative Stats'!H126 -> 0 | I30: =IF(C30>=Passing!$C$1*1.25,1,IF(C30+D30=0,-1,0)) -> 0 | J30: =IF(C30>0,1,0) -> 1
A31: ='[8]Cumulative Stats'!A125 -> Wade | B31: MIN | C31: ='[8]Cumulative Stats'!C125 -> 6 | D31: ='[8]Cumulative Stats'!D125 -> 4 | E31: ='[8]Cumulative Stats'!E125 -> 72 | F31: ='[8]Cumulative Stats'!F125 -> 12 | G31: ='[8]Cumulative Stats'!G125 -> 18 | H31: ='[8]Cumulative Stats'!H125 -> 0 | I31: =IF(C31>=Passing!$C$1*1.25,1,IF(C31+D31=0,-1,0)) -> 0 | J31: =IF(C31>0,1,0) -> 1
A32: ='[6]Cumulative Stats'!A127 -> Furrey | B32: DET | C32: ='[6]Cumulative Stats'!C127 -> 6 | D32: ='[6]Cumulative Stats'!D127 -> 2 | E32: ='[6]Cumulative Stats'!E127 -> 30 | F32: ='[6]Cumulative Stats'!F127 -> 5 | G32: ='[6]Cumulative Stats'!G127 -> 6 | H32: ='[6]Cumulative Stats'!H127 -> 0 | I32: =IF(C32>=Passing!$C$1*1.25,1,IF(C32+D32=0,-1,0)) -> 0 | J32: =IF(C32>0,1,0) -> 1
A33: ='[13]Cumulative Stats'!A127 -> Battle | B33: SFO | C33: ='[13]Cumulative Stats'!C127 -> 6 | D33: ='[13]Cumulative Stats'!D127 -> 1 | E33: ='[13]Cumulative Stats'!E127 -> 23 | F33: ='[13]Cumulative Stats'!F127 -> 3.833333333 | G33: ='[13]Cumulative Stats'!G127 -> 17 | H33: ='[13]Cumulative Stats'!H127 -> 0 | I33: =IF(C33>=Passing!$C$1*1.25,1,IF(C33+D33=0,-1,0)) -> 0 | J33: =IF(C33>0,1,0) -> 1
A34: ='[12]Cumulative Stats'!A126 -> Bumpus | B34: SEA | C34: ='[12]Cumulative Stats'!C126 -> 4 | D34: ='[12]Cumulative Stats'!D126 -> 4 | E34: ='[12]Cumulative Stats'!E126 -> 41 | F34: ='[12]Cumulative Stats'!F126 -> 10.25 | G34: ='[12]Cumulative Stats'!G126 -> 22 | H34: ='[12]Cumulative Stats'!H126 -> 0 | I34: =IF(C34>=Passing!$C$1*1.25,1,IF(C34+D34=0,-1,0)) -> 0 | J34: =IF(C34>0,1,0) -> 1
A35: ='[15]Cumulative Stats'!A127 -> Hilliard | B35: TBB | C35: ='[15]Cumulative Stats'!C127 -> 4 | D35: ='[15]Cumulative Stats'!D127 -> 6 | E35: ='[15]Cumulative Stats'!E127 -> 26 | F35: ='[15]Cumulative Stats'!F127 -> 6.5 | G35: ='[15]Cumulative Stats'!G127 -> 11 | H35: ='[15]Cumulative Stats'!H127 -> 0 | I35: =IF(C35>=Passing!$C$1*1.25,1,IF(C35+D35=0,-1,0)) -> 0 | J35: =IF(C35>0,1,0) -> 1
A36: ='[10]Cumulative Stats'!A127 -> Bradshaw | B36: NYG | C36: ='[10]Cumulative Stats'!C127 -> 2 | D36: ='[10]Cumulative Stats'!D127 -> 1 | E36: ='[10]Cumulative Stats'!E127 -> 12 | F36: ='[10]Cumulative Stats'!F127 -> 6 | G36: ='[10]Cumulative Stats'!G127 -> 7 | H36: ='[10]Cumulative Stats'!H127 -> 0 | I36: =IF(C36>=Passing!$C$1*1.25,1,IF(C36+D36=0,-1,0)) -> 0 | J36: =IF(C36>0,1,0) -> 1
A37: ='[12]Cumulative Stats'!A127 -> Engram | B37: SEA | C37: ='[12]Cumulative Stats'!C127 -> 2 | D37: ='[12]Cumulative Stats'!D127 -> 1 | E37: ='[12]Cumulative Stats'!E127 -> 12 | F37: ='[12]Cumulative Stats'!F127 -> 6 | G37: ='[12]Cumulative Stats'!G127 -> 6 | H37: ='[12]Cumulative Stats'!H127 -> 0 | I37: =IF(C37>=Passing!$C$1*1.25,1,IF(C37+D37=0,-1,0)) -> 0 | J37: =IF(C37>0,1,0) -> 1
A38: ='[3]Cumulative Stats'!A126 -> Wesley | B38: CAR | C38: ='[3]Cumulative Stats'!C126 -> 2 | D38: ='[3]Cumulative Stats'!D126 -> 0 | E38: ='[3]Cumulative Stats'!E126 -> 8 | F38: ='[3]Cumulative Stats'!F126 -> 4 | G38: ='[3]Cumulative Stats'!G126 -> 7 | H38: ='[3]Cumulative Stats'!H126 -> 0 | I38: =IF(C38>=Passing!$C$1*1.25,1,IF(C38+D38=0,-1,0)) -> 0 | J38: =IF(C38>0,1,0) -> 1
A39: ='[12]Cumulative Stats'!A128 -> Wallace, S | B39: SEA | C39: ='[12]Cumulative Stats'!C128 -> 2 | D39: ='[12]Cumulative Stats'!D128 -> 0 | E39: ='[12]Cumulative Stats'!E128 -> 0 | F39: ='[12]Cumulative Stats'!F128 -> 0 | G39: ='[12]Cumulative Stats'!G128 -> 0 | H39: ='[12]Cumulative Stats'!H128 -> 0 | I39: =IF(C39>=Passing!$C$1*1.25,1,IF(C39+D39=0,-1,0)) -> 0 | J39: =IF(C39>0,1,0) -> 1
A40: ='[7]Cumulative Stats'!A126 -> Bush | B40: GBP | C40: ='[7]Cumulative Stats'!C126 -> 2 | D40: ='[7]Cumulative Stats'!D126 -> 0 | E40: ='[7]Cumulative Stats'!E126 -> -2 | F40: ='[7]Cumulative Stats'!F126 -> -1 | G40: ='[7]Cumulative Stats'!G126 -> -2 | H40: ='[7]Cumulative Stats'!H126 -> 0 | I40: =IF(C40>=Passing!$C$1*1.25,1,IF(C40+D40=0,-1,0)) -> 0 | J40: =IF(C40>0,1,0) -> 1
A41: ='[3]Cumulative Stats'!A128 -> Smith, St | B41: CAR | C41: ='[3]Cumulative Stats'!C128 -> 1 | D41: ='[3]Cumulative Stats'!D128 -> 0 | E41: ='[3]Cumulative Stats'!E128 -> 11 | F41: ='[3]Cumulative Stats'!F128 -> 11 | G41: ='[3]Cumulative Stats'!G128 -> 11 | H41: ='[3]Cumulative Stats'!H128 -> 0 | I41: =IF(C41>=Passing!$C$1*1.25,1,IF(C41+D41=0,-1,0)) -> 0 | J41: =IF(C41>0,1,0) -> 1
A42: ='[10]Cumulative Stats'!A128 -> Webster | B42: NYG | C42: ='[10]Cumulative Stats'!C128 -> 1 | D42: ='[10]Cumulative Stats'!D128 -> 0 | E42: ='[10]Cumulative Stats'!E128 -> 4 | F42: ='[10]Cumulative Stats'!F128 -> 4 | G42: ='[10]Cumulative Stats'!G128 -> 4 | H42: ='[10]Cumulative Stats'!H128 -> 0 | I42: =IF(C42>=Passing!$C$1*1.25,1,IF(C42+D42=0,-1,0)) -> 0 | J42: =IF(C42>0,1,0) -> 1
A43: ='[15]Cumulative Stats'!A128 -> Talib | B43: TBB | C43: ='[15]Cumulative Stats'!C128 -> 1 | D43: ='[15]Cumulative Stats'!D128 -> 0 | E43: ='[15]Cumulative Stats'!E128 -> 1 | F43: ='[15]Cumulative Stats'!F128 -> 1 | G43: ='[15]Cumulative Stats'!G128 -> 1 | H43: ='[15]Cumulative Stats'!H128 -> 0 | I43: =IF(C43>=Passing!$C$1*1.25,1,IF(C43+D43=0,-1,0)) -> 0 | J43: =IF(C43>0,1,0) -> 1
A44: ='[11]Cumulative Stats'!A126 -> Hanson | B44: PHI | C44: ='[11]Cumulative Stats'!C126 -> 1 | D44: ='[11]Cumulative Stats'!D126 -> 0 | E44: ='[11]Cumulative Stats'!E126 -> 0 | F44: ='[11]Cumulative Stats'!F126 -> 0 | G44: ='[11]Cumulative Stats'!G126 -> 0 | H44: ='[11]Cumulative Stats'!H126 -> 0 | I44: =IF(C44>=Passing!$C$1*1.25,1,IF(C44+D44=0,-1,0)) -> 0 | J44: =IF(C44>0,1,0) -> 1
A45: ='[13]Cumulative Stats'!A128 -> Zeigler | B45: SFO | C45: ='[13]Cumulative Stats'!C128 -> 1 | D45: ='[13]Cumulative Stats'!D128 -> 1 | E45: ='[13]Cumulative Stats'!E128 -> 0 | F45: ='[13]Cumulative Stats'!F128 -> 0 | G45: ='[13]Cumulative Stats'!G128 -> 0 | H45: ='[13]Cumulative Stats'!H128 -> 0 | I45: =IF(C45>=Passing!$C$1*1.25,1,IF(C45+D45=0,-1,0)) -> 0 | J45: =IF(C45>0,1,0) -> 1
A46: ='[6]Cumulative Stats'!A128 -> Jennings | B46: DET | C46: ='[6]Cumulative Stats'!C128 -> 1 | D46: ='[6]Cumulative Stats'!D128 -> 0 | E46: ='[6]Cumulative Stats'!E128 -> 0 | F46: ='[6]Cumulative Stats'!F128 -> 0 | G46: ='[6]Cumulative Stats'!G128 -> 0 | H46: ='[6]Cumulative Stats'!H128 -> 0 | I46: =IF(C46>=Passing!$C$1*1.25,1,IF(C46+D46=0,-1,0)) -> 0 | J46: =IF(C46>0,1,0) -> 1
A47: ='[3]Cumulative Stats'!A127 -> Saley | B47: CAR | C47: ='[3]Cumulative Stats'!C127 -> 1 | D47: ='[3]Cumulative Stats'!D127 -> 0 | E47: ='[3]Cumulative Stats'!E127 -> -1 | F47: ='[3]Cumulative Stats'!F127 -> -1 | G47: ='[3]Cumulative Stats'!G127 -> 0 | H47: ='[3]Cumulative Stats'!H127 -> 0 | I47: =IF(C47>=Passing!$C$1*1.25,1,IF(C47+D47=0,-1,0)) -> 0 | J47: =IF(C47>0,1,0) -> 1
I48: =IF(C48>=Passing!$C$1*1.25,1,IF(C48+D48=0,-1,0)) -> -1 | J48: =IF(C48>0,1,0) -> 0
I49: =IF(C49>=Passing!$C$1*1.25,1,IF(C49+D49=0,-1,0)) -> -1 | J49: =IF(C49>0,1,0) -> 0
I50: =IF(C50>=Passing!$C$1*1.25,1,IF(C50+D50=0,-1,0)) -> -1 | J50: =IF(C50>0,1,0) -> 0
I51: =IF(C51>=Passing!$C$1*1.25,1,IF(C51+D51=0,-1,0)) -> -1 | J51: =IF(C51>0,1,0) -> 0
I52: =IF(C52>=Passing!$C$1*1.25,1,IF(C52+D52=0,-1,0)) -> -1 | J52: =IF(C52>0,1,0) -> 0
I53: =IF(C53>=Passing!$C$1*1.25,1,IF(C53+D53=0,-1,0)) -> -1 | J53: =IF(C53>0,1,0) -> 0
I54: =IF(C54>=Passing!$C$1*1.25,1,IF(C54+D54=0,-1,0)) -> -1 | J54: =IF(C54>0,1,0) -> 0
I55: =IF(C55>=Passing!$C$1*1.25,1,IF(C55+D55=0,-1,0)) -> -1 | J55: =IF(C55>0,1,0) -> 0
I56: =IF(C56>=Passing!$C$1*1.25,1,IF(C56+D56=0,-1,0)) -> -1 | J56: =IF(C56>0,1,0) -> 0
I57: =IF(C57>=Passing!$C$1*1.25,1,IF(C57+D57=0,-1,0)) -> -1 | J57: =IF(C57>0,1,0) -> 0

Sheet Kickoff Returns
A1: Kickoff Returns: | B1: Team | C1: No. | D1: Yrds | E1: Avg. | F1: Long | G1: TD
A2: ='[2]Cumulative Stats'!A134 -> Norwood | B2: ATL | C2: ='[2]Cumulative Stats'!C134 -> 59 | D2: ='[2]Cumulative Stats'!D134 -> 1740 | E2: ='[2]Cumulative Stats'!E134 -> 29.49152542 | F2: ='[2]Cumulative Stats'!F134 -> 88 | G2: ='[2]Cumulative Stats'!G134 -> 0 | H2: =IF(C2>=Passing!$C$1*1.25,1,IF(C2=0,-1,0)) -> 1
A3: ='[4]Cumulative Stats'!A134 -> Manning | B3: CHI | C3: ='[4]Cumulative Stats'!C134 -> 42 | D3: ='[4]Cumulative Stats'!D134 -> 1204 | E3: ='[4]Cumulative Stats'!E134 -> 28.66666667 | F3: ='[4]Cumulative Stats'!F134 -> 88 | G3: ='[4]Cumulative Stats'!G134 -> 1 | H3: =IF(C3>=Passing!$C$1*1.25,1,IF(C3=0,-1,0)) -> 1
A4: ='[15]Cumulative Stats'!A134 -> Smith, C | B4: TBB | C4: ='[15]Cumulative Stats'!C134 -> 44 | D4: ='[15]Cumulative Stats'!D134 -> 1258 | E4: ='[15]Cumulative Stats'!E134 -> 28.59090909 | F4: ='[15]Cumulative Stats'!F134 -> 103 | G4: ='[15]Cumulative Stats'!G134 -> 2 | H4: =IF(C4>=Passing!$C$1*1.25,1,IF(C4=0,-1,0)) -> 1 | K4: Leader based on average return, minimum 20 returns
A5: ='[11]Cumulative Stats'!A134 -> Demps | B5: PHI | C5: ='[11]Cumulative Stats'!C134 -> 44 | D5: ='[11]Cumulative Stats'!D134 -> 1243 | E5: ='[11]Cumulative Stats'!E134 -> 28.25 | F5: ='[11]Cumulative Stats'!F134 -> 96 | G5: ='[11]Cumulative Stats'!G134 -> 4 | H5: =IF(C5>=Passing!$C$1*1.25,1,IF(C5=0,-1,0)) -> 1
A6: ='[1]Cumulative Stats'!A135 -> Arrington | B6: ARI | C6: ='[1]Cumulative Stats'!C135 -> 27 | D6: ='[1]Cumulative Stats'!D135 -> 761 | E6: ='[1]Cumulative Stats'!E135 -> 28.18518519 | F6: ='[1]Cumulative Stats'!F135 -> 92 | G6: ='[1]Cumulative Stats'!G135 -> 2 | H6: =IF(C6>=Passing!$C$1*1.25,1,IF(C6=0,-1,0)) -> 1 | K6: =20/16 -> 1.25
A7: ='[14]Cumulative Stats'!A134 -> Darby | B7: STL | C7: ='[14]Cumulative Stats'!C134 -> 24 | D7: ='[14]Cumulative Stats'!D134 -> 651 | E7: ='[14]Cumulative Stats'!E134 -> 27.125 | F7: ='[14]Cumulative Stats'!F134 -> 37 | G7: ='[14]Cumulative Stats'!G134 -> 0 | H7: =IF(C7>=Passing!$C$1*1.25,1,IF(C7=0,-1,0)) -> 1
A8: ='[16]Cumulative Stats'!A134 -> Cartwright | B8: WAS | C8: ='[16]Cumulative Stats'!C134 -> 66 | D8: ='[16]Cumulative Stats'!D134 -> 1674 | E8: ='[16]Cumulative Stats'!E134 -> 25.36363636 | F8: ='[16]Cumulative Stats'!F134 -> 88 | G8: ='[16]Cumulative Stats'!G134 -> 0 | H8: =IF(C8>=Passing!$C$1*1.25,1,IF(C8=0,-1,0)) -> 1
A9: ='[12]Cumulative Stats'!A134 -> Wilson | B9: SEA | C9: ='[12]Cumulative Stats'!C134 -> 88 | D9: ='[12]Cumulative Stats'!D134 -> 2173 | E9: ='[12]Cumulative Stats'!E134 -> 24.69318182 | F9: ='[12]Cumulative Stats'!F134 -> 60 | G9: ='[12]Cumulative Stats'!G134 -> 0 | H9: =IF(C9>=Passing!$C$1*1.25,1,IF(C9=0,-1,0)) -> 1
A10: ='[14]Cumulative Stats'!A136 -> Stanley | B10: STL | C10: ='[14]Cumulative Stats'!C136 -> 20 | D10: ='[14]Cumulative Stats'!D136 -> 479 | E10: ='[14]Cumulative Stats'!E136 -> 23.95 | F10: ='[14]Cumulative Stats'!F136 -> 37 | G10: ='[14]Cumulative Stats'!G136 -> 0 | H10: =IF(C10>=Passing!$C$1*1.25,1,IF(C10=0,-1,0)) -> 1
A11: ='[13]Cumulative Stats'!A134 -> Rossum | B11: SFO | C11: ='[13]Cumulative Stats'!C134 -> 38 | D11: ='[13]Cumulative Stats'!D134 -> 893 | E11: ='[13]Cumulative Stats'!E134 -> 23.5 | F11: ='[13]Cumulative Stats'!F134 -> 60 | G11: ='[13]Cumulative Stats'!G134 -> 0 | H11: =IF(C11>=Passing!$C$1*1.25,1,IF(C11=0,-1,0)) -> 1
A12: ='[6]Cumulative Stats'!A135 -> Cason | B12: DET | C12: ='[6]Cumulative Stats'!C135 -> 40 | D12: ='[6]Cumulative Stats'!D135 -> 915 | E12: ='[6]Cumulative Stats'!E135 -> 22.875 | F12: ='[6]Cumulative Stats'!F135 -> 47 | G12: ='[6]Cumulative Stats'!G135 -> 0 | H12: =IF(C12>=Passing!$C$1*1.25,1,IF(C12=0,-1,0)) -> 1
A13: ='[3]Cumulative Stats'!A134 -> Jones | B13: CAR | C13: ='[3]Cumulative Stats'!C134 -> 51 | D13: ='[3]Cumulative Stats'!D134 -> 1137 | E13: ='[3]Cumulative Stats'!E134 -> 22.29411765 | F13: ='[3]Cumulative Stats'!F134 -> 41 | G13: ='[3]Cumulative Stats'!G134 -> 0 | H13: =IF(C13>=Passing!$C$1*1.25,1,IF(C13=0,-1,0)) -> 1
A14: ='[9]Cumulative Stats'!A134 -> Thomas, P | B14: NOS | C14: ='[9]Cumulative Stats'!C134 -> 42 | D14: ='[9]Cumulative Stats'!D134 -> 935 | E14: ='[9]Cumulative Stats'!E134 -> 22.26190476 | F14: ='[9]Cumulative Stats'!F134 -> 47 | G14: ='[9]Cumulative Stats'!G134 -> 0 | H14: =IF(C14>=Passing!$C$1*1.25,1,IF(C14=0,-1,0)) -> 1
A15: ='[6]Cumulative Stats'!A134 -> Middleton | B15: DET | C15: ='[6]Cumulative Stats'!C134 -> 43 | D15: ='[6]Cumulative Stats'!D134 -> 921 | E15: ='[6]Cumulative Stats'!E134 -> 21.41860465 | F15: ='[6]Cumulative Stats'!F134 -> 41 | G15: ='[6]Cumulative Stats'!G134 -> 0 | H15: =IF(C15>=Passing!$C$1*1.25,1,IF(C15=0,-1,0)) -> 1
A16: ='[8]Cumulative Stats'!A134 -> Hicks, M | B16: MIN | C16: ='[8]Cumulative Stats'!C134 -> 31 | D16: ='[8]Cumulative Stats'!D134 -> 662 | E16: ='[8]Cumulative Stats'!E134 -> 21.35483871 | F16: ='[8]Cumulative Stats'!F134 -> 41 | G16: ='[8]Cumulative Stats'!G134 -> 0 | H16: =IF(C16>=Passing!$C$1*1.25,1,IF(C16=0,-1,0)) -> 1
A17: ='[14]Cumulative Stats'!A135 -> Hall, D | B17: STL | C17: ='[14]Cumulative Stats'!C135 -> 22 | D17: ='[14]Cumulative Stats'!D135 -> 465 | E17: ='[14]Cumulative Stats'!E135 -> 21.13636364 | F17: ='[14]Cumulative Stats'!F135 -> 37 | G17: ='[14]Cumulative Stats'!G135 -> 0 | H17: =IF(C17>=Passing!$C$1*1.25,1,IF(C17=0,-1,0)) -> 1
A18: ='[7]Cumulative Stats'!A134 -> Blackmon | B18: GBP | C18: ='[7]Cumulative Stats'!C134 -> 71 | D18: ='[7]Cumulative Stats'!D134 -> 1482 | E18: ='[7]Cumulative Stats'!E134 -> 20.87323944 | F18: ='[7]Cumulative Stats'!F134 -> 45 | G18: ='[7]Cumulative Stats'!G134 -> 0 | H18: =IF(C18>=Passing!$C$1*1.25,1,IF(C18=0,-1,0)) -> 1
A19: ='[4]Cumulative Stats'!A135 -> Hester | B19: CHI | C19: ='[4]Cumulative Stats'!C135 -> 23 | D19: ='[4]Cumulative Stats'!D135 -> 469 | E19: ='[4]Cumulative Stats'!E135 -> 20.39130435 | F19: ='[4]Cumulative Stats'!F135 -> 47 | G19: ='[4]Cumulative Stats'!G135 -> 0 | H19: =IF(C19>=Passing!$C$1*1.25,1,IF(C19=0,-1,0)) -> 1
A20: ='[15]Cumulative Stats'!A135 -> Jackson, D | B20: TBB | C20: ='[15]Cumulative Stats'!C135 -> 23 | D20: ='[15]Cumulative Stats'!D135 -> 468 | E20: ='[15]Cumulative Stats'!E135 -> 20.34782609 | F20: ='[15]Cumulative Stats'!F135 -> 45 | G20: ='[15]Cumulative Stats'!G135 -> 0 | H20: =IF(C20>=Passing!$C$1*1.25,1,IF(C20=0,-1,0)) -> 1
A21: ='[10]Cumulative Stats'!A134 -> Bradshaw | B21: NYG | C21: ='[10]Cumulative Stats'!C134 -> 35 | D21: ='[10]Cumulative Stats'!D134 -> 675 | E21: ='[10]Cumulative Stats'!E134 -> 19.28571429 | F21: ='[10]Cumulative Stats'!F134 -> 60 | G21: ='[10]Cumulative Stats'!G134 -> 0 | H21: =IF(C21>=Passing!$C$1*1.25,1,IF(C21=0,-1,0)) -> 1
A22: ='[5]Cumulative Stats'!A134 -> Austin | B22: DAL | C22: ='[5]Cumulative Stats'!C134 -> 41 | D22: ='[5]Cumulative Stats'!D134 -> 747 | E22: ='[5]Cumulative Stats'!E134 -> 18.2195122 | F22: ='[5]Cumulative Stats'!F134 -> 41 | G22: ='[5]Cumulative Stats'!G134 -> 0 | H22: =IF(C22>=Passing!$C$1*1.25,1,IF(C22=0,-1,0)) -> 1
A23: ='[1]Cumulative Stats'!A134 -> Breaston | B23: ARI | C23: ='[1]Cumulative Stats'!C134 -> 36 | D23: ='[1]Cumulative Stats'!D134 -> 650 | E23: ='[1]Cumulative Stats'!E134 -> 18.05555556 | F23: ='[1]Cumulative Stats'!F134 -> 41 | G23: ='[1]Cumulative Stats'!G134 -> 0 | H23: =IF(C23>=Passing!$C$1*1.25,1,IF(C23=0,-1,0)) -> 1 | I23: Non-Qualifiers
A24: ='[3]Cumulative Stats'!A135 -> Stewart | B24: CAR | C24: ='[3]Cumulative Stats'!C135 -> 19 | D24: ='[3]Cumulative Stats'!D135 -> 449 | E24: ='[3]Cumulative Stats'!E135 -> 23.63157895 | F24: ='[3]Cumulative Stats'!F135 -> 37 | G24: ='[3]Cumulative Stats'!G135 -> 0 | H24: =IF(C24>=Passing!$C$1*1.25,1,IF(C24=0,-1,0)) -> 0
A25: ='[8]Cumulative Stats'!A135 -> Taylor | B25: MIN | C25: ='[8]Cumulative Stats'!C135 -> 19 | D25: ='[8]Cumulative Stats'!D135 -> 416 | E25: ='[8]Cumulative Stats'!E135 -> 21.89473684 | F25: ='[8]Cumulative Stats'!F135 -> 37 | G25: ='[8]Cumulative Stats'!G135 -> 0 | H25: =IF(C25>=Passing!$C$1*1.25,1,IF(C25=0,-1,0)) -> 0
A26: ='[7]Cumulative Stats'!A135 -> Nelson | B26: GBP | C26: ='[7]Cumulative Stats'!C135 -> 15 | D26: ='[7]Cumulative Stats'!D135 -> 304 | E26: ='[7]Cumulative Stats'!E135 -> 20.26666667 | F26: ='[7]Cumulative Stats'!F135 -> 47 | G26: ='[7]Cumulative Stats'!G135 -> 0 | H26: =IF(C26>=Passing!$C$1*1.25,1,IF(C26=0,-1,0)) -> 0
A27: ='[13]Cumulative Stats'!A135 -> Walker | B27: SFO | C27: ='[13]Cumulative Stats'!C135 -> 15 | D27: ='[13]Cumulative Stats'!D135 -> 250 | E27: ='[13]Cumulative Stats'!E135 -> 16.66666667 | F27: ='[13]Cumulative Stats'!F135 -> 21 | G27: ='[13]Cumulative Stats'!G135 -> 0 | H27: =IF(C27>=Passing!$C$1*1.25,1,IF(C27=0,-1,0)) -> 0
A28: ='[5]Cumulative Stats'!A135 -> Stanback | B28: DAL | C28: ='[5]Cumulative Stats'!C135 -> 14 | D28: ='[5]Cumulative Stats'!D135 -> 271 | E28: ='[5]Cumulative Stats'!E135 -> 19.35714286 | F28: ='[5]Cumulative Stats'!F135 -> 60 | G28: ='[5]Cumulative Stats'!G135 -> 0 | H28: =IF(C28>=Passing!$C$1*1.25,1,IF(C28=0,-1,0)) -> 0
A29: ='[10]Cumulative Stats'!A135 -> Moss | B29: NYG | C29: ='[10]Cumulative Stats'!C135 -> 12 | D29: ='[10]Cumulative Stats'!D135 -> 219 | E29: ='[10]Cumulative Stats'!E135 -> 18.25 | F29: ='[10]Cumulative Stats'!F135 -> 30 | G29: ='[10]Cumulative Stats'!G135 -> 0 | H29: =IF(C29>=Passing!$C$1*1.25,1,IF(C29=0,-1,0)) -> 0
A30: ='[13]Cumulative Stats'!A136 -> Robinson | B30: SFO | C30: ='[13]Cumulative Stats'!C136 -> 10 | D30: ='[13]Cumulative Stats'!D136 -> 238 | E30: ='[13]Cumulative Stats'!E136 -> 23.8 | F30: ='[13]Cumulative Stats'!F136 -> 57 | G30: ='[13]Cumulative Stats'!G136 -> 0 | H30: =IF(C30>=Passing!$C$1*1.25,1,IF(C30=0,-1,0)) -> 0
A31: ='[4]Cumulative Stats'!A136 -> Wolfe | B31: CHI | C31: ='[4]Cumulative Stats'!C136 -> 10 | D31: ='[4]Cumulative Stats'!D136 -> 192 | E31: ='[4]Cumulative Stats'!E136 -> 19.2 | F31: ='[4]Cumulative Stats'!F136 -> 33 | G31: ='[4]Cumulative Stats'!G136 -> 0 | H31: =IF(C31>=Passing!$C$1*1.25,1,IF(C31=0,-1,0)) -> 0
A32: ='[9]Cumulative Stats'!A135 -> Roby | B32: NOS | C32: ='[9]Cumulative Stats'!C135 -> 8 | D32: ='[9]Cumulative Stats'!D135 -> 219 | E32: ='[9]Cumulative Stats'!E135 -> 27.375 | F32: ='[9]Cumulative Stats'!F135 -> 60 | G32: ='[9]Cumulative Stats'!G135 -> 0 | H32: =IF(C32>=Passing!$C$1*1.25,1,IF(C32=0,-1,0)) -> 0
A33: ='[9]Cumulative Stats'!A136 -> Moore | B33: NOS | C33: ='[9]Cumulative Stats'!C136 -> 7 | D33: ='[9]Cumulative Stats'!D136 -> 205 | E33: ='[9]Cumulative Stats'!E136 -> 29.28571429 | F33: ='[9]Cumulative Stats'!F136 -> 41 | G33: ='[9]Cumulative Stats'!G136 -> 0 | H33: =IF(C33>=Passing!$C$1*1.25,1,IF(C33=0,-1,0)) -> 0
A34: ='[8]Cumulative Stats'!A136 -> Allison | B34: MIN | C34: ='[8]Cumulative Stats'!C136 -> 7 | D34: ='[8]Cumulative Stats'!D136 -> 120 | E34: ='[8]Cumulative Stats'!E136 -> 17.14285714 | F34: ='[8]Cumulative Stats'!F136 -> 23 | G34: ='[8]Cumulative Stats'!G136 -> 0 | H34: =IF(C34>=Passing!$C$1*1.25,1,IF(C34=0,-1,0)) -> 0
A35: ='[10]Cumulative Stats'!A136 -> Hixon | B35: NYG | C35: ='[10]Cumulative Stats'!C136 -> 6 | D35: ='[10]Cumulative Stats'!D136 -> 350 | E35: ='[10]Cumulative Stats'!E136 -> 58.33333333 | F35: ='[10]Cumulative Stats'!F136 -> 88 | G35: ='[10]Cumulative Stats'!G136 -> 0 | H35: =IF(C35>=Passing!$C$1*1.25,1,IF(C35=0,-1,0)) -> 0
A36: ='[5]Cumulative Stats'!A136 -> Jones, F | B36: DAL | C36: ='[5]Cumulative Stats'!C136 -> 6 | D36: ='[5]Cumulative Stats'!D136 -> 96 | E36: ='[5]Cumulative Stats'!E136 -> 16 | F36: ='[5]Cumulative Stats'!F136 -> 25 | G36: ='[5]Cumulative Stats'!G136 -> 0 | H36: =IF(C36>=Passing!$C$1*1.25,1,IF(C36=0,-1,0)) -> 0
A37: ='[8]Cumulative Stats'!A137 -> Gordon | B37: MIN | C37: ='[8]Cumulative Stats'!C137 -> 6 | D37: ='[8]Cumulative Stats'!D137 -> 197 | E37: ='[8]Cumulative Stats'!E137 -> 32.83333333 | F37: ='[8]Cumulative Stats'!F137 -> 47 | G37: ='[8]Cumulative Stats'!G137 -> 0 | H37: =IF(C37>=Passing!$C$1*1.25,1,IF(C37=0,-1,0)) -> 0
A38: ='[5]Cumulative Stats'!A137 -> Scandrick | B38: DAL | C38: ='[5]Cumulative Stats'!C137 -> 6 | D38: ='[5]Cumulative Stats'!D137 -> 109 | E38: ='[5]Cumulative Stats'!E137 -> 18.16666667 | F38: ='[5]Cumulative Stats'!F137 -> 27 | G38: ='[5]Cumulative Stats'!G137 -> 0 | H38: =IF(C38>=Passing!$C$1*1.25,1,IF(C38=0,-1,0)) -> 0
A39: ='[13]Cumulative Stats'!A137 -> Balmer | B39: SFO | C39: ='[13]Cumulative Stats'!C137 -> 6 | D39: ='[13]Cumulative Stats'!D137 -> 59 | E39: ='[13]Cumulative Stats'!E137 -> 9.833333333 | F39: ='[13]Cumulative Stats'!F137 -> 14 | G39: ='[13]Cumulative Stats'!G137 -> 0 | H39: =IF(C39>=Passing!$C$1*1.25,1,IF(C39=0,-1,0)) -> 0
A40: ='[6]Cumulative Stats'!A136 -> Furrey | B40: DET | C40: ='[6]Cumulative Stats'!C136 -> 6 | D40: ='[6]Cumulative Stats'!D136 -> 89 | E40: ='[6]Cumulative Stats'!E136 -> 14.83333333 | F40: ='[6]Cumulative Stats'!F136 -> 16 | G40: ='[6]Cumulative Stats'!G136 -> 0 | H40: =IF(C40>=Passing!$C$1*1.25,1,IF(C40=0,-1,0)) -> 0
A41: ='[5]Cumulative Stats'!A138 -> Jones, A | B41: DAL | C41: ='[5]Cumulative Stats'!C138 -> 5 | D41: ='[5]Cumulative Stats'!D138 -> 69 | E41: ='[5]Cumulative Stats'!E138 -> 13.8 | F41: ='[5]Cumulative Stats'!F138 -> 18 | G41: ='[5]Cumulative Stats'!G138 -> 0 | H41: =IF(C41>=Passing!$C$1*1.25,1,IF(C41=0,-1,0)) -> 0
A42: ='[15]Cumulative Stats'!A136 -> Smith, A | B42: TBB | C42: ='[15]Cumulative Stats'!C136 -> 5 | D42: ='[15]Cumulative Stats'!D136 -> 41 | E42: ='[15]Cumulative Stats'!E136 -> 8.2 | F42: ='[15]Cumulative Stats'!F136 -> 17 | G42: ='[15]Cumulative Stats'!G136 -> 0 | H42: =IF(C42>=Passing!$C$1*1.25,1,IF(C42=0,-1,0)) -> 0
A43: ='[5]Cumulative Stats'!A139 -> Curtis | B43: DAL | C43: ='[5]Cumulative Stats'!C139 -> 5 | D43: ='[5]Cumulative Stats'!D139 -> 35 | E43: ='[5]Cumulative Stats'!E139 -> 7 | F43: ='[5]Cumulative Stats'!F139 -> 16 | G43: ='[5]Cumulative Stats'!G139 -> 0 | H43: =IF(C43>=Passing!$C$1*1.25,1,IF(C43=0,-1,0)) -> 0
A44: ='[11]Cumulative Stats'!A135 -> Klecko | B44: PHI | C44: ='[11]Cumulative Stats'!C135 -> 4 | D44: ='[11]Cumulative Stats'!D135 -> 38 | E44: ='[11]Cumulative Stats'!E135 -> 9.5 | F44: ='[11]Cumulative Stats'!F135 -> 13 | G44: ='[11]Cumulative Stats'!G135 -> 0 | H44: =IF(C44>=Passing!$C$1*1.25,1,IF(C44=0,-1,0)) -> 0
A45: ='[12]Cumulative Stats'!A135 -> Forsett | B45: SEA | C45: ='[12]Cumulative Stats'!C135 -> 4 | D45: ='[12]Cumulative Stats'!D135 -> 86 | E45: ='[12]Cumulative Stats'!E135 -> 21.5 | F45: ='[12]Cumulative Stats'!F135 -> 33 | G45: ='[12]Cumulative Stats'!G135 -> 0 | H45: =IF(C45>=Passing!$C$1*1.25,1,IF(C45=0,-1,0)) -> 0
A46: ='[7]Cumulative Stats'!A136 -> Hunter | B46: GBP | C46: ='[7]Cumulative Stats'!C136 -> 4 | D46: ='[7]Cumulative Stats'!D136 -> 33 | E46: ='[7]Cumulative Stats'!E136 -> 8.25 | F46: ='[7]Cumulative Stats'!F136 -> 14 | G46: ='[7]Cumulative Stats'!G136 -> 0 | H46: =IF(C46>=Passing!$C$1*1.25,1,IF(C46=0,-1,0)) -> 0
A47: ='[8]Cumulative Stats'!A138 -> Kleinsasser | B47: MIN | C47: ='[8]Cumulative Stats'!C138 -> 4 | D47: ='[8]Cumulative Stats'!D138 -> 45 | E47: ='[8]Cumulative Stats'!E138 -> 11.25 | F47: ='[8]Cumulative Stats'!F138 -> 13 | G47: ='[8]Cumulative Stats'!G138 -> 0 | H47: =IF(C47>=Passing!$C$1*1.25,1,IF(C47=0,-1,0)) -> 0
A48: ='[10]Cumulative Stats'!A137 -> Johnson, D | B48: NYG | C48: ='[10]Cumulative Stats'!C137 -> 4 | D48: ='[10]Cumulative Stats'!D137 -> 22 | E48: ='[10]Cumulative Stats'!E137 -> 5.5 | F48: ='[10]Cumulative Stats'!F137 -> 17 | G48: ='[10]Cumulative Stats'!G137 -> 0 | H48: =IF(C48>=Passing!$C$1*1.25,1,IF(C48=0,-1,0)) -> 0
A49: ='[9]Cumulative Stats'!A137 -> Stecker | B49: NOS | C49: ='[9]Cumulative Stats'!C137 -> 4 | D49: ='[9]Cumulative Stats'!D137 -> 37 | E49: ='[9]Cumulative Stats'!E137 -> 9.25 | F49: ='[9]Cumulative Stats'!F137 -> 11 | G49: ='[9]Cumulative Stats'!G137 -> 0 | H49: =IF(C49>=Passing!$C$1*1.25,1,IF(C49=0,-1,0)) -> 0
A50: ='[14]Cumulative Stats'!A138 -> Avery | B50: STL | C50: ='[14]Cumulative Stats'!C138 -> 3 | D50: ='[14]Cumulative Stats'!D138 -> 65 | E50: ='[14]Cumulative Stats'!E138 -> 21.66666667 | F50: ='[14]Cumulative Stats'!F138 -> 23 | G50: ='[14]Cumulative Stats'!G138 -> 0 | H50: =IF(C50>=Passing!$C$1*1.25,1,IF(C50=0,-1,0)) -> 0
A51: ='[14]Cumulative Stats'!A137 -> Minor | B51: STL | C51: ='[14]Cumulative Stats'!C137 -> 3 | D51: ='[14]Cumulative Stats'!D137 -> 59 | E51: ='[14]Cumulative Stats'!E137 -> 19.66666667 | F51: ='[14]Cumulative Stats'!F137 -> 33 | G51: ='[14]Cumulative Stats'!G137 -> 0 | H51: =IF(C51>=Passing!$C$1*1.25,1,IF(C51=0,-1,0)) -> 0
A52: ='[15]Cumulative Stats'!A137 -> Clayton | B52: TBB | C52: ='[15]Cumulative Stats'!C137 -> 3 | D52: ='[15]Cumulative Stats'!D137 -> 46 | E52: ='[15]Cumulative Stats'!E137 -> 15.33333333 | F52: ='[15]Cumulative Stats'!F137 -> 17 | G52: ='[15]Cumulative Stats'!G137 -> 0 | H52: =IF(C52>=Passing!$C$1*1.25,1,IF(C52=0,-1,0)) -> 0
A53: ='[5]Cumulative Stats'!A140 -> Anderson | B53: DAL | C53: ='[5]Cumulative Stats'!C140 -> 3 | D53: ='[5]Cumulative Stats'!D140 -> 25 | E53: ='[5]Cumulative Stats'!E140 -> 8.333333333 | F53: ='[5]Cumulative Stats'!F140 -> 11 | G53: ='[5]Cumulative Stats'!G140 -> 0 | H53: =IF(C53>=Passing!$C$1*1.25,1,IF(C53=0,-1,0)) -> 0
A54: ='[6]Cumulative Stats'!A138 -> Cody | B54: DET | C54: ='[6]Cumulative Stats'!C138 -> 3 | D54: ='[6]Cumulative Stats'!D138 -> 30 | E54: ='[6]Cumulative Stats'!E138 -> 10 | F54: ='[6]Cumulative Stats'!F138 -> 10 | G54: ='[6]Cumulative Stats'!G138 -> 0 | H54: =IF(C54>=Passing!$C$1*1.25,1,IF(C54=0,-1,0)) -> 0
A55: ='[6]Cumulative Stats'!A137 -> Fitzsimmons | B55: DET | C55: ='[6]Cumulative Stats'!C137 -> 3 | D55: ='[6]Cumulative Stats'!D137 -> 39 | E55: ='[6]Cumulative Stats'!E137 -> 13 | F55: ='[6]Cumulative Stats'!F137 -> 16 | G55: ='[6]Cumulative Stats'!G137 -> 0 | H55: =IF(C55>=Passing!$C$1*1.25,1,IF(C55=0,-1,0)) -> 0
A56: ='[11]Cumulative Stats'!A136 -> Jackson, D | B56: PHI | C56: ='[11]Cumulative Stats'!C136 -> 3 | D56: ='[11]Cumulative Stats'!D136 -> 62 | E56: ='[11]Cumulative Stats'!E136 -> 20.66666667 | F56: ='[11]Cumulative Stats'!F136 -> 27 | G56: ='[11]Cumulative Stats'!G136 -> 0 | H56: =IF(C56>=Passing!$C$1*1.25,1,IF(C56=0,-1,0)) -> 0
A57: ='[9]Cumulative Stats'!A138 -> Green | B57: NOS | C57: ='[9]Cumulative Stats'!C138 -> 3 | D57: ='[9]Cumulative Stats'!D138 -> 67 | E57: ='[9]Cumulative Stats'!E138 -> 22.33333333 | F57: ='[9]Cumulative Stats'!F138 -> 27 | G57: ='[9]Cumulative Stats'!G138 -> 0 | H57: =IF(C57>=Passing!$C$1*1.25,1,IF(C57=0,-1,0)) -> 0
A58: ='[1]Cumulative Stats'!A136 -> Morey | B58: ARI | C58: ='[1]Cumulative Stats'!C136 -> 3 | D58: ='[1]Cumulative Stats'!D136 -> 33 | E58: ='[1]Cumulative Stats'!E136 -> 11 | F58: ='[1]Cumulative Stats'!F136 -> 16 | G58: ='[1]Cumulative Stats'!G136 -> 0 | H58: =IF(C58>=Passing!$C$1*1.25,1,IF(C58=0,-1,0)) -> 0
A59: ='[7]Cumulative Stats'!A137 -> Woodson | B59: GBP | C59: ='[7]Cumulative Stats'!C137 -> 3 | D59: ='[7]Cumulative Stats'!D137 -> 10 | E59: ='[7]Cumulative Stats'!E137 -> 3.333333333 | F59: ='[7]Cumulative Stats'!F137 -> 11 | G59: ='[7]Cumulative Stats'!G137 -> 0 | H59: =IF(C59>=Passing!$C$1*1.25,1,IF(C59=0,-1,0)) -> 0
A60: ='[15]Cumulative Stats'!A138 -> Clark | B60: TBB | C60: ='[15]Cumulative Stats'!C138 -> 3 | D60: ='[15]Cumulative Stats'!D138 -> 56 | E60: ='[15]Cumulative Stats'!E138 -> 18.66666667 | F60: ='[15]Cumulative Stats'!F138 -> 23 | G60: ='[15]Cumulative Stats'!G138 -> 0 | H60: =IF(C60>=Passing!$C$1*1.25,1,IF(C60=0,-1,0)) -> 0
A61: ='[2]Cumulative Stats'!A135 -> Douglas | B61: ATL | C61: ='[2]Cumulative Stats'!C135 -> 3 | D61: ='[2]Cumulative Stats'!D135 -> 17 | E61: ='[2]Cumulative Stats'!E135 -> 5.666666667 | F61: ='[2]Cumulative Stats'!F135 -> 10 | G61: ='[2]Cumulative Stats'!G135 -> 0 | H61: =IF(C61>=Passing!$C$1*1.25,1,IF(C61=0,-1,0)) -> 0
A62: ='[2]Cumulative Stats'!A136 -> Mughelli | B62: ATL | C62: ='[2]Cumulative Stats'!C136 -> 3 | D62: ='[2]Cumulative Stats'!D136 -> 48 | E62: ='[2]Cumulative Stats'!E136 -> 16 | F62: ='[2]Cumulative Stats'!F136 -> 16 | G62: ='[2]Cumulative Stats'!G136 -> 0 | H62: =IF(C62>=Passing!$C$1*1.25,1,IF(C62=0,-1,0)) -> 0
A63: ='[14]Cumulative Stats'!A139 -> Wade | B63: STL | C63: ='[14]Cumulative Stats'!C139 -> 3 | D63: ='[14]Cumulative Stats'!D139 -> 21 | E63: ='[14]Cumulative Stats'!E139 -> 7 | F63: ='[14]Cumulative Stats'!F139 -> 11 | G63: ='[14]Cumulative Stats'!G139 -> 0 | H63: =IF(C63>=Passing!$C$1*1.25,1,IF(C63=0,-1,0)) -> 0
A64: ='[16]Cumulative Stats'!A135 -> Sellers | B64: WAS | C64: ='[16]Cumulative Stats'!C135 -> 3 | D64: ='[16]Cumulative Stats'!D135 -> 43 | E64: ='[16]Cumulative Stats'!E135 -> 14.33333333 | F64: ='[16]Cumulative Stats'!F135 -> 16 | G64: ='[16]Cumulative Stats'!G135 -> 0 | H64: =IF(C64>=Passing!$C$1*1.25,1,IF(C64=0,-1,0)) -> 0
A65: ='[8]Cumulative Stats'!A139 -> Peterson | B65: MIN | C65: ='[8]Cumulative Stats'!C139 -> 2 | D65: ='[8]Cumulative Stats'!D139 -> 34 | E65: ='[8]Cumulative Stats'!E139 -> 17 | F65: ='[8]Cumulative Stats'!F139 -> 17 | G65: ='[8]Cumulative Stats'!G139 -> 0 | H65: =IF(C65>=Passing!$C$1*1.25,1,IF(C65=0,-1,0)) -> 0
A66: ='[11]Cumulative Stats'!A138 -> Avant | B66: PHI | C66: ='[11]Cumulative Stats'!C138 -> 2 | D66: ='[11]Cumulative Stats'!D138 -> 27 | E66: ='[11]Cumulative Stats'!E138 -> 13.5 | F66: ='[11]Cumulative Stats'!F138 -> 14 | G66: ='[11]Cumulative Stats'!G138 -> 0 | H66: =IF(C66>=Passing!$C$1*1.25,1,IF(C66=0,-1,0)) -> 0
A67: ='[10]Cumulative Stats'!A139 -> Ward | B67: NYG | C67: ='[10]Cumulative Stats'!C139 -> 2 | D67: ='[10]Cumulative Stats'!D139 -> 38 | E67: ='[10]Cumulative Stats'!E139 -> 19 | F67: ='[10]Cumulative Stats'!F139 -> 19 | G67: ='[10]Cumulative Stats'!G139 -> 0 | H67: =IF(C67>=Passing!$C$1*1.25,1,IF(C67=0,-1,0)) -> 0
A68: ='[4]Cumulative Stats'!A137 -> McKie | B68: CHI | C68: ='[4]Cumulative Stats'!C137 -> 2 | D68: ='[4]Cumulative Stats'!D137 -> 37 | E68: ='[4]Cumulative Stats'!E137 -> 18.5 | F68: ='[4]Cumulative Stats'!F137 -> 19 | G68: ='[4]Cumulative Stats'!G137 -> 0 | H68: =IF(C68>=Passing!$C$1*1.25,1,IF(C68=0,-1,0)) -> 0
A69: ='[6]Cumulative Stats'!A139 -> Smith, C | B69: DET | C69: ='[6]Cumulative Stats'!C139 -> 2 | D69: ='[6]Cumulative Stats'!D139 -> 34 | E69: ='[6]Cumulative Stats'!E139 -> 17 | F69: ='[6]Cumulative Stats'!F139 -> 17 | G69: ='[6]Cumulative Stats'!G139 -> 0 | H69: =IF(C69>=Passing!$C$1*1.25,1,IF(C69=0,-1,0)) -> 0
A70: ='[2]Cumulative Stats'!A137 -> Wilkerson | B70: ATL | C70: ='[2]Cumulative Stats'!C137 -> 2 | D70: ='[2]Cumulative Stats'!D137 -> 21 | E70: ='[2]Cumulative Stats'!E137 -> 10.5 | F70: ='[2]Cumulative Stats'!F137 -> 11 | G70: ='[2]Cumulative Stats'!G137 -> 0 | H70: =IF(C70>=Passing!$C$1*1.25,1,IF(C70=0,-1,0)) -> 0
A71: ='[11]Cumulative Stats'!A137 -> Lewis | B71: PHI | C71: ='[11]Cumulative Stats'!C137 -> 2 | D71: ='[11]Cumulative Stats'!D137 -> 39 | E71: ='[11]Cumulative Stats'!E137 -> 19.5 | F71: ='[11]Cumulative Stats'!F137 -> 30 | G71: ='[11]Cumulative Stats'!G137 -> 0 | H71: =IF(C71>=Passing!$C$1*1.25,1,IF(C71=0,-1,0)) -> 0
A72: ='[11]Cumulative Stats'!A139 -> Abiamiri | B72: PHI | C72: ='[11]Cumulative Stats'!C139 -> 2 | D72: ='[11]Cumulative Stats'!D139 -> 8 | E72: ='[11]Cumulative Stats'!E139 -> 4 | F72: ='[11]Cumulative Stats'!F139 -> 7 | G72: ='[11]Cumulative Stats'!G139 -> 0 | H72: =IF(C72>=Passing!$C$1*1.25,1,IF(C72=0,-1,0)) -> 0
A73: ='[3]Cumulative Stats'!A136 -> Hoover | B73: CAR | C73: ='[3]Cumulative Stats'!C136 -> 2 | D73: ='[3]Cumulative Stats'!D136 -> 25 | E73: ='[3]Cumulative Stats'!E136 -> 12.5 | F73: ='[3]Cumulative Stats'!F136 -> 13 | G73: ='[3]Cumulative Stats'!G136 -> 0 | H73: =IF(C73>=Passing!$C$1*1.25,1,IF(C73=0,-1,0)) -> 0
A74: ='[5]Cumulative Stats'!A141 -> Spencer | B74: DAL | C74: ='[5]Cumulative Stats'!C141 -> 2 | D74: ='[5]Cumulative Stats'!D141 -> 35 | E74: ='[5]Cumulative Stats'!E141 -> 17.5 | F74: ='[5]Cumulative Stats'!F141 -> 18 | G74: ='[5]Cumulative Stats'!G141 -> 0 | H74: =IF(C74>=Passing!$C$1*1.25,1,IF(C74=0,-1,0)) -> 0
A75: ='[12]Cumulative Stats'!A136 -> Duckett | B75: SEA | C75: ='[12]Cumulative Stats'!C136 -> 1 | D75: ='[12]Cumulative Stats'!D136 -> 25 | E75: ='[12]Cumulative Stats'!E136 -> 25 | F75: ='[12]Cumulative Stats'!F136 -> 25 | G75: ='[12]Cumulative Stats'!G136 -> 0 | H75: =IF(C75>=Passing!$C$1*1.25,1,IF(C75=0,-1,0)) -> 0
A76: ='[1]Cumulative Stats'!A137 -> Campbell | B76: ARI | C76: ='[1]Cumulative Stats'!C137 -> 1 | D76: ='[1]Cumulative Stats'!D137 -> 20 | E76: ='[1]Cumulative Stats'!E137 -> 20 | F76: ='[1]Cumulative Stats'!F137 -> 20 | G76: ='[1]Cumulative Stats'!G137 -> 0 | H76: =IF(C76>=Passing!$C$1*1.25,1,IF(C76=0,-1,0)) -> 0
A77: ='[8]Cumulative Stats'!A140 -> Tahi | B77: MIN | C77: ='[8]Cumulative Stats'!C140 -> 1 | D77: ='[8]Cumulative Stats'!D140 -> 19 | E77: ='[8]Cumulative Stats'!E140 -> 19 | F77: ='[8]Cumulative Stats'!F140 -> 19 | G77: ='[8]Cumulative Stats'!G140 -> 0 | H77: =IF(C77>=Passing!$C$1*1.25,1,IF(C77=0,-1,0)) -> 0
A78: ='[13]Cumulative Stats'!A139 -> Ryan | B78: SFO | C78: ='[13]Cumulative Stats'!C139 -> 1 | D78: ='[13]Cumulative Stats'!D139 -> 15 | E78: ='[13]Cumulative Stats'!E139 -> 15 | F78: ='[13]Cumulative Stats'!F139 -> 15 | G78: ='[13]Cumulative Stats'!G139 -> 0 | H78: =IF(C78>=Passing!$C$1*1.25,1,IF(C78=0,-1,0)) -> 0
A79: ='[3]Cumulative Stats'!A137 -> Bridges | B79: CAR | C79: ='[3]Cumulative Stats'!C137 -> 1 | D79: ='[3]Cumulative Stats'!D137 -> 14 | E79: ='[3]Cumulative Stats'!E137 -> 14 | F79: ='[3]Cumulative Stats'!F137 -> 14 | G79: ='[3]Cumulative Stats'!G137 -> 0 | H79: =IF(C79>=Passing!$C$1*1.25,1,IF(C79=0,-1,0)) -> 0
A80: ='[4]Cumulative Stats'!A140 -> Davis, R | B80: CHI | C80: ='[4]Cumulative Stats'!C140 -> 1 | D80: ='[4]Cumulative Stats'!D140 -> 13 | E80: ='[4]Cumulative Stats'!E140 -> 13 | F80: ='[4]Cumulative Stats'!F140 -> 13 | G80: ='[4]Cumulative Stats'!G140 -> 0 | H80: =IF(C80>=Passing!$C$1*1.25,1,IF(C80=0,-1,0)) -> 0
A81: ='[14]Cumulative Stats'!A140 -> Looker | B81: STL | C81: ='[14]Cumulative Stats'!C140 -> 1 | D81: ='[14]Cumulative Stats'!D140 -> 10 | E81: ='[14]Cumulative Stats'!E140 -> 10 | F81: ='[14]Cumulative Stats'!F140 -> 10 | G81: ='[14]Cumulative Stats'!G140 -> 0 | H81: =IF(C81>=Passing!$C$1*1.25,1,IF(C81=0,-1,0)) -> 0
A82: ='[11]Cumulative Stats'!A140 -> Buckhalter | B82: PHI | C82: ='[11]Cumulative Stats'!C140 -> 1 | D82: ='[11]Cumulative Stats'!D140 -> 13 | E82: ='[11]Cumulative Stats'!E140 -> 13 | F82: ='[11]Cumulative Stats'!F140 -> 13 | G82: ='[11]Cumulative Stats'!G140 -> 0 | H82: =IF(C82>=Passing!$C$1*1.25,1,IF(C82=0,-1,0)) -> 0
A83: ='[7]Cumulative Stats'!A138 -> Barbre | B83: GBP | C83: ='[7]Cumulative Stats'!C138 -> 1 | D83: ='[7]Cumulative Stats'!D138 -> 18 | E83: ='[7]Cumulative Stats'!E138 -> 18 | F83: ='[7]Cumulative Stats'!F138 -> 18 | G83: ='[7]Cumulative Stats'!G138 -> 0 | H83: =IF(C83>=Passing!$C$1*1.25,1,IF(C83=0,-1,0)) -> 0
A84: ='[15]Cumulative Stats'!A139 -> Gilmore | B84: TBB | C84: ='[15]Cumulative Stats'!C139 -> 1 | D84: ='[15]Cumulative Stats'!D139 -> 13 | E84: ='[15]Cumulative Stats'!E139 -> 13 | F84: ='[15]Cumulative Stats'!F139 -> 13 | G84: ='[15]Cumulative Stats'!G139 -> 0 | H84: =IF(C84>=Passing!$C$1*1.25,1,IF(C84=0,-1,0)) -> 0
A85: ='[16]Cumulative Stats'!A136 -> Thrash | B85: WAS | C85: ='[16]Cumulative Stats'!C136 -> 1 | D85: ='[16]Cumulative Stats'!D136 -> 17 | E85: ='[16]Cumulative Stats'!E136 -> 17 | F85: ='[16]Cumulative Stats'!F136 -> 17 | G85: ='[16]Cumulative Stats'!G136 -> 0 | H85: =IF(C85>=Passing!$C$1*1.25,1,IF(C85=0,-1,0)) -> 0
H86: =IF(C86>=Passing!$C$1*1.25,1,IF(C86=0,-1,0)) -> -1
H87: =IF(C87>=Passing!$C$1*1.25,1,IF(C87=0,-1,0)) -> -1
H88: =IF(C88>=Passing!$C$1*1.25,1,IF(C88=0,-1,0)) -> -1
H89: =IF(C89>=Passing!$C$1*1.25,1,IF(C89=0,-1,0)) -> -1
H90: =IF(C90>=Passing!$C$1*1.25,1,IF(C90=0,-1,0)) -> -1
H91: =IF(C91>=Passing!$C$1*1.25,1,IF(C91=0,-1,0)) -> -1
H92: =IF(C92>=Passing!$C$1*1.25,1,IF(C92=0,-1,0)) -> -1
H93: =IF(C93>=Passing!$C$1*1.25,1,IF(C93=0,-1,0)) -> -1
H94: =IF(C94>=Passing!$C$1*1.25,1,IF(C94=0,-1,0)) -> -1
H95: =IF(C95>=Passing!$C$1*1.25,1,IF(C95=0,-1,0)) -> -1
H96: =IF(C96>=Passing!$C$1*1.25,1,IF(C96=0,-1,0)) -> -1
H97: =IF(C97>=Passing!$C$1*1.25,1,IF(C97=0,-1,0)) -> -1
H98: =IF(C98>=Passing!$C$1*1.25,1,IF(C98=0,-1,0)) -> -1
H99: =IF(C99>=Passing!$C$1*1.25,1,IF(C99=0,-1,0)) -> -1
H100: =IF(C100>=Passing!$C$1*1.25,1,IF(C100=0,-1,0)) -> -1
H101: =IF(C101>=Passing!$C$1*1.25,1,IF(C101=0,-1,0)) -> -1
H102: =IF(C102>=Passing!$C$1*1.25,1,IF(C102=0,-1,0)) -> -1
H103: =IF(C103>=Passing!$C$1*1.25,1,IF(C103=0,-1,0)) -> -1
H104: =IF(C104>=Passing!$C$1*1.25,1,IF(C104=0,-1,0)) -> -1
H105: =IF(C105>=Passing!$C$1*1.25,1,IF(C105=0,-1,0)) -> -1
H106: =IF(C106>=Passing!$C$1*1.25,1,IF(C106=0,-1,0)) -> -1
H107: =IF(C107>=Passing!$C$1*1.25,1,IF(C107=0,-1,0)) -> -1
H108: =IF(C108>=Passing!$C$1*1.25,1,IF(C108=0,-1,0)) -> -1
H109: =IF(C109>=Passing!$C$1*1.25,1,IF(C109=0,-1,0)) -> -1
H110: =IF(C110>=Passing!$C$1*1.25,1,IF(C110=0,-1,0)) -> -1
H111: =IF(C111>=Passing!$C$1*1.25,1,IF(C111=0,-1,0)) -> -1
H112: =IF(C112>=Passing!$C$1*1.25,1,IF(C112=0,-1,0)) -> -1
H113: =IF(C113>=Passing!$C$1*1.25,1,IF(C113=0,-1,0)) -> -1
H114: =IF(C114>=Passing!$C$1*1.25,1,IF(C114=0,-1,0)) -> -1
H115: =IF(C115>=Passing!$C$1*1.25,1,IF(C115=0,-1,0)) -> -1
H116: =IF(C116>=Passing!$C$1*1.25,1,IF(C116=0,-1,0)) -> -1
H117: =IF(C117>=Passing!$C$1*1.25,1,IF(C117=0,-1,0)) -> -1
H118: =IF(C118>=Passing!$C$1*1.25,1,IF(C118=0,-1,0)) -> -1
H119: =IF(C119>=Passing!$C$1*1.25,1,IF(C119=0,-1,0)) -> -1

Sheet Punting
A1: Punting: | B1: Team | C1: No. | D1: Yrds | E1: Avg. | F1: Long | G1: Blk
A2: ='[4]Cumulative Stats'!$A$146 -> Maynard | B2: CHI | C2: ='[4]Cumulative Stats'!C146 -> 111 | D2: ='[4]Cumulative Stats'!D146 -> 4441 | E2: ='[4]Cumulative Stats'!E146 -> 40.00900901 | F2: ='[4]Cumulative Stats'!F146 -> 62 | G2: ='[4]Cumulative Stats'!G146 -> 0 | H2: =IF(C2>=Passing!$C$1*2.5,1,IF(C2=0,-1,0)) -> 1
A3: ='[15]Cumulative Stats'!$A$146 -> Bidwell | B3: TBB | C3: ='[15]Cumulative Stats'!C146 -> 98 | D3: ='[15]Cumulative Stats'!D146 -> 4207 | E3: ='[15]Cumulative Stats'!E146 -> 42.92857143 | F3: ='[15]Cumulative Stats'!F146 -> 62 | G3: ='[15]Cumulative Stats'!G146 -> 0 | H3: =IF(C3>=Passing!$C$1*2.5,1,IF(C3=0,-1,0)) -> 1 | K3: Leader based on average,minimum 40 punts
A4: ='[14]Cumulative Stats'!A146 -> Jones, D | B4: STL | C4: ='[14]Cumulative Stats'!C146 -> 95 | D4: ='[14]Cumulative Stats'!D146 -> 4475 | E4: ='[14]Cumulative Stats'!E146 -> 47.10526316 | F4: ='[14]Cumulative Stats'!F146 -> 64 | G4: ='[14]Cumulative Stats'!G146 -> 0 | H4: =IF(C4>=Passing!$C$1*2.5,1,IF(C4=0,-1,0)) -> 1
A5: ='[12]Cumulative Stats'!A146 -> Ryan | B5: SEA | C5: ='[12]Cumulative Stats'!C146 -> 89 | D5: ='[12]Cumulative Stats'!D146 -> 3913 | E5: ='[12]Cumulative Stats'!E146 -> 43.96629213 | F5: ='[12]Cumulative Stats'!F146 -> 62 | G5: ='[12]Cumulative Stats'!G146 -> 0 | H5: =IF(C5>=Passing!$C$1*2.5,1,IF(C5=0,-1,0)) -> 1 | L5: =40/16 -> 2.5
A6: ='[6]Cumulative Stats'!$A$146 -> Harris | B6: DET | C6: ='[6]Cumulative Stats'!C146 -> 88 | D6: ='[6]Cumulative Stats'!D146 -> 3762 | E6: ='[6]Cumulative Stats'!E146 -> 42.75 | F6: ='[6]Cumulative Stats'!F146 -> 67 | G6: ='[6]Cumulative Stats'!G146 -> 0 | H6: =IF(C6>=Passing!$C$1*2.5,1,IF(C6=0,-1,0)) -> 1
A7: ='[11]Cumulative Stats'!$A$146 -> Rocca | B7: PHI | C7: ='[11]Cumulative Stats'!C146 -> 88 | D7: ='[11]Cumulative Stats'!D146 -> 3647 | E7: ='[11]Cumulative Stats'!E146 -> 41.44318182 | F7: ='[11]Cumulative Stats'!F146 -> 73 | G7: ='[11]Cumulative Stats'!G146 -> 0 | H7: =IF(C7>=Passing!$C$1*2.5,1,IF(C7=0,-1,0)) -> 1
A8: ='[13]Cumulative Stats'!$A$146 -> Lee | B8: SFO | C8: ='[13]Cumulative Stats'!C146 -> 87 | D8: ='[13]Cumulative Stats'!D146 -> 3844 | E8: ='[13]Cumulative Stats'!E146 -> 44.18390805 | F8: ='[13]Cumulative Stats'!F146 -> 62 | G8: ='[13]Cumulative Stats'!G146 -> 3 | H8: =IF(C8>=Passing!$C$1*2.5,1,IF(C8=0,-1,0)) -> 1
A9: ='[8]Cumulative Stats'!$A$146 -> Kluwe | B9: MIN | C9: ='[8]Cumulative Stats'!C146 -> 81 | D9: ='[8]Cumulative Stats'!D146 -> 3641 | E9: ='[8]Cumulative Stats'!E146 -> 44.95061728 | F9: ='[8]Cumulative Stats'!F146 -> 62 | G9: ='[8]Cumulative Stats'!G146 -> 0 | H9: =IF(C9>=Passing!$C$1*2.5,1,IF(C9=0,-1,0)) -> 1
A10: ='[2]Cumulative Stats'!$A$146 -> Koenen | B10: ATL | C10: ='[2]Cumulative Stats'!C146 -> 79 | D10: ='[2]Cumulative Stats'!D146 -> 2940 | E10: ='[2]Cumulative Stats'!E146 -> 37.21518987 | F10: ='[2]Cumulative Stats'!F146 -> 54 | G10: ='[2]Cumulative Stats'!G146 -> 0 | H10: =IF(C10>=Passing!$C$1*2.5,1,IF(C10=0,-1,0)) -> 1
A11: ='[7]Cumulative Stats'!A146 -> Frost | B11: GBP | C11: ='[7]Cumulative Stats'!C146 -> 78 | D11: ='[7]Cumulative Stats'!D146 -> 3155 | E11: ='[7]Cumulative Stats'!E146 -> 40.44871795 | F11: ='[7]Cumulative Stats'!F146 -> 71 | G11: ='[7]Cumulative Stats'!G146 -> 0 | H11: =IF(C11>=Passing!$C$1*2.5,1,IF(C11=0,-1,0)) -> 1
A12: ='[10]Cumulative Stats'!$A$146 -> Feagles | B12: NYG | C12: ='[10]Cumulative Stats'!C146 -> 74 | D12: ='[10]Cumulative Stats'!D146 -> 3118 | E12: ='[10]Cumulative Stats'!E146 -> 42.13513514 | F12: ='[10]Cumulative Stats'!F146 -> 62 | G12: ='[10]Cumulative Stats'!G146 -> 1 | H12: =IF(C12>=Passing!$C$1*2.5,1,IF(C12=0,-1,0)) -> 1
A13: ='[3]Cumulative Stats'!$A$146 -> Baker | B13: CAR | C13: ='[3]Cumulative Stats'!C146 -> 67 | D13: ='[3]Cumulative Stats'!D146 -> 2765 | E13: ='[3]Cumulative Stats'!E146 -> 41.26865672 | F13: ='[3]Cumulative Stats'!F146 -> 64 | G13: ='[3]Cumulative Stats'!G146 -> 0 | H13: =IF(C13>=Passing!$C$1*2.5,1,IF(C13=0,-1,0)) -> 1
A14: ='[1]Cumulative Stats'!A146 -> Johnson, D | B14: ARI | C14: ='[1]Cumulative Stats'!C146 -> 65 | D14: ='[1]Cumulative Stats'!D146 -> 2676 | E14: ='[1]Cumulative Stats'!E146 -> 41.16923077 | F14: ='[1]Cumulative Stats'!F146 -> 53 | G14: ='[1]Cumulative Stats'!G146 -> 0 | H14: =IF(C14>=Passing!$C$1*2.5,1,IF(C14=0,-1,0)) -> 1
A15: ='[16]Cumulative Stats'!A146 -> Plackemeier | B15: WAS | C15: ='[16]Cumulative Stats'!C146 -> 64 | D15: ='[16]Cumulative Stats'!D146 -> 2373 | E15: ='[16]Cumulative Stats'!E146 -> 37.078125 | F15: ='[16]Cumulative Stats'!F146 -> 63 | G15: ='[16]Cumulative Stats'!G146 -> 1 | H15: =IF(C15>=Passing!$C$1*2.5,1,IF(C15=0,-1,0)) -> 1
A16: ='[5]Cumulative Stats'!A146 -> Paulescu | B16: DAL | C16: ='[5]Cumulative Stats'!C146 -> 43 | D16: ='[5]Cumulative Stats'!D146 -> 1930 | E16: ='[5]Cumulative Stats'!E146 -> 44.88372093 | F16: ='[5]Cumulative Stats'!F146 -> 68 | G16: ='[5]Cumulative Stats'!G146 -> 0 | H16: ='[16]Cumulative Stats'!H146 -> 0
A17: ='[9]Cumulative Stats'!A146 -> Pakulak | B17: NOS | C17: ='[9]Cumulative Stats'!C146 -> 36 | D17: ='[9]Cumulative Stats'!D146 -> 1674 | E17: ='[9]Cumulative Stats'!E146 -> 46.5 | F17: ='[9]Cumulative Stats'!F146 -> 57 | G17: ='[9]Cumulative Stats'!G146 -> 0 | H17: =IF(C17>=Passing!$C$1*2.5,1,IF(C17=0,-1,0)) -> 0 | I17: Non-Qualifiers
A18: ='[9]Cumulative Stats'!A147 -> Weatherford | B18: NOS | C18: ='[9]Cumulative Stats'!C147 -> 35 | D18: ='[9]Cumulative Stats'!D147 -> 1586 | E18: ='[9]Cumulative Stats'!E147 -> 45.31428571 | F18: ='[9]Cumulative Stats'!F147 -> 62 | G18: ='[9]Cumulative Stats'!G147 -> 0 | H18: =IF(C18>=Passing!$C$1*2.5,1,IF(C18=0,-1,0)) -> 0
A19: ='[5]Cumulative Stats'!A147 -> McBriar | B19: DAL | C19: ='[5]Cumulative Stats'!C147 -> 35 | D19: ='[5]Cumulative Stats'!D147 -> 1550 | E19: ='[5]Cumulative Stats'!E147 -> 44.28571429 | F19: ='[5]Cumulative Stats'!F147 -> 62 | G19: ='[5]Cumulative Stats'!G147 -> 1 | H19: =IF(C19>=Passing!$C$1*2.5,1,IF(C19=0,-1,0)) -> 0
A20: ='[16]Cumulative Stats'!A147 -> Brooks | B20: WAS | C20: ='[16]Cumulative Stats'!C147 -> 29 | D20: ='[16]Cumulative Stats'!D147 -> 1097 | E20: ='[16]Cumulative Stats'!E147 -> 37.82758621 | F20: ='[16]Cumulative Stats'!F147 -> 53 | G20: ='[16]Cumulative Stats'!G147 -> 1 | H20: =IF(C20>=Passing!$C$1*2.5,1,IF(C20=0,-1,0)) -> 0
A21: ='[1]Cumulative Stats'!A147 -> Graham | B21: ARI | C21: ='[1]Cumulative Stats'!C147 -> 18 | D21: ='[1]Cumulative Stats'!D147 -> 716 | E21: ='[1]Cumulative Stats'!E147 -> 39.77777778 | F21: ='[1]Cumulative Stats'!F147 -> 53 | G21: ='[1]Cumulative Stats'!G147 -> 0 | H21: =IF(C21>=Passing!$C$1*2.5,1,IF(C21=0,-1,0)) -> 0
A22: ='[7]Cumulative Stats'!A147 -> Kapinos | B22: GBP | C22: ='[7]Cumulative Stats'!C147 -> 15 | D22: ='[7]Cumulative Stats'!D147 -> 561 | E22: ='[7]Cumulative Stats'!E147 -> 37.4 | F22: ='[7]Cumulative Stats'!F147 -> 53 | G22: ='[7]Cumulative Stats'!G147 -> 0 | H22: =IF(C22>=Passing!$C$1*2.5,1,IF(C22=0,-1,0)) -> 0
A23: ='[9]Cumulative Stats'!A148 -> Graham | B23: NOS | C23: ='[9]Cumulative Stats'!C148 -> 6 | D23: ='[9]Cumulative Stats'!D148 -> 283 | E23: ='[9]Cumulative Stats'!E148 -> 47.16666667 | F23: ='[9]Cumulative Stats'!F148 -> 53 | G23: ='[9]Cumulative Stats'!G148 -> 0 | H23: =IF(C23>=Passing!$C$1*2.5,1,IF(C23=0,-1,0)) -> 0
A24: ='[12]Cumulative Stats'!A147 -> Plackemeier | B24: SEA | C24: ='[12]Cumulative Stats'!C147 -> 4 | D24: ='[12]Cumulative Stats'!D147 -> 160 | E24: ='[12]Cumulative Stats'!E147 -> 40 | F24: ='[12]Cumulative Stats'!F147 -> 44 | G24: ='[12]Cumulative Stats'!G147 -> 0 | H24: =IF(C24>=Passing!$C$1*2.5,1,IF(C24=0,-1,0)) -> 0
G25: ='[14]Cumulative Stats'!G147 -> 0 | H25: ='[16]Cumulative Stats'!H147 -> 0

Sheet Field Goals
A1: Kicking: | B1: Team | C1: KO | D1: TB | E1: FGA | F1: FGM | G1: FG% | H1: Long | I1: XPA | J1: XPM | K1: XP% | L1: Points
A2: ='[2]Cumulative Stats'!A153 -> Elam | B2: ATL | C2: ='[2]Cumulative Stats'!C153 -> 16 | D2: ='[2]Cumulative Stats'!D153 -> 0 | E2: ='[2]Cumulative Stats'!E153 -> 39 | F2: ='[2]Cumulative Stats'!F153 -> 38 | G2: ='[2]Cumulative Stats'!G153 -> 97.43589744 | H2: ='[2]Cumulative Stats'!H153 -> 53 | I2: ='[2]Cumulative Stats'!I153 -> 76 | J2: ='[2]Cumulative Stats'!J153 -> 45 | K2: ='[2]Cumulative Stats'!K153 -> 59.21052632 | L2: ='[2]Cumulative Stats'!L153 -> 159 | M2: =IF(E2>=Passing!$C$1,1,IF(E2=0,-1,0)) -> 1 | N2: Leader based on overall percentage, minimum 16 field goals
A3: ='[1]Cumulative Stats'!$A$153 -> Rackers | B3: ARI | C3: ='[1]Cumulative Stats'!C153 -> 85 | D3: ='[1]Cumulative Stats'!D153 -> 10 | E3: ='[1]Cumulative Stats'!E153 -> 37 | F3: ='[1]Cumulative Stats'!F153 -> 36 | G3: ='[1]Cumulative Stats'!G153 -> 97.2972973 | H3: ='[1]Cumulative Stats'!H153 -> 52 | I3: ='[1]Cumulative Stats'!I153 -> 36 | J3: ='[1]Cumulative Stats'!J153 -> 36 | K3: ='[1]Cumulative Stats'!K153 -> 100 | L3: ='[1]Cumulative Stats'!L153 -> 144 | M3: =IF(E3>=Passing!$C$1,1,IF(E3=0,-1,0)) -> 1
A4: ='[9]Cumulative Stats'!A153 -> Hartley | B4: NOS | C4: ='[9]Cumulative Stats'!C153 -> 67 | D4: ='[9]Cumulative Stats'!D153 -> 4 | E4: ='[9]Cumulative Stats'!E153 -> 21 | F4: ='[9]Cumulative Stats'!F153 -> 20 | G4: ='[9]Cumulative Stats'!G153 -> 95.23809524 | H4: ='[9]Cumulative Stats'!H153 -> 51 | I4: ='[9]Cumulative Stats'!I153 -> 37 | J4: ='[9]Cumulative Stats'!J153 -> 37 | K4: ='[9]Cumulative Stats'!K153 -> 100 | L4: ='[9]Cumulative Stats'!L153 -> 97 | M4: =IF(E4>=Passing!$C$1,1,IF(E4=0,-1,0)) -> 1
A5: ='[3]Cumulative Stats'!$A$153 -> Kasay | B5: CAR | C5: ='[3]Cumulative Stats'!C153 -> 8 | D5: ='[3]Cumulative Stats'!D153 -> 2 | E5: ='[3]Cumulative Stats'!E153 -> 41 | F5: ='[3]Cumulative Stats'!F153 -> 39 | G5: ='[3]Cumulative Stats'!G153 -> 95.12195122 | H5: ='[3]Cumulative Stats'!H153 -> 55 | I5: ='[3]Cumulative Stats'!I153 -> 50 | J5: ='[3]Cumulative Stats'!J153 -> 50 | K5: ='[3]Cumulative Stats'!K153 -> 100 | L5: ='[3]Cumulative Stats'!L153 -> 167 | M5: =IF(E5>=Passing!$C$1,1,IF(E5=0,-1,0)) -> 1
A6: ='[6]Cumulative Stats'!$A$153 -> Hanson | B6: DET | C6: ='[6]Cumulative Stats'!C153 -> 71 | D6: ='[6]Cumulative Stats'!D153 -> 4 | E6: ='[6]Cumulative Stats'!E153 -> 37 | F6: ='[6]Cumulative Stats'!F153 -> 35 | G6: ='[6]Cumulative Stats'!G153 -> 94.59459459 | H6: ='[6]Cumulative Stats'!H153 -> 58 | I6: ='[6]Cumulative Stats'!I153 -> 23 | J6: ='[6]Cumulative Stats'!J153 -> 23 | K6: ='[6]Cumulative Stats'!K153 -> 100 | L6: ='[6]Cumulative Stats'!L153 -> 128 | M6: =IF(E6>=Passing!$C$1,1,IF(E6=0,-1,0)) -> 1
A7: ='[5]Cumulative Stats'!$A$153 -> Folk | B7: DAL | C7: ='[5]Cumulative Stats'!C153 -> 82 | D7: ='[5]Cumulative Stats'!D153 -> 0 | E7: ='[5]Cumulative Stats'!E153 -> 31 | F7: ='[5]Cumulative Stats'!F153 -> 29 | G7: ='[5]Cumulative Stats'!G153 -> 93.5483871 | H7: ='[5]Cumulative Stats'!H153 -> 53 | I7: ='[5]Cumulative Stats'!I153 -> 38 | J7: ='[5]Cumulative Stats'!J153 -> 38 | K7: ='[5]Cumulative Stats'!K153 -> 100 | L7: ='[5]Cumulative Stats'!L153 -> 125 | M7: =IF(E7>=Passing!$C$1,1,IF(E7=0,-1,0)) -> 1
A8: ='[10]Cumulative Stats'!A153 -> Carney | B8: NYG | C8: ='[10]Cumulative Stats'!C153 -> 95 | D8: ='[10]Cumulative Stats'!D153 -> 0 | E8: ='[10]Cumulative Stats'!E153 -> 41 | F8: ='[10]Cumulative Stats'!F153 -> 38 | G8: ='[10]Cumulative Stats'!G153 -> 92.68292683 | H8: ='[10]Cumulative Stats'!H153 -> 53 | I8: ='[10]Cumulative Stats'!I153 -> 43 | J8: ='[10]Cumulative Stats'!J153 -> 43 | K8: ='[10]Cumulative Stats'!K153 -> 100 | L8: ='[10]Cumulative Stats'!L153 -> 157 | M8: =IF(E8>=Passing!$C$1,1,IF(E8=0,-1,0)) -> 1
A9: ='[13]Cumulative Stats'!$A$153 -> Nedney | B9: SFO | C9: ='[13]Cumulative Stats'!C153 -> 63 | D9: ='[13]Cumulative Stats'!D153 -> 2 | E9: ='[13]Cumulative Stats'!E153 -> 26 | F9: ='[13]Cumulative Stats'!F153 -> 24 | G9: ='[13]Cumulative Stats'!G153 -> 92.30769231 | H9: ='[13]Cumulative Stats'!H153 -> 53 | I9: ='[13]Cumulative Stats'!I153 -> 27 | J9: ='[13]Cumulative Stats'!J153 -> 27 | K9: ='[13]Cumulative Stats'!K153 -> 100 | L9: ='[13]Cumulative Stats'!L153 -> 99 | M9: =IF(E9>=Passing!$C$1,1,IF(E9=0,-1,0)) -> 1
A10: ='[12]Cumulative Stats'!$A$153 -> Mare | B10: SEA | C10: ='[12]Cumulative Stats'!C153 -> 63 | D10: ='[12]Cumulative Stats'!D153 -> 18 | E10: ='[12]Cumulative Stats'!E153 -> 37 | F10: ='[12]Cumulative Stats'!F153 -> 34 | G10: ='[12]Cumulative Stats'!G153 -> 91.89189189 | H10: ='[12]Cumulative Stats'!H153 -> 53 | I10: ='[12]Cumulative Stats'!I153 -> 14 | J10: ='[12]Cumulative Stats'!J153 -> 14 | K10: ='[12]Cumulative Stats'!K153 -> 100 | L10: ='[12]Cumulative Stats'!L153 -> 116 | M10: =IF(E10>=Passing!$C$1,1,IF(E10=0,-1,0)) -> 1
A11: ='[15]Cumulative Stats'!$A$153 -> Bryant, M | B11: TBB | C11: ='[15]Cumulative Stats'!C153 -> 80 | D11: ='[15]Cumulative Stats'!D153 -> 0 | E11: ='[15]Cumulative Stats'!E153 -> 34 | F11: ='[15]Cumulative Stats'!F153 -> 31 | G11: ='[15]Cumulative Stats'!G153 -> 91.17647059 | H11: ='[15]Cumulative Stats'!H153 -> 51 | I11: ='[15]Cumulative Stats'!I153 -> 35 | J11: ='[15]Cumulative Stats'!J153 -> 35 | K11: ='[15]Cumulative Stats'!K153 -> 100 | L11: ='[15]Cumulative Stats'!L153 -> 128 | M11: =IF(E11>=Passing!$C$1,1,IF(E11=0,-1,0)) -> 1
A12: ='[4]Cumulative Stats'!$A$153 -> Gould | B12: CHI | C12: ='[4]Cumulative Stats'!C153 -> 57 | D12: ='[4]Cumulative Stats'!D153 -> 2 | E12: ='[4]Cumulative Stats'!E153 -> 25 | F12: ='[4]Cumulative Stats'!F153 -> 22 | G12: ='[4]Cumulative Stats'!G153 -> 88 | H12: ='[4]Cumulative Stats'!H153 -> 49 | I12: ='[4]Cumulative Stats'!I153 -> 18 | J12: ='[4]Cumulative Stats'!J153 -> 18 | K12: ='[4]Cumulative Stats'!K153 -> 100 | L12: ='[4]Cumulative Stats'!L153 -> 84 | M12: =IF(E12>=Passing!$C$1,1,IF(E12=0,-1,0)) -> 1
A13: ='[8]Cumulative Stats'!$A$153 -> Longwell | B13: MIN | C13: ='[8]Cumulative Stats'!C153 -> 93 | D13: ='[8]Cumulative Stats'!D153 -> 2 | E13: ='[8]Cumulative Stats'!E153 -> 42 | F13: ='[8]Cumulative Stats'!F153 -> 36 | G13: ='[8]Cumulative Stats'!G153 -> 85.71428571 | H13: ='[8]Cumulative Stats'!H153 -> 50 | I13: ='[8]Cumulative Stats'!I153 -> 40 | J13: ='[8]Cumulative Stats'!J153 -> 40 | K13: ='[8]Cumulative Stats'!K153 -> 100 | L13: ='[8]Cumulative Stats'!L153 -> 148 | M13: =IF(E13>=Passing!$C$1,1,IF(E13=0,-1,0)) -> 1
A14: ='[11]Cumulative Stats'!$A$153 -> Akers | B14: PHI | C14: ='[11]Cumulative Stats'!C153 -> 99 | D14: ='[11]Cumulative Stats'!D153 -> 9 | E14: ='[11]Cumulative Stats'!E153 -> 37 | F14: ='[11]Cumulative Stats'!F153 -> 31 | G14: ='[11]Cumulative Stats'!G153 -> 83.78378378 | H14: ='[11]Cumulative Stats'!H153 -> 52 | I14: ='[11]Cumulative Stats'!I153 -> 55 | J14: ='[11]Cumulative Stats'!J153 -> 55 | K14: ='[11]Cumulative Stats'!K153 -> 100 | L14: ='[11]Cumulative Stats'!L153 -> 148 | M14: =IF(E14>=Passing!$C$1,1,IF(E14=0,-1,0)) -> 1
A15: ='[7]Cumulative Stats'!$A$153 -> Crosby | B15: GBP | C15: ='[7]Cumulative Stats'!C153 -> 76 | D15: ='[7]Cumulative Stats'!D153 -> 10 | E15: ='[7]Cumulative Stats'!E153 -> 29 | F15: ='[7]Cumulative Stats'!F153 -> 24 | G15: ='[7]Cumulative Stats'!G153 -> 82.75862069 | H15: ='[7]Cumulative Stats'!H153 -> 47 | I15: ='[7]Cumulative Stats'!I153 -> 36 | J15: ='[7]Cumulative Stats'!J153 -> 36 | K15: ='[7]Cumulative Stats'!K153 -> 100 | L15: ='[7]Cumulative Stats'!L153 -> 108 | M15: =IF(E15>=Passing!$C$1,1,IF(E15=0,-1,0)) -> 1
A16: ='[14]Cumulative Stats'!$A$153 -> Brown, J | B16: STL | C16: ='[14]Cumulative Stats'!C153 -> 60 | D16: ='[14]Cumulative Stats'!D153 -> 2 | E16: ='[14]Cumulative Stats'!E153 -> 33 | F16: ='[14]Cumulative Stats'!F153 -> 27 | G16: ='[14]Cumulative Stats'!G153 -> 81.81818182 | H16: ='[14]Cumulative Stats'!H153 -> 54 | I16: ='[14]Cumulative Stats'!I153 -> 17 | J16: ='[14]Cumulative Stats'!J153 -> 17 | K16: ='[14]Cumulative Stats'!K153 -> 100 | L16: ='[14]Cumulative Stats'!L153 -> 98 | M16: =IF(E16>=Passing!$C$1,1,IF(E16=0,-1,0)) -> 1
A17: ='[16]Cumulative Stats'!$A$153 -> Suisham | B17: WAS | C17: ='[16]Cumulative Stats'!C153 -> 78 | D17: ='[16]Cumulative Stats'!D153 -> 4 | E17: ='[16]Cumulative Stats'!E153 -> 42 | F17: ='[16]Cumulative Stats'!F153 -> 33 | G17: ='[16]Cumulative Stats'!G153 -> 78.57142857 | H17: ='[16]Cumulative Stats'!H153 -> 54 | I17: ='[16]Cumulative Stats'!I153 -> 27 | J17: ='[16]Cumulative Stats'!J153 -> 27 | K17: ='[16]Cumulative Stats'!K153 -> 100 | L17: ='[16]Cumulative Stats'!L153 -> 126 | M17: =IF(E17>=Passing!$C$1,1,IF(E17=0,-1,0)) -> 1
A18: ='[9]Cumulative Stats'!A154 -> Gramatica | B18: NOS | C18: ='[9]Cumulative Stats'!C154 -> 37 | D18: ='[9]Cumulative Stats'!D154 -> 3 | E18: ='[9]Cumulative Stats'!E154 -> 18 | F18: ='[9]Cumulative Stats'!F154 -> 13 | G18: ='[9]Cumulative Stats'!G154 -> 72.22222222 | H18: ='[9]Cumulative Stats'!H154 -> 41 | I18: ='[9]Cumulative Stats'!I154 -> 20 | J18: ='[9]Cumulative Stats'!J154 -> 20 | K18: ='[9]Cumulative Stats'!K154 -> 100 | L18: ='[9]Cumulative Stats'!L154 -> 59 | M18: =IF(E18>=Passing!$C$1,1,IF(E18=0,-1,0)) -> 1 | N18: Non-Qualifiers
M19: =IF(E19>=Passing!$C$1,1,IF(E19=0,-1,0)) -> -1
M20: =IF(E20>=Passing!$C$1,1,IF(E20=0,-1,0)) -> -1
M21: =IF(E21>=Passing!$C$1,1,IF(E21=0,-1,0)) -> -1
M22: =IF(E22>=Passing!$C$1,1,IF(E22=0,-1,0)) -> -1
M23: =IF(E23>=Passing!$C$1,1,IF(E23=0,-1,0)) -> -1
M24: =IF(E24>=Passing!$C$1,1,IF(E24=0,-1,0)) -> -1
M25: =IF(E25>=Passing!$C$1,1,IF(E25=0,-1,0)) -> -1

Sheet Int - Sack
A1: Interceptions: | B1: Team | C1: No. | D1: Yrds | E1: Avg. | F1: Long | G1: TD | J1: Sacks: | K1: Team | L1: No.
A2: ='[14]Cumulative Stats'!A159 -> Atogwe | B2: STL | C2: ='[14]Cumulative Stats'!C159 -> 9 | D2: ='[14]Cumulative Stats'!D159 -> 142 | E2: ='[14]Cumulative Stats'!E159 -> 15.77777778 | F2: ='[14]Cumulative Stats'!F159 -> 23 | G2: ='[14]Cumulative Stats'!G159 -> 1 | J2: ='[5]Cumulative Stats'!A174 -> Ware | K2: DAL | L2: ='[5]Cumulative Stats'!C174 -> 22.5
A3: ='[7]Cumulative Stats'!A159 -> Woodson | B3: GBP | C3: ='[7]Cumulative Stats'!C159 -> 7 | D3: ='[7]Cumulative Stats'!D159 -> 119 | E3: ='[7]Cumulative Stats'!E159 -> 17 | F3: ='[7]Cumulative Stats'!F159 -> 27 | G3: ='[7]Cumulative Stats'!G159 -> 0 | J3: ='[8]Cumulative Stats'!A174 -> Allen, J | K3: MIN | L3: ='[8]Cumulative Stats'!C174 -> 22
A4: ='[15]Cumulative Stats'!A159 -> Buchanon | B4: TBB | C4: ='[15]Cumulative Stats'!C159 -> 6 | D4: ='[15]Cumulative Stats'!D159 -> 124 | E4: ='[15]Cumulative Stats'!E159 -> 20.66666667 | F4: ='[15]Cumulative Stats'!F159 -> 31 | G4: ='[15]Cumulative Stats'!G159 -> 1 | J4: ='[2]Cumulative Stats'!A174 -> Abraham | K4: ATL | L4: ='[2]Cumulative Stats'!C174 -> 18.5
A5: ='[6]Cumulative Stats'!A159 -> Nece | B5: DET | C5: ='[6]Cumulative Stats'!C159 -> 6 | D5: ='[6]Cumulative Stats'!D159 -> 113 | E5: ='[6]Cumulative Stats'!E159 -> 18.83333333 | F5: ='[6]Cumulative Stats'!F159 -> 23 | G5: ='[6]Cumulative Stats'!G159 -> 1 | J5: ='[3]Cumulative Stats'!A174 -> Peppers | K5: CAR | L5: ='[3]Cumulative Stats'!C174 -> 16.5
A6: ='[3]Cumulative Stats'!A159 -> Beason | B6: CAR | C6: ='[3]Cumulative Stats'!C159 -> 6 | D6: ='[3]Cumulative Stats'!D159 -> 57 | E6: ='[3]Cumulative Stats'!E159 -> 9.5 | F6: ='[3]Cumulative Stats'!F159 -> 46 | G6: ='[3]Cumulative Stats'!G159 -> 0 | J6: ='[13]Cumulative Stats'!A174 -> Smith, J | K6: SFO | L6: ='[13]Cumulative Stats'!C174 -> 15
A7: ='[12]Cumulative Stats'!A159 -> Wilson | B7: SEA | C7: ='[12]Cumulative Stats'!C159 -> 6 | D7: ='[12]Cumulative Stats'!D159 -> 35 | E7: ='[12]Cumulative Stats'!E159 -> 5.833333333 | F7: ='[12]Cumulative Stats'!F159 -> 24 | G7: ='[12]Cumulative Stats'!G159 -> 0 | J7: ='[11]Cumulative Stats'!A174 -> Cole | K7: PHI | L7: ='[11]Cumulative Stats'!C174 -> 14.5
A8: ='[12]Cumulative Stats'!A160 -> Grant | B8: SEA | C8: ='[12]Cumulative Stats'!C160 -> 5 | D8: ='[12]Cumulative Stats'!D160 -> 129 | E8: ='[12]Cumulative Stats'!E160 -> 25.8 | F8: ='[12]Cumulative Stats'!F160 -> 36 | G8: ='[12]Cumulative Stats'!G160 -> 0 | J8: ='[10]Cumulative Stats'!A174 -> Tuck | K8: NYG | L8: ='[10]Cumulative Stats'!C174 -> 14.5
A9: ='[9]Cumulative Stats'!A159 -> David | B9: NOS | C9: ='[9]Cumulative Stats'!C159 -> 5 | D9: ='[9]Cumulative Stats'!D159 -> 121 | E9: ='[9]Cumulative Stats'!E159 -> 24.2 | F9: ='[9]Cumulative Stats'!F159 -> 41 | G9: ='[9]Cumulative Stats'!G159 -> 1 | J9: ='[7]Cumulative Stats'!A174 -> Kampman | K9: GBP | L9: ='[7]Cumulative Stats'!C174 -> 13
A10: ='[11]Cumulative Stats'!A159 -> Samuel | B10: PHI | C10: ='[11]Cumulative Stats'!C159 -> 5 | D10: ='[11]Cumulative Stats'!D159 -> 94 | E10: ='[11]Cumulative Stats'!E159 -> 18.8 | F10: ='[11]Cumulative Stats'!F159 -> 61 | G10: ='[11]Cumulative Stats'!G159 -> 0 | J10: ='[15]Cumulative Stats'!A174 -> Adams | K10: TBB | L10: ='[15]Cumulative Stats'!C174 -> 10.5
A11: ='[2]Cumulative Stats'!A159 -> Houston | B11: ATL | C11: ='[2]Cumulative Stats'!C159 -> 5 | D11: ='[2]Cumulative Stats'!D159 -> 87 | E11: ='[2]Cumulative Stats'!E159 -> 17.4 | F11: ='[2]Cumulative Stats'!F159 -> 71 | G11: ='[2]Cumulative Stats'!G159 -> 1 | J11: ='[11]Cumulative Stats'!A175 -> Howard | K11: PHI | L11: ='[11]Cumulative Stats'!C175 -> 10
A12: ='[10]Cumulative Stats'!A159 -> Butler, J | B12: NYG | C12: ='[10]Cumulative Stats'!C159 -> 5 | D12: ='[10]Cumulative Stats'!D159 -> 74 | E12: ='[10]Cumulative Stats'!E159 -> 14.8 | F12: ='[10]Cumulative Stats'!F159 -> 46 | G12: ='[10]Cumulative Stats'!G159 -> 0 | J12: ='[6]Cumulative Stats'!A174 -> White | K12: DET | L12: ='[6]Cumulative Stats'!C174 -> 10
A13: ='[10]Cumulative Stats'!A160 -> Johnson, M | B13: NYG | C13: ='[10]Cumulative Stats'!C160 -> 5 | D13: ='[10]Cumulative Stats'!D160 -> 71 | E13: ='[10]Cumulative Stats'!E160 -> 14.2 | F13: ='[10]Cumulative Stats'!F160 -> 27 | G13: ='[10]Cumulative Stats'!G160 -> 0 | J13: ='[14]Cumulative Stats'!A174 -> Hall, J | K13: STL | L13: ='[14]Cumulative Stats'!C174 -> 9
A14: ='[16]Cumulative Stats'!A159 -> Horton | B14: WAS | C14: ='[16]Cumulative Stats'!C159 -> 5 | D14: ='[16]Cumulative Stats'!D159 -> 28 | E14: ='[16]Cumulative Stats'!E159 -> 5.6 | F14: ='[16]Cumulative Stats'!F159 -> 10 | G14: ='[16]Cumulative Stats'!G159 -> 0 | J14: ='[10]Cumulative Stats'!A175 -> Kiwanuka | K14: NYG | L14: ='[10]Cumulative Stats'!C175 -> 8.5
A15: ='[7]Cumulative Stats'!A160 -> Williams | B15: GBP | C15: ='[7]Cumulative Stats'!C160 -> 5 | D15: ='[7]Cumulative Stats'!D160 -> 26 | E15: ='[7]Cumulative Stats'!E160 -> 5.2 | F15: ='[7]Cumulative Stats'!F160 -> 8 | G15: ='[7]Cumulative Stats'!G160 -> 0 | J15: ='[12]Cumulative Stats'!A174 -> Peterson | K15: SEA | L15: ='[12]Cumulative Stats'!C174 -> 8.5
A16: ='[3]Cumulative Stats'!A160 -> Lucas | B16: CAR | C16: ='[3]Cumulative Stats'!C160 -> 4 | D16: ='[3]Cumulative Stats'!D160 -> 134 | E16: ='[3]Cumulative Stats'!E160 -> 33.5 | F16: ='[3]Cumulative Stats'!F160 -> 36 | G16: ='[3]Cumulative Stats'!G160 -> 1 | J16: ='[10]Cumulative Stats'!A176 -> Robbins | K16: NYG | L16: ='[10]Cumulative Stats'!C176 -> 8.5
A17: ='[15]Cumulative Stats'!A160 -> Barber | B17: TBB | C17: ='[15]Cumulative Stats'!C160 -> 4 | D17: ='[15]Cumulative Stats'!D160 -> 107 | E17: ='[15]Cumulative Stats'!E160 -> 26.75 | F17: ='[15]Cumulative Stats'!F160 -> 65 | G17: ='[15]Cumulative Stats'!G160 -> 2 | J17: ='[9]Cumulative Stats'!A174 -> McCray | K17: NOS | L17: ='[9]Cumulative Stats'!C174 -> 8
A18: ='[11]Cumulative Stats'!A160 -> Mikell | B18: PHI | C18: ='[11]Cumulative Stats'!C160 -> 4 | D18: ='[11]Cumulative Stats'!D160 -> 91 | E18: ='[11]Cumulative Stats'!E160 -> 22.75 | F18: ='[11]Cumulative Stats'!F160 -> 40 | G18: ='[11]Cumulative Stats'!G160 -> 1 | J18: ='[1]Cumulative Stats'!A174 -> Okeafor | K18: ARI | L18: ='[1]Cumulative Stats'!C174 -> 8
A19: ='[8]Cumulative Stats'!A159 -> Leber | B19: MIN | C19: ='[8]Cumulative Stats'!C159 -> 4 | D19: ='[8]Cumulative Stats'!D159 -> 83 | E19: ='[8]Cumulative Stats'!E159 -> 20.75 | F19: ='[8]Cumulative Stats'!F159 -> 27 | G19: ='[8]Cumulative Stats'!G159 -> 0 | J19: ='[6]Cumulative Stats'!A175 -> Redding | K19: DET | L19: ='[6]Cumulative Stats'!C175 -> 8
A20: ='[9]Cumulative Stats'!A160 -> Kaesviharn | B20: NOS | C20: ='[9]Cumulative Stats'!C160 -> 4 | D20: ='[9]Cumulative Stats'!D160 -> 26 | E20: ='[9]Cumulative Stats'!E160 -> 6.5 | F20: ='[9]Cumulative Stats'!F160 -> 13 | G20: ='[9]Cumulative Stats'!G160 -> 0 | J20: ='[1]Cumulative Stats'!A175 -> Dockett | K20: ARI | L20: ='[1]Cumulative Stats'!C175 -> 7.5
A21: ='[16]Cumulative Stats'!A160 -> McIntosh | B21: WAS | C21: ='[16]Cumulative Stats'!C160 -> 4 | D21: ='[16]Cumulative Stats'!D160 -> 20 | E21: ='[16]Cumulative Stats'!E160 -> 5 | F21: ='[16]Cumulative Stats'!F160 -> 6 | G21: ='[16]Cumulative Stats'!G160 -> 0 | J21: ='[5]Cumulative Stats'!A175 -> Ellis | K21: DAL | L21: ='[5]Cumulative Stats'!C175 -> 7.5
A22: ='[13]Cumulative Stats'!A159 -> Spikes | B22: SFO | C22: ='[13]Cumulative Stats'!C159 -> 4 | D22: ='[13]Cumulative Stats'!D159 -> 4 | E22: ='[13]Cumulative Stats'!E159 -> 1 | F22: ='[13]Cumulative Stats'!F159 -> 2 | G22: ='[13]Cumulative Stats'!G159 -> 0 | J22: ='[4]Cumulative Stats'!A174 -> Harris | K22: CHI | L22: ='[4]Cumulative Stats'!C174 -> 7.5
A23: ='[16]Cumulative Stats'!A161 -> Rogers | B23: WAS | C23: ='[16]Cumulative Stats'!C161 -> 3 | D23: ='[16]Cumulative Stats'!D161 -> 118 | E23: ='[16]Cumulative Stats'!E161 -> 39.33333333 | F23: ='[16]Cumulative Stats'!F161 -> 41 | G23: ='[16]Cumulative Stats'!G161 -> 0 | J23: ='[5]Cumulative Stats'!A176 -> Ratliff | K23: DAL | L23: ='[5]Cumulative Stats'!C176 -> 7.5
A24: ='[2]Cumulative Stats'!A161 -> Grimes | B24: ATL | C24: ='[2]Cumulative Stats'!C161 -> 3 | D24: ='[2]Cumulative Stats'!D161 -> 81 | E24: ='[2]Cumulative Stats'!E161 -> 27 | F24: ='[2]Cumulative Stats'!F161 -> 31 | G24: ='[2]Cumulative Stats'!G161 -> 0 | J24: ='[16]Cumulative Stats'!A174 -> Taylor | K24: WAS | L24: ='[16]Cumulative Stats'!C174 -> 7.5
A25: ='[2]Cumulative Stats'!A160 -> Coleman | B25: ATL | C25: ='[2]Cumulative Stats'!C160 -> 3 | D25: ='[2]Cumulative Stats'!D160 -> 53 | E25: ='[2]Cumulative Stats'!E160 -> 17.66666667 | F25: ='[2]Cumulative Stats'!F160 -> 31 | G25: ='[2]Cumulative Stats'!G160 -> 0 | J25: ='[9]Cumulative Stats'!A175 -> Charleston | K25: NOS | L25: ='[9]Cumulative Stats'!C175 -> 7
A26: ='[11]Cumulative Stats'!A161 -> Hanson | B26: PHI | C26: ='[11]Cumulative Stats'!C161 -> 3 | D26: ='[11]Cumulative Stats'!D161 -> 45 | E26: ='[11]Cumulative Stats'!E161 -> 15 | F26: ='[11]Cumulative Stats'!F161 -> 16 | G26: ='[11]Cumulative Stats'!G161 -> 0 | J26: ='[11]Cumulative Stats'!A176 -> Parker | K26: PHI | L26: ='[11]Cumulative Stats'!C176 -> 7
A27: ='[9]Cumulative Stats'!A161 -> Fujita | B27: NOS | C27: ='[9]Cumulative Stats'!C161 -> 3 | D27: ='[9]Cumulative Stats'!D161 -> 40 | E27: ='[9]Cumulative Stats'!E161 -> 13.33333333 | F27: ='[9]Cumulative Stats'!F161 -> 19 | G27: ='[9]Cumulative Stats'!G161 -> 0 | J27: ='[1]Cumulative Stats'!A176 -> Dansby | K27: ARI | L27: ='[1]Cumulative Stats'!C176 -> 6.5
A28: ='[3]Cumulative Stats'!A161 -> Gamble | B28: CAR | C28: ='[3]Cumulative Stats'!C161 -> 3 | D28: ='[3]Cumulative Stats'!D161 -> 39 | E28: ='[3]Cumulative Stats'!E161 -> 13 | F28: ='[3]Cumulative Stats'!F161 -> 19 | G28: ='[3]Cumulative Stats'!G161 -> 0 | J28: ='[3]Cumulative Stats'!A175 -> Johnson, C | K28: CAR | L28: ='[3]Cumulative Stats'!C175 -> 6.5
A29: ='[15]Cumulative Stats'!A161 -> Phillips | B29: TBB | C29: ='[15]Cumulative Stats'!C161 -> 3 | D29: ='[15]Cumulative Stats'!D161 -> 26 | E29: ='[15]Cumulative Stats'!E161 -> 8.666666667 | F29: ='[15]Cumulative Stats'!F161 -> 13 | G29: ='[15]Cumulative Stats'!G161 -> 0 | J29: ='[14]Cumulative Stats'!A175 -> Little | K29: STL | L29: ='[14]Cumulative Stats'!C175 -> 6.5
A30: ='[9]Cumulative Stats'!A163 -> Vilma | B30: NOS | C30: ='[9]Cumulative Stats'!C163 -> 3 | D30: ='[9]Cumulative Stats'!D163 -> 16 | E30: ='[9]Cumulative Stats'!E163 -> 5.333333333 | F30: ='[9]Cumulative Stats'!F163 -> 8 | G30: ='[9]Cumulative Stats'!G163 -> 0 | J30: ='[8]Cumulative Stats'!A175 -> Williams, K | K30: MIN | L30: ='[8]Cumulative Stats'!C175 -> 6.5
A31: ='[8]Cumulative Stats'!A160 -> Winfield | B31: MIN | C31: ='[8]Cumulative Stats'!C160 -> 3 | D31: ='[8]Cumulative Stats'!D160 -> 14 | E31: ='[8]Cumulative Stats'!E160 -> 4.666666667 | F31: ='[8]Cumulative Stats'!F160 -> 10 | G31: ='[8]Cumulative Stats'!G160 -> 0 | J31: ='[15]Cumulative Stats'!A175 -> Barber | K31: TBB | L31: ='[15]Cumulative Stats'!C175 -> 6
A32: ='[13]Cumulative Stats'!A161 -> Clements | B32: SFO | C32: ='[13]Cumulative Stats'!C161 -> 3 | D32: ='[13]Cumulative Stats'!D161 -> 13 | E32: ='[13]Cumulative Stats'!E161 -> 4.333333333 | F32: ='[13]Cumulative Stats'!F161 -> 13 | G32: ='[13]Cumulative Stats'!G161 -> 0 | J32: ='[2]Cumulative Stats'!A175 -> Davis | K32: ATL | L32: ='[2]Cumulative Stats'!C175 -> 6
A33: ='[5]Cumulative Stats'!A159 -> Newman | B33: DAL | C33: ='[5]Cumulative Stats'!C159 -> 3 | D33: ='[5]Cumulative Stats'!D159 -> 10 | E33: ='[5]Cumulative Stats'!E159 -> 3.333333333 | F33: ='[5]Cumulative Stats'!F159 -> 6 | G33: ='[5]Cumulative Stats'!G159 -> 0 | J33: ='[11]Cumulative Stats'!A177 -> Dawkins | K33: PHI | L33: ='[11]Cumulative Stats'!C177 -> 6
A34: ='[13]Cumulative Stats'!A160 -> Harris | B34: SFO | C34: ='[13]Cumulative Stats'!C160 -> 3 | D34: ='[13]Cumulative Stats'!D160 -> 0 | E34: ='[13]Cumulative Stats'!E160 -> 0 | F34: ='[13]Cumulative Stats'!F160 -> 0 | G34: ='[13]Cumulative Stats'!G160 -> 0 | J34: ='[12]Cumulative Stats'!A175 -> Kerney | K34: SEA | L34: ='[12]Cumulative Stats'!C175 -> 6
A35: ='[9]Cumulative Stats'!A162 -> Young, U | B35: NOS | C35: ='[9]Cumulative Stats'!C162 -> 3 | D35: ='[9]Cumulative Stats'!D162 -> 0 | E35: ='[9]Cumulative Stats'!E162 -> 0 | F35: ='[9]Cumulative Stats'!F162 -> 0 | G35: ='[9]Cumulative Stats'!G162 -> 0 | J35: ='[4]Cumulative Stats'!A175 -> Brown, A | K35: CHI | L35: ='[4]Cumulative Stats'!C175 -> 5.5
A36: ='[1]Cumulative Stats'!A159 -> Hood | B36: ARI | C36: ='[1]Cumulative Stats'!C159 -> 3 | D36: ='[1]Cumulative Stats'!D159 -> -1 | E36: ='[1]Cumulative Stats'!E159 -> -0.3333333333 | F36: ='[1]Cumulative Stats'!F159 -> -1 | G36: ='[1]Cumulative Stats'!G159 -> 0 | J36: ='[15]Cumulative Stats'!A177 -> Carter | K36: TBB | L36: ='[15]Cumulative Stats'!C177 -> 5.5
A37: ='[16]Cumulative Stats'!A162 -> Springs | B37: WAS | C37: ='[16]Cumulative Stats'!C162 -> 3 | D37: ='[16]Cumulative Stats'!D162 -> -1 | E37: ='[16]Cumulative Stats'!E162 -> -0.3333333333 | F37: ='[16]Cumulative Stats'!F162 -> 0 | G37: ='[16]Cumulative Stats'!G162 -> 0 | J37: ='[13]Cumulative Stats'!A175 -> Haralson | K37: SFO | L37: ='[13]Cumulative Stats'!C175 -> 5.5
A38: ='[8]Cumulative Stats'!A161 -> Griifin | B38: MIN | C38: ='[8]Cumulative Stats'!C161 -> 3 | D38: ='[8]Cumulative Stats'!D161 -> -6 | E38: ='[8]Cumulative Stats'!E161 -> -2 | F38: ='[8]Cumulative Stats'!F161 -> 0 | G38: ='[8]Cumulative Stats'!G161 -> 0 | J38: ='[5]Cumulative Stats'!A177 -> James | K38: DAL | L38: ='[5]Cumulative Stats'!C177 -> 5.5
A39: ='[7]Cumulative Stats'!A162 -> Rouse | B39: GBP | C39: ='[7]Cumulative Stats'!C162 -> 2 | D39: ='[7]Cumulative Stats'!D162 -> 82 | E39: ='[7]Cumulative Stats'!E162 -> 41 | F39: ='[7]Cumulative Stats'!F162 -> 41 | G39: ='[7]Cumulative Stats'!G162 -> 0 | J39: ='[12]Cumulative Stats'!A176 -> Mebane | K39: SEA | L39: ='[12]Cumulative Stats'!C176 -> 5.5
A40: ='[1]Cumulative Stats'!A161 -> Okeafor | B40: ARI | C40: ='[1]Cumulative Stats'!C161 -> 2 | D40: ='[1]Cumulative Stats'!D161 -> 77 | E40: ='[1]Cumulative Stats'!E161 -> 38.5 | F40: ='[1]Cumulative Stats'!F161 -> 41 | G40: ='[1]Cumulative Stats'!G161 -> 0 | J40: ='[14]Cumulative Stats'!A176 -> Tinoisamoa | K40: STL | L40: ='[14]Cumulative Stats'!C176 -> 5.5
A41: ='[1]Cumulative Stats'!A160 -> Rodgers-Cromartie | B41: ARI | C41: ='[1]Cumulative Stats'!C160 -> 2 | D41: ='[1]Cumulative Stats'!D160 -> 59 | E41: ='[1]Cumulative Stats'!E160 -> 29.5 | F41: ='[1]Cumulative Stats'!F160 -> 59 | G41: ='[1]Cumulative Stats'!G160 -> 1 | J41: ='[15]Cumulative Stats'!A176 -> Wilkerson | K41: TBB | L41: ='[15]Cumulative Stats'!C176 -> 5.5
A42: ='[7]Cumulative Stats'!A161 -> Collins | B42: GBP | C42: ='[7]Cumulative Stats'!C161 -> 2 | D42: ='[7]Cumulative Stats'!D161 -> 57 | E42: ='[7]Cumulative Stats'!E161 -> 28.5 | F42: ='[7]Cumulative Stats'!F161 -> 45 | G42: ='[7]Cumulative Stats'!G161 -> 2 | J42: ='[6]Cumulative Stats'!A176 -> Avril | K42: DET | L42: ='[6]Cumulative Stats'!C176 -> 5
A43: ='[8]Cumulative Stats'!A162 -> Sapp | B43: MIN | C43: ='[8]Cumulative Stats'!C162 -> 2 | D43: ='[8]Cumulative Stats'!D162 -> 32 | E43: ='[8]Cumulative Stats'!E162 -> 16 | F43: ='[8]Cumulative Stats'!F162 -> 16 | G43: ='[8]Cumulative Stats'!G162 -> 0 | J43: ='[9]Cumulative Stats'!A176 -> Clancy | K43: NOS | L43: ='[9]Cumulative Stats'!C176 -> 5
A44: ='[8]Cumulative Stats'!A164 -> Sharper | B44: MIN | C44: ='[8]Cumulative Stats'!C164 -> 2 | D44: ='[8]Cumulative Stats'!D164 -> 29 | E44: ='[8]Cumulative Stats'!E164 -> 14.5 | F44: ='[8]Cumulative Stats'!F164 -> 16 | G44: ='[8]Cumulative Stats'!G164 -> 0 | J44: ='[1]Cumulative Stats'!A178 -> Haggans | K44: ARI | L44: ='[1]Cumulative Stats'!C178 -> 5
A45: ='[3]Cumulative Stats'!A162 -> Marshall | B45: CAR | C45: ='[3]Cumulative Stats'!C162 -> 2 | D45: ='[3]Cumulative Stats'!D162 -> 26 | E45: ='[3]Cumulative Stats'!E162 -> 13 | F45: ='[3]Cumulative Stats'!F162 -> 13 | G45: ='[3]Cumulative Stats'!G162 -> 0 | J45: ='[13]Cumulative Stats'!A176 -> Lewis, M | K45: SFO | L45: ='[13]Cumulative Stats'!C176 -> 5
A46: ='[4]Cumulative Stats'!A160 -> Urlacher | B46: CHI | C46: ='[4]Cumulative Stats'!C160 -> 2 | D46: ='[4]Cumulative Stats'!D160 -> 26 | E46: ='[4]Cumulative Stats'!E160 -> 13 | F46: ='[4]Cumulative Stats'!F160 -> 13 | G46: ='[4]Cumulative Stats'!G160 -> 0 | J46: ='[15]Cumulative Stats'!A179 -> Ruud | K46: TBB | L46: ='[15]Cumulative Stats'!C179 -> 5
A47: ='[4]Cumulative Stats'!A159 -> Tillman | B47: CHI | C47: ='[4]Cumulative Stats'!C159 -> 2 | D47: ='[4]Cumulative Stats'!D159 -> 20 | E47: ='[4]Cumulative Stats'!E159 -> 10 | F47: ='[4]Cumulative Stats'!F159 -> 10 | G47: ='[4]Cumulative Stats'!G159 -> 0 | J47: ='[1]Cumulative Stats'!A177 -> Smith, A | K47: ARI | L47: ='[1]Cumulative Stats'!C177 -> 5
A48: ='[16]Cumulative Stats'!A163 -> Landry | B48: WAS | C48: ='[16]Cumulative Stats'!C163 -> 2 | D48: ='[16]Cumulative Stats'!D163 -> 19 | E48: ='[16]Cumulative Stats'!E163 -> 9.5 | F48: ='[16]Cumulative Stats'!F163 -> 13 | G48: ='[16]Cumulative Stats'!G163 -> 0 | J48: ='[15]Cumulative Stats'!A178 -> White | K48: TBB | L48: ='[15]Cumulative Stats'!C178 -> 5
A49: ='[8]Cumulative Stats'!A165 -> Gordon | B49: MIN | C49: ='[8]Cumulative Stats'!C165 -> 2 | D49: ='[8]Cumulative Stats'!D165 -> 10 | E49: ='[8]Cumulative Stats'!E165 -> 5 | F49: ='[8]Cumulative Stats'!F165 -> 10 | G49: ='[8]Cumulative Stats'!G165 -> 0 | J49: ='[14]Cumulative Stats'!A177 -> Long | K49: STL | L49: ='[14]Cumulative Stats'!C177 -> 4.5
A50: ='[14]Cumulative Stats'!A160 -> Bartell | B50: STL | C50: ='[14]Cumulative Stats'!C160 -> 2 | D50: ='[14]Cumulative Stats'!D160 -> 7 | E50: ='[14]Cumulative Stats'!E160 -> 3.5 | F50: ='[14]Cumulative Stats'!F160 -> 5 | G50: ='[14]Cumulative Stats'!G160 -> 0 | J50: ='[12]Cumulative Stats'!A177 -> Tapp | K50: SEA | L50: ='[12]Cumulative Stats'!C177 -> 4.5
A51: ='[5]Cumulative Stats'!A160 -> Henry | B51: DAL | C51: ='[5]Cumulative Stats'!C160 -> 2 | D51: ='[5]Cumulative Stats'!D160 -> 6 | E51: ='[5]Cumulative Stats'!E160 -> 3 | F51: ='[5]Cumulative Stats'!F160 -> 6 | G51: ='[5]Cumulative Stats'!G160 -> 0 | J51: ='[10]Cumulative Stats'!A177 -> Tollefson | K51: NYG | L51: ='[10]Cumulative Stats'!C177 -> 4.5
A52: ='[15]Cumulative Stats'!A162 -> Talib | B52: TBB | C52: ='[15]Cumulative Stats'!C162 -> 2 | D52: ='[15]Cumulative Stats'!D162 -> 6 | E52: ='[15]Cumulative Stats'!E162 -> 3 | F52: ='[15]Cumulative Stats'!F162 -> 4 | G52: ='[15]Cumulative Stats'!G162 -> 0 | J52: ='[8]Cumulative Stats'!A176 -> Williams, P | K52: MIN | L52: ='[8]Cumulative Stats'!C176 -> 4.5
A53: ='[2]Cumulative Stats'!A162 -> Foxworth | B53: ATL | C53: ='[2]Cumulative Stats'!C162 -> 2 | D53: ='[2]Cumulative Stats'!D162 -> 4 | E53: ='[2]Cumulative Stats'!E162 -> 2 | F53: ='[2]Cumulative Stats'!F162 -> 2 | G53: ='[2]Cumulative Stats'!G162 -> 0 | J53: ='[16]Cumulative Stats'!A175 -> Carter | K53: WAS | L53: ='[16]Cumulative Stats'!C175 -> 4
A54: ='[16]Cumulative Stats'!A164 -> Hall | B54: WAS | C54: ='[16]Cumulative Stats'!C164 -> 2 | D54: ='[16]Cumulative Stats'!D164 -> 4 | E54: ='[16]Cumulative Stats'!E164 -> 2 | F54: ='[16]Cumulative Stats'!F164 -> 2 | G54: ='[16]Cumulative Stats'!G164 -> 0 | J54: ='[6]Cumulative Stats'!A177 -> DeVries | K54: DET | L54: ='[6]Cumulative Stats'!C177 -> 4
A55: ='[13]Cumulative Stats'!A162 -> Brown | B55: SFO | C55: ='[13]Cumulative Stats'!C162 -> 2 | D55: ='[13]Cumulative Stats'!D162 -> 1 | E55: ='[13]Cumulative Stats'!E162 -> 0.5 | F55: ='[13]Cumulative Stats'!F162 -> 2 | G55: ='[13]Cumulative Stats'!G162 -> 0 | J55: ='[6]Cumulative Stats'!A178 -> Lenon | K55: DET | L55: ='[6]Cumulative Stats'!C178 -> 4
A56: ='[10]Cumulative Stats'!A161 -> Ross | B56: NYG | C56: ='[10]Cumulative Stats'!C161 -> 2 | D56: ='[10]Cumulative Stats'!D161 -> 0 | E56: ='[10]Cumulative Stats'!E161 -> 0 | F56: ='[10]Cumulative Stats'!F161 -> 0 | G56: ='[10]Cumulative Stats'!G161 -> 0 | J56: ='[12]Cumulative Stats'!A178 -> Bernard, R | K56: SEA | L56: ='[12]Cumulative Stats'!C178 -> 3.5
A57: ='[8]Cumulative Stats'!A163 -> Williams, M | B57: MIN | C57: ='[8]Cumulative Stats'!C163 -> 2 | D57: ='[8]Cumulative Stats'!D163 -> 0 | E57: ='[8]Cumulative Stats'!E163 -> 0 | F57: ='[8]Cumulative Stats'!F163 -> 0 | G57: ='[8]Cumulative Stats'!G163 -> 0 | J57: ='[5]Cumulative Stats'!A178 -> Canty | K57: DAL | L57: ='[5]Cumulative Stats'!C178 -> 3.5
A58: ='[4]Cumulative Stats'!A162 -> McBride | B58: CHI | C58: ='[4]Cumulative Stats'!C162 -> 2 | D58: ='[4]Cumulative Stats'!D162 -> 0 | E58: ='[4]Cumulative Stats'!E162 -> 0 | F58: ='[4]Cumulative Stats'!F162 -> 0 | G58: ='[4]Cumulative Stats'!G162 -> 0 | J58: ='[11]Cumulative Stats'!A178 -> Clemons | K58: PHI | L58: ='[11]Cumulative Stats'!C178 -> 3.5
A59: ='[4]Cumulative Stats'!A161 -> Brown, M | B59: CHI | C59: ='[4]Cumulative Stats'!C161 -> 2 | D59: ='[4]Cumulative Stats'!D161 -> 0 | E59: ='[4]Cumulative Stats'!E161 -> 0 | F59: ='[4]Cumulative Stats'!F161 -> 0 | G59: ='[4]Cumulative Stats'!G161 -> 0 | J59: ='[3]Cumulative Stats'!A176 -> Davis | K59: CAR | L59: ='[3]Cumulative Stats'!C176 -> 3.5
A60: ='[4]Cumulative Stats'!A163 -> Vasher | B60: CHI | C60: ='[4]Cumulative Stats'!C163 -> 2 | D60: ='[4]Cumulative Stats'!D163 -> -1 | E60: ='[4]Cumulative Stats'!E163 -> -0.5 | F60: ='[4]Cumulative Stats'!F163 -> 0 | G60: ='[4]Cumulative Stats'!G163 -> 0 | J60: ='[11]Cumulative Stats'!A179 -> Gaither | K60: PHI | L60: ='[11]Cumulative Stats'!C179 -> 3.5
A61: ='[16]Cumulative Stats'!A165 -> Smoot | B61: WAS | C61: ='[16]Cumulative Stats'!C165 -> 2 | D61: ='[16]Cumulative Stats'!D165 -> -1 | E61: ='[16]Cumulative Stats'!E165 -> -0.5 | F61: ='[16]Cumulative Stats'!F165 -> 0 | G61: ='[16]Cumulative Stats'!G165 -> 0 | J61: ='[6]Cumulative Stats'!A179 -> Smith, C | K61: DET | L61: ='[6]Cumulative Stats'!C179 -> 3.5
A62: ='[4]Cumulative Stats'!A165 -> Manning | B62: CHI | C62: ='[4]Cumulative Stats'!C165 -> 1 | D62: ='[4]Cumulative Stats'!D165 -> 41 | E62: ='[4]Cumulative Stats'!E165 -> 41 | F62: ='[4]Cumulative Stats'!F165 -> 41 | G62: ='[4]Cumulative Stats'!G165 -> 0 | J62: ='[10]Cumulative Stats'!A178 -> Wynn | K62: NYG | L62: ='[10]Cumulative Stats'!C178 -> 3.5
A63: ='[5]Cumulative Stats'!A161 -> Jenkins | B63: DAL | C63: ='[5]Cumulative Stats'!C161 -> 1 | D63: ='[5]Cumulative Stats'!D161 -> 27 | E63: ='[5]Cumulative Stats'!E161 -> 27 | F63: ='[5]Cumulative Stats'!F161 -> 27 | G63: ='[5]Cumulative Stats'!G161 -> 0 | J63: ='[16]Cumulative Stats'!A176 -> Alexander, L | K63: WAS | L63: ='[16]Cumulative Stats'!C176 -> 3
A64: ='[9]Cumulative Stats'!A164 -> McKenzie | B64: NOS | C64: ='[9]Cumulative Stats'!C164 -> 1 | D64: ='[9]Cumulative Stats'!D164 -> 27 | E64: ='[9]Cumulative Stats'!E164 -> 27 | F64: ='[9]Cumulative Stats'!F164 -> 27 | G64: ='[9]Cumulative Stats'!G164 -> 0 | J64: ='[1]Cumulative Stats'!A179 -> Berry | K64: ARI | L64: ='[1]Cumulative Stats'!C179 -> 3
A65: ='[10]Cumulative Stats'!A163 -> Madison | B65: NYG | C65: ='[10]Cumulative Stats'!C163 -> 1 | D65: ='[10]Cumulative Stats'!D163 -> 19 | E65: ='[10]Cumulative Stats'!E163 -> 19 | F65: ='[10]Cumulative Stats'!F163 -> 19 | G65: ='[10]Cumulative Stats'!G163 -> 0 | J65: ='[2]Cumulative Stats'!A176 -> Biemann | K65: ATL | L65: ='[2]Cumulative Stats'!C176 -> 3
A66: ='[10]Cumulative Stats'!A164 -> Kehl | B66: NYG | C66: ='[10]Cumulative Stats'!C164 -> 1 | D66: ='[10]Cumulative Stats'!D164 -> 19 | E66: ='[10]Cumulative Stats'!E164 -> 19 | F66: ='[10]Cumulative Stats'!F164 -> 19 | G66: ='[10]Cumulative Stats'!G164 -> 0 | J66: ='[11]Cumulative Stats'!A181 -> Bradley | K66: PHI | L66: ='[11]Cumulative Stats'!C181 -> 3
A67: ='[11]Cumulative Stats'!A164 -> Bradley | B67: PHI | C67: ='[11]Cumulative Stats'!C164 -> 1 | D67: ='[11]Cumulative Stats'!D164 -> 19 | E67: ='[11]Cumulative Stats'!E164 -> 19 | F67: ='[11]Cumulative Stats'!F164 -> 19 | G67: ='[11]Cumulative Stats'!G164 -> 0 | J67: ='[11]Cumulative Stats'!A182 -> Brown, S | K67: PHI | L67: ='[11]Cumulative Stats'!C182 -> 3
A68: ='[3]Cumulative Stats'!A163 -> Godfrey | B68: CAR | C68: ='[3]Cumulative Stats'!C163 -> 1 | D68: ='[3]Cumulative Stats'!D163 -> 16 | E68: ='[3]Cumulative Stats'!E163 -> 16 | F68: ='[3]Cumulative Stats'!F163 -> 16 | G68: ='[3]Cumulative Stats'!G163 -> 0 | J68: ='[11]Cumulative Stats'!A180 -> Bunkley | K68: PHI | L68: ='[11]Cumulative Stats'!C180 -> 3
A69: ='[11]Cumulative Stats'!A162 -> Parker | B69: PHI | C69: ='[11]Cumulative Stats'!C162 -> 1 | D69: ='[11]Cumulative Stats'!D162 -> 15 | E69: ='[11]Cumulative Stats'!E162 -> 15 | F69: ='[11]Cumulative Stats'!F162 -> 15 | G69: ='[11]Cumulative Stats'!G162 -> 1 | J69: ='[8]Cumulative Stats'!A178 -> Edwards | K69: MIN | L69: ='[8]Cumulative Stats'!C178 -> 3
A70: ='[8]Cumulative Stats'!A166 -> Johnson, T | B70: MIN | C70: ='[8]Cumulative Stats'!C166 -> 1 | D70: ='[8]Cumulative Stats'!D166 -> 10 | E70: ='[8]Cumulative Stats'!E166 -> 10 | F70: ='[8]Cumulative Stats'!F166 -> 10 | G70: ='[8]Cumulative Stats'!G166 -> 0 | J70: ='[9]Cumulative Stats'!A177 -> Ellis | K70: NOS | L70: ='[9]Cumulative Stats'!C177 -> 3
A71: ='[14]Cumulative Stats'!A162 -> Wade | B71: STL | C71: ='[14]Cumulative Stats'!C162 -> 1 | D71: ='[14]Cumulative Stats'!D162 -> 10 | E71: ='[14]Cumulative Stats'!E162 -> 10 | F71: ='[14]Cumulative Stats'!F162 -> 10 | G71: ='[14]Cumulative Stats'!G162 -> 0 | J71: ='[8]Cumulative Stats'!A177 -> Greenway | K71: MIN | L71: ='[8]Cumulative Stats'!C177 -> 3
A72: ='[1]Cumulative Stats'!A162 -> Green | B72: ARI | C72: ='[1]Cumulative Stats'!C162 -> 1 | D72: ='[1]Cumulative Stats'!D162 -> 10 | E72: ='[1]Cumulative Stats'!E162 -> 10 | F72: ='[1]Cumulative Stats'!F162 -> 10 | G72: ='[1]Cumulative Stats'!G162 -> 0 | J72: ='[5]Cumulative Stats'!A179 -> Hamlin | K72: DAL | L72: ='[5]Cumulative Stats'!C179 -> 3
A73: ='[2]Cumulative Stats'!A163 -> Milloy | B73: ATL | C73: ='[2]Cumulative Stats'!C163 -> 1 | D73: ='[2]Cumulative Stats'!D163 -> 7 | E73: ='[2]Cumulative Stats'!E163 -> 7 | F73: ='[2]Cumulative Stats'!F163 -> 7 | G73: ='[2]Cumulative Stats'!G163 -> 1 | J73: ='[8]Cumulative Stats'!A181 -> Harris | K73: MIN | L73: ='[8]Cumulative Stats'!C181 -> 3
A74: ='[15]Cumulative Stats'!A163 -> Adams | B74: TBB | C74: ='[15]Cumulative Stats'!C163 -> 1 | D74: ='[15]Cumulative Stats'!D163 -> 6 | E74: ='[15]Cumulative Stats'!E163 -> 6 | F74: ='[15]Cumulative Stats'!F163 -> 6 | G74: ='[15]Cumulative Stats'!G163 -> 0 | J74: ='[1]Cumulative Stats'!A181 -> Hayes | K74: ARI | L74: ='[1]Cumulative Stats'!C181 -> 3
A75: ='[4]Cumulative Stats'!A166 -> Graham | B75: CHI | C75: ='[4]Cumulative Stats'!C166 -> 1 | D75: ='[4]Cumulative Stats'!D166 -> 4 | E75: ='[4]Cumulative Stats'!E166 -> 4 | F75: ='[4]Cumulative Stats'!F166 -> 4 | G75: ='[4]Cumulative Stats'!G166 -> 0 | J75: ='[7]Cumulative Stats'!A175 -> Hunter | K75: GBP | L75: ='[7]Cumulative Stats'!C175 -> 3
A76: ='[7]Cumulative Stats'!A163 -> Bigby | B76: GBP | C76: ='[7]Cumulative Stats'!C163 -> 1 | D76: ='[7]Cumulative Stats'!D163 -> 4 | E76: ='[7]Cumulative Stats'!E163 -> 4 | F76: ='[7]Cumulative Stats'!F163 -> 4 | G76: ='[7]Cumulative Stats'!G163 -> 0 | J76: ='[11]Cumulative Stats'!A183 -> Klecko | K76: PHI | L76: ='[11]Cumulative Stats'!C183 -> 3
A77: ='[4]Cumulative Stats'!A164 -> Briggs | B77: CHI | C77: ='[4]Cumulative Stats'!C164 -> 1 | D77: ='[4]Cumulative Stats'!D164 -> 4 | E77: ='[4]Cumulative Stats'!E164 -> 4 | F77: ='[4]Cumulative Stats'!F164 -> 4 | G77: ='[4]Cumulative Stats'!G164 -> 0 | J77: ='[1]Cumulative Stats'!A180 -> LaBoy | K77: ARI | L77: ='[1]Cumulative Stats'!C180 -> 3
A78: ='[10]Cumulative Stats'!A162 -> Webster | B78: NYG | C78: ='[10]Cumulative Stats'!C162 -> 1 | D78: ='[10]Cumulative Stats'!D162 -> 4 | E78: ='[10]Cumulative Stats'!E162 -> 4 | F78: ='[10]Cumulative Stats'!F162 -> 4 | G78: ='[10]Cumulative Stats'!G162 -> 0 | J78: ='[16]Cumulative Stats'!A177 -> Montgomery, A | K78: WAS | L78: ='[16]Cumulative Stats'!C177 -> 3
A79: ='[10]Cumulative Stats'!A165 -> Phillips | B79: NYG | C79: ='[10]Cumulative Stats'!C165 -> 1 | D79: ='[10]Cumulative Stats'!D165 -> 2 | E79: ='[10]Cumulative Stats'!E165 -> 2 | F79: ='[10]Cumulative Stats'!F165 -> 2 | G79: ='[10]Cumulative Stats'!G165 -> 0 | J79: ='[6]Cumulative Stats'!A180 -> Nece | K79: DET | L79: ='[6]Cumulative Stats'!C180 -> 3
A80: ='[6]Cumulative Stats'!A160 -> Bodden | B80: DET | C80: ='[6]Cumulative Stats'!C160 -> 1 | D80: ='[6]Cumulative Stats'!D160 -> 2 | E80: ='[6]Cumulative Stats'!E160 -> 2 | F80: ='[6]Cumulative Stats'!F160 -> 2 | G80: ='[6]Cumulative Stats'!G160 -> 0 | J80: ='[10]Cumulative Stats'!A179 -> Pierce | K80: NYG | L80: ='[10]Cumulative Stats'!C179 -> 3
A81: ='[11]Cumulative Stats'!A163 -> Dawkins | B81: PHI | C81: ='[11]Cumulative Stats'!C163 -> 1 | D81: ='[11]Cumulative Stats'!D163 -> 1 | E81: ='[11]Cumulative Stats'!E163 -> 1 | F81: ='[11]Cumulative Stats'!F163 -> 1 | G81: ='[11]Cumulative Stats'!G163 -> 0 | J81: ='[8]Cumulative Stats'!A179 -> Robison | K81: MIN | L81: ='[8]Cumulative Stats'!C179 -> 3
A82: ='[16]Cumulative Stats'!A166 -> Griffin | B82: WAS | C82: ='[16]Cumulative Stats'!C166 -> 1 | D82: ='[16]Cumulative Stats'!D166 -> 0 | E82: ='[16]Cumulative Stats'!E166 -> 0 | F82: ='[16]Cumulative Stats'!F166 -> 0 | G82: ='[16]Cumulative Stats'!G166 -> 0 | J82: ='[6]Cumulative Stats'!A181 -> Sims | K82: DET | L82: ='[6]Cumulative Stats'!C181 -> 3
A83: ='[4]Cumulative Stats'!A168 -> Brown, A | B83: CHI | C83: ='[4]Cumulative Stats'!C168 -> 1 | D83: ='[4]Cumulative Stats'!D168 -> 0 | E83: ='[4]Cumulative Stats'!E168 -> 0 | F83: ='[4]Cumulative Stats'!F168 -> 0 | G83: ='[4]Cumulative Stats'!G168 -> 0 | J83: ='[9]Cumulative Stats'!A178 -> Smith | K83: NOS | L83: ='[9]Cumulative Stats'!C178 -> 3
A84: ='[11]Cumulative Stats'!A165 -> Sheppard | B84: PHI | C84: ='[11]Cumulative Stats'!C165 -> 1 | D84: ='[11]Cumulative Stats'!D165 -> 0 | E84: ='[11]Cumulative Stats'!E165 -> 0 | F84: ='[11]Cumulative Stats'!F165 -> 0 | G84: ='[11]Cumulative Stats'!G165 -> 0 | J84: ='[13]Cumulative Stats'!A177 -> Spikes | K84: SFO | L84: ='[13]Cumulative Stats'!C177 -> 3
A85: ='[4]Cumulative Stats'!A167 -> Ogunleye | B85: CHI | C85: ='[4]Cumulative Stats'!C167 -> 1 | D85: ='[4]Cumulative Stats'!D167 -> 0 | E85: ='[4]Cumulative Stats'!E167 -> 0 | F85: ='[4]Cumulative Stats'!F167 -> 0 | G85: ='[4]Cumulative Stats'!G167 -> 0 | J85: ='[8]Cumulative Stats'!A180 -> Wyms | K85: MIN | L85: ='[8]Cumulative Stats'!C180 -> 3
A86: ='[14]Cumulative Stats'!A161 -> Craft | B86: STL | C86: ='[14]Cumulative Stats'!C161 -> 1 | D86: ='[14]Cumulative Stats'!D161 -> 0 | E86: ='[14]Cumulative Stats'!E161 -> 0 | F86: ='[14]Cumulative Stats'!F161 -> 0 | G86: ='[14]Cumulative Stats'!G161 -> 0 | J86: ='[14]Cumulative Stats'!A178 -> Adeyanju | K86: STL | L86: ='[14]Cumulative Stats'!C178 -> 2.5
A87: ='[6]Cumulative Stats'!A161 -> Smith, C | B87: DET | C87: ='[6]Cumulative Stats'!C161 -> 1 | D87: ='[6]Cumulative Stats'!D161 -> -1 | E87: ='[6]Cumulative Stats'!E161 -> -1 | F87: ='[6]Cumulative Stats'!F161 -> 0 | G87: ='[6]Cumulative Stats'!G161 -> 0 | J87: ='[10]Cumulative Stats'!A180 -> Alford | K87: NYG | L87: ='[10]Cumulative Stats'!C180 -> 2.5
A88: ='[12]Cumulative Stats'!A161 -> Trufant | B88: SEA | C88: ='[12]Cumulative Stats'!C161 -> 1 | D88: ='[12]Cumulative Stats'!D161 -> -1 | E88: ='[12]Cumulative Stats'!E161 -> -1 | F88: ='[12]Cumulative Stats'!F161 -> 0 | G88: ='[12]Cumulative Stats'!G161 -> 0 | J88: ='[4]Cumulative Stats'!A177 -> Anderson | K88: CHI | L88: ='[4]Cumulative Stats'!C177 -> 2.5
J89: ='[4]Cumulative Stats'!A176 -> Idonije | K89: CHI | L89: ='[4]Cumulative Stats'!C176 -> 2.5
J90: ='[3]Cumulative Stats'!A177 -> Lewis | K90: CAR | L90: ='[3]Cumulative Stats'!C177 -> 2.5
J91: ='[6]Cumulative Stats'!A182 -> Moore, L | K91: DET | L91: ='[6]Cumulative Stats'!C182 -> 2.5
J92: ='[1]Cumulative Stats'!A182 -> Wilson | K92: ARI | L92: ='[1]Cumulative Stats'!C182 -> 2.5
J93: ='[11]Cumulative Stats'!A185 -> Abiamiri | K93: PHI | L93: ='[11]Cumulative Stats'!C185 -> 2
J94: ='[2]Cumulative Stats'!A177 -> Babineaux | K94: ATL | L94: ='[2]Cumulative Stats'!C177 -> 2
J95: ='[14]Cumulative Stats'!A180 -> Bartell | K95: STL | L95: ='[14]Cumulative Stats'!C180 -> 2
J96: ='[10]Cumulative Stats'!A182 -> Blackburn | K96: NYG | L96: ='[10]Cumulative Stats'!C182 -> 2
J97: ='[3]Cumulative Stats'!A178 -> Brayton | K97: CAR | L97: ='[3]Cumulative Stats'!C178 -> 2
J98: ='[14]Cumulative Stats'!A181 -> Brown, F | K98: STL | L98: ='[14]Cumulative Stats'!C181 -> 2
J99: ='[10]Cumulative Stats'!A181 -> Cofield | K99: NYG | L99: ='[10]Cumulative Stats'!C181 -> 2
J100: ='[14]Cumulative Stats'!A179 -> Craft | K100: STL | L100: ='[14]Cumulative Stats'!C179 -> 2
J101: ='[6]Cumulative Stats'!A183 -> Darby | K101: DET | L101: ='[6]Cumulative Stats'!C183 -> 2
J102: ='[11]Cumulative Stats'!A184 -> Gocong | K102: PHI | L102: ='[11]Cumulative Stats'!C184 -> 2
J103: ='[15]Cumulative Stats'!A181 -> Hovan | K103: TBB | L103: ='[15]Cumulative Stats'!C181 -> 2
J104: ='[12]Cumulative Stats'!A179 -> Jackson | K104: SEA | L104: ='[12]Cumulative Stats'!C179 -> 2
J105: ='[2]Cumulative Stats'!A178 -> Jackson, G | K105: ATL | L105: ='[2]Cumulative Stats'!C178 -> 2
J106: ='[8]Cumulative Stats'!A183 -> Leber | K106: MIN | L106: ='[8]Cumulative Stats'!C183 -> 2
J107: ='[16]Cumulative Stats'!A178 -> McIntosh | K107: WAS | L107: ='[16]Cumulative Stats'!C178 -> 2
J108: ='[7]Cumulative Stats'!A176 -> Montgomery | K108: GBP | L108: ='[7]Cumulative Stats'!C176 -> 2
J109: ='[14]Cumulative Stats'!A182 -> Moore | K109: STL | L109: ='[14]Cumulative Stats'!C182 -> 2
J110: ='[4]Cumulative Stats'!A178 -> Ogunleye | K110: CHI | L110: ='[4]Cumulative Stats'!C178 -> 2
J111: ='[7]Cumulative Stats'!A177 -> Pickett | K111: GBP | L111: ='[7]Cumulative Stats'!C177 -> 2
J112: ='[9]Cumulative Stats'!A179 -> Shanle | K112: NOS | L112: ='[9]Cumulative Stats'!C179 -> 2
J113: ='[15]Cumulative Stats'!A180 -> Sims | K113: TBB | L113: ='[15]Cumulative Stats'!C180 -> 2
J114: ='[13]Cumulative Stats'!A178 -> Sopoaga | K114: SFO | L114: ='[13]Cumulative Stats'!C178 -> 2
J115: ='[5]Cumulative Stats'!A180 -> Spencer | K115: DAL | L115: ='[5]Cumulative Stats'!C180 -> 2
J116: ='[8]Cumulative Stats'!A182 -> Winfield | K116: MIN | L116: ='[8]Cumulative Stats'!C182 -> 2
